Workbook

Sheet Introduksjon

Sheet Prisliste
B1: Kostnad for lønn til pleiere
B2: Gjennomsnittlig kostnad pleier per time (inkl. arb.avgift, feriepenger osv.) | F2: 370 | G2: kr
B3: Påslag for innetid, utgifter knyttet til kjøring osv. | F3: 0.1
B4: Timeskostnad pleier (inkludert avgifter) | F4: =F2*(1+F3) -> 407 | G4: kr
B6: Kostnad for institusjonsplass og overliggerdøgn
B7: Gjennomsnittlig årskostnad for institusjonsplass (korttid) | F7: 1000000 | G7: kr
B8: Gjennomsnittlig årskostnad for institusjonsplass (langtid) | F8: 1400000 | G8: kr
B9: Gjennomsnittlig dagskostnad for institusjonsplass (korttid) | F9: =F7/365 -> 2739.726027 | G9: kr
B10: Gjennomsnittlig dagskostnad for institusjonsplass (langtid) | F10: =F8/365 -> 3835.616438 | G10: kr
B11: Gjennomsnittlig årkostnad bruker av hjemmetjenester | F11: =300000 -> 300000 | G11: kr
B12: Gjennomsnittlig månedlig kostnad per bruker av hjemmetjenester | F12: =F11/12 -> 25000 | G12: kr
B13: Kostnad for overliggerdøgn på sykehus | F13: 6000 | G13: kr
B15: Prisliste for velferdsteknologier i kommunen eks. mva.
B17: Type teknologi | C17: Innkjøpspris | D17: Etableringspris | E17: Lisens per måned | F17: Estimert levetid på teknologi (år) | G17: Estimert månedlig kostnad
A18: 1 | B18: Digital trygghetsalarm, 4G | C18: 3000 | E18: 100 | F18: 5 | G18: =(C18)/12/F18+E18 -> 150
A19: 2 | B19: Digital trygghetsalarm, 2G | C19: 2000 | D19: 0 | E19: 100 | F19: 5 | G19: =(C19)/12/F19+E19 -> 133.3333333
A20: 3 | B20: Mobil trygghetsalarm | C20: 1000 | D20: 900 | E20: 0 | F20: 5 | G20: 16.66666667
A21: 4 | B21: Medisindispenser, Medidos | C21: 3000 | D21: 1500 | E21: 98 | F21: 5 | G21: 148
A22: 5 | B22: Medisindispenser, Pilly | C22: 3000 | D22: 1500 | E22: 0 | F22: 5 | G22: 50
A23: 6 | B23: Døralarm | C23: 1000 | D23: 0 | E23: 0 | F23: 5 | G23: 16.66666667
A24: 7 | B24: E-lås hjemmetjeneste | C24: 1000 | D24: 500 | E24: 0 | F24: 5 | G24: 16.66666667
A25: 8
A26: 9
A27: 10
A28: 11
A29: 12
A30: 13
A31: 14
A32: 15
A33: 16
A34: 17
A35: 18
A36: 19
A37: 20

Sheet Beregning
A2: Gevinstberegning
H9: Oversikt over navngitte celler
B10: Bruker-ID? | C10: 1003 | H10: Beskrivelse | I10: Cellenavn | J10: For bruk i VBA | L10: Offset-nummer i VBA (beskriver hvor i listen i "Antall besøk" dataen lagrers
B11: Når mottar bruker velferdsteknologi? | C11: 15.01.2018 | H11: Bruker-ID? | I11: BrukerID | J11: ="["&I11&"]" -> [BrukerID] | L11: 0
B12: Hvem registrerer brukeren | C12: Sykepleier 1 | H12: Når mottar bruker velferdsteknologi? | I12: StartDato | J12: ="["&I12&"]" -> [StartDato] | L12: 1
H13: Hvem registrerer brukeren | I13: Navn_registrerer | J13: [Navn_registrerer] | L13: 2
B14: Hva slags teknologi mottar brukeren?
B15: =Prisliste!B18 -> Digital trygghetsalarm, 4G | C15: Ja | D15: =IF(C15="Ja",Prisliste!G18,) -> 150 | E15: =IF(C15="Ja",Prisliste!D18) -> 0 | G15: 1 | H15: Installasjonskostnad | I15: Installasjonskostnad | J15: [Installasjonskostnad] | L15: 3
B16: =Prisliste!B19 -> Digital trygghetsalarm, 2G | C16: Nei | D16: =IF(C16="Ja",Prisliste!G19,) -> 0 | E16: =IF(C16="Ja",Prisliste!D19) -> FALSE | G16: 2 | H16: Opplæringskostnad | I16: Opplæringskostnad | J16: [Opplæringskostnad] | L16: 4
B17: =Prisliste!B20 -> Mobil trygghetsalarm | C17: Ja | D17: =IF(C17="Ja",Prisliste!G20,) -> 16.66666667 | E17: =IF(C17="Ja",Prisliste!D20) -> 900 | G17: 3
B18: =Prisliste!B21 -> Medisindispenser, Medidos | C18: Nei | D18: =IF(C18="Ja",Prisliste!G21,) -> 0 | E18: =IF(C18="Ja",Prisliste!D21) -> FALSE | G18: 4
B19: =Prisliste!B22 -> Medisindispenser, Pilly | C19: Nei | D19: =IF(C19="Ja",Prisliste!G22,) -> 0 | E19: =IF(C19="Ja",Prisliste!D22) -> FALSE | G19: 5 | H19: Antatt tid per besøk med UTEN velferdsteknologi (ansikt-til-ansikt + total kjøretid) | I19: Tid_Medisin_UtenVFT | J19: ="["&I19&"]" -> [Tid_Medisin_UtenVFT] | L19: 5
B20: =Prisliste!B23 -> Døralarm | C20: Nei | D20: =IF(C20="Ja",Prisliste!G23,) -> 0 | E20: =IF(C20="Ja",Prisliste!D23) -> FALSE | G20: 6 | H20: Antatt tid per besøk med MED velferdsteknologi (ansikt-til-ansikt + total kjøretid) | I20: Tid_medisin_medVFT | J20: ="["&I20&"]" -> [Tid_medisin_medVFT] | L20: 6
B21: =Prisliste!B24 -> E-lås hjemmetjeneste | C21: Nei | D21: =IF(C21="Ja",Prisliste!G24,) -> 0 | E21: =IF(C21="Ja",Prisliste!D24) -> FALSE | G21: 7 | H21: Ordinær tjeneste: antall fysiske besøk per måned | I21: Besøk_medisin_utenVFT | J21: ="["&I21&"]" -> [Besøk_medisin_utenVFT] | L21: 7
B22: =Prisliste!B25 ->  | C22: Nei | D22: =IF(C22="Ja",Prisliste!G25,) -> 0 | E22: =IF(C22="Ja",Prisliste!D25) -> FALSE | G22: 8 | H22: Med velferdsteknologi: antall fysiske besøk per måned | I22: Besøk_medisin_medVFT | J22: ="["&I22&"]" -> [Besøk_medisin_medVFT] | L22: 8
B23: =Prisliste!B26 ->  | C23: Nei | D23: =IF(C23="Ja",Prisliste!G26,) -> 0 | E23: =IF(C23="Ja",Prisliste!D26) -> FALSE | G23: 9 | H23: Kommentar på hvordan tid er beregnet | I23: Kommentar_medisin | J23: ="["&I23&"]" -> [Kommentar_medisin] | L23: 9
B24: =Prisliste!B27 ->  | C24: Nei | D24: =IF(C24="Ja",Prisliste!G27,) -> 0 | E24: =IF(C24="Ja",Prisliste!D27) -> FALSE | G24: 10
B25: =Prisliste!B28 ->  | C25: Nei | D25: =IF(C25="Ja",Prisliste!G28,) -> 0 | E25: =IF(C25="Ja",Prisliste!D28) -> FALSE | G25: 11 | H25: Antatt tid per besøk med uten velferdsteknologi (ansikt-til-ansikt + total kjøretid) | I25: Tid_tilsyn_utenVFT | J25: ="["&I25&"]" -> [Tid_tilsyn_utenVFT] | L25: 10
B26: =Prisliste!B29 ->  | C26: Nei | D26: =IF(C26="Ja",Prisliste!G29,) -> 0 | E26: =IF(C26="Ja",Prisliste!D29) -> FALSE | G26: 12 | H26: Antatt tid per besøk med med velferdsteknologi (ansikt-til-ansikt + total kjøretid) | I26: Tid_tilsyn_medVFT | J26: ="["&I26&"]" -> [Tid_tilsyn_medVFT] | L26: 11
B27: =Prisliste!B30 ->  | C27: Nei | D27: =IF(C27="Ja",Prisliste!G30,) -> 0 | E27: =IF(C27="Ja",Prisliste!D30) -> FALSE | G27: 13 | H27: Ordinær tjeneste: antall fysiske besøk per måned | I27: Besøk_tilsyn_utenVFT | J27: ="["&I27&"]" -> [Besøk_tilsyn_utenVFT] | L27: 12
B28: =Prisliste!B31 ->  | C28: Nei | D28: =IF(C28="Ja",Prisliste!G31,) -> 0 | E28: =IF(C28="Ja",Prisliste!D31) -> FALSE | G28: 14 | H28: Med velferdsteknologi: antall fysiske besøk per måned | I28: Besøk_tilsyn_medVFT | J28: ="["&I28&"]" -> [Besøk_tilsyn_medVFT] | L28: 13
B29: =Prisliste!B32 ->  | C29: Nei | D29: =IF(C29="Ja",Prisliste!G32,) -> 0 | E29: =IF(C29="Ja",Prisliste!D32) -> FALSE | G29: 15 | H29: Kommentar på hvordan tid er beregnet | I29: Kommentar_tilsyn | J29: ="["&I29&"]" -> [Kommentar_tilsyn] | L29: 14
B30: =Prisliste!B33 ->  | C30: Nei | D30: =IF(C30="Ja",Prisliste!G33,) -> 0 | E30: =IF(C30="Ja",Prisliste!D33) -> FALSE | G30: 16
B31: =Prisliste!B34 ->  | C31: Nei | D31: =IF(C31="Ja",Prisliste!G34,) -> 0 | E31: =IF(C31="Ja",Prisliste!D34) -> FALSE | G31: 17 | H31: Vil bruk av velferdsteknologi gi utsatt plass på korttidsavdeling? | I31: Utsatt_korttidsavd | J31: ="["&I31&"]" -> [Utsatt_korttidsavd] | L31: 15
B32: =Prisliste!B35 ->  | C32: Nei | D32: =IF(C32="Ja",Prisliste!G35,) -> 0 | E32: =IF(C32="Ja",Prisliste!D35) -> FALSE | G32: 18 | H32: Vil bruk av velferdsteknologi gi utsatt plass på langtidsavdeling? | I32: Utsatt_langtidsavd | J32: ="["&I32&"]" -> [Utsatt_langtidsavd] | L32: 16
B33: =Prisliste!B36 ->  | C33: Nei | D33: =IF(C33="Ja",Prisliste!G36,) -> 0 | E33: =IF(C33="Ja",Prisliste!D36) -> FALSE | G33: 19 | H33: Vil bruk av veldferdsteknologi redusere antall overliggerdøgn på sykehus? | I33: Reduksjon_overliggerdøgn | J33: ="["&I33&"]" -> [Reduksjon_overliggerdøgn] | L33: 17
B34: =Prisliste!B37 ->  | C34: Nei | D34: =IF(C34="Ja",Prisliste!G37,) -> 0 | E34: =IF(C34="Ja",Prisliste!D37) -> FALSE | G34: 20
C35: SUM Måned | D35: =SUM(D14:D34) -> 166.6666667
C36: Sum Etablering | D36: =SUM(E15:E34) -> 900
B39: Er det knyttet kostnader til installasjon og opplæring hos bruker?
B40: Installasjonskostnad | C40: 0 | D40: kr
B41: Opplæringskostnad | C41: 0 | D41: kr
E42: Kommentar på hvordan tid og besøk er beregnet
B43: Gevinster for redusert antall besøk
B44: Antatt tid per besøk UTEN velferdsteknologi (ansikt-til-ansikt + total kjøretid) | D44: Minutter (inkluder kjøretid til og fra) | E44: Skriv inn kommentar på hvordan besøk og tid er beregnet.
B45: Antatt tid per besøk MED velferdsteknologi (ansikt-til-ansikt + total kjøretid) | D45: Minutter (inkluder kjøretid til og fra)
B46: Ordinær tjeneste: antall fysiske besøk per måned | D46: Mangler du informasjon? Gjør enkel antakelse
B47: Med velferdsteknologi: antall fysiske besøk per måned | D47: Mangler du informasjon? Gjør enkel antakelse
B49: Gevinster ved utsatt institusjonsopphold
B50: Vil bruk av velferdsteknologi gi utsatt plass på korttidsavdeling? | C50: Nei | D50: Kun hvis du er sikker på at det unngås innleggelse ved bruk av velferdsteknologi.
B51: Vil bruk av velferdsteknologi gi utsatt plass på langtidsavdeling? | C51: Ja | D51: Kun hvis du er sikker på at det unngås innleggelse ved bruk av velferdsteknologi.
B52: Hvor mange overliggerdøgn på sykehus antas ungått? | C52: 0 | D52: Kun hvis du er sikker på at velferdsteknologi reduserer overliggerdøgn.
B54: Gevinstestimering
B55: Sammenlign tid/kostnad for ordinær og velferdsteknologi som tjeneste | C55: Tid | D55: Kostnad | E55: Beskrivelse
B56: Månedlig kostnad for velferdsteknologi | D56: =KostnadMånedUtstyr -> 166.6666667 | E56: Per måned
B57: Tid brukt på besøk ordinær tjeneste | C57: =(Tid_Medisin_UtenVFT*Besøk_medisin_utenVFT)/60 -> 0 | D57: =C57*Timeslønn.Sykepleier -> 0 | E57: Per måned
B58: Kostnad ved besøk med velferdsteknologi | C58: =(Tid_medisin_medVFT*Besøk_medisin_medVFT)/60 -> 0 | D58: =C58*Timeslønn.Sykepleier -> 0 | E58: Per måned
B59: Gevinst ved bruk av velferdsteknologi | C59: =C57-C58 -> 0 | D59: =D57-D58-D56 -> -166.6666667 | E59: Per måned
B60: Gevinst ved utsatt institusjonsinnleggelse | D60: =_xlfn.IFS(Utsatt_korttidsavd="Ja",Årskostnad_Korttid/12,Utsatt_langtidsavd="Ja",Årskostnad_Langtid/12,Reduksjon_overliggerdøgn>0,Dagskost_Overliggerdøgn*Reduksjon_overliggerdøgn,AND(Utsatt_korttidsavd="Nei",Utsatt_langtidsavd="Nei",Reduksjon_overliggerdøgn=0),0) -> 116666.6667 | E60: Per måned
B61: Spart tid og kostnad ved bruk av velferdsteknologi (positive tall er besparelse) | C61: =C59*12 -> 0 | D61: =D59*12-Opplæringskostnad-Installasjonskostnad-Etableringskostnad+D60 -> 113766.6667 | E61: Per år, inkl. installasjons- og oppstartskostnader
B62: Spart tid/spart kostnad ved bruk av velferdsteknologi? | D62: =+IF(D61>0,"JA","NEI") -> JA

Sheet Månedlig registrering
AN1: Klikk på +/- ovenfor for å vise / skjule informasjon fra kartlegging | CE1: Ja
AM2: Registrering av månedlige resultater | CE2: Nei
S3: 1 | T3: 2 | U3: 3 | V3: 4 | W3: 5 | X3: 6 | Y3: =+X3+1 -> 7 | Z3: 8 | AA3: 9 | AB3: 10 | AC3: 11 | AD3: 12 | AE3: 13 | AF3: 14 | AG3: 15 | AH3: 16 | AI3: 17 | AJ3: 18 | AK3: 19 | AL3: 20
C4: Informasjon fra kartlegging
A5: 1 | B5: 2 | C5: 3 | D5: 31 | E5: 32 | F5: 35 | G5: 36 | H5: 37 | I5: 38 | J5: Kommentar | K5: 41 | L5: 42 | M5: 43 | N5: 44 | O5: BLANK | P5: 47 | Q5: 48 | R5: 49 | S5: =INDEX(Prisliste!$B$18:$B$37,S3,0) -> Digital trygghetsalarm, 4G | T5: =INDEX(Prisliste!$B$18:$B$37,T3,0) -> Digital trygghetsalarm, 2G | U5: =INDEX(Prisliste!$B$18:$B$37,U3,0) -> Mobil trygghetsalarm | V5: =INDEX(Prisliste!$B$18:$B$37,V3,0) -> Medisindispenser, Medidos | W5: =INDEX(Prisliste!$B$18:$B$37,W3,0) -> Medisindispenser, Pilly | X5: =INDEX(Prisliste!$B$18:$B$37,X3,0) -> Døralarm | Y5: =INDEX(Prisliste!$B$18:$B$37,Y3,0) -> E-lås hjemmetjeneste | Z5: =INDEX(Prisliste!$B$18:$B$37,Z3,0) ->  | AA5: =INDEX(Prisliste!$B$18:$B$37,AA3,0) ->  | AB5: =INDEX(Prisliste!$B$18:$B$37,AB3,0) ->  | AC5: =INDEX(Prisliste!$B$18:$B$37,AC3,0) ->  | AD5: =INDEX(Prisliste!$B$18:$B$37,AD3,0) ->  | AE5: =INDEX(Prisliste!$B$18:$B$37,AE3,0) ->  | AF5: =INDEX(Prisliste!$B$18:$B$37,AF3,0) ->  | AG5: =INDEX(Prisliste!$B$18:$B$37,AG3,0) ->  | AH5: =INDEX(Prisliste!$B$18:$B$37,AH3,0) ->  | AI5: =INDEX(Prisliste!$B$18:$B$37,AI3,0) ->  | AJ5: =INDEX(Prisliste!$B$18:$B$37,AJ3,0) ->  | AK5: =INDEX(Prisliste!$B$18:$B$37,AK3,0) ->  | AL5: =INDEX(Prisliste!$B$18:$B$37,AL3,0) ->  | AM5: Gevinstestimat for bruker
A6: =INDEX(Beregning!$B$10:$B$54,'Månedlig registrering'!A5) -> Bruker-ID? | B6: =INDEX(Beregning!$B$10:$B$54,'Månedlig registrering'!B5) -> Når mottar bruker velferdsteknologi? | C6: =INDEX(Beregning!$B$10:$B$54,'Månedlig registrering'!C5) -> Hvem registrerer brukeren | D6: =INDEX(Beregning!$B$10:$B$54,'Månedlig registrering'!D5) -> Installasjonskostnad | E6: =INDEX(Beregning!$B$10:$B$54,'Månedlig registrering'!E5) -> Opplæringskostnad | F6: =INDEX(Beregning!$B$10:$B$54,'Månedlig registrering'!F5) -> Antatt tid per besøk UTEN velferdsteknologi (ansikt-til-ansikt + total kjøretid) | G6: =INDEX(Beregning!$B$10:$B$54,'Månedlig registrering'!G5) -> Antatt tid per besøk MED velferdsteknologi (ansikt-til-ansikt + total kjøretid) | H6: =INDEX(Beregning!$B$10:$B$54,'Månedlig registrering'!H5) -> Ordinær tjeneste: antall fysiske besøk per måned | I6: =INDEX(Beregning!$B$10:$B$54,'Månedlig registrering'!I5) -> Med velferdsteknologi: antall fysiske besøk per måned | K6: BLANK | L6: BLANK | M6: BLANK | N6: BLANK | O6: =Beregning!B50 -> Vil bruk av velferdsteknologi gi utsatt plass på korttidsavdeling? | P6: =Beregning!B51 -> Vil bruk av velferdsteknologi gi utsatt plass på langtidsavdeling? | Q6: =Beregning!B52 -> Hvor mange overliggerdøgn på sykehus antas ungått? | AN6: 2018-01-01 | AQ6: 2018-02-01 | AT6: 2018-03-01 | AW6: 2018-04-01 | AZ6: 2018-05-01 | BC6: 2018-06-01 | BF6: 2018-07-01 | BI6: 2018-08-01 | BL6: 2018-09-01 | BO6: 2018-10-01 | BR6: 2018-11-01 | BU6: 2018-12-01 | BX6: 2019-01-01 | CA6: 2019-02-01 | CD6: 2019-03-01 | CG6: 2019-04-01 | CJ6: 2019-05-01 | CM6: 2019-06-01 | CP6: 2019-07-01 | CS6: 2019-08-01 | CV6: 2019-09-01 | CY6: 2019-10-01 | DB6: 2019-11-01 | DE6: 2019-12-01 | DH6: 2020-01-01 | DK6: 2020-02-01 | DN6: 2020-03-01 | DQ6: 2020-04-01 | DT6: 2020-05-01 | DW6: 2020-06-01 | DZ6: 2020-07-01 | EC6: 2020-08-01 | EF6: 2020-09-01 | EI6: 2020-10-01 | EL6: 2020-11-01 | EO6: 2020-12-01
J7: =+Beregning!E42 -> Kommentar på hvordan tid og besøk er beregnet | R7: Etablerings-kostnad for teknologi | AN7: Antall besøk per måned | AO7: Dager utsatt institusjons- opphold (kortid - langtid - overliggerdøgn) | AP7: Bruker fornøyd? | AQ7: Antall besøk per måned | AR7: Dager utsatt institusjons- opphold (kortid - langtid - overliggerdøgn) | AS7: Bruker fornøyd? | AT7: Antall besøk per måned | AU7: Dager utsatt institusjons- opphold (kortid - langtid - overliggerdøgn) | AV7: Bruker fornøyd? | AW7: Antall besøk per måned | AX7: Dager utsatt institusjons- opphold (kortid - langtid - overliggerdøgn) | AY7: Bruker fornøyd? | AZ7: Antall besøk per måned | BA7: Dager utsatt institusjons- opphold (kortid - langtid - overliggerdøgn) | BB7: Bruker fornøyd? | BC7: Antall besøk per måned | BD7: Dager utsatt institusjons- opphold (kortid - langtid - overliggerdøgn) | BE7: Bruker fornøyd? | BF7: Antall besøk per måned | BG7: Dager utsatt institusjons- opphold (kortid - langtid - overliggerdøgn) | BH7: Bruker fornøyd? | BI7: Antall besøk per måned | BJ7: Dager utsatt institusjons- opphold (kortid - langtid - overliggerdøgn) | BK7: Bruker fornøyd? | BL7: Antall besøk per måned | BM7: Dager utsatt institusjons- opphold (kortid - langtid - overliggerdøgn) | BN7: Bruker fornøyd? | BO7: Antall besøk per måned | BP7: Dager utsatt institusjons- opphold (kortid - langtid - overliggerdøgn) | BQ7: Bruker fornøyd? | BR7: Antall besøk per måned | BS7: Dager utsatt institusjons- opphold (kortid - langtid - overliggerdøgn) | BT7: Bruker fornøyd? | BU7: Antall besøk per måned | BV7: Dager utsatt institusjons- opphold (kortid - langtid - overliggerdøgn) | BW7: Bruker fornøyd? | BX7: Antall besøk per måned | BY7: Dager utsatt institusjons- opphold (kortid - langtid - overliggerdøgn) | BZ7: Bruker fornøyd? | CA7: Antall besøk per måned | CB7: Dager utsatt institusjons- opphold (kortid - langtid - overliggerdøgn) | CC7: Bruker fornøyd? | CD7: Antall besøk per måned | CE7: Dager utsatt institusjons- opphold (kortid - langtid - overliggerdøgn) | CF7: Bruker fornøyd? | CG7: Antall besøk per måned | CH7: Dager utsatt institusjons- opphold (kortid - langtid - overliggerdøgn) | CI7: Bruker fornøyd? | CJ7: Antall besøk per måned | CK7: Dager utsatt institusjons- opphold (kortid - langtid - overliggerdøgn) | CL7: Bruker fornøyd? | CM7: Antall besøk per måned | CN7: Dager utsatt institusjons- opphold (kortid - langtid - overliggerdøgn) | CO7: Bruker fornøyd? | CP7: Antall besøk per måned | CQ7: Dager utsatt institusjons- opphold (kortid - langtid - overliggerdøgn) | CR7: Bruker fornøyd? | CS7: Antall besøk per måned | CT7: Dager utsatt institusjons- opphold (kortid - langtid - overliggerdøgn) | CU7: Bruker fornøyd? | CV7: Antall besøk per måned | CW7: Dager utsatt institusjons- opphold (kortid - langtid - overliggerdøgn) | CX7: Bruker fornøyd? | CY7: Antall besøk per måned | CZ7: Dager utsatt institusjons- opphold (kortid - langtid - overliggerdøgn) | DA7: Bruker fornøyd? | DB7: Antall besøk per måned | DC7: Dager utsatt institusjons- opphold (kortid - langtid - overliggerdøgn) | DD7: Bruker fornøyd? | DE7: Antall besøk per måned | DF7: Dager utsatt institusjons- opphold (kortid - langtid - overliggerdøgn) | DG7: Bruker fornøyd? | DH7: Antall besøk per måned | DI7: Dager utsatt institusjons- opphold (kortid - langtid - overliggerdøgn) | DJ7: Bruker fornøyd? | DK7: Antall besøk per måned | DL7: Dager utsatt institusjons- opphold (kortid - langtid - overliggerdøgn) | DM7: Bruker fornøyd? | DN7: Antall besøk per måned | DO7: Dager utsatt institusjons- opphold (kortid - langtid - overliggerdøgn) | DP7: Bruker fornøyd? | DQ7: Antall besøk per måned | DR7: Dager utsatt institusjons- opphold (kortid - langtid - overliggerdøgn) | DS7: Bruker fornøyd? | DT7: Antall besøk per måned | DU7: Dager utsatt institusjons- opphold (kortid - langtid - overliggerdøgn) | DV7: Bruker fornøyd? | DW7: Antall besøk per måned | DX7: Dager utsatt institusjons- opphold (kortid - langtid - overliggerdøgn) | DY7: Bruker fornøyd? | DZ7: Antall besøk per måned | EA7: Dager utsatt institusjons- opphold (kortid - langtid - overliggerdøgn) | EB7: Bruker fornøyd? | EC7: Antall besøk per måned | ED7: Dager utsatt institusjons- opphold (kortid - langtid - overliggerdøgn) | EE7: Bruker fornøyd? | EF7: Antall besøk per måned | EG7: Dager utsatt institusjons- opphold (kortid - langtid - overliggerdøgn) | EH7: Bruker fornøyd? | EI7: Antall besøk per måned | EJ7: Dager utsatt institusjons- opphold (kortid - langtid - overliggerdøgn) | EK7: Bruker fornøyd? | EL7: Antall besøk per måned | EM7: Dager utsatt institusjons- opphold (kortid - langtid - overliggerdøgn) | EN7: Bruker fornøyd? | EO7: Antall besøk per måned | EP7: Dager utsatt institusjons- opphold (kortid - langtid - overliggerdøgn) | EQ7: Bruker fornøyd?
A8: 1001 | B8: 01.01.2018 | C8: Sykepleier 1 | D8: 1000 | E8: 1000 | F8: 30 | G8: 30 | H8: 90 | I8: 10 | J8: Skriv inn kommentar på hvordan besøk og tid er beregnet. | O8: Nei | P8: Nei | Q8: 0 | R8: 1500 | S8: 150 | T8: 0 | U8: 0 | V8: 148 | W8: 0 | X8: 0 | Y8: 0 | Z8: 0 | AA8: 0 | AB8: 0 | AC8: 0 | AD8: 0 | AE8: 0 | AF8: 0 | AG8: 0 | AH8: 0 | AI8: 0 | AJ8: 0 | AK8: 0 | AL8: 0 | AM8: =OFFSET(Start_ungått_besøk,'Spart tid - ungått besøk'!A3,0)*Timeslønn.Sykepleier+OFFSET(Start_gevinst_utsatt_plass,'Gevinst-utsatt plass'!A3,0)-OFFSET(Start_teknologikostnad,'Mellomregning - teknologikostna'!A3,0) -> 78147 | AN8: 90 | AP8: Nøytral | AQ8: 10 | AS8: Fornøyd | AT8: 10 | AV8: Fornøyd | AW8: 10 | AY8: Fornøyd | AZ8: 10 | BB8: Fornøyd
A9: 1002 | B9: 05.03.2018 | C9: Sykepleier 2 | D9: 500 | E9: 1000 | F9: 10 | G9: 20 | H9: 30 | I9: 2 | J9: Skriv inn kommentar på hvordan besøk og tid er beregnet. | O9: Nei | P9: Nei | Q9: 0 | R9: 2000 | S9: 0 | T9: 0 | U9: 0 | V9: 0 | W9: 50 | X9: 0 | Y9: 16.67 | Z9: 0 | AA9: 0 | AB9: 0 | AC9: 0 | AD9: 0 | AE9: 0 | AF9: 0 | AG9: 0 | AH9: 0 | AI9: 0 | AJ9: 0 | AK9: 0 | AL9: 0 | AM9: =OFFSET(Start_ungått_besøk,'Spart tid - ungått besøk'!A4,0)*Timeslønn.Sykepleier+OFFSET(Start_gevinst_utsatt_plass,'Gevinst-utsatt plass'!A4,0)-OFFSET(Start_teknologikostnad,'Mellomregning - teknologikostna'!A4,0) -> 3697.313333 | AT9: 30 | AV9: Fornøyd | AW9: 2 | AY9: Fornøyd | AZ9: 2 | BB9: Fornøyd
A10: 1003 | B10: 15.01.2018 | C10: Sykepleier 1 | D10: 0 | E10: 0 | J10: Skriv inn kommentar på hvordan besøk og tid er beregnet. | O10: Nei | P10: Ja | Q10: 0 | R10: 900 | S10: 150 | T10: 0 | U10: 16.67 | V10: 0 | W10: 0 | X10: 0 | Y10: 0 | Z10: 0 | AA10: 0 | AB10: 0 | AC10: 0 | AD10: 0 | AE10: 0 | AF10: 0 | AG10: 0 | AH10: 0 | AI10: 0 | AJ10: 0 | AK10: 0 | AL10: 0 | AM10: =OFFSET(Start_ungått_besøk,'Spart tid - ungått besøk'!A5,0)*Timeslønn.Sykepleier+OFFSET(Start_gevinst_utsatt_plass,'Gevinst-utsatt plass'!A5,0)-OFFSET(Start_teknologikostnad,'Mellomregning - teknologikostna'!A5,0) -> 453031.4868 | AO10: 15 | AR10: 28 | AU10: 31 | AX10: 30 | BA10: 31
AM11: =OFFSET(Start_ungått_besøk,'Spart tid - ungått besøk'!A6,0)*Timeslønn.Sykepleier+OFFSET(Start_gevinst_utsatt_plass,'Gevinst-utsatt plass'!A6,0)-OFFSET(Start_teknologikostnad,'Mellomregning - teknologikostna'!A6,0) -> 0
AM12: =OFFSET(Start_ungått_besøk,'Spart tid - ungått besøk'!A7,0)*Timeslønn.Sykepleier+OFFSET(Start_gevinst_utsatt_plass,'Gevinst-utsatt plass'!A7,0)-OFFSET(Start_teknologikostnad,'Mellomregning - teknologikostna'!A7,0) -> 0
AM13: =OFFSET(Start_ungått_besøk,'Spart tid - ungått besøk'!A8,0)*Timeslønn.Sykepleier+OFFSET(Start_gevinst_utsatt_plass,'Gevinst-utsatt plass'!A8,0)-OFFSET(Start_teknologikostnad,'Mellomregning - teknologikostna'!A8,0) -> 0
AM14: =OFFSET(Start_ungått_besøk,'Spart tid - ungått besøk'!A9,0)*Timeslønn.Sykepleier+OFFSET(Start_gevinst_utsatt_plass,'Gevinst-utsatt plass'!A9,0)-OFFSET(Start_teknologikostnad,'Mellomregning - teknologikostna'!A9,0) -> 0
AM15: =OFFSET(Start_ungått_besøk,'Spart tid - ungått besøk'!A10,0)*Timeslønn.Sykepleier+OFFSET(Start_gevinst_utsatt_plass,'Gevinst-utsatt plass'!A10,0)-OFFSET(Start_teknologikostnad,'Mellomregning - teknologikostna'!A10,0) -> 0
AM16: =OFFSET(Start_ungått_besøk,'Spart tid - ungått besøk'!A11,0)*Timeslønn.Sykepleier+OFFSET(Start_gevinst_utsatt_plass,'Gevinst-utsatt plass'!A11,0)-OFFSET(Start_teknologikostnad,'Mellomregning - teknologikostna'!A11,0) -> 0
AM17: =OFFSET(Start_ungått_besøk,'Spart tid - ungått besøk'!A12,0)*Timeslønn.Sykepleier+OFFSET(Start_gevinst_utsatt_plass,'Gevinst-utsatt plass'!A12,0)-OFFSET(Start_teknologikostnad,'Mellomregning - teknologikostna'!A12,0) -> 0
AM18: =OFFSET(Start_ungått_besøk,'Spart tid - ungått besøk'!A13,0)*Timeslønn.Sykepleier+OFFSET(Start_gevinst_utsatt_plass,'Gevinst-utsatt plass'!A13,0)-OFFSET(Start_teknologikostnad,'Mellomregning - teknologikostna'!A13,0) -> 0
AM19: =OFFSET(Start_ungått_besøk,'Spart tid - ungått besøk'!A14,0)*Timeslønn.Sykepleier+OFFSET(Start_gevinst_utsatt_plass,'Gevinst-utsatt plass'!A14,0)-OFFSET(Start_teknologikostnad,'Mellomregning - teknologikostna'!A14,0) -> 0
AM20: =OFFSET(Start_ungått_besøk,'Spart tid - ungått besøk'!A15,0)*Timeslønn.Sykepleier+OFFSET(Start_gevinst_utsatt_plass,'Gevinst-utsatt plass'!A15,0)-OFFSET(Start_teknologikostnad,'Mellomregning - teknologikostna'!A15,0) -> 0
AM21: =OFFSET(Start_ungått_besøk,'Spart tid - ungått besøk'!A16,0)*Timeslønn.Sykepleier+OFFSET(Start_gevinst_utsatt_plass,'Gevinst-utsatt plass'!A16,0)-OFFSET(Start_teknologikostnad,'Mellomregning - teknologikostna'!A16,0) -> 0
AM22: =OFFSET(Start_ungått_besøk,'Spart tid - ungått besøk'!A17,0)*Timeslønn.Sykepleier+OFFSET(Start_gevinst_utsatt_plass,'Gevinst-utsatt plass'!A17,0)-OFFSET(Start_teknologikostnad,'Mellomregning - teknologikostna'!A17,0) -> 0
AM23: =OFFSET(Start_ungått_besøk,'Spart tid - ungått besøk'!A18,0)*Timeslønn.Sykepleier+OFFSET(Start_gevinst_utsatt_plass,'Gevinst-utsatt plass'!A18,0)-OFFSET(Start_teknologikostnad,'Mellomregning - teknologikostna'!A18,0) -> 0
AM24: =OFFSET(Start_ungått_besøk,'Spart tid - ungått besøk'!A19,0)*Timeslønn.Sykepleier+OFFSET(Start_gevinst_utsatt_plass,'Gevinst-utsatt plass'!A19,0)-OFFSET(Start_teknologikostnad,'Mellomregning - teknologikostna'!A19,0) -> 0
AM25: =OFFSET(Start_ungått_besøk,'Spart tid - ungått besøk'!A20,0)*Timeslønn.Sykepleier+OFFSET(Start_gevinst_utsatt_plass,'Gevinst-utsatt plass'!A20,0)-OFFSET(Start_teknologikostnad,'Mellomregning - teknologikostna'!A20,0) -> 0
AM26: =OFFSET(Start_ungått_besøk,'Spart tid - ungått besøk'!A21,0)*Timeslønn.Sykepleier+OFFSET(Start_gevinst_utsatt_plass,'Gevinst-utsatt plass'!A21,0)-OFFSET(Start_teknologikostnad,'Mellomregning - teknologikostna'!A21,0) -> 0
AM27: =OFFSET(Start_ungått_besøk,'Spart tid - ungått besøk'!A22,0)*Timeslønn.Sykepleier+OFFSET(Start_gevinst_utsatt_plass,'Gevinst-utsatt plass'!A22,0)-OFFSET(Start_teknologikostnad,'Mellomregning - teknologikostna'!A22,0) -> 0
AM28: =OFFSET(Start_ungått_besøk,'Spart tid - ungått besøk'!A23,0)*Timeslønn.Sykepleier+OFFSET(Start_gevinst_utsatt_plass,'Gevinst-utsatt plass'!A23,0)-OFFSET(Start_teknologikostnad,'Mellomregning - teknologikostna'!A23,0) -> 0
AM29: =OFFSET(Start_ungått_besøk,'Spart tid - ungått besøk'!A24,0)*Timeslønn.Sykepleier+OFFSET(Start_gevinst_utsatt_plass,'Gevinst-utsatt plass'!A24,0)-OFFSET(Start_teknologikostnad,'Mellomregning - teknologikostna'!A24,0) -> 0
AM30: =OFFSET(Start_ungått_besøk,'Spart tid - ungått besøk'!A25,0)*Timeslønn.Sykepleier+OFFSET(Start_gevinst_utsatt_plass,'Gevinst-utsatt plass'!A25,0)-OFFSET(Start_teknologikostnad,'Mellomregning - teknologikostna'!A25,0) -> 0
AM31: =OFFSET(Start_ungått_besøk,'Spart tid - ungått besøk'!A26,0)*Timeslønn.Sykepleier+OFFSET(Start_gevinst_utsatt_plass,'Gevinst-utsatt plass'!A26,0)-OFFSET(Start_teknologikostnad,'Mellomregning - teknologikostna'!A26,0) -> 0
AM32: =OFFSET(Start_ungått_besøk,'Spart tid - ungått besøk'!A27,0)*Timeslønn.Sykepleier+OFFSET(Start_gevinst_utsatt_plass,'Gevinst-utsatt plass'!A27,0)-OFFSET(Start_teknologikostnad,'Mellomregning - teknologikostna'!A27,0) -> 0
AM33: =OFFSET(Start_ungått_besøk,'Spart tid - ungått besøk'!A28,0)*Timeslønn.Sykepleier+OFFSET(Start_gevinst_utsatt_plass,'Gevinst-utsatt plass'!A28,0)-OFFSET(Start_teknologikostnad,'Mellomregning - teknologikostna'!A28,0) -> 0
AM34: =OFFSET(Start_ungått_besøk,'Spart tid - ungått besøk'!A29,0)*Timeslønn.Sykepleier+OFFSET(Start_gevinst_utsatt_plass,'Gevinst-utsatt plass'!A29,0)-OFFSET(Start_teknologikostnad,'Mellomregning - teknologikostna'!A29,0) -> 0
AM35: =OFFSET(Start_ungått_besøk,'Spart tid - ungått besøk'!A30,0)*Timeslønn.Sykepleier+OFFSET(Start_gevinst_utsatt_plass,'Gevinst-utsatt plass'!A30,0)-OFFSET(Start_teknologikostnad,'Mellomregning - teknologikostna'!A30,0) -> 0
AM36: =OFFSET(Start_ungått_besøk,'Spart tid - ungått besøk'!A31,0)*Timeslønn.Sykepleier+OFFSET(Start_gevinst_utsatt_plass,'Gevinst-utsatt plass'!A31,0)-OFFSET(Start_teknologikostnad,'Mellomregning - teknologikostna'!A31,0) -> 0
AM37: =OFFSET(Start_ungått_besøk,'Spart tid - ungått besøk'!A32,0)*Timeslønn.Sykepleier+OFFSET(Start_gevinst_utsatt_plass,'Gevinst-utsatt plass'!A32,0)-OFFSET(Start_teknologikostnad,'Mellomregning - teknologikostna'!A32,0) -> 0
AM38: =OFFSET(Start_ungått_besøk,'Spart tid - ungått besøk'!A33,0)*Timeslønn.Sykepleier+OFFSET(Start_gevinst_utsatt_plass,'Gevinst-utsatt plass'!A33,0)-OFFSET(Start_teknologikostnad,'Mellomregning - teknologikostna'!A33,0) -> 0
AM39: =OFFSET(Start_ungått_besøk,'Spart tid - ungått besøk'!A34,0)*Timeslønn.Sykepleier+OFFSET(Start_gevinst_utsatt_plass,'Gevinst-utsatt plass'!A34,0)-OFFSET(Start_teknologikostnad,'Mellomregning - teknologikostna'!A34,0) -> 0
AM40: =OFFSET(Start_ungått_besøk,'Spart tid - ungått besøk'!A35,0)*Timeslønn.Sykepleier+OFFSET(Start_gevinst_utsatt_plass,'Gevinst-utsatt plass'!A35,0)-OFFSET(Start_teknologikostnad,'Mellomregning - teknologikostna'!A35,0) -> 0
AM41: =OFFSET(Start_ungått_besøk,'Spart tid - ungått besøk'!A36,0)*Timeslønn.Sykepleier+OFFSET(Start_gevinst_utsatt_plass,'Gevinst-utsatt plass'!A36,0)-OFFSET(Start_teknologikostnad,'Mellomregning - teknologikostna'!A36,0) -> 0
AM42: =OFFSET(Start_ungått_besøk,'Spart tid - ungått besøk'!A37,0)*Timeslønn.Sykepleier+OFFSET(Start_gevinst_utsatt_plass,'Gevinst-utsatt plass'!A37,0)-OFFSET(Start_teknologikostnad,'Mellomregning - teknologikostna'!A37,0) -> 0
AM43: =OFFSET(Start_ungått_besøk,'Spart tid - ungått besøk'!A38,0)*Timeslønn.Sykepleier+OFFSET(Start_gevinst_utsatt_plass,'Gevinst-utsatt plass'!A38,0)-OFFSET(Start_teknologikostnad,'Mellomregning - teknologikostna'!A38,0) -> 0
AM44: =OFFSET(Start_ungått_besøk,'Spart tid - ungått besøk'!A39,0)*Timeslønn.Sykepleier+OFFSET(Start_gevinst_utsatt_plass,'Gevinst-utsatt plass'!A39,0)-OFFSET(Start_teknologikostnad,'Mellomregning - teknologikostna'!A39,0) -> 0
AM45: =OFFSET(Start_ungått_besøk,'Spart tid - ungått besøk'!A40,0)*Timeslønn.Sykepleier+OFFSET(Start_gevinst_utsatt_plass,'Gevinst-utsatt plass'!A40,0)-OFFSET(Start_teknologikostnad,'Mellomregning - teknologikostna'!A40,0) -> 0
AM46: =OFFSET(Start_ungått_besøk,'Spart tid - ungått besøk'!A41,0)*Timeslønn.Sykepleier+OFFSET(Start_gevinst_utsatt_plass,'Gevinst-utsatt plass'!A41,0)-OFFSET(Start_teknologikostnad,'Mellomregning - teknologikostna'!A41,0) -> 0
AM47: =OFFSET(Start_ungått_besøk,'Spart tid - ungått besøk'!A42,0)*Timeslønn.Sykepleier+OFFSET(Start_gevinst_utsatt_plass,'Gevinst-utsatt plass'!A42,0)-OFFSET(Start_teknologikostnad,'Mellomregning - teknologikostna'!A42,0) -> 0
AM48: =OFFSET(Start_ungått_besøk,'Spart tid - ungått besøk'!A43,0)*Timeslønn.Sykepleier+OFFSET(Start_gevinst_utsatt_plass,'Gevinst-utsatt plass'!A43,0)-OFFSET(Start_teknologikostnad,'Mellomregning - teknologikostna'!A43,0) -> 0
AM49: =OFFSET(Start_ungått_besøk,'Spart tid - ungått besøk'!A44,0)*Timeslønn.Sykepleier+OFFSET(Start_gevinst_utsatt_plass,'Gevinst-utsatt plass'!A44,0)-OFFSET(Start_teknologikostnad,'Mellomregning - teknologikostna'!A44,0) -> 0
AM50: =OFFSET(Start_ungått_besøk,'Spart tid - ungått besøk'!A45,0)*Timeslønn.Sykepleier+OFFSET(Start_gevinst_utsatt_plass,'Gevinst-utsatt plass'!A45,0)-OFFSET(Start_teknologikostnad,'Mellomregning - teknologikostna'!A45,0) -> 0
AM51: =OFFSET(Start_ungått_besøk,'Spart tid - ungått besøk'!A46,0)*Timeslønn.Sykepleier+OFFSET(Start_gevinst_utsatt_plass,'Gevinst-utsatt plass'!A46,0)-OFFSET(Start_teknologikostnad,'Mellomregning - teknologikostna'!A46,0) -> 0
AM52: =OFFSET(Start_ungått_besøk,'Spart tid - ungått besøk'!A47,0)*Timeslønn.Sykepleier+OFFSET(Start_gevinst_utsatt_plass,'Gevinst-utsatt plass'!A47,0)-OFFSET(Start_teknologikostnad,'Mellomregning - teknologikostna'!A47,0) -> 0
AM53: =OFFSET(Start_ungått_besøk,'Spart tid - ungått besøk'!A48,0)*Timeslønn.Sykepleier+OFFSET(Start_gevinst_utsatt_plass,'Gevinst-utsatt plass'!A48,0)-OFFSET(Start_teknologikostnad,'Mellomregning - teknologikostna'!A48,0) -> 0
AM54: =OFFSET(Start_ungått_besøk,'Spart tid - ungått besøk'!A49,0)*Timeslønn.Sykepleier+OFFSET(Start_gevinst_utsatt_plass,'Gevinst-utsatt plass'!A49,0)-OFFSET(Start_teknologikostnad,'Mellomregning - teknologikostna'!A49,0) -> 0
AM55: =OFFSET(Start_ungått_besøk,'Spart tid - ungått besøk'!A50,0)*Timeslønn.Sykepleier+OFFSET(Start_gevinst_utsatt_plass,'Gevinst-utsatt plass'!A50,0)-OFFSET(Start_teknologikostnad,'Mellomregning - teknologikostna'!A50,0) -> 0
AM56: =OFFSET(Start_ungått_besøk,'Spart tid - ungått besøk'!A51,0)*Timeslønn.Sykepleier+OFFSET(Start_gevinst_utsatt_plass,'Gevinst-utsatt plass'!A51,0)-OFFSET(Start_teknologikostnad,'Mellomregning - teknologikostna'!A51,0) -> 0
AM57: =OFFSET(Start_ungått_besøk,'Spart tid - ungått besøk'!A52,0)*Timeslønn.Sykepleier+OFFSET(Start_gevinst_utsatt_plass,'Gevinst-utsatt plass'!A52,0)-OFFSET(Start_teknologikostnad,'Mellomregning - teknologikostna'!A52,0) -> 0
AM58: =OFFSET(Start_ungått_besøk,'Spart tid - ungått besøk'!A53,0)*Timeslønn.Sykepleier+OFFSET(Start_gevinst_utsatt_plass,'Gevinst-utsatt plass'!A53,0)-OFFSET(Start_teknologikostnad,'Mellomregning - teknologikostna'!A53,0) -> 0
AM59: =OFFSET(Start_ungått_besøk,'Spart tid - ungått besøk'!A54,0)*Timeslønn.Sykepleier+OFFSET(Start_gevinst_utsatt_plass,'Gevinst-utsatt plass'!A54,0)-OFFSET(Start_teknologikostnad,'Mellomregning - teknologikostna'!A54,0) -> 0
AM60: =OFFSET(Start_ungått_besøk,'Spart tid - ungått besøk'!A55,0)*Timeslønn.Sykepleier+OFFSET(Start_gevinst_utsatt_plass,'Gevinst-utsatt plass'!A55,0)-OFFSET(Start_teknologikostnad,'Mellomregning - teknologikostna'!A55,0) -> 0
AM61: =OFFSET(Start_ungått_besøk,'Spart tid - ungått besøk'!A56,0)*Timeslønn.Sykepleier+OFFSET(Start_gevinst_utsatt_plass,'Gevinst-utsatt plass'!A56,0)-OFFSET(Start_teknologikostnad,'Mellomregning - teknologikostna'!A56,0) -> 0
AM62: =OFFSET(Start_ungått_besøk,'Spart tid - ungått besøk'!A57,0)*Timeslønn.Sykepleier+OFFSET(Start_gevinst_utsatt_plass,'Gevinst-utsatt plass'!A57,0)-OFFSET(Start_teknologikostnad,'Mellomregning - teknologikostna'!A57,0) -> 0
AM63: =OFFSET(Start_ungått_besøk,'Spart tid - ungått besøk'!A58,0)*Timeslønn.Sykepleier+OFFSET(Start_gevinst_utsatt_plass,'Gevinst-utsatt plass'!A58,0)-OFFSET(Start_teknologikostnad,'Mellomregning - teknologikostna'!A58,0) -> 0
AM64: =OFFSET(Start_ungått_besøk,'Spart tid - ungått besøk'!A59,0)*Timeslønn.Sykepleier+OFFSET(Start_gevinst_utsatt_plass,'Gevinst-utsatt plass'!A59,0)-OFFSET(Start_teknologikostnad,'Mellomregning - teknologikostna'!A59,0) -> 0
AM65: =OFFSET(Start_ungått_besøk,'Spart tid - ungått besøk'!A60,0)*Timeslønn.Sykepleier+OFFSET(Start_gevinst_utsatt_plass,'Gevinst-utsatt plass'!A60,0)-OFFSET(Start_teknologikostnad,'Mellomregning - teknologikostna'!A60,0) -> 0
AM66: =OFFSET(Start_ungått_besøk,'Spart tid - ungått besøk'!A61,0)*Timeslønn.Sykepleier+OFFSET(Start_gevinst_utsatt_plass,'Gevinst-utsatt plass'!A61,0)-OFFSET(Start_teknologikostnad,'Mellomregning - teknologikostna'!A61,0) -> 0
AM67: =OFFSET(Start_ungått_besøk,'Spart tid - ungått besøk'!A62,0)*Timeslønn.Sykepleier+OFFSET(Start_gevinst_utsatt_plass,'Gevinst-utsatt plass'!A62,0)-OFFSET(Start_teknologikostnad,'Mellomregning - teknologikostna'!A62,0) -> 0
AM68: =OFFSET(Start_ungått_besøk,'Spart tid - ungått besøk'!A63,0)*Timeslønn.Sykepleier+OFFSET(Start_gevinst_utsatt_plass,'Gevinst-utsatt plass'!A63,0)-OFFSET(Start_teknologikostnad,'Mellomregning - teknologikostna'!A63,0) -> 0
AM69: =OFFSET(Start_ungått_besøk,'Spart tid - ungått besøk'!A64,0)*Timeslønn.Sykepleier+OFFSET(Start_gevinst_utsatt_plass,'Gevinst-utsatt plass'!A64,0)-OFFSET(Start_teknologikostnad,'Mellomregning - teknologikostna'!A64,0) -> 0
AM70: =OFFSET(Start_ungått_besøk,'Spart tid - ungått besøk'!A65,0)*Timeslønn.Sykepleier+OFFSET(Start_gevinst_utsatt_plass,'Gevinst-utsatt plass'!A65,0)-OFFSET(Start_teknologikostnad,'Mellomregning - teknologikostna'!A65,0) -> 0
AM71: =OFFSET(Start_ungått_besøk,'Spart tid - ungått besøk'!A66,0)*Timeslønn.Sykepleier+OFFSET(Start_gevinst_utsatt_plass,'Gevinst-utsatt plass'!A66,0)-OFFSET(Start_teknologikostnad,'Mellomregning - teknologikostna'!A66,0) -> 0
AM72: =OFFSET(Start_ungått_besøk,'Spart tid - ungått besøk'!A67,0)*Timeslønn.Sykepleier+OFFSET(Start_gevinst_utsatt_plass,'Gevinst-utsatt plass'!A67,0)-OFFSET(Start_teknologikostnad,'Mellomregning - teknologikostna'!A67,0) -> 0
AM73: =OFFSET(Start_ungått_besøk,'Spart tid - ungått besøk'!A68,0)*Timeslønn.Sykepleier+OFFSET(Start_gevinst_utsatt_plass,'Gevinst-utsatt plass'!A68,0)-OFFSET(Start_teknologikostnad,'Mellomregning - teknologikostna'!A68,0) -> 0
AM74: =OFFSET(Start_ungått_besøk,'Spart tid - ungått besøk'!A69,0)*Timeslønn.Sykepleier+OFFSET(Start_gevinst_utsatt_plass,'Gevinst-utsatt plass'!A69,0)-OFFSET(Start_teknologikostnad,'Mellomregning - teknologikostna'!A69,0) -> 0
AM75: =OFFSET(Start_ungått_besøk,'Spart tid - ungått besøk'!A70,0)*Timeslønn.Sykepleier+OFFSET(Start_gevinst_utsatt_plass,'Gevinst-utsatt plass'!A70,0)-OFFSET(Start_teknologikostnad,'Mellomregning - teknologikostna'!A70,0) -> 0
AM76: =OFFSET(Start_ungått_besøk,'Spart tid - ungått besøk'!A71,0)*Timeslønn.Sykepleier+OFFSET(Start_gevinst_utsatt_plass,'Gevinst-utsatt plass'!A71,0)-OFFSET(Start_teknologikostnad,'Mellomregning - teknologikostna'!A71,0) -> 0
AM77: =OFFSET(Start_ungått_besøk,'Spart tid - ungått besøk'!A72,0)*Timeslønn.Sykepleier+OFFSET(Start_gevinst_utsatt_plass,'Gevinst-utsatt plass'!A72,0)-OFFSET(Start_teknologikostnad,'Mellomregning - teknologikostna'!A72,0) -> 0
AM78: =OFFSET(Start_ungått_besøk,'Spart tid - ungått besøk'!A73,0)*Timeslønn.Sykepleier+OFFSET(Start_gevinst_utsatt_plass,'Gevinst-utsatt plass'!A73,0)-OFFSET(Start_teknologikostnad,'Mellomregning - teknologikostna'!A73,0) -> 0
AM79: =OFFSET(Start_ungått_besøk,'Spart tid - ungått besøk'!A74,0)*Timeslønn.Sykepleier+OFFSET(Start_gevinst_utsatt_plass,'Gevinst-utsatt plass'!A74,0)-OFFSET(Start_teknologikostnad,'Mellomregning - teknologikostna'!A74,0) -> 0
AM80: =OFFSET(Start_ungått_besøk,'Spart tid - ungått besøk'!A75,0)*Timeslønn.Sykepleier+OFFSET(Start_gevinst_utsatt_plass,'Gevinst-utsatt plass'!A75,0)-OFFSET(Start_teknologikostnad,'Mellomregning - teknologikostna'!A75,0) -> 0
AM81: =OFFSET(Start_ungått_besøk,'Spart tid - ungått besøk'!A76,0)*Timeslønn.Sykepleier+OFFSET(Start_gevinst_utsatt_plass,'Gevinst-utsatt plass'!A76,0)-OFFSET(Start_teknologikostnad,'Mellomregning - teknologikostna'!A76,0) -> 0
AM82: =OFFSET(Start_ungått_besøk,'Spart tid - ungått besøk'!A77,0)*Timeslønn.Sykepleier+OFFSET(Start_gevinst_utsatt_plass,'Gevinst-utsatt plass'!A77,0)-OFFSET(Start_teknologikostnad,'Mellomregning - teknologikostna'!A77,0) -> 0
AM83: =OFFSET(Start_ungått_besøk,'Spart tid - ungått besøk'!A78,0)*Timeslønn.Sykepleier+OFFSET(Start_gevinst_utsatt_plass,'Gevinst-utsatt plass'!A78,0)-OFFSET(Start_teknologikostnad,'Mellomregning - teknologikostna'!A78,0) -> 0
AM84: =OFFSET(Start_ungått_besøk,'Spart tid - ungått besøk'!A79,0)*Timeslønn.Sykepleier+OFFSET(Start_gevinst_utsatt_plass,'Gevinst-utsatt plass'!A79,0)-OFFSET(Start_teknologikostnad,'Mellomregning - teknologikostna'!A79,0) -> 0
AM85: =OFFSET(Start_ungått_besøk,'Spart tid - ungått besøk'!A80,0)*Timeslønn.Sykepleier+OFFSET(Start_gevinst_utsatt_plass,'Gevinst-utsatt plass'!A80,0)-OFFSET(Start_teknologikostnad,'Mellomregning - teknologikostna'!A80,0) -> 0
AM86: =OFFSET(Start_ungått_besøk,'Spart tid - ungått besøk'!A81,0)*Timeslønn.Sykepleier+OFFSET(Start_gevinst_utsatt_plass,'Gevinst-utsatt plass'!A81,0)-OFFSET(Start_teknologikostnad,'Mellomregning - teknologikostna'!A81,0) -> 0
AM87: =OFFSET(Start_ungått_besøk,'Spart tid - ungått besøk'!A82,0)*Timeslønn.Sykepleier+OFFSET(Start_gevinst_utsatt_plass,'Gevinst-utsatt plass'!A82,0)-OFFSET(Start_teknologikostnad,'Mellomregning - teknologikostna'!A82,0) -> 0
AM88: =OFFSET(Start_ungått_besøk,'Spart tid - ungått besøk'!A83,0)*Timeslønn.Sykepleier+OFFSET(Start_gevinst_utsatt_plass,'Gevinst-utsatt plass'!A83,0)-OFFSET(Start_teknologikostnad,'Mellomregning - teknologikostna'!A83,0) -> 0
AM89: =OFFSET(Start_ungått_besøk,'Spart tid - ungått besøk'!A84,0)*Timeslønn.Sykepleier+OFFSET(Start_gevinst_utsatt_plass,'Gevinst-utsatt plass'!A84,0)-OFFSET(Start_teknologikostnad,'Mellomregning - teknologikostna'!A84,0) -> 0
AM90: =OFFSET(Start_ungått_besøk,'Spart tid - ungått besøk'!A85,0)*Timeslønn.Sykepleier+OFFSET(Start_gevinst_utsatt_plass,'Gevinst-utsatt plass'!A85,0)-OFFSET(Start_teknologikostnad,'Mellomregning - teknologikostna'!A85,0) -> 0
AM91: =OFFSET(Start_ungått_besøk,'Spart tid - ungått besøk'!A86,0)*Timeslønn.Sykepleier+OFFSET(Start_gevinst_utsatt_plass,'Gevinst-utsatt plass'!A86,0)-OFFSET(Start_teknologikostnad,'Mellomregning - teknologikostna'!A86,0) -> 0
AM92: =OFFSET(Start_ungått_besøk,'Spart tid - ungått besøk'!A87,0)*Timeslønn.Sykepleier+OFFSET(Start_gevinst_utsatt_plass,'Gevinst-utsatt plass'!A87,0)-OFFSET(Start_teknologikostnad,'Mellomregning - teknologikostna'!A87,0) -> 0
AM93: =OFFSET(Start_ungått_besøk,'Spart tid - ungått besøk'!A88,0)*Timeslønn.Sykepleier+OFFSET(Start_gevinst_utsatt_plass,'Gevinst-utsatt plass'!A88,0)-OFFSET(Start_teknologikostnad,'Mellomregning - teknologikostna'!A88,0) -> 0
AM94: =OFFSET(Start_ungått_besøk,'Spart tid - ungått besøk'!A89,0)*Timeslønn.Sykepleier+OFFSET(Start_gevinst_utsatt_plass,'Gevinst-utsatt plass'!A89,0)-OFFSET(Start_teknologikostnad,'Mellomregning - teknologikostna'!A89,0) -> 0
AM95: =OFFSET(Start_ungått_besøk,'Spart tid - ungått besøk'!A90,0)*Timeslønn.Sykepleier+OFFSET(Start_gevinst_utsatt_plass,'Gevinst-utsatt plass'!A90,0)-OFFSET(Start_teknologikostnad,'Mellomregning - teknologikostna'!A90,0) -> 0
AM96: =OFFSET(Start_ungått_besøk,'Spart tid - ungått besøk'!A91,0)*Timeslønn.Sykepleier+OFFSET(Start_gevinst_utsatt_plass,'Gevinst-utsatt plass'!A91,0)-OFFSET(Start_teknologikostnad,'Mellomregning - teknologikostna'!A91,0) -> 0
AM97: =OFFSET(Start_ungått_besøk,'Spart tid - ungått besøk'!A92,0)*Timeslønn.Sykepleier+OFFSET(Start_gevinst_utsatt_plass,'Gevinst-utsatt plass'!A92,0)-OFFSET(Start_teknologikostnad,'Mellomregning - teknologikostna'!A92,0) -> 0
AM98: =OFFSET(Start_ungått_besøk,'Spart tid - ungått besøk'!A93,0)*Timeslønn.Sykepleier+OFFSET(Start_gevinst_utsatt_plass,'Gevinst-utsatt plass'!A93,0)-OFFSET(Start_teknologikostnad,'Mellomregning - teknologikostna'!A93,0) -> 0
AM99: =OFFSET(Start_ungått_besøk,'Spart tid - ungått besøk'!A94,0)*Timeslønn.Sykepleier+OFFSET(Start_gevinst_utsatt_plass,'Gevinst-utsatt plass'!A94,0)-OFFSET(Start_teknologikostnad,'Mellomregning - teknologikostna'!A94,0) -> 0
AM100: =OFFSET(Start_ungått_besøk,'Spart tid - ungått besøk'!A95,0)*Timeslønn.Sykepleier+OFFSET(Start_gevinst_utsatt_plass,'Gevinst-utsatt plass'!A95,0)-OFFSET(Start_teknologikostnad,'Mellomregning - teknologikostna'!A95,0) -> 0
AM101: =OFFSET(Start_ungått_besøk,'Spart tid - ungått besøk'!A96,0)*Timeslønn.Sykepleier+OFFSET(Start_gevinst_utsatt_plass,'Gevinst-utsatt plass'!A96,0)-OFFSET(Start_teknologikostnad,'Mellomregning - teknologikostna'!A96,0) -> 0
AM102: =OFFSET(Start_ungått_besøk,'Spart tid - ungått besøk'!A97,0)*Timeslønn.Sykepleier+OFFSET(Start_gevinst_utsatt_plass,'Gevinst-utsatt plass'!A97,0)-OFFSET(Start_teknologikostnad,'Mellomregning - teknologikostna'!A97,0) -> 0
AM103: =OFFSET(Start_ungått_besøk,'Spart tid - ungått besøk'!A98,0)*Timeslønn.Sykepleier+OFFSET(Start_gevinst_utsatt_plass,'Gevinst-utsatt plass'!A98,0)-OFFSET(Start_teknologikostnad,'Mellomregning - teknologikostna'!A98,0) -> 0
AM104: =OFFSET(Start_ungått_besøk,'Spart tid - ungått besøk'!A99,0)*Timeslønn.Sykepleier+OFFSET(Start_gevinst_utsatt_plass,'Gevinst-utsatt plass'!A99,0)-OFFSET(Start_teknologikostnad,'Mellomregning - teknologikostna'!A99,0) -> 0
AM105: =OFFSET(Start_ungått_besøk,'Spart tid - ungått besøk'!A100,0)*Timeslønn.Sykepleier+OFFSET(Start_gevinst_utsatt_plass,'Gevinst-utsatt plass'!A100,0)-OFFSET(Start_teknologikostnad,'Mellomregning - teknologikostna'!A100,0) -> 0
AM106: =OFFSET(Start_ungått_besøk,'Spart tid - ungått besøk'!A101,0)*Timeslønn.Sykepleier+OFFSET(Start_gevinst_utsatt_plass,'Gevinst-utsatt plass'!A101,0)-OFFSET(Start_teknologikostnad,'Mellomregning - teknologikostna'!A101,0) -> 0
AM107: =OFFSET(Start_ungått_besøk,'Spart tid - ungått besøk'!A102,0)*Timeslønn.Sykepleier+OFFSET(Start_gevinst_utsatt_plass,'Gevinst-utsatt plass'!A102,0)-OFFSET(Start_teknologikostnad,'Mellomregning - teknologikostna'!A102,0) -> 0

Sheet Oppstartskostnad (hidden)
C1: 39 | D1: =C1+3 -> 42 | E1: =D1+3 -> 45 | F1: 48 | G1: 51 | H1: 54 | I1: 57 | J1: 60 | K1: 63 | L1: 66 | M1: 69 | N1: 72 | O1: 75 | P1: 78 | Q1: 81 | R1: 84 | S1: 87 | T1: 90 | U1: 93 | V1: 96 | W1: 99 | X1: 102 | Y1: 105 | Z1: 108 | AA1: 111 | AB1: 114 | AC1: 117 | AD1: 120 | AE1: 123 | AF1: 126 | AG1: 129 | AH1: 132 | AI1: 135 | AJ1: 138 | AK1: 141 | AL1: 144
A2: Nummer | B2: Bruker ID | C2: =OFFSET('Månedlig registrering'!$AN$6,0,COLUMN(C:C)*3-9) -> 2018-01-01 | D2: =OFFSET('Månedlig registrering'!$AN$6,0,COLUMN(D:D)*3-9) -> 2018-02-01 | E2: =OFFSET('Månedlig registrering'!$AN$6,0,COLUMN(E:E)*3-9) -> 2018-03-01 | F2: =OFFSET('Månedlig registrering'!$AN$6,0,COLUMN(F:F)*3-9) -> 2018-04-01 | G2: =OFFSET('Månedlig registrering'!$AN$6,0,COLUMN(G:G)*3-9) -> 2018-05-01 | H2: =OFFSET('Månedlig registrering'!$AN$6,0,COLUMN(H:H)*3-9) -> 2018-06-01 | I2: =OFFSET('Månedlig registrering'!$AN$6,0,COLUMN(I:I)*3-9) -> 2018-07-01 | J2: =OFFSET('Månedlig registrering'!$AN$6,0,COLUMN(J:J)*3-9) -> 2018-08-01 | K2: =OFFSET('Månedlig registrering'!$AN$6,0,COLUMN(K:K)*3-9) -> 2018-09-01 | L2: =OFFSET('Månedlig registrering'!$AN$6,0,COLUMN(L:L)*3-9) -> 2018-10-01 | M2: =OFFSET('Månedlig registrering'!$AN$6,0,COLUMN(M:M)*3-9) -> 2018-11-01 | N2: =OFFSET('Månedlig registrering'!$AN$6,0,COLUMN(N:N)*3-9) -> 2018-12-01 | O2: =OFFSET('Månedlig registrering'!$AN$6,0,COLUMN(O:O)*3-9) -> 2019-01-01 | P2: =OFFSET('Månedlig registrering'!$AN$6,0,COLUMN(P:P)*3-9) -> 2019-02-01 | Q2: =OFFSET('Månedlig registrering'!$AN$6,0,COLUMN(Q:Q)*3-9) -> 2019-03-01 | R2: =OFFSET('Månedlig registrering'!$AN$6,0,COLUMN(R:R)*3-9) -> 2019-04-01 | S2: =OFFSET('Månedlig registrering'!$AN$6,0,COLUMN(S:S)*3-9) -> 2019-05-01 | T2: =OFFSET('Månedlig registrering'!$AN$6,0,COLUMN(T:T)*3-9) -> 2019-06-01 | U2: =OFFSET('Månedlig registrering'!$AN$6,0,COLUMN(U:U)*3-9) -> 2019-07-01 | V2: =OFFSET('Månedlig registrering'!$AN$6,0,COLUMN(V:V)*3-9) -> 2019-08-01 | W2: =OFFSET('Månedlig registrering'!$AN$6,0,COLUMN(W:W)*3-9) -> 2019-09-01 | X2: =OFFSET('Månedlig registrering'!$AN$6,0,COLUMN(X:X)*3-9) -> 2019-10-01 | Y2: =OFFSET('Månedlig registrering'!$AN$6,0,COLUMN(Y:Y)*3-9) -> 2019-11-01 | Z2: =OFFSET('Månedlig registrering'!$AN$6,0,COLUMN(Z:Z)*3-9) -> 2019-12-01 | AA2: =OFFSET('Månedlig registrering'!$AN$6,0,COLUMN(AA:AA)*3-9) -> 2020-01-01 | AB2: =OFFSET('Månedlig registrering'!$AN$6,0,COLUMN(AB:AB)*3-9) -> 2020-02-01 | AC2: =OFFSET('Månedlig registrering'!$AN$6,0,COLUMN(AC:AC)*3-9) -> 2020-03-01 | AD2: =OFFSET('Månedlig registrering'!$AN$6,0,COLUMN(AD:AD)*3-9) -> 2020-04-01 | AE2: =OFFSET('Månedlig registrering'!$AN$6,0,COLUMN(AE:AE)*3-9) -> 2020-05-01 | AF2: =OFFSET('Månedlig registrering'!$AN$6,0,COLUMN(AF:AF)*3-9) -> 2020-06-01 | AG2: =OFFSET('Månedlig registrering'!$AN$6,0,COLUMN(AG:AG)*3-9) -> 2020-07-01 | AH2: =OFFSET('Månedlig registrering'!$AN$6,0,COLUMN(AH:AH)*3-9) -> 2020-08-01 | AI2: =OFFSET('Månedlig registrering'!$AN$6,0,COLUMN(AI:AI)*3-9) -> 2020-09-01 | AJ2: =OFFSET('Månedlig registrering'!$AN$6,0,COLUMN(AJ:AJ)*3-9) -> 2020-10-01 | AK2: =OFFSET('Månedlig registrering'!$AN$6,0,COLUMN(AK:AK)*3-9) -> 2020-11-01 | AL2: =OFFSET('Månedlig registrering'!$AN$6,0,COLUMN(AL:AL)*3-9) -> 2020-12-01 | AM2: SUM Oppstartskostnad
A3: 2 | B3: =OFFSET(Start,'Mellomlagring - antall besøk'!A3,0) -> 1001 | C3: =IF(AND((OFFSET(Start,$A3,1)-C$2)<DAY(EOMONTH(C$2,0)),(OFFSET(Start,$A3,1)-C$2)>=0),OFFSET(Start,$A3,3)+OFFSET(Start,$A3,4)+OFFSET(Start,$A3,17),0) -> 3500 | D3: 0 | E3: 0 | F3: 0 | G3: 0 | H3: 0 | I3: 0 | J3: 0 | K3: 0 | L3: 0 | M3: =IF(AND((OFFSET(Start,$A3,1)-M$2)<DAY(EOMONTH(M$2,0)),(OFFSET(Start,$A3,1)-M$2)>=0),OFFSET(Start,$A3,3)+OFFSET(Start,$A3,4)+OFFSET(Start,$A3,17),0) -> 0 | N3: 0 | O3: 0 | P3: 0 | Q3: 0 | R3: 0 | S3: 0 | T3: 0 | U3: 0 | V3: 0 | W3: =IF(AND((OFFSET(Start,$A3,1)-W$2)<DAY(EOMONTH(W$2,0)),(OFFSET(Start,$A3,1)-W$2)>=0),OFFSET(Start,$A3,3)+OFFSET(Start,$A3,4)+OFFSET(Start,$A3,17),0) -> 0 | X3: 0 | Y3: 0 | Z3: 0 | AA3: 0 | AB3: 0 | AC3: 0 | AD3: 0 | AE3: 0 | AF3: 0 | AG3: =IF(AND((OFFSET(Start,$A3,1)-AG$2)<DAY(EOMONTH(AG$2,0)),(OFFSET(Start,$A3,1)-AG$2)>=0),OFFSET(Start,$A3,3)+OFFSET(Start,$A3,4)+OFFSET(Start,$A3,17),0) -> 0 | AH3: 0 | AI3: 0 | AJ3: 0 | AK3: 0 | AL3: 0 | AM3: =SUM(C3:AL3) -> 3500
A4: =+A3+1 -> 3 | B4: =OFFSET(Start,'Mellomlagring - antall besøk'!A4,0) -> 1002 | C4: 0 | D4: 0 | E4: 3500 | F4: 0 | G4: 0 | H4: 0 | I4: 0 | J4: 0 | K4: 0 | L4: 0 | M4: 0 | N4: 0 | O4: 0 | P4: 0 | Q4: 0 | R4: 0 | S4: 0 | T4: 0 | U4: 0 | V4: 0 | W4: 0 | X4: 0 | Y4: 0 | Z4: 0 | AA4: 0 | AB4: 0 | AC4: 0 | AD4: 0 | AE4: 0 | AF4: 0 | AG4: 0 | AH4: 0 | AI4: 0 | AJ4: 0 | AK4: 0 | AL4: 0 | AM4: =SUM(C4:AL4) -> 3500
A5: =+A4+1 -> 4 | B5: =OFFSET(Start,'Mellomlagring - antall besøk'!A5,0) -> 1003 | C5: 900 | D5: 0 | E5: 0 | F5: 0 | G5: 0 | H5: 0 | I5: 0 | J5: 0 | K5: 0 | L5: 0 | M5: 0 | N5: 0 | O5: 0 | P5: 0 | Q5: 0 | R5: 0 | S5: 0 | T5: 0 | U5: 0 | V5: 0 | W5: 0 | X5: 0 | Y5: 0 | Z5: 0 | AA5: 0 | AB5: 0 | AC5: 0 | AD5: 0 | AE5: 0 | AF5: 0 | AG5: 0 | AH5: 0 | AI5: 0 | AJ5: 0 | AK5: 0 | AL5: 0 | AM5: 900
A6: 5 | B6: =OFFSET(Start,'Mellomlagring - antall besøk'!A6,0) -> 0 | C6: 0 | D6: 0 | E6: 0 | F6: 0 | G6: 0 | H6: 0 | I6: 0 | J6: 0 | K6: 0 | L6: 0 | M6: 0 | N6: 0 | O6: 0 | P6: 0 | Q6: 0 | R6: 0 | S6: 0 | T6: 0 | U6: 0 | V6: 0 | W6: 0 | X6: 0 | Y6: 0 | Z6: 0 | AA6: 0 | AB6: 0 | AC6: 0 | AD6: 0 | AE6: 0 | AF6: 0 | AG6: 0 | AH6: 0 | AI6: 0 | AJ6: 0 | AK6: 0 | AL6: 0 | AM6: 0
A7: 6 | B7: =OFFSET(Start,'Mellomlagring - antall besøk'!A7,0) -> 0 | C7: 0 | D7: 0 | E7: 0 | F7: 0 | G7: 0 | H7: 0 | I7: 0 | J7: 0 | K7: 0 | L7: 0 | M7: 0 | N7: 0 | O7: 0 | P7: 0 | Q7: 0 | R7: 0 | S7: 0 | T7: 0 | U7: 0 | V7: 0 | W7: 0 | X7: 0 | Y7: 0 | Z7: 0 | AA7: 0 | AB7: 0 | AC7: 0 | AD7: 0 | AE7: 0 | AF7: 0 | AG7: 0 | AH7: 0 | AI7: 0 | AJ7: 0 | AK7: 0 | AL7: 0 | AM7: 0
A8: 7 | B8: =OFFSET(Start,'Mellomlagring - antall besøk'!A8,0) -> 0 | C8: 0 | D8: 0 | E8: 0 | F8: 0 | G8: 0 | H8: 0 | I8: 0 | J8: 0 | K8: 0 | L8: 0 | M8: 0 | N8: 0 | O8: 0 | P8: 0 | Q8: 0 | R8: 0 | S8: 0 | T8: 0 | U8: 0 | V8: 0 | W8: 0 | X8: 0 | Y8: 0 | Z8: 0 | AA8: 0 | AB8: 0 | AC8: 0 | AD8: 0 | AE8: 0 | AF8: 0 | AG8: 0 | AH8: 0 | AI8: 0 | AJ8: 0 | AK8: 0 | AL8: 0 | AM8: 0
A9: 8 | B9: =OFFSET(Start,'Mellomlagring - antall besøk'!A9,0) -> 0 | C9: 0 | D9: 0 | E9: 0 | F9: 0 | G9: 0 | H9: 0 | I9: 0 | J9: 0 | K9: 0 | L9: 0 | M9: 0 | N9: 0 | O9: 0 | P9: 0 | Q9: 0 | R9: 0 | S9: 0 | T9: 0 | U9: 0 | V9: 0 | W9: 0 | X9: 0 | Y9: 0 | Z9: 0 | AA9: 0 | AB9: 0 | AC9: 0 | AD9: 0 | AE9: 0 | AF9: 0 | AG9: 0 | AH9: 0 | AI9: 0 | AJ9: 0 | AK9: 0 | AL9: 0 | AM9: 0
A10: 9 | B10: =OFFSET(Start,'Mellomlagring - antall besøk'!A10,0) -> 0 | C10: 0 | D10: 0 | E10: 0 | F10: 0 | G10: 0 | H10: 0 | I10: 0 | J10: 0 | K10: 0 | L10: 0 | M10: 0 | N10: 0 | O10: 0 | P10: 0 | Q10: 0 | R10: 0 | S10: 0 | T10: 0 | U10: 0 | V10: 0 | W10: 0 | X10: 0 | Y10: 0 | Z10: 0 | AA10: 0 | AB10: 0 | AC10: 0 | AD10: 0 | AE10: 0 | AF10: 0 | AG10: 0 | AH10: 0 | AI10: 0 | AJ10: 0 | AK10: 0 | AL10: 0 | AM10: 0
A11: 10 | B11: =OFFSET(Start,'Mellomlagring - antall besøk'!A11,0) -> 0 | C11: 0 | D11: 0 | E11: 0 | F11: 0 | G11: 0 | H11: 0 | I11: 0 | J11: 0 | K11: 0 | L11: 0 | M11: 0 | N11: 0 | O11: 0 | P11: 0 | Q11: 0 | R11: 0 | S11: 0 | T11: 0 | U11: 0 | V11: 0 | W11: 0 | X11: 0 | Y11: 0 | Z11: 0 | AA11: 0 | AB11: 0 | AC11: 0 | AD11: 0 | AE11: 0 | AF11: 0 | AG11: 0 | AH11: 0 | AI11: 0 | AJ11: 0 | AK11: 0 | AL11: 0 | AM11: 0
A12: 11 | B12: =OFFSET(Start,'Mellomlagring - antall besøk'!A12,0) -> 0 | C12: 0 | D12: 0 | E12: 0 | F12: 0 | G12: 0 | H12: 0 | I12: 0 | J12: 0 | K12: 0 | L12: 0 | M12: 0 | N12: 0 | O12: 0 | P12: 0 | Q12: 0 | R12: 0 | S12: 0 | T12: 0 | U12: 0 | V12: 0 | W12: 0 | X12: 0 | Y12: 0 | Z12: 0 | AA12: 0 | AB12: 0 | AC12: 0 | AD12: 0 | AE12: 0 | AF12: 0 | AG12: 0 | AH12: 0 | AI12: 0 | AJ12: 0 | AK12: 0 | AL12: 0 | AM12: 0
A13: 12 | B13: =OFFSET(Start,'Mellomlagring - antall besøk'!A13,0) -> 0 | C13: =IF(AND((OFFSET(Start,$A13,1)-C$2)<DAY(EOMONTH(C$2,0)),(OFFSET(Start,$A13,1)-C$2)>=0),OFFSET(Start,$A13,3)+OFFSET(Start,$A13,4)+OFFSET(Start,$A13,17),0) -> 0 | D13: 0 | E13: 0 | F13: 0 | G13: 0 | H13: 0 | I13: 0 | J13: 0 | K13: 0 | L13: 0 | M13: =IF(AND((OFFSET(Start,$A13,1)-M$2)<DAY(EOMONTH(M$2,0)),(OFFSET(Start,$A13,1)-M$2)>=0),OFFSET(Start,$A13,3)+OFFSET(Start,$A13,4)+OFFSET(Start,$A13,17),0) -> 0 | N13: 0 | O13: 0 | P13: 0 | Q13: 0 | R13: 0 | S13: 0 | T13: 0 | U13: 0 | V13: 0 | W13: =IF(AND((OFFSET(Start,$A13,1)-W$2)<DAY(EOMONTH(W$2,0)),(OFFSET(Start,$A13,1)-W$2)>=0),OFFSET(Start,$A13,3)+OFFSET(Start,$A13,4)+OFFSET(Start,$A13,17),0) -> 0 | X13: 0 | Y13: 0 | Z13: 0 | AA13: 0 | AB13: 0 | AC13: 0 | AD13: 0 | AE13: 0 | AF13: 0 | AG13: =IF(AND((OFFSET(Start,$A13,1)-AG$2)<DAY(EOMONTH(AG$2,0)),(OFFSET(Start,$A13,1)-AG$2)>=0),OFFSET(Start,$A13,3)+OFFSET(Start,$A13,4)+OFFSET(Start,$A13,17),0) -> 0 | AH13: 0 | AI13: 0 | AJ13: 0 | AK13: 0 | AL13: 0 | AM13: 0
A14: 13 | B14: =OFFSET(Start,'Mellomlagring - antall besøk'!A14,0) -> 0 | C14: 0 | D14: 0 | E14: 0 | F14: 0 | G14: 0 | H14: 0 | I14: 0 | J14: 0 | K14: 0 | L14: 0 | M14: 0 | N14: 0 | O14: 0 | P14: 0 | Q14: 0 | R14: 0 | S14: 0 | T14: 0 | U14: 0 | V14: 0 | W14: 0 | X14: 0 | Y14: 0 | Z14: 0 | AA14: 0 | AB14: 0 | AC14: 0 | AD14: 0 | AE14: 0 | AF14: 0 | AG14: 0 | AH14: 0 | AI14: 0 | AJ14: 0 | AK14: 0 | AL14: 0 | AM14: 0
A15: 14 | B15: =OFFSET(Start,'Mellomlagring - antall besøk'!A15,0) -> 0 | C15: 0 | D15: 0 | E15: 0 | F15: 0 | G15: 0 | H15: 0 | I15: 0 | J15: 0 | K15: 0 | L15: 0 | M15: 0 | N15: 0 | O15: 0 | P15: 0 | Q15: 0 | R15: 0 | S15: 0 | T15: 0 | U15: 0 | V15: 0 | W15: 0 | X15: 0 | Y15: 0 | Z15: 0 | AA15: 0 | AB15: 0 | AC15: 0 | AD15: 0 | AE15: 0 | AF15: 0 | AG15: 0 | AH15: 0 | AI15: 0 | AJ15: 0 | AK15: 0 | AL15: 0 | AM15: 0
A16: 15 | B16: =OFFSET(Start,'Mellomlagring - antall besøk'!A16,0) -> 0 | C16: 0 | D16: 0 | E16: 0 | F16: 0 | G16: 0 | H16: 0 | I16: 0 | J16: 0 | K16: 0 | L16: 0 | M16: 0 | N16: 0 | O16: 0 | P16: 0 | Q16: 0 | R16: 0 | S16: 0 | T16: 0 | U16: 0 | V16: 0 | W16: 0 | X16: 0 | Y16: 0 | Z16: 0 | AA16: 0 | AB16: 0 | AC16: 0 | AD16: 0 | AE16: 0 | AF16: 0 | AG16: 0 | AH16: 0 | AI16: 0 | AJ16: 0 | AK16: 0 | AL16: 0 | AM16: 0
A17: 16 | B17: =OFFSET(Start,'Mellomlagring - antall besøk'!A17,0) -> 0 | C17: 0 | D17: 0 | E17: 0 | F17: 0 | G17: 0 | H17: 0 | I17: 0 | J17: 0 | K17: 0 | L17: 0 | M17: 0 | N17: 0 | O17: 0 | P17: 0 | Q17: 0 | R17: 0 | S17: 0 | T17: 0 | U17: 0 | V17: 0 | W17: 0 | X17: 0 | Y17: 0 | Z17: 0 | AA17: 0 | AB17: 0 | AC17: 0 | AD17: 0 | AE17: 0 | AF17: 0 | AG17: 0 | AH17: 0 | AI17: 0 | AJ17: 0 | AK17: 0 | AL17: 0 | AM17: 0
A18: 17 | B18: =OFFSET(Start,'Mellomlagring - antall besøk'!A18,0) -> 0 | C18: 0 | D18: 0 | E18: 0 | F18: 0 | G18: 0 | H18: 0 | I18: 0 | J18: 0 | K18: 0 | L18: 0 | M18: 0 | N18: 0 | O18: 0 | P18: 0 | Q18: 0 | R18: 0 | S18: 0 | T18: 0 | U18: 0 | V18: 0 | W18: 0 | X18: 0 | Y18: 0 | Z18: 0 | AA18: 0 | AB18: 0 | AC18: 0 | AD18: 0 | AE18: 0 | AF18: 0 | AG18: 0 | AH18: 0 | AI18: 0 | AJ18: 0 | AK18: 0 | AL18: 0 | AM18: 0
A19: 18 | B19: =OFFSET(Start,'Mellomlagring - antall besøk'!A19,0) -> 0 | C19: 0 | D19: 0 | E19: 0 | F19: 0 | G19: 0 | H19: 0 | I19: 0 | J19: 0 | K19: 0 | L19: 0 | M19: 0 | N19: 0 | O19: 0 | P19: 0 | Q19: 0 | R19: 0 | S19: 0 | T19: 0 | U19: 0 | V19: 0 | W19: 0 | X19: 0 | Y19: 0 | Z19: 0 | AA19: 0 | AB19: 0 | AC19: 0 | AD19: 0 | AE19: 0 | AF19: 0 | AG19: 0 | AH19: 0 | AI19: 0 | AJ19: 0 | AK19: 0 | AL19: 0 | AM19: 0
A20: 19 | B20: =OFFSET(Start,'Mellomlagring - antall besøk'!A20,0) -> 0 | C20: 0 | D20: 0 | E20: 0 | F20: 0 | G20: 0 | H20: 0 | I20: 0 | J20: 0 | K20: 0 | L20: 0 | M20: 0 | N20: 0 | O20: 0 | P20: 0 | Q20: 0 | R20: 0 | S20: 0 | T20: 0 | U20: 0 | V20: 0 | W20: 0 | X20: 0 | Y20: 0 | Z20: 0 | AA20: 0 | AB20: 0 | AC20: 0 | AD20: 0 | AE20: 0 | AF20: 0 | AG20: 0 | AH20: 0 | AI20: 0 | AJ20: 0 | AK20: 0 | AL20: 0 | AM20: 0
A21: 20 | B21: =OFFSET(Start,'Mellomlagring - antall besøk'!A21,0) -> 0 | C21: 0 | D21: 0 | E21: 0 | F21: 0 | G21: 0 | H21: 0 | I21: 0 | J21: 0 | K21: 0 | L21: 0 | M21: 0 | N21: 0 | O21: 0 | P21: 0 | Q21: 0 | R21: 0 | S21: 0 | T21: 0 | U21: 0 | V21: 0 | W21: 0 | X21: 0 | Y21: 0 | Z21: 0 | AA21: 0 | AB21: 0 | AC21: 0 | AD21: 0 | AE21: 0 | AF21: 0 | AG21: 0 | AH21: 0 | AI21: 0 | AJ21: 0 | AK21: 0 | AL21: 0 | AM21: 0
A22: 21 | B22: =OFFSET(Start,'Mellomlagring - antall besøk'!A22,0) -> 0 | C22: 0 | D22: 0 | E22: 0 | F22: 0 | G22: 0 | H22: 0 | I22: 0 | J22: 0 | K22: 0 | L22: 0 | M22: 0 | N22: 0 | O22: 0 | P22: 0 | Q22: 0 | R22: 0 | S22: 0 | T22: 0 | U22: 0 | V22: 0 | W22: 0 | X22: 0 | Y22: 0 | Z22: 0 | AA22: 0 | AB22: 0 | AC22: 0 | AD22: 0 | AE22: 0 | AF22: 0 | AG22: 0 | AH22: 0 | AI22: 0 | AJ22: 0 | AK22: 0 | AL22: 0 | AM22: 0
A23: 22 | B23: =OFFSET(Start,'Mellomlagring - antall besøk'!A23,0) -> 0 | C23: =IF(AND((OFFSET(Start,$A23,1)-C$2)<DAY(EOMONTH(C$2,0)),(OFFSET(Start,$A23,1)-C$2)>=0),OFFSET(Start,$A23,3)+OFFSET(Start,$A23,4)+OFFSET(Start,$A23,17),0) -> 0 | D23: 0 | E23: 0 | F23: 0 | G23: 0 | H23: 0 | I23: 0 | J23: 0 | K23: 0 | L23: 0 | M23: =IF(AND((OFFSET(Start,$A23,1)-M$2)<DAY(EOMONTH(M$2,0)),(OFFSET(Start,$A23,1)-M$2)>=0),OFFSET(Start,$A23,3)+OFFSET(Start,$A23,4)+OFFSET(Start,$A23,17),0) -> 0 | N23: 0 | O23: 0 | P23: 0 | Q23: 0 | R23: 0 | S23: 0 | T23: 0 | U23: 0 | V23: 0 | W23: =IF(AND((OFFSET(Start,$A23,1)-W$2)<DAY(EOMONTH(W$2,0)),(OFFSET(Start,$A23,1)-W$2)>=0),OFFSET(Start,$A23,3)+OFFSET(Start,$A23,4)+OFFSET(Start,$A23,17),0) -> 0 | X23: 0 | Y23: 0 | Z23: 0 | AA23: 0 | AB23: 0 | AC23: 0 | AD23: 0 | AE23: 0 | AF23: 0 | AG23: =IF(AND((OFFSET(Start,$A23,1)-AG$2)<DAY(EOMONTH(AG$2,0)),(OFFSET(Start,$A23,1)-AG$2)>=0),OFFSET(Start,$A23,3)+OFFSET(Start,$A23,4)+OFFSET(Start,$A23,17),0) -> 0 | AH23: 0 | AI23: 0 | AJ23: 0 | AK23: 0 | AL23: 0 | AM23: 0
A24: 23 | B24: =OFFSET(Start,'Mellomlagring - antall besøk'!A24,0) -> 0 | C24: 0 | D24: 0 | E24: 0 | F24: 0 | G24: 0 | H24: 0 | I24: 0 | J24: 0 | K24: 0 | L24: 0 | M24: 0 | N24: 0 | O24: 0 | P24: 0 | Q24: 0 | R24: 0 | S24: 0 | T24: 0 | U24: 0 | V24: 0 | W24: 0 | X24: 0 | Y24: 0 | Z24: 0 | AA24: 0 | AB24: 0 | AC24: 0 | AD24: 0 | AE24: 0 | AF24: 0 | AG24: 0 | AH24: 0 | AI24: 0 | AJ24: 0 | AK24: 0 | AL24: 0 | AM24: 0
A25: 24 | B25: =OFFSET(Start,'Mellomlagring - antall besøk'!A25,0) -> 0 | C25: 0 | D25: 0 | E25: 0 | F25: 0 | G25: 0 | H25: 0 | I25: 0 | J25: 0 | K25: 0 | L25: 0 | M25: 0 | N25: 0 | O25: 0 | P25: 0 | Q25: 0 | R25: 0 | S25: 0 | T25: 0 | U25: 0 | V25: 0 | W25: 0 | X25: 0 | Y25: 0 | Z25: 0 | AA25: 0 | AB25: 0 | AC25: 0 | AD25: 0 | AE25: 0 | AF25: 0 | AG25: 0 | AH25: 0 | AI25: 0 | AJ25: 0 | AK25: 0 | AL25: 0 | AM25: 0
A26: 25 | B26: =OFFSET(Start,'Mellomlagring - antall besøk'!A26,0) -> 0 | C26: 0 | D26: 0 | E26: 0 | F26: 0 | G26: 0 | H26: 0 | I26: 0 | J26: 0 | K26: 0 | L26: 0 | M26: 0 | N26: 0 | O26: 0 | P26: 0 | Q26: 0 | R26: 0 | S26: 0 | T26: 0 | U26: 0 | V26: 0 | W26: 0 | X26: 0 | Y26: 0 | Z26: 0 | AA26: 0 | AB26: 0 | AC26: 0 | AD26: 0 | AE26: 0 | AF26: 0 | AG26: 0 | AH26: 0 | AI26: 0 | AJ26: 0 | AK26: 0 | AL26: 0 | AM26: 0
A27: 26 | B27: =OFFSET(Start,'Mellomlagring - antall besøk'!A27,0) -> 0 | C27: 0 | D27: 0 | E27: 0 | F27: 0 | G27: 0 | H27: 0 | I27: 0 | J27: 0 | K27: 0 | L27: 0 | M27: 0 | N27: 0 | O27: 0 | P27: 0 | Q27: 0 | R27: 0 | S27: 0 | T27: 0 | U27: 0 | V27: 0 | W27: 0 | X27: 0 | Y27: 0 | Z27: 0 | AA27: 0 | AB27: 0 | AC27: 0 | AD27: 0 | AE27: 0 | AF27: 0 | AG27: 0 | AH27: 0 | AI27: 0 | AJ27: 0 | AK27: 0 | AL27: 0 | AM27: 0
A28: 27 | B28: =OFFSET(Start,'Mellomlagring - antall besøk'!A28,0) -> 0 | C28: 0 | D28: 0 | E28: 0 | F28: 0 | G28: 0 | H28: 0 | I28: 0 | J28: 0 | K28: 0 | L28: 0 | M28: 0 | N28: 0 | O28: 0 | P28: 0 | Q28: 0 | R28: 0 | S28: 0 | T28: 0 | U28: 0 | V28: 0 | W28: 0 | X28: 0 | Y28: 0 | Z28: 0 | AA28: 0 | AB28: 0 | AC28: 0 | AD28: 0 | AE28: 0 | AF28: 0 | AG28: 0 | AH28: 0 | AI28: 0 | AJ28: 0 | AK28: 0 | AL28: 0 | AM28: 0
A29: 28 | B29: =OFFSET(Start,'Mellomlagring - antall besøk'!A29,0) -> 0 | C29: 0 | D29: 0 | E29: 0 | F29: 0 | G29: 0 | H29: 0 | I29: 0 | J29: 0 | K29: 0 | L29: 0 | M29: 0 | N29: 0 | O29: 0 | P29: 0 | Q29: 0 | R29: 0 | S29: 0 | T29: 0 | U29: 0 | V29: 0 | W29: 0 | X29: 0 | Y29: 0 | Z29: 0 | AA29: 0 | AB29: 0 | AC29: 0 | AD29: 0 | AE29: 0 | AF29: 0 | AG29: 0 | AH29: 0 | AI29: 0 | AJ29: 0 | AK29: 0 | AL29: 0 | AM29: 0
A30: 29 | B30: =OFFSET(Start,'Mellomlagring - antall besøk'!A30,0) -> 0 | C30: 0 | D30: 0 | E30: 0 | F30: 0 | G30: 0 | H30: 0 | I30: 0 | J30: 0 | K30: 0 | L30: 0 | M30: 0 | N30: 0 | O30: 0 | P30: 0 | Q30: 0 | R30: 0 | S30: 0 | T30: 0 | U30: 0 | V30: 0 | W30: 0 | X30: 0 | Y30: 0 | Z30: 0 | AA30: 0 | AB30: 0 | AC30: 0 | AD30: 0 | AE30: 0 | AF30: 0 | AG30: 0 | AH30: 0 | AI30: 0 | AJ30: 0 | AK30: 0 | AL30: 0 | AM30: 0
A31: 30 | B31: =OFFSET(Start,'Mellomlagring - antall besøk'!A31,0) -> 0 | C31: 0 | D31: 0 | E31: 0 | F31: 0 | G31: 0 | H31: 0 | I31: 0 | J31: 0 | K31: 0 | L31: 0 | M31: 0 | N31: 0 | O31: 0 | P31: 0 | Q31: 0 | R31: 0 | S31: 0 | T31: 0 | U31: 0 | V31: 0 | W31: 0 | X31: 0 | Y31: 0 | Z31: 0 | AA31: 0 | AB31: 0 | AC31: 0 | AD31: 0 | AE31: 0 | AF31: 0 | AG31: 0 | AH31: 0 | AI31: 0 | AJ31: 0 | AK31: 0 | AL31: 0 | AM31: 0
A32: 31 | B32: =OFFSET(Start,'Mellomlagring - antall besøk'!A32,0) -> 0 | C32: 0 | D32: 0 | E32: 0 | F32: 0 | G32: 0 | H32: 0 | I32: 0 | J32: 0 | K32: 0 | L32: 0 | M32: 0 | N32: 0 | O32: 0 | P32: 0 | Q32: 0 | R32: 0 | S32: 0 | T32: 0 | U32: 0 | V32: 0 | W32: 0 | X32: 0 | Y32: 0 | Z32: 0 | AA32: 0 | AB32: 0 | AC32: 0 | AD32: 0 | AE32: 0 | AF32: 0 | AG32: 0 | AH32: 0 | AI32: 0 | AJ32: 0 | AK32: 0 | AL32: 0 | AM32: 0
A33: 32 | B33: =OFFSET(Start,'Mellomlagring - antall besøk'!A33,0) -> 0 | C33: =IF(AND((OFFSET(Start,$A33,1)-C$2)<DAY(EOMONTH(C$2,0)),(OFFSET(Start,$A33,1)-C$2)>=0),OFFSET(Start,$A33,3)+OFFSET(Start,$A33,4)+OFFSET(Start,$A33,17),0) -> 0 | D33: 0 | E33: 0 | F33: 0 | G33: 0 | H33: 0 | I33: 0 | J33: 0 | K33: 0 | L33: 0 | M33: =IF(AND((OFFSET(Start,$A33,1)-M$2)<DAY(EOMONTH(M$2,0)),(OFFSET(Start,$A33,1)-M$2)>=0),OFFSET(Start,$A33,3)+OFFSET(Start,$A33,4)+OFFSET(Start,$A33,17),0) -> 0 | N33: 0 | O33: 0 | P33: 0 | Q33: 0 | R33: 0 | S33: 0 | T33: 0 | U33: 0 | V33: 0 | W33: =IF(AND((OFFSET(Start,$A33,1)-W$2)<DAY(EOMONTH(W$2,0)),(OFFSET(Start,$A33,1)-W$2)>=0),OFFSET(Start,$A33,3)+OFFSET(Start,$A33,4)+OFFSET(Start,$A33,17),0) -> 0 | X33: 0 | Y33: 0 | Z33: 0 | AA33: 0 | AB33: 0 | AC33: 0 | AD33: 0 | AE33: 0 | AF33: 0 | AG33: =IF(AND((OFFSET(Start,$A33,1)-AG$2)<DAY(EOMONTH(AG$2,0)),(OFFSET(Start,$A33,1)-AG$2)>=0),OFFSET(Start,$A33,3)+OFFSET(Start,$A33,4)+OFFSET(Start,$A33,17),0) -> 0 | AH33: 0 | AI33: 0 | AJ33: 0 | AK33: 0 | AL33: 0 | AM33: 0
A34: 33 | B34: =OFFSET(Start,'Mellomlagring - antall besøk'!A34,0) -> 0 | C34: 0 | D34: 0 | E34: 0 | F34: 0 | G34: 0 | H34: 0 | I34: 0 | J34: 0 | K34: 0 | L34: 0 | M34: 0 | N34: 0 | O34: 0 | P34: 0 | Q34: 0 | R34: 0 | S34: 0 | T34: 0 | U34: 0 | V34: 0 | W34: 0 | X34: 0 | Y34: 0 | Z34: 0 | AA34: 0 | AB34: 0 | AC34: 0 | AD34: 0 | AE34: 0 | AF34: 0 | AG34: 0 | AH34: 0 | AI34: 0 | AJ34: 0 | AK34: 0 | AL34: 0 | AM34: 0
A35: 34 | B35: =OFFSET(Start,'Mellomlagring - antall besøk'!A35,0) -> 0 | C35: 0 | D35: 0 | E35: 0 | F35: 0 | G35: 0 | H35: 0 | I35: 0 | J35: 0 | K35: 0 | L35: 0 | M35: 0 | N35: 0 | O35: 0 | P35: 0 | Q35: 0 | R35: 0 | S35: 0 | T35: 0 | U35: 0 | V35: 0 | W35: 0 | X35: 0 | Y35: 0 | Z35: 0 | AA35: 0 | AB35: 0 | AC35: 0 | AD35: 0 | AE35: 0 | AF35: 0 | AG35: 0 | AH35: 0 | AI35: 0 | AJ35: 0 | AK35: 0 | AL35: 0 | AM35: 0
A36: 35 | B36: =OFFSET(Start,'Mellomlagring - antall besøk'!A36,0) -> 0 | C36: 0 | D36: 0 | E36: 0 | F36: 0 | G36: 0 | H36: 0 | I36: 0 | J36: 0 | K36: 0 | L36: 0 | M36: 0 | N36: 0 | O36: 0 | P36: 0 | Q36: 0 | R36: 0 | S36: 0 | T36: 0 | U36: 0 | V36: 0 | W36: 0 | X36: 0 | Y36: 0 | Z36: 0 | AA36: 0 | AB36: 0 | AC36: 0 | AD36: 0 | AE36: 0 | AF36: 0 | AG36: 0 | AH36: 0 | AI36: 0 | AJ36: 0 | AK36: 0 | AL36: 0 | AM36: 0
A37: 36 | B37: =OFFSET(Start,'Mellomlagring - antall besøk'!A37,0) -> 0 | C37: 0 | D37: 0 | E37: 0 | F37: 0 | G37: 0 | H37: 0 | I37: 0 | J37: 0 | K37: 0 | L37: 0 | M37: 0 | N37: 0 | O37: 0 | P37: 0 | Q37: 0 | R37: 0 | S37: 0 | T37: 0 | U37: 0 | V37: 0 | W37: 0 | X37: 0 | Y37: 0 | Z37: 0 | AA37: 0 | AB37: 0 | AC37: 0 | AD37: 0 | AE37: 0 | AF37: 0 | AG37: 0 | AH37: 0 | AI37: 0 | AJ37: 0 | AK37: 0 | AL37: 0 | AM37: 0
A38: 37 | B38: =OFFSET(Start,'Mellomlagring - antall besøk'!A38,0) -> 0 | C38: 0 | D38: 0 | E38: 0 | F38: 0 | G38: 0 | H38: 0 | I38: 0 | J38: 0 | K38: 0 | L38: 0 | M38: 0 | N38: 0 | O38: 0 | P38: 0 | Q38: 0 | R38: 0 | S38: 0 | T38: 0 | U38: 0 | V38: 0 | W38: 0 | X38: 0 | Y38: 0 | Z38: 0 | AA38: 0 | AB38: 0 | AC38: 0 | AD38: 0 | AE38: 0 | AF38: 0 | AG38: 0 | AH38: 0 | AI38: 0 | AJ38: 0 | AK38: 0 | AL38: 0 | AM38: 0
A39: 38 | B39: =OFFSET(Start,'Mellomlagring - antall besøk'!A39,0) -> 0 | C39: 0 | D39: 0 | E39: 0 | F39: 0 | G39: 0 | H39: 0 | I39: 0 | J39: 0 | K39: 0 | L39: 0 | M39: 0 | N39: 0 | O39: 0 | P39: 0 | Q39: 0 | R39: 0 | S39: 0 | T39: 0 | U39: 0 | V39: 0 | W39: 0 | X39: 0 | Y39: 0 | Z39: 0 | AA39: 0 | AB39: 0 | AC39: 0 | AD39: 0 | AE39: 0 | AF39: 0 | AG39: 0 | AH39: 0 | AI39: 0 | AJ39: 0 | AK39: 0 | AL39: 0 | AM39: 0
A40: 39 | B40: =OFFSET(Start,'Mellomlagring - antall besøk'!A40,0) -> 0 | C40: 0 | D40: 0 | E40: 0 | F40: 0 | G40: 0 | H40: 0 | I40: 0 | J40: 0 | K40: 0 | L40: 0 | M40: 0 | N40: 0 | O40: 0 | P40: 0 | Q40: 0 | R40: 0 | S40: 0 | T40: 0 | U40: 0 | V40: 0 | W40: 0 | X40: 0 | Y40: 0 | Z40: 0 | AA40: 0 | AB40: 0 | AC40: 0 | AD40: 0 | AE40: 0 | AF40: 0 | AG40: 0 | AH40: 0 | AI40: 0 | AJ40: 0 | AK40: 0 | AL40: 0 | AM40: 0
A41: 40 | B41: =OFFSET(Start,'Mellomlagring - antall besøk'!A41,0) -> 0 | C41: 0 | D41: 0 | E41: 0 | F41: 0 | G41: 0 | H41: 0 | I41: 0 | J41: 0 | K41: 0 | L41: 0 | M41: 0 | N41: 0 | O41: 0 | P41: 0 | Q41: 0 | R41: 0 | S41: 0 | T41: 0 | U41: 0 | V41: 0 | W41: 0 | X41: 0 | Y41: 0 | Z41: 0 | AA41: 0 | AB41: 0 | AC41: 0 | AD41: 0 | AE41: 0 | AF41: 0 | AG41: 0 | AH41: 0 | AI41: 0 | AJ41: 0 | AK41: 0 | AL41: 0 | AM41: 0
A42: 41 | B42: =OFFSET(Start,'Mellomlagring - antall besøk'!A42,0) -> 0 | C42: 0 | D42: 0 | E42: 0 | F42: 0 | G42: 0 | H42: 0 | I42: 0 | J42: 0 | K42: 0 | L42: 0 | M42: 0 | N42: 0 | O42: 0 | P42: 0 | Q42: 0 | R42: 0 | S42: 0 | T42: 0 | U42: 0 | V42: 0 | W42: 0 | X42: 0 | Y42: 0 | Z42: 0 | AA42: 0 | AB42: 0 | AC42: 0 | AD42: 0 | AE42: 0 | AF42: 0 | AG42: 0 | AH42: 0 | AI42: 0 | AJ42: 0 | AK42: 0 | AL42: 0 | AM42: 0
A43: 42 | B43: =OFFSET(Start,'Mellomlagring - antall besøk'!A43,0) -> 0 | C43: =IF(AND((OFFSET(Start,$A43,1)-C$2)<DAY(EOMONTH(C$2,0)),(OFFSET(Start,$A43,1)-C$2)>=0),OFFSET(Start,$A43,3)+OFFSET(Start,$A43,4)+OFFSET(Start,$A43,17),0) -> 0 | D43: 0 | E43: 0 | F43: 0 | G43: 0 | H43: 0 | I43: 0 | J43: 0 | K43: 0 | L43: 0 | M43: =IF(AND((OFFSET(Start,$A43,1)-M$2)<DAY(EOMONTH(M$2,0)),(OFFSET(Start,$A43,1)-M$2)>=0),OFFSET(Start,$A43,3)+OFFSET(Start,$A43,4)+OFFSET(Start,$A43,17),0) -> 0 | N43: 0 | O43: 0 | P43: 0 | Q43: 0 | R43: 0 | S43: 0 | T43: 0 | U43: 0 | V43: 0 | W43: =IF(AND((OFFSET(Start,$A43,1)-W$2)<DAY(EOMONTH(W$2,0)),(OFFSET(Start,$A43,1)-W$2)>=0),OFFSET(Start,$A43,3)+OFFSET(Start,$A43,4)+OFFSET(Start,$A43,17),0) -> 0 | X43: 0 | Y43: 0 | Z43: 0 | AA43: 0 | AB43: 0 | AC43: 0 | AD43: 0 | AE43: 0 | AF43: 0 | AG43: =IF(AND((OFFSET(Start,$A43,1)-AG$2)<DAY(EOMONTH(AG$2,0)),(OFFSET(Start,$A43,1)-AG$2)>=0),OFFSET(Start,$A43,3)+OFFSET(Start,$A43,4)+OFFSET(Start,$A43,17),0) -> 0 | AH43: 0 | AI43: 0 | AJ43: 0 | AK43: 0 | AL43: 0 | AM43: 0
A44: 43 | B44: =OFFSET(Start,'Mellomlagring - antall besøk'!A44,0) -> 0 | C44: 0 | D44: 0 | E44: 0 | F44: 0 | G44: 0 | H44: 0 | I44: 0 | J44: 0 | K44: 0 | L44: 0 | M44: 0 | N44: 0 | O44: 0 | P44: 0 | Q44: 0 | R44: 0 | S44: 0 | T44: 0 | U44: 0 | V44: 0 | W44: 0 | X44: 0 | Y44: 0 | Z44: 0 | AA44: 0 | AB44: 0 | AC44: 0 | AD44: 0 | AE44: 0 | AF44: 0 | AG44: 0 | AH44: 0 | AI44: 0 | AJ44: 0 | AK44: 0 | AL44: 0 | AM44: 0
A45: 44 | B45: =OFFSET(Start,'Mellomlagring - antall besøk'!A45,0) -> 0 | C45: 0 | D45: 0 | E45: 0 | F45: 0 | G45: 0 | H45: 0 | I45: 0 | J45: 0 | K45: 0 | L45: 0 | M45: 0 | N45: 0 | O45: 0 | P45: 0 | Q45: 0 | R45: 0 | S45: 0 | T45: 0 | U45: 0 | V45: 0 | W45: 0 | X45: 0 | Y45: 0 | Z45: 0 | AA45: 0 | AB45: 0 | AC45: 0 | AD45: 0 | AE45: 0 | AF45: 0 | AG45: 0 | AH45: 0 | AI45: 0 | AJ45: 0 | AK45: 0 | AL45: 0 | AM45: 0
A46: 45 | B46: =OFFSET(Start,'Mellomlagring - antall besøk'!A46,0) -> 0 | C46: 0 | D46: 0 | E46: 0 | F46: 0 | G46: 0 | H46: 0 | I46: 0 | J46: 0 | K46: 0 | L46: 0 | M46: 0 | N46: 0 | O46: 0 | P46: 0 | Q46: 0 | R46: 0 | S46: 0 | T46: 0 | U46: 0 | V46: 0 | W46: 0 | X46: 0 | Y46: 0 | Z46: 0 | AA46: 0 | AB46: 0 | AC46: 0 | AD46: 0 | AE46: 0 | AF46: 0 | AG46: 0 | AH46: 0 | AI46: 0 | AJ46: 0 | AK46: 0 | AL46: 0 | AM46: 0
A47: 46 | B47: =OFFSET(Start,'Mellomlagring - antall besøk'!A47,0) -> 0 | C47: 0 | D47: 0 | E47: 0 | F47: 0 | G47: 0 | H47: 0 | I47: 0 | J47: 0 | K47: 0 | L47: 0 | M47: 0 | N47: 0 | O47: 0 | P47: 0 | Q47: 0 | R47: 0 | S47: 0 | T47: 0 | U47: 0 | V47: 0 | W47: 0 | X47: 0 | Y47: 0 | Z47: 0 | AA47: 0 | AB47: 0 | AC47: 0 | AD47: 0 | AE47: 0 | AF47: 0 | AG47: 0 | AH47: 0 | AI47: 0 | AJ47: 0 | AK47: 0 | AL47: 0 | AM47: 0
A48: 47 | B48: =OFFSET(Start,'Mellomlagring - antall besøk'!A48,0) -> 0 | C48: 0 | D48: 0 | E48: 0 | F48: 0 | G48: 0 | H48: 0 | I48: 0 | J48: 0 | K48: 0 | L48: 0 | M48: 0 | N48: 0 | O48: 0 | P48: 0 | Q48: 0 | R48: 0 | S48: 0 | T48: 0 | U48: 0 | V48: 0 | W48: 0 | X48: 0 | Y48: 0 | Z48: 0 | AA48: 0 | AB48: 0 | AC48: 0 | AD48: 0 | AE48: 0 | AF48: 0 | AG48: 0 | AH48: 0 | AI48: 0 | AJ48: 0 | AK48: 0 | AL48: 0 | AM48: 0
A49: 48 | B49: =OFFSET(Start,'Mellomlagring - antall besøk'!A49,0) -> 0 | C49: 0 | D49: 0 | E49: 0 | F49: 0 | G49: 0 | H49: 0 | I49: 0 | J49: 0 | K49: 0 | L49: 0 | M49: 0 | N49: 0 | O49: 0 | P49: 0 | Q49: 0 | R49: 0 | S49: 0 | T49: 0 | U49: 0 | V49: 0 | W49: 0 | X49: 0 | Y49: 0 | Z49: 0 | AA49: 0 | AB49: 0 | AC49: 0 | AD49: 0 | AE49: 0 | AF49: 0 | AG49: 0 | AH49: 0 | AI49: 0 | AJ49: 0 | AK49: 0 | AL49: 0 | AM49: 0
A50: 49 | B50: =OFFSET(Start,'Mellomlagring - antall besøk'!A50,0) -> 0 | C50: 0 | D50: 0 | E50: 0 | F50: 0 | G50: 0 | H50: 0 | I50: 0 | J50: 0 | K50: 0 | L50: 0 | M50: 0 | N50: 0 | O50: 0 | P50: 0 | Q50: 0 | R50: 0 | S50: 0 | T50: 0 | U50: 0 | V50: 0 | W50: 0 | X50: 0 | Y50: 0 | Z50: 0 | AA50: 0 | AB50: 0 | AC50: 0 | AD50: 0 | AE50: 0 | AF50: 0 | AG50: 0 | AH50: 0 | AI50: 0 | AJ50: 0 | AK50: 0 | AL50: 0 | AM50: 0
A51: 50 | B51: =OFFSET(Start,'Mellomlagring - antall besøk'!A51,0) -> 0 | C51: 0 | D51: 0 | E51: 0 | F51: 0 | G51: 0 | H51: 0 | I51: 0 | J51: 0 | K51: 0 | L51: 0 | M51: 0 | N51: 0 | O51: 0 | P51: 0 | Q51: 0 | R51: 0 | S51: 0 | T51: 0 | U51: 0 | V51: 0 | W51: 0 | X51: 0 | Y51: 0 | Z51: 0 | AA51: 0 | AB51: 0 | AC51: 0 | AD51: 0 | AE51: 0 | AF51: 0 | AG51: 0 | AH51: 0 | AI51: 0 | AJ51: 0 | AK51: 0 | AL51: 0 | AM51: 0
A52: 51 | B52: =OFFSET(Start,'Mellomlagring - antall besøk'!A52,0) -> 0 | C52: 0 | D52: 0 | E52: 0 | F52: 0 | G52: 0 | H52: 0 | I52: 0 | J52: 0 | K52: 0 | L52: 0 | M52: 0 | N52: 0 | O52: 0 | P52: 0 | Q52: 0 | R52: 0 | S52: 0 | T52: 0 | U52: 0 | V52: 0 | W52: 0 | X52: 0 | Y52: 0 | Z52: 0 | AA52: 0 | AB52: 0 | AC52: 0 | AD52: 0 | AE52: 0 | AF52: 0 | AG52: 0 | AH52: 0 | AI52: 0 | AJ52: 0 | AK52: 0 | AL52: 0 | AM52: 0
A53: 52 | B53: =OFFSET(Start,'Mellomlagring - antall besøk'!A53,0) -> 0 | C53: =IF(AND((OFFSET(Start,$A53,1)-C$2)<DAY(EOMONTH(C$2,0)),(OFFSET(Start,$A53,1)-C$2)>=0),OFFSET(Start,$A53,3)+OFFSET(Start,$A53,4)+OFFSET(Start,$A53,17),0) -> 0 | D53: 0 | E53: 0 | F53: 0 | G53: 0 | H53: 0 | I53: 0 | J53: 0 | K53: 0 | L53: 0 | M53: =IF(AND((OFFSET(Start,$A53,1)-M$2)<DAY(EOMONTH(M$2,0)),(OFFSET(Start,$A53,1)-M$2)>=0),OFFSET(Start,$A53,3)+OFFSET(Start,$A53,4)+OFFSET(Start,$A53,17),0) -> 0 | N53: 0 | O53: 0 | P53: 0 | Q53: 0 | R53: 0 | S53: 0 | T53: 0 | U53: 0 | V53: 0 | W53: =IF(AND((OFFSET(Start,$A53,1)-W$2)<DAY(EOMONTH(W$2,0)),(OFFSET(Start,$A53,1)-W$2)>=0),OFFSET(Start,$A53,3)+OFFSET(Start,$A53,4)+OFFSET(Start,$A53,17),0) -> 0 | X53: 0 | Y53: 0 | Z53: 0 | AA53: 0 | AB53: 0 | AC53: 0 | AD53: 0 | AE53: 0 | AF53: 0 | AG53: =IF(AND((OFFSET(Start,$A53,1)-AG$2)<DAY(EOMONTH(AG$2,0)),(OFFSET(Start,$A53,1)-AG$2)>=0),OFFSET(Start,$A53,3)+OFFSET(Start,$A53,4)+OFFSET(Start,$A53,17),0) -> 0 | AH53: 0 | AI53: 0 | AJ53: 0 | AK53: 0 | AL53: 0 | AM53: 0
A54: 53 | B54: =OFFSET(Start,'Mellomlagring - antall besøk'!A54,0) -> 0 | C54: 0 | D54: 0 | E54: 0 | F54: 0 | G54: 0 | H54: 0 | I54: 0 | J54: 0 | K54: 0 | L54: 0 | M54: 0 | N54: 0 | O54: 0 | P54: 0 | Q54: 0 | R54: 0 | S54: 0 | T54: 0 | U54: 0 | V54: 0 | W54: 0 | X54: 0 | Y54: 0 | Z54: 0 | AA54: 0 | AB54: 0 | AC54: 0 | AD54: 0 | AE54: 0 | AF54: 0 | AG54: 0 | AH54: 0 | AI54: 0 | AJ54: 0 | AK54: 0 | AL54: 0 | AM54: 0
A55: 54 | B55: =OFFSET(Start,'Mellomlagring - antall besøk'!A55,0) -> 0 | C55: 0 | D55: 0 | E55: 0 | F55: 0 | G55: 0 | H55: 0 | I55: 0 | J55: 0 | K55: 0 | L55: 0 | M55: 0 | N55: 0 | O55: 0 | P55: 0 | Q55: 0 | R55: 0 | S55: 0 | T55: 0 | U55: 0 | V55: 0 | W55: 0 | X55: 0 | Y55: 0 | Z55: 0 | AA55: 0 | AB55: 0 | AC55: 0 | AD55: 0 | AE55: 0 | AF55: 0 | AG55: 0 | AH55: 0 | AI55: 0 | AJ55: 0 | AK55: 0 | AL55: 0 | AM55: 0
A56: 55 | B56: =OFFSET(Start,'Mellomlagring - antall besøk'!A56,0) -> 0 | C56: 0 | D56: 0 | E56: 0 | F56: 0 | G56: 0 | H56: 0 | I56: 0 | J56: 0 | K56: 0 | L56: 0 | M56: 0 | N56: 0 | O56: 0 | P56: 0 | Q56: 0 | R56: 0 | S56: 0 | T56: 0 | U56: 0 | V56: 0 | W56: 0 | X56: 0 | Y56: 0 | Z56: 0 | AA56: 0 | AB56: 0 | AC56: 0 | AD56: 0 | AE56: 0 | AF56: 0 | AG56: 0 | AH56: 0 | AI56: 0 | AJ56: 0 | AK56: 0 | AL56: 0 | AM56: 0
A57: 56 | B57: =OFFSET(Start,'Mellomlagring - antall besøk'!A57,0) -> 0 | C57: 0 | D57: 0 | E57: 0 | F57: 0 | G57: 0 | H57: 0 | I57: 0 | J57: 0 | K57: 0 | L57: 0 | M57: 0 | N57: 0 | O57: 0 | P57: 0 | Q57: 0 | R57: 0 | S57: 0 | T57: 0 | U57: 0 | V57: 0 | W57: 0 | X57: 0 | Y57: 0 | Z57: 0 | AA57: 0 | AB57: 0 | AC57: 0 | AD57: 0 | AE57: 0 | AF57: 0 | AG57: 0 | AH57: 0 | AI57: 0 | AJ57: 0 | AK57: 0 | AL57: 0 | AM57: 0
A58: 57 | B58: =OFFSET(Start,'Mellomlagring - antall besøk'!A58,0) -> 0 | C58: 0 | D58: 0 | E58: 0 | F58: 0 | G58: 0 | H58: 0 | I58: 0 | J58: 0 | K58: 0 | L58: 0 | M58: 0 | N58: 0 | O58: 0 | P58: 0 | Q58: 0 | R58: 0 | S58: 0 | T58: 0 | U58: 0 | V58: 0 | W58: 0 | X58: 0 | Y58: 0 | Z58: 0 | AA58: 0 | AB58: 0 | AC58: 0 | AD58: 0 | AE58: 0 | AF58: 0 | AG58: 0 | AH58: 0 | AI58: 0 | AJ58: 0 | AK58: 0 | AL58: 0 | AM58: 0
A59: 58 | B59: =OFFSET(Start,'Mellomlagring - antall besøk'!A59,0) -> 0 | C59: 0 | D59: 0 | E59: 0 | F59: 0 | G59: 0 | H59: 0 | I59: 0 | J59: 0 | K59: 0 | L59: 0 | M59: 0 | N59: 0 | O59: 0 | P59: 0 | Q59: 0 | R59: 0 | S59: 0 | T59: 0 | U59: 0 | V59: 0 | W59: 0 | X59: 0 | Y59: 0 | Z59: 0 | AA59: 0 | AB59: 0 | AC59: 0 | AD59: 0 | AE59: 0 | AF59: 0 | AG59: 0 | AH59: 0 | AI59: 0 | AJ59: 0 | AK59: 0 | AL59: 0 | AM59: 0
A60: 59 | B60: =OFFSET(Start,'Mellomlagring - antall besøk'!A60,0) -> 0 | C60: 0 | D60: 0 | E60: 0 | F60: 0 | G60: 0 | H60: 0 | I60: 0 | J60: 0 | K60: 0 | L60: 0 | M60: 0 | N60: 0 | O60: 0 | P60: 0 | Q60: 0 | R60: 0 | S60: 0 | T60: 0 | U60: 0 | V60: 0 | W60: 0 | X60: 0 | Y60: 0 | Z60: 0 | AA60: 0 | AB60: 0 | AC60: 0 | AD60: 0 | AE60: 0 | AF60: 0 | AG60: 0 | AH60: 0 | AI60: 0 | AJ60: 0 | AK60: 0 | AL60: 0 | AM60: 0
A61: 60 | B61: =OFFSET(Start,'Mellomlagring - antall besøk'!A61,0) -> 0 | C61: 0 | D61: 0 | E61: 0 | F61: 0 | G61: 0 | H61: 0 | I61: 0 | J61: 0 | K61: 0 | L61: 0 | M61: 0 | N61: 0 | O61: 0 | P61: 0 | Q61: 0 | R61: 0 | S61: 0 | T61: 0 | U61: 0 | V61: 0 | W61: 0 | X61: 0 | Y61: 0 | Z61: 0 | AA61: 0 | AB61: 0 | AC61: 0 | AD61: 0 | AE61: 0 | AF61: 0 | AG61: 0 | AH61: 0 | AI61: 0 | AJ61: 0 | AK61: 0 | AL61: 0 | AM61: 0
A62: 61 | B62: =OFFSET(Start,'Mellomlagring - antall besøk'!A62,0) -> 0 | C62: 0 | D62: 0 | E62: 0 | F62: 0 | G62: 0 | H62: 0 | I62: 0 | J62: 0 | K62: 0 | L62: 0 | M62: 0 | N62: 0 | O62: 0 | P62: 0 | Q62: 0 | R62: 0 | S62: 0 | T62: 0 | U62: 0 | V62: 0 | W62: 0 | X62: 0 | Y62: 0 | Z62: 0 | AA62: 0 | AB62: 0 | AC62: 0 | AD62: 0 | AE62: 0 | AF62: 0 | AG62: 0 | AH62: 0 | AI62: 0 | AJ62: 0 | AK62: 0 | AL62: 0 | AM62: 0
A63: 62 | B63: =OFFSET(Start,'Mellomlagring - antall besøk'!A63,0) -> 0 | C63: =IF(AND((OFFSET(Start,$A63,1)-C$2)<DAY(EOMONTH(C$2,0)),(OFFSET(Start,$A63,1)-C$2)>=0),OFFSET(Start,$A63,3)+OFFSET(Start,$A63,4)+OFFSET(Start,$A63,17),0) -> 0 | D63: 0 | E63: 0 | F63: 0 | G63: 0 | H63: 0 | I63: 0 | J63: 0 | K63: 0 | L63: 0 | M63: =IF(AND((OFFSET(Start,$A63,1)-M$2)<DAY(EOMONTH(M$2,0)),(OFFSET(Start,$A63,1)-M$2)>=0),OFFSET(Start,$A63,3)+OFFSET(Start,$A63,4)+OFFSET(Start,$A63,17),0) -> 0 | N63: 0 | O63: 0 | P63: 0 | Q63: 0 | R63: 0 | S63: 0 | T63: 0 | U63: 0 | V63: 0 | W63: =IF(AND((OFFSET(Start,$A63,1)-W$2)<DAY(EOMONTH(W$2,0)),(OFFSET(Start,$A63,1)-W$2)>=0),OFFSET(Start,$A63,3)+OFFSET(Start,$A63,4)+OFFSET(Start,$A63,17),0) -> 0 | X63: 0 | Y63: 0 | Z63: 0 | AA63: 0 | AB63: 0 | AC63: 0 | AD63: 0 | AE63: 0 | AF63: 0 | AG63: =IF(AND((OFFSET(Start,$A63,1)-AG$2)<DAY(EOMONTH(AG$2,0)),(OFFSET(Start,$A63,1)-AG$2)>=0),OFFSET(Start,$A63,3)+OFFSET(Start,$A63,4)+OFFSET(Start,$A63,17),0) -> 0 | AH63: 0 | AI63: 0 | AJ63: 0 | AK63: 0 | AL63: 0 | AM63: 0
A64: 63 | B64: =OFFSET(Start,'Mellomlagring - antall besøk'!A64,0) -> 0 | C64: 0 | D64: 0 | E64: 0 | F64: 0 | G64: 0 | H64: 0 | I64: 0 | J64: 0 | K64: 0 | L64: 0 | M64: 0 | N64: 0 | O64: 0 | P64: 0 | Q64: 0 | R64: 0 | S64: 0 | T64: 0 | U64: 0 | V64: 0 | W64: 0 | X64: 0 | Y64: 0 | Z64: 0 | AA64: 0 | AB64: 0 | AC64: 0 | AD64: 0 | AE64: 0 | AF64: 0 | AG64: 0 | AH64: 0 | AI64: 0 | AJ64: 0 | AK64: 0 | AL64: 0 | AM64: 0
A65: 64 | B65: =OFFSET(Start,'Mellomlagring - antall besøk'!A65,0) -> 0 | C65: 0 | D65: 0 | E65: 0 | F65: 0 | G65: 0 | H65: 0 | I65: 0 | J65: 0 | K65: 0 | L65: 0 | M65: 0 | N65: 0 | O65: 0 | P65: 0 | Q65: 0 | R65: 0 | S65: 0 | T65: 0 | U65: 0 | V65: 0 | W65: 0 | X65: 0 | Y65: 0 | Z65: 0 | AA65: 0 | AB65: 0 | AC65: 0 | AD65: 0 | AE65: 0 | AF65: 0 | AG65: 0 | AH65: 0 | AI65: 0 | AJ65: 0 | AK65: 0 | AL65: 0 | AM65: 0
A66: 65 | B66: =OFFSET(Start,'Mellomlagring - antall besøk'!A66,0) -> 0 | C66: 0 | D66: 0 | E66: 0 | F66: 0 | G66: 0 | H66: 0 | I66: 0 | J66: 0 | K66: 0 | L66: 0 | M66: 0 | N66: 0 | O66: 0 | P66: 0 | Q66: 0 | R66: 0 | S66: 0 | T66: 0 | U66: 0 | V66: 0 | W66: 0 | X66: 0 | Y66: 0 | Z66: 0 | AA66: 0 | AB66: 0 | AC66: 0 | AD66: 0 | AE66: 0 | AF66: 0 | AG66: 0 | AH66: 0 | AI66: 0 | AJ66: 0 | AK66: 0 | AL66: 0 | AM66: 0
A67: 66 | B67: =OFFSET(Start,'Mellomlagring - antall besøk'!A67,0) -> 0 | C67: 0 | D67: 0 | E67: 0 | F67: 0 | G67: 0 | H67: 0 | I67: 0 | J67: 0 | K67: 0 | L67: 0 | M67: 0 | N67: 0 | O67: 0 | P67: 0 | Q67: 0 | R67: 0 | S67: 0 | T67: 0 | U67: 0 | V67: 0 | W67: 0 | X67: 0 | Y67: 0 | Z67: 0 | AA67: 0 | AB67: 0 | AC67: 0 | AD67: 0 | AE67: 0 | AF67: 0 | AG67: 0 | AH67: 0 | AI67: 0 | AJ67: 0 | AK67: 0 | AL67: 0 | AM67: 0
A68: 67 | B68: =OFFSET(Start,'Mellomlagring - antall besøk'!A68,0) -> 0 | C68: 0 | D68: 0 | E68: 0 | F68: 0 | G68: 0 | H68: 0 | I68: 0 | J68: 0 | K68: 0 | L68: 0 | M68: 0 | N68: 0 | O68: 0 | P68: 0 | Q68: 0 | R68: 0 | S68: 0 | T68: 0 | U68: 0 | V68: 0 | W68: 0 | X68: 0 | Y68: 0 | Z68: 0 | AA68: 0 | AB68: 0 | AC68: 0 | AD68: 0 | AE68: 0 | AF68: 0 | AG68: 0 | AH68: 0 | AI68: 0 | AJ68: 0 | AK68: 0 | AL68: 0 | AM68: =SUM(C68:AL68) -> 0
A69: =+A68+1 -> 68 | B69: =OFFSET(Start,'Mellomlagring - antall besøk'!A69,0) -> 0 | C69: 0 | D69: 0 | E69: 0 | F69: 0 | G69: 0 | H69: 0 | I69: 0 | J69: 0 | K69: 0 | L69: 0 | M69: 0 | N69: 0 | O69: 0 | P69: 0 | Q69: 0 | R69: 0 | S69: 0 | T69: 0 | U69: 0 | V69: 0 | W69: 0 | X69: 0 | Y69: 0 | Z69: 0 | AA69: 0 | AB69: 0 | AC69: 0 | AD69: 0 | AE69: 0 | AF69: 0 | AG69: 0 | AH69: 0 | AI69: 0 | AJ69: 0 | AK69: 0 | AL69: 0 | AM69: 0
A70: 69 | B70: =OFFSET(Start,'Mellomlagring - antall besøk'!A70,0) -> 0 | C70: 0 | D70: 0 | E70: 0 | F70: 0 | G70: 0 | H70: 0 | I70: 0 | J70: 0 | K70: 0 | L70: 0 | M70: 0 | N70: 0 | O70: 0 | P70: 0 | Q70: 0 | R70: 0 | S70: 0 | T70: 0 | U70: 0 | V70: 0 | W70: 0 | X70: 0 | Y70: 0 | Z70: 0 | AA70: 0 | AB70: 0 | AC70: 0 | AD70: 0 | AE70: 0 | AF70: 0 | AG70: 0 | AH70: 0 | AI70: 0 | AJ70: 0 | AK70: 0 | AL70: 0 | AM70: 0
A71: 70 | B71: =OFFSET(Start,'Mellomlagring - antall besøk'!A71,0) -> 0 | C71: 0 | D71: 0 | E71: 0 | F71: 0 | G71: 0 | H71: 0 | I71: 0 | J71: 0 | K71: 0 | L71: 0 | M71: 0 | N71: 0 | O71: 0 | P71: 0 | Q71: 0 | R71: 0 | S71: 0 | T71: 0 | U71: 0 | V71: 0 | W71: 0 | X71: 0 | Y71: 0 | Z71: 0 | AA71: 0 | AB71: 0 | AC71: 0 | AD71: 0 | AE71: 0 | AF71: 0 | AG71: 0 | AH71: 0 | AI71: 0 | AJ71: 0 | AK71: 0 | AL71: 0 | AM71: 0
A72: 71 | B72: =OFFSET(Start,'Mellomlagring - antall besøk'!A72,0) -> 0 | C72: 0 | D72: 0 | E72: 0 | F72: 0 | G72: 0 | H72: 0 | I72: 0 | J72: 0 | K72: 0 | L72: 0 | M72: 0 | N72: 0 | O72: 0 | P72: 0 | Q72: 0 | R72: 0 | S72: 0 | T72: 0 | U72: 0 | V72: 0 | W72: 0 | X72: 0 | Y72: 0 | Z72: 0 | AA72: 0 | AB72: 0 | AC72: 0 | AD72: 0 | AE72: 0 | AF72: 0 | AG72: 0 | AH72: 0 | AI72: 0 | AJ72: 0 | AK72: 0 | AL72: 0 | AM72: 0
A73: 72 | B73: =OFFSET(Start,'Mellomlagring - antall besøk'!A73,0) -> 0 | C73: =IF(AND((OFFSET(Start,$A73,1)-C$2)<DAY(EOMONTH(C$2,0)),(OFFSET(Start,$A73,1)-C$2)>=0),OFFSET(Start,$A73,3)+OFFSET(Start,$A73,4)+OFFSET(Start,$A73,17),0) -> 0 | D73: 0 | E73: 0 | F73: 0 | G73: 0 | H73: 0 | I73: 0 | J73: 0 | K73: 0 | L73: 0 | M73: =IF(AND((OFFSET(Start,$A73,1)-M$2)<DAY(EOMONTH(M$2,0)),(OFFSET(Start,$A73,1)-M$2)>=0),OFFSET(Start,$A73,3)+OFFSET(Start,$A73,4)+OFFSET(Start,$A73,17),0) -> 0 | N73: 0 | O73: 0 | P73: 0 | Q73: 0 | R73: 0 | S73: 0 | T73: 0 | U73: 0 | V73: 0 | W73: =IF(AND((OFFSET(Start,$A73,1)-W$2)<DAY(EOMONTH(W$2,0)),(OFFSET(Start,$A73,1)-W$2)>=0),OFFSET(Start,$A73,3)+OFFSET(Start,$A73,4)+OFFSET(Start,$A73,17),0) -> 0 | X73: 0 | Y73: 0 | Z73: 0 | AA73: 0 | AB73: 0 | AC73: 0 | AD73: 0 | AE73: 0 | AF73: 0 | AG73: =IF(AND((OFFSET(Start,$A73,1)-AG$2)<DAY(EOMONTH(AG$2,0)),(OFFSET(Start,$A73,1)-AG$2)>=0),OFFSET(Start,$A73,3)+OFFSET(Start,$A73,4)+OFFSET(Start,$A73,17),0) -> 0 | AH73: 0 | AI73: 0 | AJ73: 0 | AK73: 0 | AL73: 0 | AM73: 0
A74: 73 | B74: =OFFSET(Start,'Mellomlagring - antall besøk'!A74,0) -> 0 | C74: 0 | D74: 0 | E74: 0 | F74: 0 | G74: 0 | H74: 0 | I74: 0 | J74: 0 | K74: 0 | L74: 0 | M74: 0 | N74: 0 | O74: 0 | P74: 0 | Q74: 0 | R74: 0 | S74: 0 | T74: 0 | U74: 0 | V74: 0 | W74: 0 | X74: 0 | Y74: 0 | Z74: 0 | AA74: 0 | AB74: 0 | AC74: 0 | AD74: 0 | AE74: 0 | AF74: 0 | AG74: 0 | AH74: 0 | AI74: 0 | AJ74: 0 | AK74: 0 | AL74: 0 | AM74: 0
A75: 74 | B75: =OFFSET(Start,'Mellomlagring - antall besøk'!A75,0) -> 0 | C75: 0 | D75: 0 | E75: 0 | F75: 0 | G75: 0 | H75: 0 | I75: 0 | J75: 0 | K75: 0 | L75: 0 | M75: 0 | N75: 0 | O75: 0 | P75: 0 | Q75: 0 | R75: 0 | S75: 0 | T75: 0 | U75: 0 | V75: 0 | W75: 0 | X75: 0 | Y75: 0 | Z75: 0 | AA75: 0 | AB75: 0 | AC75: 0 | AD75: 0 | AE75: 0 | AF75: 0 | AG75: 0 | AH75: 0 | AI75: 0 | AJ75: 0 | AK75: 0 | AL75: 0 | AM75: 0
A76: 75 | B76: =OFFSET(Start,'Mellomlagring - antall besøk'!A76,0) -> 0 | C76: 0 | D76: 0 | E76: 0 | F76: 0 | G76: 0 | H76: 0 | I76: 0 | J76: 0 | K76: 0 | L76: 0 | M76: 0 | N76: 0 | O76: 0 | P76: 0 | Q76: 0 | R76: 0 | S76: 0 | T76: 0 | U76: 0 | V76: 0 | W76: 0 | X76: 0 | Y76: 0 | Z76: 0 | AA76: 0 | AB76: 0 | AC76: 0 | AD76: 0 | AE76: 0 | AF76: 0 | AG76: 0 | AH76: 0 | AI76: 0 | AJ76: 0 | AK76: 0 | AL76: 0 | AM76: 0
A77: 76 | B77: =OFFSET(Start,'Mellomlagring - antall besøk'!A77,0) -> 0 | C77: 0 | D77: 0 | E77: 0 | F77: 0 | G77: 0 | H77: 0 | I77: 0 | J77: 0 | K77: 0 | L77: 0 | M77: 0 | N77: 0 | O77: 0 | P77: 0 | Q77: 0 | R77: 0 | S77: 0 | T77: 0 | U77: 0 | V77: 0 | W77: 0 | X77: 0 | Y77: 0 | Z77: 0 | AA77: 0 | AB77: 0 | AC77: 0 | AD77: 0 | AE77: 0 | AF77: 0 | AG77: 0 | AH77: 0 | AI77: 0 | AJ77: 0 | AK77: 0 | AL77: 0 | AM77: 0
A78: 77 | B78: =OFFSET(Start,'Mellomlagring - antall besøk'!A78,0) -> 0 | C78: 0 | D78: 0 | E78: 0 | F78: 0 | G78: 0 | H78: 0 | I78: 0 | J78: 0 | K78: 0 | L78: 0 | M78: 0 | N78: 0 | O78: 0 | P78: 0 | Q78: 0 | R78: 0 | S78: 0 | T78: 0 | U78: 0 | V78: 0 | W78: 0 | X78: 0 | Y78: 0 | Z78: 0 | AA78: 0 | AB78: 0 | AC78: 0 | AD78: 0 | AE78: 0 | AF78: 0 | AG78: 0 | AH78: 0 | AI78: 0 | AJ78: 0 | AK78: 0 | AL78: 0 | AM78: 0
A79: 78 | B79: =OFFSET(Start,'Mellomlagring - antall besøk'!A79,0) -> 0 | C79: 0 | D79: 0 | E79: 0 | F79: 0 | G79: 0 | H79: 0 | I79: 0 | J79: 0 | K79: 0 | L79: 0 | M79: 0 | N79: 0 | O79: 0 | P79: 0 | Q79: 0 | R79: 0 | S79: 0 | T79: 0 | U79: 0 | V79: 0 | W79: 0 | X79: 0 | Y79: 0 | Z79: 0 | AA79: 0 | AB79: 0 | AC79: 0 | AD79: 0 | AE79: 0 | AF79: 0 | AG79: 0 | AH79: 0 | AI79: 0 | AJ79: 0 | AK79: 0 | AL79: 0 | AM79: 0
A80: 79 | B80: =OFFSET(Start,'Mellomlagring - antall besøk'!A80,0) -> 0 | C80: 0 | D80: 0 | E80: 0 | F80: 0 | G80: 0 | H80: 0 | I80: 0 | J80: 0 | K80: 0 | L80: 0 | M80: 0 | N80: 0 | O80: 0 | P80: 0 | Q80: 0 | R80: 0 | S80: 0 | T80: 0 | U80: 0 | V80: 0 | W80: 0 | X80: 0 | Y80: 0 | Z80: 0 | AA80: 0 | AB80: 0 | AC80: 0 | AD80: 0 | AE80: 0 | AF80: 0 | AG80: 0 | AH80: 0 | AI80: 0 | AJ80: 0 | AK80: 0 | AL80: 0 | AM80: 0
A81: 80 | B81: =OFFSET(Start,'Mellomlagring - antall besøk'!A81,0) -> 0 | C81: 0 | D81: 0 | E81: 0 | F81: 0 | G81: 0 | H81: 0 | I81: 0 | J81: 0 | K81: 0 | L81: 0 | M81: 0 | N81: 0 | O81: 0 | P81: 0 | Q81: 0 | R81: 0 | S81: 0 | T81: 0 | U81: 0 | V81: 0 | W81: 0 | X81: 0 | Y81: 0 | Z81: 0 | AA81: 0 | AB81: 0 | AC81: 0 | AD81: 0 | AE81: 0 | AF81: 0 | AG81: 0 | AH81: 0 | AI81: 0 | AJ81: 0 | AK81: 0 | AL81: 0 | AM81: 0
A82: 81 | B82: =OFFSET(Start,'Mellomlagring - antall besøk'!A82,0) -> 0 | C82: 0 | D82: 0 | E82: 0 | F82: 0 | G82: 0 | H82: 0 | I82: 0 | J82: 0 | K82: 0 | L82: 0 | M82: 0 | N82: 0 | O82: 0 | P82: 0 | Q82: 0 | R82: 0 | S82: 0 | T82: 0 | U82: 0 | V82: 0 | W82: 0 | X82: 0 | Y82: 0 | Z82: 0 | AA82: 0 | AB82: 0 | AC82: 0 | AD82: 0 | AE82: 0 | AF82: 0 | AG82: 0 | AH82: 0 | AI82: 0 | AJ82: 0 | AK82: 0 | AL82: 0 | AM82: 0
A83: 82 | B83: =OFFSET(Start,'Mellomlagring - antall besøk'!A83,0) -> 0 | C83: =IF(AND((OFFSET(Start,$A83,1)-C$2)<DAY(EOMONTH(C$2,0)),(OFFSET(Start,$A83,1)-C$2)>=0),OFFSET(Start,$A83,3)+OFFSET(Start,$A83,4)+OFFSET(Start,$A83,17),0) -> 0 | D83: 0 | E83: 0 | F83: 0 | G83: 0 | H83: 0 | I83: 0 | J83: 0 | K83: 0 | L83: 0 | M83: =IF(AND((OFFSET(Start,$A83,1)-M$2)<DAY(EOMONTH(M$2,0)),(OFFSET(Start,$A83,1)-M$2)>=0),OFFSET(Start,$A83,3)+OFFSET(Start,$A83,4)+OFFSET(Start,$A83,17),0) -> 0 | N83: 0 | O83: 0 | P83: 0 | Q83: 0 | R83: 0 | S83: 0 | T83: 0 | U83: 0 | V83: 0 | W83: =IF(AND((OFFSET(Start,$A83,1)-W$2)<DAY(EOMONTH(W$2,0)),(OFFSET(Start,$A83,1)-W$2)>=0),OFFSET(Start,$A83,3)+OFFSET(Start,$A83,4)+OFFSET(Start,$A83,17),0) -> 0 | X83: 0 | Y83: 0 | Z83: 0 | AA83: 0 | AB83: 0 | AC83: 0 | AD83: 0 | AE83: 0 | AF83: 0 | AG83: =IF(AND((OFFSET(Start,$A83,1)-AG$2)<DAY(EOMONTH(AG$2,0)),(OFFSET(Start,$A83,1)-AG$2)>=0),OFFSET(Start,$A83,3)+OFFSET(Start,$A83,4)+OFFSET(Start,$A83,17),0) -> 0 | AH83: 0 | AI83: 0 | AJ83: 0 | AK83: 0 | AL83: 0 | AM83: 0
A84: 83 | B84: =OFFSET(Start,'Mellomlagring - antall besøk'!A84,0) -> 0 | C84: 0 | D84: 0 | E84: 0 | F84: 0 | G84: 0 | H84: 0 | I84: 0 | J84: 0 | K84: 0 | L84: 0 | M84: 0 | N84: 0 | O84: 0 | P84: 0 | Q84: 0 | R84: 0 | S84: 0 | T84: 0 | U84: 0 | V84: 0 | W84: 0 | X84: 0 | Y84: 0 | Z84: 0 | AA84: 0 | AB84: 0 | AC84: 0 | AD84: 0 | AE84: 0 | AF84: 0 | AG84: 0 | AH84: 0 | AI84: 0 | AJ84: 0 | AK84: 0 | AL84: 0 | AM84: 0
A85: 84 | B85: =OFFSET(Start,'Mellomlagring - antall besøk'!A85,0) -> 0 | C85: 0 | D85: 0 | E85: 0 | F85: 0 | G85: 0 | H85: 0 | I85: 0 | J85: 0 | K85: 0 | L85: 0 | M85: 0 | N85: 0 | O85: 0 | P85: 0 | Q85: 0 | R85: 0 | S85: 0 | T85: 0 | U85: 0 | V85: 0 | W85: 0 | X85: 0 | Y85: 0 | Z85: 0 | AA85: 0 | AB85: 0 | AC85: 0 | AD85: 0 | AE85: 0 | AF85: 0 | AG85: 0 | AH85: 0 | AI85: 0 | AJ85: 0 | AK85: 0 | AL85: 0 | AM85: 0
A86: 85 | B86: =OFFSET(Start,'Mellomlagring - antall besøk'!A86,0) -> 0 | C86: 0 | D86: 0 | E86: 0 | F86: 0 | G86: 0 | H86: 0 | I86: 0 | J86: 0 | K86: 0 | L86: 0 | M86: 0 | N86: 0 | O86: 0 | P86: 0 | Q86: 0 | R86: 0 | S86: 0 | T86: 0 | U86: 0 | V86: 0 | W86: 0 | X86: 0 | Y86: 0 | Z86: 0 | AA86: 0 | AB86: 0 | AC86: 0 | AD86: 0 | AE86: 0 | AF86: 0 | AG86: 0 | AH86: 0 | AI86: 0 | AJ86: 0 | AK86: 0 | AL86: 0 | AM86: 0
A87: 86 | B87: =OFFSET(Start,'Mellomlagring - antall besøk'!A87,0) -> 0 | C87: 0 | D87: 0 | E87: 0 | F87: 0 | G87: 0 | H87: 0 | I87: 0 | J87: 0 | K87: 0 | L87: 0 | M87: 0 | N87: 0 | O87: 0 | P87: 0 | Q87: 0 | R87: 0 | S87: 0 | T87: 0 | U87: 0 | V87: 0 | W87: 0 | X87: 0 | Y87: 0 | Z87: 0 | AA87: 0 | AB87: 0 | AC87: 0 | AD87: 0 | AE87: 0 | AF87: 0 | AG87: 0 | AH87: 0 | AI87: 0 | AJ87: 0 | AK87: 0 | AL87: 0 | AM87: 0
A88: 87 | B88: =OFFSET(Start,'Mellomlagring - antall besøk'!A88,0) -> 0 | C88: 0 | D88: 0 | E88: 0 | F88: 0 | G88: 0 | H88: 0 | I88: 0 | J88: 0 | K88: 0 | L88: 0 | M88: 0 | N88: 0 | O88: 0 | P88: 0 | Q88: 0 | R88: 0 | S88: 0 | T88: 0 | U88: 0 | V88: 0 | W88: 0 | X88: 0 | Y88: 0 | Z88: 0 | AA88: 0 | AB88: 0 | AC88: 0 | AD88: 0 | AE88: 0 | AF88: 0 | AG88: 0 | AH88: 0 | AI88: 0 | AJ88: 0 | AK88: 0 | AL88: 0 | AM88: 0
A89: 88 | B89: =OFFSET(Start,'Mellomlagring - antall besøk'!A89,0) -> 0 | C89: 0 | D89: 0 | E89: 0 | F89: 0 | G89: 0 | H89: 0 | I89: 0 | J89: 0 | K89: 0 | L89: 0 | M89: 0 | N89: 0 | O89: 0 | P89: 0 | Q89: 0 | R89: 0 | S89: 0 | T89: 0 | U89: 0 | V89: 0 | W89: 0 | X89: 0 | Y89: 0 | Z89: 0 | AA89: 0 | AB89: 0 | AC89: 0 | AD89: 0 | AE89: 0 | AF89: 0 | AG89: 0 | AH89: 0 | AI89: 0 | AJ89: 0 | AK89: 0 | AL89: 0 | AM89: 0
A90: 89 | B90: =OFFSET(Start,'Mellomlagring - antall besøk'!A90,0) -> 0 | C90: 0 | D90: 0 | E90: 0 | F90: 0 | G90: 0 | H90: 0 | I90: 0 | J90: 0 | K90: 0 | L90: 0 | M90: 0 | N90: 0 | O90: 0 | P90: 0 | Q90: 0 | R90: 0 | S90: 0 | T90: 0 | U90: 0 | V90: 0 | W90: 0 | X90: 0 | Y90: 0 | Z90: 0 | AA90: 0 | AB90: 0 | AC90: 0 | AD90: 0 | AE90: 0 | AF90: 0 | AG90: 0 | AH90: 0 | AI90: 0 | AJ90: 0 | AK90: 0 | AL90: 0 | AM90: 0
A91: 90 | B91: =OFFSET(Start,'Mellomlagring - antall besøk'!A91,0) -> 0 | C91: 0 | D91: 0 | E91: 0 | F91: 0 | G91: 0 | H91: 0 | I91: 0 | J91: 0 | K91: 0 | L91: 0 | M91: 0 | N91: 0 | O91: 0 | P91: 0 | Q91: 0 | R91: 0 | S91: 0 | T91: 0 | U91: 0 | V91: 0 | W91: 0 | X91: 0 | Y91: 0 | Z91: 0 | AA91: 0 | AB91: 0 | AC91: 0 | AD91: 0 | AE91: 0 | AF91: 0 | AG91: 0 | AH91: 0 | AI91: 0 | AJ91: 0 | AK91: 0 | AL91: 0 | AM91: 0
A92: 91 | B92: =OFFSET(Start,'Mellomlagring - antall besøk'!A92,0) -> 0 | C92: 0 | D92: 0 | E92: 0 | F92: 0 | G92: 0 | H92: 0 | I92: 0 | J92: 0 | K92: 0 | L92: 0 | M92: 0 | N92: 0 | O92: 0 | P92: 0 | Q92: 0 | R92: 0 | S92: 0 | T92: 0 | U92: 0 | V92: 0 | W92: 0 | X92: 0 | Y92: 0 | Z92: 0 | AA92: 0 | AB92: 0 | AC92: 0 | AD92: 0 | AE92: 0 | AF92: 0 | AG92: 0 | AH92: 0 | AI92: 0 | AJ92: 0 | AK92: 0 | AL92: 0 | AM92: 0
A93: 92 | B93: =OFFSET(Start,'Mellomlagring - antall besøk'!A93,0) -> 0 | C93: =IF(AND((OFFSET(Start,$A93,1)-C$2)<DAY(EOMONTH(C$2,0)),(OFFSET(Start,$A93,1)-C$2)>=0),OFFSET(Start,$A93,3)+OFFSET(Start,$A93,4)+OFFSET(Start,$A93,17),0) -> 0 | D93: 0 | E93: 0 | F93: 0 | G93: 0 | H93: 0 | I93: 0 | J93: 0 | K93: 0 | L93: 0 | M93: =IF(AND((OFFSET(Start,$A93,1)-M$2)<DAY(EOMONTH(M$2,0)),(OFFSET(Start,$A93,1)-M$2)>=0),OFFSET(Start,$A93,3)+OFFSET(Start,$A93,4)+OFFSET(Start,$A93,17),0) -> 0 | N93: 0 | O93: 0 | P93: 0 | Q93: 0 | R93: 0 | S93: 0 | T93: 0 | U93: 0 | V93: 0 | W93: =IF(AND((OFFSET(Start,$A93,1)-W$2)<DAY(EOMONTH(W$2,0)),(OFFSET(Start,$A93,1)-W$2)>=0),OFFSET(Start,$A93,3)+OFFSET(Start,$A93,4)+OFFSET(Start,$A93,17),0) -> 0 | X93: 0 | Y93: 0 | Z93: 0 | AA93: 0 | AB93: 0 | AC93: 0 | AD93: 0 | AE93: 0 | AF93: 0 | AG93: =IF(AND((OFFSET(Start,$A93,1)-AG$2)<DAY(EOMONTH(AG$2,0)),(OFFSET(Start,$A93,1)-AG$2)>=0),OFFSET(Start,$A93,3)+OFFSET(Start,$A93,4)+OFFSET(Start,$A93,17),0) -> 0 | AH93: 0 | AI93: 0 | AJ93: 0 | AK93: 0 | AL93: 0 | AM93: 0
A94: 93 | B94: =OFFSET(Start,'Mellomlagring - antall besøk'!A94,0) -> 0 | C94: 0 | D94: 0 | E94: 0 | F94: 0 | G94: 0 | H94: 0 | I94: 0 | J94: 0 | K94: 0 | L94: 0 | M94: 0 | N94: 0 | O94: 0 | P94: 0 | Q94: 0 | R94: 0 | S94: 0 | T94: 0 | U94: 0 | V94: 0 | W94: 0 | X94: 0 | Y94: 0 | Z94: 0 | AA94: 0 | AB94: 0 | AC94: 0 | AD94: 0 | AE94: 0 | AF94: 0 | AG94: 0 | AH94: 0 | AI94: 0 | AJ94: 0 | AK94: 0 | AL94: 0 | AM94: 0
A95: 94 | B95: =OFFSET(Start,'Mellomlagring - antall besøk'!A95,0) -> 0 | C95: 0 | D95: 0 | E95: 0 | F95: 0 | G95: 0 | H95: 0 | I95: 0 | J95: 0 | K95: 0 | L95: 0 | M95: 0 | N95: 0 | O95: 0 | P95: 0 | Q95: 0 | R95: 0 | S95: 0 | T95: 0 | U95: 0 | V95: 0 | W95: 0 | X95: 0 | Y95: 0 | Z95: 0 | AA95: 0 | AB95: 0 | AC95: 0 | AD95: 0 | AE95: 0 | AF95: 0 | AG95: 0 | AH95: 0 | AI95: 0 | AJ95: 0 | AK95: 0 | AL95: 0 | AM95: 0
A96: 95 | B96: =OFFSET(Start,'Mellomlagring - antall besøk'!A96,0) -> 0 | C96: 0 | D96: 0 | E96: 0 | F96: 0 | G96: 0 | H96: 0 | I96: 0 | J96: 0 | K96: 0 | L96: 0 | M96: 0 | N96: 0 | O96: 0 | P96: 0 | Q96: 0 | R96: 0 | S96: 0 | T96: 0 | U96: 0 | V96: 0 | W96: 0 | X96: 0 | Y96: 0 | Z96: 0 | AA96: 0 | AB96: 0 | AC96: 0 | AD96: 0 | AE96: 0 | AF96: 0 | AG96: 0 | AH96: 0 | AI96: 0 | AJ96: 0 | AK96: 0 | AL96: 0 | AM96: 0
A97: 96 | B97: =OFFSET(Start,'Mellomlagring - antall besøk'!A97,0) -> 0 | C97: 0 | D97: 0 | E97: 0 | F97: 0 | G97: 0 | H97: 0 | I97: 0 | J97: 0 | K97: 0 | L97: 0 | M97: 0 | N97: 0 | O97: 0 | P97: 0 | Q97: 0 | R97: 0 | S97: 0 | T97: 0 | U97: 0 | V97: 0 | W97: 0 | X97: 0 | Y97: 0 | Z97: 0 | AA97: 0 | AB97: 0 | AC97: 0 | AD97: 0 | AE97: 0 | AF97: 0 | AG97: 0 | AH97: 0 | AI97: 0 | AJ97: 0 | AK97: 0 | AL97: 0 | AM97: 0
A98: 97 | B98: =OFFSET(Start,'Mellomlagring - antall besøk'!A98,0) -> 0 | C98: 0 | D98: 0 | E98: 0 | F98: 0 | G98: 0 | H98: 0 | I98: 0 | J98: 0 | K98: 0 | L98: 0 | M98: 0 | N98: 0 | O98: 0 | P98: 0 | Q98: 0 | R98: 0 | S98: 0 | T98: 0 | U98: 0 | V98: 0 | W98: 0 | X98: 0 | Y98: 0 | Z98: 0 | AA98: 0 | AB98: 0 | AC98: 0 | AD98: 0 | AE98: 0 | AF98: 0 | AG98: 0 | AH98: 0 | AI98: 0 | AJ98: 0 | AK98: 0 | AL98: 0 | AM98: 0
A99: 98 | B99: =OFFSET(Start,'Mellomlagring - antall besøk'!A99,0) -> 0 | C99: 0 | D99: 0 | E99: 0 | F99: 0 | G99: 0 | H99: 0 | I99: 0 | J99: 0 | K99: 0 | L99: 0 | M99: 0 | N99: 0 | O99: 0 | P99: 0 | Q99: 0 | R99: 0 | S99: 0 | T99: 0 | U99: 0 | V99: 0 | W99: 0 | X99: 0 | Y99: 0 | Z99: 0 | AA99: 0 | AB99: 0 | AC99: 0 | AD99: 0 | AE99: 0 | AF99: 0 | AG99: 0 | AH99: 0 | AI99: 0 | AJ99: 0 | AK99: 0 | AL99: 0 | AM99: 0
A100: 99 | B100: =OFFSET(Start,'Mellomlagring - antall besøk'!A100,0) -> 0 | C100: 0 | D100: 0 | E100: 0 | F100: 0 | G100: 0 | H100: 0 | I100: 0 | J100: 0 | K100: 0 | L100: 0 | M100: 0 | N100: 0 | O100: 0 | P100: 0 | Q100: 0 | R100: 0 | S100: 0 | T100: 0 | U100: 0 | V100: 0 | W100: 0 | X100: 0 | Y100: 0 | Z100: 0 | AA100: 0 | AB100: 0 | AC100: 0 | AD100: 0 | AE100: 0 | AF100: 0 | AG100: 0 | AH100: 0 | AI100: 0 | AJ100: 0 | AK100: 0 | AL100: 0 | AM100: 0
A101: 100 | B101: =OFFSET(Start,'Mellomlagring - antall besøk'!A101,0) -> 0 | C101: 0 | D101: 0 | E101: 0 | F101: 0 | G101: 0 | H101: 0 | I101: 0 | J101: 0 | K101: 0 | L101: 0 | M101: 0 | N101: 0 | O101: 0 | P101: 0 | Q101: 0 | R101: 0 | S101: 0 | T101: 0 | U101: 0 | V101: 0 | W101: 0 | X101: 0 | Y101: 0 | Z101: 0 | AA101: 0 | AB101: 0 | AC101: 0 | AD101: 0 | AE101: 0 | AF101: 0 | AG101: 0 | AH101: 0 | AI101: 0 | AJ101: 0 | AK101: 0 | AL101: 0 | AM101: 0
A102: 101 | B102: =OFFSET(Start,'Mellomlagring - antall besøk'!A102,0) -> 0 | C102: 0 | D102: 0 | E102: 0 | F102: 0 | G102: 0 | H102: 0 | I102: 0 | J102: 0 | K102: 0 | L102: 0 | M102: 0 | N102: 0 | O102: 0 | P102: 0 | Q102: 0 | R102: 0 | S102: 0 | T102: 0 | U102: 0 | V102: 0 | W102: 0 | X102: 0 | Y102: 0 | Z102: 0 | AA102: 0 | AB102: 0 | AC102: 0 | AD102: 0 | AE102: 0 | AF102: 0 | AG102: 0 | AH102: 0 | AI102: 0 | AJ102: 0 | AK102: 0 | AL102: 0 | AM102: 0
B103: Sum oppstartskostnad | C103: =SUM(C3:C102) -> 4400 | D103: =SUM(D3:D102) -> 0 | E103: 3500 | F103: 0 | G103: 0 | H103: 0 | I103: 0 | J103: 0 | K103: 0 | L103: 0 | M103: 0 | N103: 0 | O103: 0 | P103: 0 | Q103: 0 | R103: 0 | S103: 0 | T103: 0 | U103: 0 | V103: 0 | W103: 0 | X103: 0 | Y103: 0 | Z103: 0 | AA103: 0 | AB103: 0 | AC103: 0 | AD103: 0 | AE103: 0 | AF103: 0 | AG103: 0 | AH103: 0 | AI103: 0 | AJ103: 0 | AK103: 0 | AL103: 0

Sheet Mellomregning - teknologikostna (hidden)
C1: 39 | D1: =C1+3 -> 42 | E1: =D1+3 -> 45 | F1: 48 | G1: 51 | H1: 54 | I1: 57 | J1: 60 | K1: 63 | L1: 66 | M1: 69 | N1: 72 | O1: 75 | P1: 78 | Q1: 81 | R1: 84 | S1: 87 | T1: 90 | U1: 93 | V1: 96 | W1: 99 | X1: 102 | Y1: 105 | Z1: 108 | AA1: 111 | AB1: 114 | AC1: 117 | AD1: 120 | AE1: 123 | AF1: 126 | AG1: 129 | AH1: 132 | AI1: 135 | AJ1: 138 | AK1: 141 | AL1: 144
A2: Nummer | B2: Bruker ID | C2: =OFFSET('Månedlig registrering'!$AN$6,0,COLUMN(C:C)*3-9) -> 2018-01-01 | D2: =OFFSET('Månedlig registrering'!$AN$6,0,COLUMN(D:D)*3-9) -> 2018-02-01 | E2: =OFFSET('Månedlig registrering'!$AN$6,0,COLUMN(E:E)*3-9) -> 2018-03-01 | F2: =OFFSET('Månedlig registrering'!$AN$6,0,COLUMN(F:F)*3-9) -> 2018-04-01 | G2: =OFFSET('Månedlig registrering'!$AN$6,0,COLUMN(G:G)*3-9) -> 2018-05-01 | H2: =OFFSET('Månedlig registrering'!$AN$6,0,COLUMN(H:H)*3-9) -> 2018-06-01 | I2: =OFFSET('Månedlig registrering'!$AN$6,0,COLUMN(I:I)*3-9) -> 2018-07-01 | J2: =OFFSET('Månedlig registrering'!$AN$6,0,COLUMN(J:J)*3-9) -> 2018-08-01 | K2: =OFFSET('Månedlig registrering'!$AN$6,0,COLUMN(K:K)*3-9) -> 2018-09-01 | L2: =OFFSET('Månedlig registrering'!$AN$6,0,COLUMN(L:L)*3-9) -> 2018-10-01 | M2: =OFFSET('Månedlig registrering'!$AN$6,0,COLUMN(M:M)*3-9) -> 2018-11-01 | N2: =OFFSET('Månedlig registrering'!$AN$6,0,COLUMN(N:N)*3-9) -> 2018-12-01 | O2: =OFFSET('Månedlig registrering'!$AN$6,0,COLUMN(O:O)*3-9) -> 2019-01-01 | P2: =OFFSET('Månedlig registrering'!$AN$6,0,COLUMN(P:P)*3-9) -> 2019-02-01 | Q2: =OFFSET('Månedlig registrering'!$AN$6,0,COLUMN(Q:Q)*3-9) -> 2019-03-01 | R2: =OFFSET('Månedlig registrering'!$AN$6,0,COLUMN(R:R)*3-9) -> 2019-04-01 | S2: =OFFSET('Månedlig registrering'!$AN$6,0,COLUMN(S:S)*3-9) -> 2019-05-01 | T2: =OFFSET('Månedlig registrering'!$AN$6,0,COLUMN(T:T)*3-9) -> 2019-06-01 | U2: =OFFSET('Månedlig registrering'!$AN$6,0,COLUMN(U:U)*3-9) -> 2019-07-01 | V2: =OFFSET('Månedlig registrering'!$AN$6,0,COLUMN(V:V)*3-9) -> 2019-08-01 | W2: =OFFSET('Månedlig registrering'!$AN$6,0,COLUMN(W:W)*3-9) -> 2019-09-01 | X2: =OFFSET('Månedlig registrering'!$AN$6,0,COLUMN(X:X)*3-9) -> 2019-10-01 | Y2: =OFFSET('Månedlig registrering'!$AN$6,0,COLUMN(Y:Y)*3-9) -> 2019-11-01 | Z2: =OFFSET('Månedlig registrering'!$AN$6,0,COLUMN(Z:Z)*3-9) -> 2019-12-01 | AA2: =OFFSET('Månedlig registrering'!$AN$6,0,COLUMN(AA:AA)*3-9) -> 2020-01-01 | AB2: =OFFSET('Månedlig registrering'!$AN$6,0,COLUMN(AB:AB)*3-9) -> 2020-02-01 | AC2: =OFFSET('Månedlig registrering'!$AN$6,0,COLUMN(AC:AC)*3-9) -> 2020-03-01 | AD2: =OFFSET('Månedlig registrering'!$AN$6,0,COLUMN(AD:AD)*3-9) -> 2020-04-01 | AE2: =OFFSET('Månedlig registrering'!$AN$6,0,COLUMN(AE:AE)*3-9) -> 2020-05-01 | AF2: =OFFSET('Månedlig registrering'!$AN$6,0,COLUMN(AF:AF)*3-9) -> 2020-06-01 | AG2: =OFFSET('Månedlig registrering'!$AN$6,0,COLUMN(AG:AG)*3-9) -> 2020-07-01 | AH2: =OFFSET('Månedlig registrering'!$AN$6,0,COLUMN(AH:AH)*3-9) -> 2020-08-01 | AI2: =OFFSET('Månedlig registrering'!$AN$6,0,COLUMN(AI:AI)*3-9) -> 2020-09-01 | AJ2: =OFFSET('Månedlig registrering'!$AN$6,0,COLUMN(AJ:AJ)*3-9) -> 2020-10-01 | AK2: =OFFSET('Månedlig registrering'!$AN$6,0,COLUMN(AK:AK)*3-9) -> 2020-11-01 | AL2: =OFFSET('Månedlig registrering'!$AN$6,0,COLUMN(AL:AL)*3-9) -> 2020-12-01 | AM2: SUM MånedsKostnad | AN2: Oppstartskostnad | AO2: Total sum
A3: 2 | B3: =OFFSET(Start,'Mellomlagring - antall besøk'!A3,0) -> 1001 | C3: =IF(TODAY()-C$2>0,SUM(OFFSET(Start,$A3,18):OFFSET(Start,$A3,37)),0) -> 298 | D3: =IF(TODAY()-D$2>0,SUM(OFFSET(Start,$A3,18):OFFSET(Start,$A3,37)),0) -> 298 | E3: =IF(TODAY()-E$2>0,SUM(OFFSET(Start,$A3,18):OFFSET(Start,$A3,37)),0) -> 298 | F3: =IF(TODAY()-F$2>0,SUM(OFFSET(Start,$A3,18):OFFSET(Start,$A3,37)),0) -> 298 | G3: =IF(TODAY()-G$2>0,SUM(OFFSET(Start,$A3,18):OFFSET(Start,$A3,37)),0) -> 298 | H3: =IF(TODAY()-H$2>0,SUM(OFFSET(Start,$A3,18):OFFSET(Start,$A3,37)),0) -> 298 | I3: =IF(TODAY()-I$2>0,SUM(OFFSET(Start,$A3,18):OFFSET(Start,$A3,37)),0) -> 0 | J3: =IF(TODAY()-J$2>0,SUM(OFFSET(Start,$A3,18):OFFSET(Start,$A3,37)),0) -> 0 | K3: =IF(TODAY()-K$2>0,SUM(OFFSET(Start,$A3,18):OFFSET(Start,$A3,37)),0) -> 0 | L3: =IF(TODAY()-L$2>0,SUM(OFFSET(Start,$A3,18):OFFSET(Start,$A3,37)),0) -> 0 | M3: =IF(TODAY()-M$2>0,SUM(OFFSET(Start,$A3,18):OFFSET(Start,$A3,37)),0) -> 0 | N3: =IF(TODAY()-N$2>0,SUM(OFFSET(Start,$A3,18):OFFSET(Start,$A3,37)),0) -> 0 | O3: =IF(TODAY()-O$2>0,SUM(OFFSET(Start,$A3,18):OFFSET(Start,$A3,37)),0) -> 0 | P3: =IF(TODAY()-P$2>0,SUM(OFFSET(Start,$A3,18):OFFSET(Start,$A3,37)),0) -> 0 | Q3: =IF(TODAY()-Q$2>0,SUM(OFFSET(Start,$A3,18):OFFSET(Start,$A3,37)),0) -> 0 | R3: =IF(TODAY()-R$2>0,SUM(OFFSET(Start,$A3,18):OFFSET(Start,$A3,37)),0) -> 0 | S3: =IF(TODAY()-S$2>0,SUM(OFFSET(Start,$A3,18):OFFSET(Start,$A3,37)),0) -> 0 | T3: =IF(TODAY()-T$2>0,SUM(OFFSET(Start,$A3,18):OFFSET(Start,$A3,37)),0) -> 0 | U3: =IF(TODAY()-U$2>0,SUM(OFFSET(Start,$A3,18):OFFSET(Start,$A3,37)),0) -> 0 | V3: =IF(TODAY()-V$2>0,SUM(OFFSET(Start,$A3,18):OFFSET(Start,$A3,37)),0) -> 0 | W3: =IF(TODAY()-W$2>0,SUM(OFFSET(Start,$A3,18):OFFSET(Start,$A3,37)),0) -> 0 | X3: =IF(TODAY()-X$2>0,SUM(OFFSET(Start,$A3,18):OFFSET(Start,$A3,37)),0) -> 0 | Y3: =IF(TODAY()-Y$2>0,SUM(OFFSET(Start,$A3,18):OFFSET(Start,$A3,37)),0) -> 0 | Z3: =IF(TODAY()-Z$2>0,SUM(OFFSET(Start,$A3,18):OFFSET(Start,$A3,37)),0) -> 0 | AA3: =IF(TODAY()-AA$2>0,SUM(OFFSET(Start,$A3,18):OFFSET(Start,$A3,37)),0) -> 0 | AB3: =IF(TODAY()-AB$2>0,SUM(OFFSET(Start,$A3,18):OFFSET(Start,$A3,37)),0) -> 0 | AC3: =IF(TODAY()-AC$2>0,SUM(OFFSET(Start,$A3,18):OFFSET(Start,$A3,37)),0) -> 0 | AD3: =IF(TODAY()-AD$2>0,SUM(OFFSET(Start,$A3,18):OFFSET(Start,$A3,37)),0) -> 0 | AE3: =IF(TODAY()-AE$2>0,SUM(OFFSET(Start,$A3,18):OFFSET(Start,$A3,37)),0) -> 0 | AF3: =IF(TODAY()-AF$2>0,SUM(OFFSET(Start,$A3,18):OFFSET(Start,$A3,37)),0) -> 0 | AG3: =IF(TODAY()-AG$2>0,SUM(OFFSET(Start,$A3,18):OFFSET(Start,$A3,37)),0) -> 0 | AH3: =IF(TODAY()-AH$2>0,SUM(OFFSET(Start,$A3,18):OFFSET(Start,$A3,37)),0) -> 0 | AI3: =IF(TODAY()-AI$2>0,SUM(OFFSET(Start,$A3,18):OFFSET(Start,$A3,37)),0) -> 0 | AJ3: =IF(TODAY()-AJ$2>0,SUM(OFFSET(Start,$A3,18):OFFSET(Start,$A3,37)),0) -> 0 | AK3: =IF(TODAY()-AK$2>0,SUM(OFFSET(Start,$A3,18):OFFSET(Start,$A3,37)),0) -> 0 | AL3: =IF(TODAY()-AL$2>0,SUM(OFFSET(Start,$A3,18):OFFSET(Start,$A3,37)),0) -> 0 | AM3: =SUM(C3:AL3) -> 1788 | AN3: =OFFSET(Start,$A3,3)+OFFSET(Start,$A3,4)+OFFSET(Start,$A3,17) -> 3500 | AO3: =AM3+AN3 -> 5288
A4: =+A3+1 -> 3 | B4: =OFFSET(Start,'Mellomlagring - antall besøk'!A4,0) -> 1002 | C4: =IF(TODAY()-C$2>0,SUM(OFFSET(Start,$A4,18):OFFSET(Start,$A4,37)),0) -> 66.67 | D4: =IF(TODAY()-D$2>0,SUM(OFFSET(Start,$A4,18):OFFSET(Start,$A4,37)),0) -> 66.67 | E4: =IF(TODAY()-E$2>0,SUM(OFFSET(Start,$A4,18):OFFSET(Start,$A4,37)),0) -> 66.67 | F4: =IF(TODAY()-F$2>0,SUM(OFFSET(Start,$A4,18):OFFSET(Start,$A4,37)),0) -> 66.67 | G4: =IF(TODAY()-G$2>0,SUM(OFFSET(Start,$A4,18):OFFSET(Start,$A4,37)),0) -> 66.67 | H4: =IF(TODAY()-H$2>0,SUM(OFFSET(Start,$A4,18):OFFSET(Start,$A4,37)),0) -> 66.67 | I4: =IF(TODAY()-I$2>0,SUM(OFFSET(Start,$A4,18):OFFSET(Start,$A4,37)),0) -> 0 | J4: =IF(TODAY()-J$2>0,SUM(OFFSET(Start,$A4,18):OFFSET(Start,$A4,37)),0) -> 0 | K4: =IF(TODAY()-K$2>0,SUM(OFFSET(Start,$A4,18):OFFSET(Start,$A4,37)),0) -> 0 | L4: =IF(TODAY()-L$2>0,SUM(OFFSET(Start,$A4,18):OFFSET(Start,$A4,37)),0) -> 0 | M4: =IF(TODAY()-M$2>0,SUM(OFFSET(Start,$A4,18):OFFSET(Start,$A4,37)),0) -> 0 | N4: =IF(TODAY()-N$2>0,SUM(OFFSET(Start,$A4,18):OFFSET(Start,$A4,37)),0) -> 0 | O4: =IF(TODAY()-O$2>0,SUM(OFFSET(Start,$A4,18):OFFSET(Start,$A4,37)),0) -> 0 | P4: =IF(TODAY()-P$2>0,SUM(OFFSET(Start,$A4,18):OFFSET(Start,$A4,37)),0) -> 0 | Q4: =IF(TODAY()-Q$2>0,SUM(OFFSET(Start,$A4,18):OFFSET(Start,$A4,37)),0) -> 0 | R4: =IF(TODAY()-R$2>0,SUM(OFFSET(Start,$A4,18):OFFSET(Start,$A4,37)),0) -> 0 | S4: =IF(TODAY()-S$2>0,SUM(OFFSET(Start,$A4,18):OFFSET(Start,$A4,37)),0) -> 0 | T4: =IF(TODAY()-T$2>0,SUM(OFFSET(Start,$A4,18):OFFSET(Start,$A4,37)),0) -> 0 | U4: =IF(TODAY()-U$2>0,SUM(OFFSET(Start,$A4,18):OFFSET(Start,$A4,37)),0) -> 0 | V4: =IF(TODAY()-V$2>0,SUM(OFFSET(Start,$A4,18):OFFSET(Start,$A4,37)),0) -> 0 | W4: =IF(TODAY()-W$2>0,SUM(OFFSET(Start,$A4,18):OFFSET(Start,$A4,37)),0) -> 0 | X4: =IF(TODAY()-X$2>0,SUM(OFFSET(Start,$A4,18):OFFSET(Start,$A4,37)),0) -> 0 | Y4: =IF(TODAY()-Y$2>0,SUM(OFFSET(Start,$A4,18):OFFSET(Start,$A4,37)),0) -> 0 | Z4: =IF(TODAY()-Z$2>0,SUM(OFFSET(Start,$A4,18):OFFSET(Start,$A4,37)),0) -> 0 | AA4: =IF(TODAY()-AA$2>0,SUM(OFFSET(Start,$A4,18):OFFSET(Start,$A4,37)),0) -> 0 | AB4: =IF(TODAY()-AB$2>0,SUM(OFFSET(Start,$A4,18):OFFSET(Start,$A4,37)),0) -> 0 | AC4: =IF(TODAY()-AC$2>0,SUM(OFFSET(Start,$A4,18):OFFSET(Start,$A4,37)),0) -> 0 | AD4: =IF(TODAY()-AD$2>0,SUM(OFFSET(Start,$A4,18):OFFSET(Start,$A4,37)),0) -> 0 | AE4: =IF(TODAY()-AE$2>0,SUM(OFFSET(Start,$A4,18):OFFSET(Start,$A4,37)),0) -> 0 | AF4: =IF(TODAY()-AF$2>0,SUM(OFFSET(Start,$A4,18):OFFSET(Start,$A4,37)),0) -> 0 | AG4: =IF(TODAY()-AG$2>0,SUM(OFFSET(Start,$A4,18):OFFSET(Start,$A4,37)),0) -> 0 | AH4: =IF(TODAY()-AH$2>0,SUM(OFFSET(Start,$A4,18):OFFSET(Start,$A4,37)),0) -> 0 | AI4: =IF(TODAY()-AI$2>0,SUM(OFFSET(Start,$A4,18):OFFSET(Start,$A4,37)),0) -> 0 | AJ4: =IF(TODAY()-AJ$2>0,SUM(OFFSET(Start,$A4,18):OFFSET(Start,$A4,37)),0) -> 0 | AK4: =IF(TODAY()-AK$2>0,SUM(OFFSET(Start,$A4,18):OFFSET(Start,$A4,37)),0) -> 0 | AL4: =IF(TODAY()-AL$2>0,SUM(OFFSET(Start,$A4,18):OFFSET(Start,$A4,37)),0) -> 0 | AM4: =SUM(C4:AL4) -> 400.02 | AN4: 3500 | AO4: =AM4+AN4 -> 3900.02
A5: =+A4+1 -> 4 | B5: =OFFSET(Start,'Mellomlagring - antall besøk'!A5,0) -> 1003 | C5: =IF(TODAY()-C$2>0,SUM(OFFSET(Start,$A5,18):OFFSET(Start,$A5,37)),0) -> 166.67 | D5: =IF(TODAY()-D$2>0,SUM(OFFSET(Start,$A5,18):OFFSET(Start,$A5,37)),0) -> 166.67 | E5: =IF(TODAY()-E$2>0,SUM(OFFSET(Start,$A5,18):OFFSET(Start,$A5,37)),0) -> 166.67 | F5: =IF(TODAY()-F$2>0,SUM(OFFSET(Start,$A5,18):OFFSET(Start,$A5,37)),0) -> 166.67 | G5: =IF(TODAY()-G$2>0,SUM(OFFSET(Start,$A5,18):OFFSET(Start,$A5,37)),0) -> 166.67 | H5: =IF(TODAY()-H$2>0,SUM(OFFSET(Start,$A5,18):OFFSET(Start,$A5,37)),0) -> 166.67 | I5: =IF(TODAY()-I$2>0,SUM(OFFSET(Start,$A5,18):OFFSET(Start,$A5,37)),0) -> 0 | J5: =IF(TODAY()-J$2>0,SUM(OFFSET(Start,$A5,18):OFFSET(Start,$A5,37)),0) -> 0 | K5: =IF(TODAY()-K$2>0,SUM(OFFSET(Start,$A5,18):OFFSET(Start,$A5,37)),0) -> 0 | L5: =IF(TODAY()-L$2>0,SUM(OFFSET(Start,$A5,18):OFFSET(Start,$A5,37)),0) -> 0 | M5: =IF(TODAY()-M$2>0,SUM(OFFSET(Start,$A5,18):OFFSET(Start,$A5,37)),0) -> 0 | N5: =IF(TODAY()-N$2>0,SUM(OFFSET(Start,$A5,18):OFFSET(Start,$A5,37)),0) -> 0 | O5: =IF(TODAY()-O$2>0,SUM(OFFSET(Start,$A5,18):OFFSET(Start,$A5,37)),0) -> 0 | P5: =IF(TODAY()-P$2>0,SUM(OFFSET(Start,$A5,18):OFFSET(Start,$A5,37)),0) -> 0 | Q5: =IF(TODAY()-Q$2>0,SUM(OFFSET(Start,$A5,18):OFFSET(Start,$A5,37)),0) -> 0 | R5: =IF(TODAY()-R$2>0,SUM(OFFSET(Start,$A5,18):OFFSET(Start,$A5,37)),0) -> 0 | S5: =IF(TODAY()-S$2>0,SUM(OFFSET(Start,$A5,18):OFFSET(Start,$A5,37)),0) -> 0 | T5: =IF(TODAY()-T$2>0,SUM(OFFSET(Start,$A5,18):OFFSET(Start,$A5,37)),0) -> 0 | U5: =IF(TODAY()-U$2>0,SUM(OFFSET(Start,$A5,18):OFFSET(Start,$A5,37)),0) -> 0 | V5: =IF(TODAY()-V$2>0,SUM(OFFSET(Start,$A5,18):OFFSET(Start,$A5,37)),0) -> 0 | W5: =IF(TODAY()-W$2>0,SUM(OFFSET(Start,$A5,18):OFFSET(Start,$A5,37)),0) -> 0 | X5: =IF(TODAY()-X$2>0,SUM(OFFSET(Start,$A5,18):OFFSET(Start,$A5,37)),0) -> 0 | Y5: =IF(TODAY()-Y$2>0,SUM(OFFSET(Start,$A5,18):OFFSET(Start,$A5,37)),0) -> 0 | Z5: =IF(TODAY()-Z$2>0,SUM(OFFSET(Start,$A5,18):OFFSET(Start,$A5,37)),0) -> 0 | AA5: =IF(TODAY()-AA$2>0,SUM(OFFSET(Start,$A5,18):OFFSET(Start,$A5,37)),0) -> 0 | AB5: =IF(TODAY()-AB$2>0,SUM(OFFSET(Start,$A5,18):OFFSET(Start,$A5,37)),0) -> 0 | AC5: =IF(TODAY()-AC$2>0,SUM(OFFSET(Start,$A5,18):OFFSET(Start,$A5,37)),0) -> 0 | AD5: =IF(TODAY()-AD$2>0,SUM(OFFSET(Start,$A5,18):OFFSET(Start,$A5,37)),0) -> 0 | AE5: =IF(TODAY()-AE$2>0,SUM(OFFSET(Start,$A5,18):OFFSET(Start,$A5,37)),0) -> 0 | AF5: =IF(TODAY()-AF$2>0,SUM(OFFSET(Start,$A5,18):OFFSET(Start,$A5,37)),0) -> 0 | AG5: =IF(TODAY()-AG$2>0,SUM(OFFSET(Start,$A5,18):OFFSET(Start,$A5,37)),0) -> 0 | AH5: =IF(TODAY()-AH$2>0,SUM(OFFSET(Start,$A5,18):OFFSET(Start,$A5,37)),0) -> 0 | AI5: =IF(TODAY()-AI$2>0,SUM(OFFSET(Start,$A5,18):OFFSET(Start,$A5,37)),0) -> 0 | AJ5: =IF(TODAY()-AJ$2>0,SUM(OFFSET(Start,$A5,18):OFFSET(Start,$A5,37)),0) -> 0 | AK5: =IF(TODAY()-AK$2>0,SUM(OFFSET(Start,$A5,18):OFFSET(Start,$A5,37)),0) -> 0 | AL5: =IF(TODAY()-AL$2>0,SUM(OFFSET(Start,$A5,18):OFFSET(Start,$A5,37)),0) -> 0 | AM5: 1000.02 | AN5: 900 | AO5: 1900.02
A6: 5 | B6: =OFFSET(Start,'Mellomlagring - antall besøk'!A6,0) -> 0 | C6: =IF(TODAY()-C$2>0,SUM(OFFSET(Start,$A6,18):OFFSET(Start,$A6,37)),0) -> 0 | D6: =IF(TODAY()-D$2>0,SUM(OFFSET(Start,$A6,18):OFFSET(Start,$A6,37)),0) -> 0 | E6: =IF(TODAY()-E$2>0,SUM(OFFSET(Start,$A6,18):OFFSET(Start,$A6,37)),0) -> 0 | F6: =IF(TODAY()-F$2>0,SUM(OFFSET(Start,$A6,18):OFFSET(Start,$A6,37)),0) -> 0 | G6: =IF(TODAY()-G$2>0,SUM(OFFSET(Start,$A6,18):OFFSET(Start,$A6,37)),0) -> 0 | H6: =IF(TODAY()-H$2>0,SUM(OFFSET(Start,$A6,18):OFFSET(Start,$A6,37)),0) -> 0 | I6: =IF(TODAY()-I$2>0,SUM(OFFSET(Start,$A6,18):OFFSET(Start,$A6,37)),0) -> 0 | J6: =IF(TODAY()-J$2>0,SUM(OFFSET(Start,$A6,18):OFFSET(Start,$A6,37)),0) -> 0 | K6: =IF(TODAY()-K$2>0,SUM(OFFSET(Start,$A6,18):OFFSET(Start,$A6,37)),0) -> 0 | L6: =IF(TODAY()-L$2>0,SUM(OFFSET(Start,$A6,18):OFFSET(Start,$A6,37)),0) -> 0 | M6: =IF(TODAY()-M$2>0,SUM(OFFSET(Start,$A6,18):OFFSET(Start,$A6,37)),0) -> 0 | N6: =IF(TODAY()-N$2>0,SUM(OFFSET(Start,$A6,18):OFFSET(Start,$A6,37)),0) -> 0 | O6: =IF(TODAY()-O$2>0,SUM(OFFSET(Start,$A6,18):OFFSET(Start,$A6,37)),0) -> 0 | P6: =IF(TODAY()-P$2>0,SUM(OFFSET(Start,$A6,18):OFFSET(Start,$A6,37)),0) -> 0 | Q6: =IF(TODAY()-Q$2>0,SUM(OFFSET(Start,$A6,18):OFFSET(Start,$A6,37)),0) -> 0 | R6: =IF(TODAY()-R$2>0,SUM(OFFSET(Start,$A6,18):OFFSET(Start,$A6,37)),0) -> 0 | S6: =IF(TODAY()-S$2>0,SUM(OFFSET(Start,$A6,18):OFFSET(Start,$A6,37)),0) -> 0 | T6: =IF(TODAY()-T$2>0,SUM(OFFSET(Start,$A6,18):OFFSET(Start,$A6,37)),0) -> 0 | U6: =IF(TODAY()-U$2>0,SUM(OFFSET(Start,$A6,18):OFFSET(Start,$A6,37)),0) -> 0 | V6: =IF(TODAY()-V$2>0,SUM(OFFSET(Start,$A6,18):OFFSET(Start,$A6,37)),0) -> 0 | W6: =IF(TODAY()-W$2>0,SUM(OFFSET(Start,$A6,18):OFFSET(Start,$A6,37)),0) -> 0 | X6: =IF(TODAY()-X$2>0,SUM(OFFSET(Start,$A6,18):OFFSET(Start,$A6,37)),0) -> 0 | Y6: =IF(TODAY()-Y$2>0,SUM(OFFSET(Start,$A6,18):OFFSET(Start,$A6,37)),0) -> 0 | Z6: =IF(TODAY()-Z$2>0,SUM(OFFSET(Start,$A6,18):OFFSET(Start,$A6,37)),0) -> 0 | AA6: =IF(TODAY()-AA$2>0,SUM(OFFSET(Start,$A6,18):OFFSET(Start,$A6,37)),0) -> 0 | AB6: =IF(TODAY()-AB$2>0,SUM(OFFSET(Start,$A6,18):OFFSET(Start,$A6,37)),0) -> 0 | AC6: =IF(TODAY()-AC$2>0,SUM(OFFSET(Start,$A6,18):OFFSET(Start,$A6,37)),0) -> 0 | AD6: =IF(TODAY()-AD$2>0,SUM(OFFSET(Start,$A6,18):OFFSET(Start,$A6,37)),0) -> 0 | AE6: =IF(TODAY()-AE$2>0,SUM(OFFSET(Start,$A6,18):OFFSET(Start,$A6,37)),0) -> 0 | AF6: =IF(TODAY()-AF$2>0,SUM(OFFSET(Start,$A6,18):OFFSET(Start,$A6,37)),0) -> 0 | AG6: =IF(TODAY()-AG$2>0,SUM(OFFSET(Start,$A6,18):OFFSET(Start,$A6,37)),0) -> 0 | AH6: =IF(TODAY()-AH$2>0,SUM(OFFSET(Start,$A6,18):OFFSET(Start,$A6,37)),0) -> 0 | AI6: =IF(TODAY()-AI$2>0,SUM(OFFSET(Start,$A6,18):OFFSET(Start,$A6,37)),0) -> 0 | AJ6: =IF(TODAY()-AJ$2>0,SUM(OFFSET(Start,$A6,18):OFFSET(Start,$A6,37)),0) -> 0 | AK6: =IF(TODAY()-AK$2>0,SUM(OFFSET(Start,$A6,18):OFFSET(Start,$A6,37)),0) -> 0 | AL6: =IF(TODAY()-AL$2>0,SUM(OFFSET(Start,$A6,18):OFFSET(Start,$A6,37)),0) -> 0 | AM6: 0 | AN6: 0 | AO6: 0
A7: 6 | B7: =OFFSET(Start,'Mellomlagring - antall besøk'!A7,0) -> 0 | C7: =IF(TODAY()-C$2>0,SUM(OFFSET(Start,$A7,18):OFFSET(Start,$A7,37)),0) -> 0 | D7: =IF(TODAY()-D$2>0,SUM(OFFSET(Start,$A7,18):OFFSET(Start,$A7,37)),0) -> 0 | E7: =IF(TODAY()-E$2>0,SUM(OFFSET(Start,$A7,18):OFFSET(Start,$A7,37)),0) -> 0 | F7: =IF(TODAY()-F$2>0,SUM(OFFSET(Start,$A7,18):OFFSET(Start,$A7,37)),0) -> 0 | G7: =IF(TODAY()-G$2>0,SUM(OFFSET(Start,$A7,18):OFFSET(Start,$A7,37)),0) -> 0 | H7: =IF(TODAY()-H$2>0,SUM(OFFSET(Start,$A7,18):OFFSET(Start,$A7,37)),0) -> 0 | I7: =IF(TODAY()-I$2>0,SUM(OFFSET(Start,$A7,18):OFFSET(Start,$A7,37)),0) -> 0 | J7: =IF(TODAY()-J$2>0,SUM(OFFSET(Start,$A7,18):OFFSET(Start,$A7,37)),0) -> 0 | K7: =IF(TODAY()-K$2>0,SUM(OFFSET(Start,$A7,18):OFFSET(Start,$A7,37)),0) -> 0 | L7: =IF(TODAY()-L$2>0,SUM(OFFSET(Start,$A7,18):OFFSET(Start,$A7,37)),0) -> 0 | M7: =IF(TODAY()-M$2>0,SUM(OFFSET(Start,$A7,18):OFFSET(Start,$A7,37)),0) -> 0 | N7: =IF(TODAY()-N$2>0,SUM(OFFSET(Start,$A7,18):OFFSET(Start,$A7,37)),0) -> 0 | O7: =IF(TODAY()-O$2>0,SUM(OFFSET(Start,$A7,18):OFFSET(Start,$A7,37)),0) -> 0 | P7: =IF(TODAY()-P$2>0,SUM(OFFSET(Start,$A7,18):OFFSET(Start,$A7,37)),0) -> 0 | Q7: =IF(TODAY()-Q$2>0,SUM(OFFSET(Start,$A7,18):OFFSET(Start,$A7,37)),0) -> 0 | R7: =IF(TODAY()-R$2>0,SUM(OFFSET(Start,$A7,18):OFFSET(Start,$A7,37)),0) -> 0 | S7: =IF(TODAY()-S$2>0,SUM(OFFSET(Start,$A7,18):OFFSET(Start,$A7,37)),0) -> 0 | T7: =IF(TODAY()-T$2>0,SUM(OFFSET(Start,$A7,18):OFFSET(Start,$A7,37)),0) -> 0 | U7: =IF(TODAY()-U$2>0,SUM(OFFSET(Start,$A7,18):OFFSET(Start,$A7,37)),0) -> 0 | V7: =IF(TODAY()-V$2>0,SUM(OFFSET(Start,$A7,18):OFFSET(Start,$A7,37)),0) -> 0 | W7: =IF(TODAY()-W$2>0,SUM(OFFSET(Start,$A7,18):OFFSET(Start,$A7,37)),0) -> 0 | X7: =IF(TODAY()-X$2>0,SUM(OFFSET(Start,$A7,18):OFFSET(Start,$A7,37)),0) -> 0 | Y7: =IF(TODAY()-Y$2>0,SUM(OFFSET(Start,$A7,18):OFFSET(Start,$A7,37)),0) -> 0 | Z7: =IF(TODAY()-Z$2>0,SUM(OFFSET(Start,$A7,18):OFFSET(Start,$A7,37)),0) -> 0 | AA7: =IF(TODAY()-AA$2>0,SUM(OFFSET(Start,$A7,18):OFFSET(Start,$A7,37)),0) -> 0 | AB7: =IF(TODAY()-AB$2>0,SUM(OFFSET(Start,$A7,18):OFFSET(Start,$A7,37)),0) -> 0 | AC7: =IF(TODAY()-AC$2>0,SUM(OFFSET(Start,$A7,18):OFFSET(Start,$A7,37)),0) -> 0 | AD7: =IF(TODAY()-AD$2>0,SUM(OFFSET(Start,$A7,18):OFFSET(Start,$A7,37)),0) -> 0 | AE7: =IF(TODAY()-AE$2>0,SUM(OFFSET(Start,$A7,18):OFFSET(Start,$A7,37)),0) -> 0 | AF7: =IF(TODAY()-AF$2>0,SUM(OFFSET(Start,$A7,18):OFFSET(Start,$A7,37)),0) -> 0 | AG7: =IF(TODAY()-AG$2>0,SUM(OFFSET(Start,$A7,18):OFFSET(Start,$A7,37)),0) -> 0 | AH7: =IF(TODAY()-AH$2>0,SUM(OFFSET(Start,$A7,18):OFFSET(Start,$A7,37)),0) -> 0 | AI7: =IF(TODAY()-AI$2>0,SUM(OFFSET(Start,$A7,18):OFFSET(Start,$A7,37)),0) -> 0 | AJ7: =IF(TODAY()-AJ$2>0,SUM(OFFSET(Start,$A7,18):OFFSET(Start,$A7,37)),0) -> 0 | AK7: =IF(TODAY()-AK$2>0,SUM(OFFSET(Start,$A7,18):OFFSET(Start,$A7,37)),0) -> 0 | AL7: =IF(TODAY()-AL$2>0,SUM(OFFSET(Start,$A7,18):OFFSET(Start,$A7,37)),0) -> 0 | AM7: 0 | AN7: 0 | AO7: 0
A8: 7 | B8: =OFFSET(Start,'Mellomlagring - antall besøk'!A8,0) -> 0 | C8: =IF(TODAY()-C$2>0,SUM(OFFSET(Start,$A8,18):OFFSET(Start,$A8,37)),0) -> 0 | D8: =IF(TODAY()-D$2>0,SUM(OFFSET(Start,$A8,18):OFFSET(Start,$A8,37)),0) -> 0 | E8: =IF(TODAY()-E$2>0,SUM(OFFSET(Start,$A8,18):OFFSET(Start,$A8,37)),0) -> 0 | F8: =IF(TODAY()-F$2>0,SUM(OFFSET(Start,$A8,18):OFFSET(Start,$A8,37)),0) -> 0 | G8: =IF(TODAY()-G$2>0,SUM(OFFSET(Start,$A8,18):OFFSET(Start,$A8,37)),0) -> 0 | H8: =IF(TODAY()-H$2>0,SUM(OFFSET(Start,$A8,18):OFFSET(Start,$A8,37)),0) -> 0 | I8: =IF(TODAY()-I$2>0,SUM(OFFSET(Start,$A8,18):OFFSET(Start,$A8,37)),0) -> 0 | J8: =IF(TODAY()-J$2>0,SUM(OFFSET(Start,$A8,18):OFFSET(Start,$A8,37)),0) -> 0 | K8: =IF(TODAY()-K$2>0,SUM(OFFSET(Start,$A8,18):OFFSET(Start,$A8,37)),0) -> 0 | L8: =IF(TODAY()-L$2>0,SUM(OFFSET(Start,$A8,18):OFFSET(Start,$A8,37)),0) -> 0 | M8: =IF(TODAY()-M$2>0,SUM(OFFSET(Start,$A8,18):OFFSET(Start,$A8,37)),0) -> 0 | N8: =IF(TODAY()-N$2>0,SUM(OFFSET(Start,$A8,18):OFFSET(Start,$A8,37)),0) -> 0 | O8: =IF(TODAY()-O$2>0,SUM(OFFSET(Start,$A8,18):OFFSET(Start,$A8,37)),0) -> 0 | P8: =IF(TODAY()-P$2>0,SUM(OFFSET(Start,$A8,18):OFFSET(Start,$A8,37)),0) -> 0 | Q8: =IF(TODAY()-Q$2>0,SUM(OFFSET(Start,$A8,18):OFFSET(Start,$A8,37)),0) -> 0 | R8: =IF(TODAY()-R$2>0,SUM(OFFSET(Start,$A8,18):OFFSET(Start,$A8,37)),0) -> 0 | S8: =IF(TODAY()-S$2>0,SUM(OFFSET(Start,$A8,18):OFFSET(Start,$A8,37)),0) -> 0 | T8: =IF(TODAY()-T$2>0,SUM(OFFSET(Start,$A8,18):OFFSET(Start,$A8,37)),0) -> 0 | U8: =IF(TODAY()-U$2>0,SUM(OFFSET(Start,$A8,18):OFFSET(Start,$A8,37)),0) -> 0 | V8: =IF(TODAY()-V$2>0,SUM(OFFSET(Start,$A8,18):OFFSET(Start,$A8,37)),0) -> 0 | W8: =IF(TODAY()-W$2>0,SUM(OFFSET(Start,$A8,18):OFFSET(Start,$A8,37)),0) -> 0 | X8: =IF(TODAY()-X$2>0,SUM(OFFSET(Start,$A8,18):OFFSET(Start,$A8,37)),0) -> 0 | Y8: =IF(TODAY()-Y$2>0,SUM(OFFSET(Start,$A8,18):OFFSET(Start,$A8,37)),0) -> 0 | Z8: =IF(TODAY()-Z$2>0,SUM(OFFSET(Start,$A8,18):OFFSET(Start,$A8,37)),0) -> 0 | AA8: =IF(TODAY()-AA$2>0,SUM(OFFSET(Start,$A8,18):OFFSET(Start,$A8,37)),0) -> 0 | AB8: =IF(TODAY()-AB$2>0,SUM(OFFSET(Start,$A8,18):OFFSET(Start,$A8,37)),0) -> 0 | AC8: =IF(TODAY()-AC$2>0,SUM(OFFSET(Start,$A8,18):OFFSET(Start,$A8,37)),0) -> 0 | AD8: =IF(TODAY()-AD$2>0,SUM(OFFSET(Start,$A8,18):OFFSET(Start,$A8,37)),0) -> 0 | AE8: =IF(TODAY()-AE$2>0,SUM(OFFSET(Start,$A8,18):OFFSET(Start,$A8,37)),0) -> 0 | AF8: =IF(TODAY()-AF$2>0,SUM(OFFSET(Start,$A8,18):OFFSET(Start,$A8,37)),0) -> 0 | AG8: =IF(TODAY()-AG$2>0,SUM(OFFSET(Start,$A8,18):OFFSET(Start,$A8,37)),0) -> 0 | AH8: =IF(TODAY()-AH$2>0,SUM(OFFSET(Start,$A8,18):OFFSET(Start,$A8,37)),0) -> 0 | AI8: =IF(TODAY()-AI$2>0,SUM(OFFSET(Start,$A8,18):OFFSET(Start,$A8,37)),0) -> 0 | AJ8: =IF(TODAY()-AJ$2>0,SUM(OFFSET(Start,$A8,18):OFFSET(Start,$A8,37)),0) -> 0 | AK8: =IF(TODAY()-AK$2>0,SUM(OFFSET(Start,$A8,18):OFFSET(Start,$A8,37)),0) -> 0 | AL8: =IF(TODAY()-AL$2>0,SUM(OFFSET(Start,$A8,18):OFFSET(Start,$A8,37)),0) -> 0 | AM8: 0 | AN8: 0 | AO8: 0
A9: 8 | B9: =OFFSET(Start,'Mellomlagring - antall besøk'!A9,0) -> 0 | C9: =IF(TODAY()-C$2>0,SUM(OFFSET(Start,$A9,18):OFFSET(Start,$A9,37)),0) -> 0 | D9: =IF(TODAY()-D$2>0,SUM(OFFSET(Start,$A9,18):OFFSET(Start,$A9,37)),0) -> 0 | E9: =IF(TODAY()-E$2>0,SUM(OFFSET(Start,$A9,18):OFFSET(Start,$A9,37)),0) -> 0 | F9: =IF(TODAY()-F$2>0,SUM(OFFSET(Start,$A9,18):OFFSET(Start,$A9,37)),0) -> 0 | G9: =IF(TODAY()-G$2>0,SUM(OFFSET(Start,$A9,18):OFFSET(Start,$A9,37)),0) -> 0 | H9: =IF(TODAY()-H$2>0,SUM(OFFSET(Start,$A9,18):OFFSET(Start,$A9,37)),0) -> 0 | I9: =IF(TODAY()-I$2>0,SUM(OFFSET(Start,$A9,18):OFFSET(Start,$A9,37)),0) -> 0 | J9: =IF(TODAY()-J$2>0,SUM(OFFSET(Start,$A9,18):OFFSET(Start,$A9,37)),0) -> 0 | K9: =IF(TODAY()-K$2>0,SUM(OFFSET(Start,$A9,18):OFFSET(Start,$A9,37)),0) -> 0 | L9: =IF(TODAY()-L$2>0,SUM(OFFSET(Start,$A9,18):OFFSET(Start,$A9,37)),0) -> 0 | M9: =IF(TODAY()-M$2>0,SUM(OFFSET(Start,$A9,18):OFFSET(Start,$A9,37)),0) -> 0 | N9: =IF(TODAY()-N$2>0,SUM(OFFSET(Start,$A9,18):OFFSET(Start,$A9,37)),0) -> 0 | O9: =IF(TODAY()-O$2>0,SUM(OFFSET(Start,$A9,18):OFFSET(Start,$A9,37)),0) -> 0 | P9: =IF(TODAY()-P$2>0,SUM(OFFSET(Start,$A9,18):OFFSET(Start,$A9,37)),0) -> 0 | Q9: =IF(TODAY()-Q$2>0,SUM(OFFSET(Start,$A9,18):OFFSET(Start,$A9,37)),0) -> 0 | R9: =IF(TODAY()-R$2>0,SUM(OFFSET(Start,$A9,18):OFFSET(Start,$A9,37)),0) -> 0 | S9: =IF(TODAY()-S$2>0,SUM(OFFSET(Start,$A9,18):OFFSET(Start,$A9,37)),0) -> 0 | T9: =IF(TODAY()-T$2>0,SUM(OFFSET(Start,$A9,18):OFFSET(Start,$A9,37)),0) -> 0 | U9: =IF(TODAY()-U$2>0,SUM(OFFSET(Start,$A9,18):OFFSET(Start,$A9,37)),0) -> 0 | V9: =IF(TODAY()-V$2>0,SUM(OFFSET(Start,$A9,18):OFFSET(Start,$A9,37)),0) -> 0 | W9: =IF(TODAY()-W$2>0,SUM(OFFSET(Start,$A9,18):OFFSET(Start,$A9,37)),0) -> 0 | X9: =IF(TODAY()-X$2>0,SUM(OFFSET(Start,$A9,18):OFFSET(Start,$A9,37)),0) -> 0 | Y9: =IF(TODAY()-Y$2>0,SUM(OFFSET(Start,$A9,18):OFFSET(Start,$A9,37)),0) -> 0 | Z9: =IF(TODAY()-Z$2>0,SUM(OFFSET(Start,$A9,18):OFFSET(Start,$A9,37)),0) -> 0 | AA9: =IF(TODAY()-AA$2>0,SUM(OFFSET(Start,$A9,18):OFFSET(Start,$A9,37)),0) -> 0 | AB9: =IF(TODAY()-AB$2>0,SUM(OFFSET(Start,$A9,18):OFFSET(Start,$A9,37)),0) -> 0 | AC9: =IF(TODAY()-AC$2>0,SUM(OFFSET(Start,$A9,18):OFFSET(Start,$A9,37)),0) -> 0 | AD9: =IF(TODAY()-AD$2>0,SUM(OFFSET(Start,$A9,18):OFFSET(Start,$A9,37)),0) -> 0 | AE9: =IF(TODAY()-AE$2>0,SUM(OFFSET(Start,$A9,18):OFFSET(Start,$A9,37)),0) -> 0 | AF9: =IF(TODAY()-AF$2>0,SUM(OFFSET(Start,$A9,18):OFFSET(Start,$A9,37)),0) -> 0 | AG9: =IF(TODAY()-AG$2>0,SUM(OFFSET(Start,$A9,18):OFFSET(Start,$A9,37)),0) -> 0 | AH9: =IF(TODAY()-AH$2>0,SUM(OFFSET(Start,$A9,18):OFFSET(Start,$A9,37)),0) -> 0 | AI9: =IF(TODAY()-AI$2>0,SUM(OFFSET(Start,$A9,18):OFFSET(Start,$A9,37)),0) -> 0 | AJ9: =IF(TODAY()-AJ$2>0,SUM(OFFSET(Start,$A9,18):OFFSET(Start,$A9,37)),0) -> 0 | AK9: =IF(TODAY()-AK$2>0,SUM(OFFSET(Start,$A9,18):OFFSET(Start,$A9,37)),0) -> 0 | AL9: =IF(TODAY()-AL$2>0,SUM(OFFSET(Start,$A9,18):OFFSET(Start,$A9,37)),0) -> 0 | AM9: 0 | AN9: 0 | AO9: 0
A10: 9 | B10: =OFFSET(Start,'Mellomlagring - antall besøk'!A10,0) -> 0 | C10: =IF(TODAY()-C$2>0,SUM(OFFSET(Start,$A10,18):OFFSET(Start,$A10,37)),0) -> 0 | D10: =IF(TODAY()-D$2>0,SUM(OFFSET(Start,$A10,18):OFFSET(Start,$A10,37)),0) -> 0 | E10: =IF(TODAY()-E$2>0,SUM(OFFSET(Start,$A10,18):OFFSET(Start,$A10,37)),0) -> 0 | F10: =IF(TODAY()-F$2>0,SUM(OFFSET(Start,$A10,18):OFFSET(Start,$A10,37)),0) -> 0 | G10: =IF(TODAY()-G$2>0,SUM(OFFSET(Start,$A10,18):OFFSET(Start,$A10,37)),0) -> 0 | H10: =IF(TODAY()-H$2>0,SUM(OFFSET(Start,$A10,18):OFFSET(Start,$A10,37)),0) -> 0 | I10: =IF(TODAY()-I$2>0,SUM(OFFSET(Start,$A10,18):OFFSET(Start,$A10,37)),0) -> 0 | J10: =IF(TODAY()-J$2>0,SUM(OFFSET(Start,$A10,18):OFFSET(Start,$A10,37)),0) -> 0 | K10: =IF(TODAY()-K$2>0,SUM(OFFSET(Start,$A10,18):OFFSET(Start,$A10,37)),0) -> 0 | L10: =IF(TODAY()-L$2>0,SUM(OFFSET(Start,$A10,18):OFFSET(Start,$A10,37)),0) -> 0 | M10: =IF(TODAY()-M$2>0,SUM(OFFSET(Start,$A10,18):OFFSET(Start,$A10,37)),0) -> 0 | N10: =IF(TODAY()-N$2>0,SUM(OFFSET(Start,$A10,18):OFFSET(Start,$A10,37)),0) -> 0 | O10: =IF(TODAY()-O$2>0,SUM(OFFSET(Start,$A10,18):OFFSET(Start,$A10,37)),0) -> 0 | P10: =IF(TODAY()-P$2>0,SUM(OFFSET(Start,$A10,18):OFFSET(Start,$A10,37)),0) -> 0 | Q10: =IF(TODAY()-Q$2>0,SUM(OFFSET(Start,$A10,18):OFFSET(Start,$A10,37)),0) -> 0 | R10: =IF(TODAY()-R$2>0,SUM(OFFSET(Start,$A10,18):OFFSET(Start,$A10,37)),0) -> 0 | S10: =IF(TODAY()-S$2>0,SUM(OFFSET(Start,$A10,18):OFFSET(Start,$A10,37)),0) -> 0 | T10: =IF(TODAY()-T$2>0,SUM(OFFSET(Start,$A10,18):OFFSET(Start,$A10,37)),0) -> 0 | U10: =IF(TODAY()-U$2>0,SUM(OFFSET(Start,$A10,18):OFFSET(Start,$A10,37)),0) -> 0 | V10: =IF(TODAY()-V$2>0,SUM(OFFSET(Start,$A10,18):OFFSET(Start,$A10,37)),0) -> 0 | W10: =IF(TODAY()-W$2>0,SUM(OFFSET(Start,$A10,18):OFFSET(Start,$A10,37)),0) -> 0 | X10: =IF(TODAY()-X$2>0,SUM(OFFSET(Start,$A10,18):OFFSET(Start,$A10,37)),0) -> 0 | Y10: =IF(TODAY()-Y$2>0,SUM(OFFSET(Start,$A10,18):OFFSET(Start,$A10,37)),0) -> 0 | Z10: =IF(TODAY()-Z$2>0,SUM(OFFSET(Start,$A10,18):OFFSET(Start,$A10,37)),0) -> 0 | AA10: =IF(TODAY()-AA$2>0,SUM(OFFSET(Start,$A10,18):OFFSET(Start,$A10,37)),0) -> 0 | AB10: =IF(TODAY()-AB$2>0,SUM(OFFSET(Start,$A10,18):OFFSET(Start,$A10,37)),0) -> 0 | AC10: =IF(TODAY()-AC$2>0,SUM(OFFSET(Start,$A10,18):OFFSET(Start,$A10,37)),0) -> 0 | AD10: =IF(TODAY()-AD$2>0,SUM(OFFSET(Start,$A10,18):OFFSET(Start,$A10,37)),0) -> 0 | AE10: =IF(TODAY()-AE$2>0,SUM(OFFSET(Start,$A10,18):OFFSET(Start,$A10,37)),0) -> 0 | AF10: =IF(TODAY()-AF$2>0,SUM(OFFSET(Start,$A10,18):OFFSET(Start,$A10,37)),0) -> 0 | AG10: =IF(TODAY()-AG$2>0,SUM(OFFSET(Start,$A10,18):OFFSET(Start,$A10,37)),0) -> 0 | AH10: =IF(TODAY()-AH$2>0,SUM(OFFSET(Start,$A10,18):OFFSET(Start,$A10,37)),0) -> 0 | AI10: =IF(TODAY()-AI$2>0,SUM(OFFSET(Start,$A10,18):OFFSET(Start,$A10,37)),0) -> 0 | AJ10: =IF(TODAY()-AJ$2>0,SUM(OFFSET(Start,$A10,18):OFFSET(Start,$A10,37)),0) -> 0 | AK10: =IF(TODAY()-AK$2>0,SUM(OFFSET(Start,$A10,18):OFFSET(Start,$A10,37)),0) -> 0 | AL10: =IF(TODAY()-AL$2>0,SUM(OFFSET(Start,$A10,18):OFFSET(Start,$A10,37)),0) -> 0 | AM10: 0 | AN10: 0 | AO10: 0
A11: 10 | B11: =OFFSET(Start,'Mellomlagring - antall besøk'!A11,0) -> 0 | C11: =IF(TODAY()-C$2>0,SUM(OFFSET(Start,$A11,18):OFFSET(Start,$A11,37)),0) -> 0 | D11: =IF(TODAY()-D$2>0,SUM(OFFSET(Start,$A11,18):OFFSET(Start,$A11,37)),0) -> 0 | E11: =IF(TODAY()-E$2>0,SUM(OFFSET(Start,$A11,18):OFFSET(Start,$A11,37)),0) -> 0 | F11: =IF(TODAY()-F$2>0,SUM(OFFSET(Start,$A11,18):OFFSET(Start,$A11,37)),0) -> 0 | G11: =IF(TODAY()-G$2>0,SUM(OFFSET(Start,$A11,18):OFFSET(Start,$A11,37)),0) -> 0 | H11: =IF(TODAY()-H$2>0,SUM(OFFSET(Start,$A11,18):OFFSET(Start,$A11,37)),0) -> 0 | I11: =IF(TODAY()-I$2>0,SUM(OFFSET(Start,$A11,18):OFFSET(Start,$A11,37)),0) -> 0 | J11: =IF(TODAY()-J$2>0,SUM(OFFSET(Start,$A11,18):OFFSET(Start,$A11,37)),0) -> 0 | K11: =IF(TODAY()-K$2>0,SUM(OFFSET(Start,$A11,18):OFFSET(Start,$A11,37)),0) -> 0 | L11: =IF(TODAY()-L$2>0,SUM(OFFSET(Start,$A11,18):OFFSET(Start,$A11,37)),0) -> 0 | M11: =IF(TODAY()-M$2>0,SUM(OFFSET(Start,$A11,18):OFFSET(Start,$A11,37)),0) -> 0 | N11: =IF(TODAY()-N$2>0,SUM(OFFSET(Start,$A11,18):OFFSET(Start,$A11,37)),0) -> 0 | O11: =IF(TODAY()-O$2>0,SUM(OFFSET(Start,$A11,18):OFFSET(Start,$A11,37)),0) -> 0 | P11: =IF(TODAY()-P$2>0,SUM(OFFSET(Start,$A11,18):OFFSET(Start,$A11,37)),0) -> 0 | Q11: =IF(TODAY()-Q$2>0,SUM(OFFSET(Start,$A11,18):OFFSET(Start,$A11,37)),0) -> 0 | R11: =IF(TODAY()-R$2>0,SUM(OFFSET(Start,$A11,18):OFFSET(Start,$A11,37)),0) -> 0 | S11: =IF(TODAY()-S$2>0,SUM(OFFSET(Start,$A11,18):OFFSET(Start,$A11,37)),0) -> 0 | T11: =IF(TODAY()-T$2>0,SUM(OFFSET(Start,$A11,18):OFFSET(Start,$A11,37)),0) -> 0 | U11: =IF(TODAY()-U$2>0,SUM(OFFSET(Start,$A11,18):OFFSET(Start,$A11,37)),0) -> 0 | V11: =IF(TODAY()-V$2>0,SUM(OFFSET(Start,$A11,18):OFFSET(Start,$A11,37)),0) -> 0 | W11: =IF(TODAY()-W$2>0,SUM(OFFSET(Start,$A11,18):OFFSET(Start,$A11,37)),0) -> 0 | X11: =IF(TODAY()-X$2>0,SUM(OFFSET(Start,$A11,18):OFFSET(Start,$A11,37)),0) -> 0 | Y11: =IF(TODAY()-Y$2>0,SUM(OFFSET(Start,$A11,18):OFFSET(Start,$A11,37)),0) -> 0 | Z11: =IF(TODAY()-Z$2>0,SUM(OFFSET(Start,$A11,18):OFFSET(Start,$A11,37)),0) -> 0 | AA11: =IF(TODAY()-AA$2>0,SUM(OFFSET(Start,$A11,18):OFFSET(Start,$A11,37)),0) -> 0 | AB11: =IF(TODAY()-AB$2>0,SUM(OFFSET(Start,$A11,18):OFFSET(Start,$A11,37)),0) -> 0 | AC11: =IF(TODAY()-AC$2>0,SUM(OFFSET(Start,$A11,18):OFFSET(Start,$A11,37)),0) -> 0 | AD11: =IF(TODAY()-AD$2>0,SUM(OFFSET(Start,$A11,18):OFFSET(Start,$A11,37)),0) -> 0 | AE11: =IF(TODAY()-AE$2>0,SUM(OFFSET(Start,$A11,18):OFFSET(Start,$A11,37)),0) -> 0 | AF11: =IF(TODAY()-AF$2>0,SUM(OFFSET(Start,$A11,18):OFFSET(Start,$A11,37)),0) -> 0 | AG11: =IF(TODAY()-AG$2>0,SUM(OFFSET(Start,$A11,18):OFFSET(Start,$A11,37)),0) -> 0 | AH11: =IF(TODAY()-AH$2>0,SUM(OFFSET(Start,$A11,18):OFFSET(Start,$A11,37)),0) -> 0 | AI11: =IF(TODAY()-AI$2>0,SUM(OFFSET(Start,$A11,18):OFFSET(Start,$A11,37)),0) -> 0 | AJ11: =IF(TODAY()-AJ$2>0,SUM(OFFSET(Start,$A11,18):OFFSET(Start,$A11,37)),0) -> 0 | AK11: =IF(TODAY()-AK$2>0,SUM(OFFSET(Start,$A11,18):OFFSET(Start,$A11,37)),0) -> 0 | AL11: =IF(TODAY()-AL$2>0,SUM(OFFSET(Start,$A11,18):OFFSET(Start,$A11,37)),0) -> 0 | AM11: 0 | AN11: 0 | AO11: 0
A12: 11 | B12: =OFFSET(Start,'Mellomlagring - antall besøk'!A12,0) -> 0 | C12: =IF(TODAY()-C$2>0,SUM(OFFSET(Start,$A12,18):OFFSET(Start,$A12,37)),0) -> 0 | D12: =IF(TODAY()-D$2>0,SUM(OFFSET(Start,$A12,18):OFFSET(Start,$A12,37)),0) -> 0 | E12: =IF(TODAY()-E$2>0,SUM(OFFSET(Start,$A12,18):OFFSET(Start,$A12,37)),0) -> 0 | F12: =IF(TODAY()-F$2>0,SUM(OFFSET(Start,$A12,18):OFFSET(Start,$A12,37)),0) -> 0 | G12: =IF(TODAY()-G$2>0,SUM(OFFSET(Start,$A12,18):OFFSET(Start,$A12,37)),0) -> 0 | H12: =IF(TODAY()-H$2>0,SUM(OFFSET(Start,$A12,18):OFFSET(Start,$A12,37)),0) -> 0 | I12: =IF(TODAY()-I$2>0,SUM(OFFSET(Start,$A12,18):OFFSET(Start,$A12,37)),0) -> 0 | J12: =IF(TODAY()-J$2>0,SUM(OFFSET(Start,$A12,18):OFFSET(Start,$A12,37)),0) -> 0 | K12: =IF(TODAY()-K$2>0,SUM(OFFSET(Start,$A12,18):OFFSET(Start,$A12,37)),0) -> 0 | L12: =IF(TODAY()-L$2>0,SUM(OFFSET(Start,$A12,18):OFFSET(Start,$A12,37)),0) -> 0 | M12: =IF(TODAY()-M$2>0,SUM(OFFSET(Start,$A12,18):OFFSET(Start,$A12,37)),0) -> 0 | N12: =IF(TODAY()-N$2>0,SUM(OFFSET(Start,$A12,18):OFFSET(Start,$A12,37)),0) -> 0 | O12: =IF(TODAY()-O$2>0,SUM(OFFSET(Start,$A12,18):OFFSET(Start,$A12,37)),0) -> 0 | P12: =IF(TODAY()-P$2>0,SUM(OFFSET(Start,$A12,18):OFFSET(Start,$A12,37)),0) -> 0 | Q12: =IF(TODAY()-Q$2>0,SUM(OFFSET(Start,$A12,18):OFFSET(Start,$A12,37)),0) -> 0 | R12: =IF(TODAY()-R$2>0,SUM(OFFSET(Start,$A12,18):OFFSET(Start,$A12,37)),0) -> 0 | S12: =IF(TODAY()-S$2>0,SUM(OFFSET(Start,$A12,18):OFFSET(Start,$A12,37)),0) -> 0 | T12: =IF(TODAY()-T$2>0,SUM(OFFSET(Start,$A12,18):OFFSET(Start,$A12,37)),0) -> 0 | U12: =IF(TODAY()-U$2>0,SUM(OFFSET(Start,$A12,18):OFFSET(Start,$A12,37)),0) -> 0 | V12: =IF(TODAY()-V$2>0,SUM(OFFSET(Start,$A12,18):OFFSET(Start,$A12,37)),0) -> 0 | W12: =IF(TODAY()-W$2>0,SUM(OFFSET(Start,$A12,18):OFFSET(Start,$A12,37)),0) -> 0 | X12: =IF(TODAY()-X$2>0,SUM(OFFSET(Start,$A12,18):OFFSET(Start,$A12,37)),0) -> 0 | Y12: =IF(TODAY()-Y$2>0,SUM(OFFSET(Start,$A12,18):OFFSET(Start,$A12,37)),0) -> 0 | Z12: =IF(TODAY()-Z$2>0,SUM(OFFSET(Start,$A12,18):OFFSET(Start,$A12,37)),0) -> 0 | AA12: =IF(TODAY()-AA$2>0,SUM(OFFSET(Start,$A12,18):OFFSET(Start,$A12,37)),0) -> 0 | AB12: =IF(TODAY()-AB$2>0,SUM(OFFSET(Start,$A12,18):OFFSET(Start,$A12,37)),0) -> 0 | AC12: =IF(TODAY()-AC$2>0,SUM(OFFSET(Start,$A12,18):OFFSET(Start,$A12,37)),0) -> 0 | AD12: =IF(TODAY()-AD$2>0,SUM(OFFSET(Start,$A12,18):OFFSET(Start,$A12,37)),0) -> 0 | AE12: =IF(TODAY()-AE$2>0,SUM(OFFSET(Start,$A12,18):OFFSET(Start,$A12,37)),0) -> 0 | AF12: =IF(TODAY()-AF$2>0,SUM(OFFSET(Start,$A12,18):OFFSET(Start,$A12,37)),0) -> 0 | AG12: =IF(TODAY()-AG$2>0,SUM(OFFSET(Start,$A12,18):OFFSET(Start,$A12,37)),0) -> 0 | AH12: =IF(TODAY()-AH$2>0,SUM(OFFSET(Start,$A12,18):OFFSET(Start,$A12,37)),0) -> 0 | AI12: =IF(TODAY()-AI$2>0,SUM(OFFSET(Start,$A12,18):OFFSET(Start,$A12,37)),0) -> 0 | AJ12: =IF(TODAY()-AJ$2>0,SUM(OFFSET(Start,$A12,18):OFFSET(Start,$A12,37)),0) -> 0 | AK12: =IF(TODAY()-AK$2>0,SUM(OFFSET(Start,$A12,18):OFFSET(Start,$A12,37)),0) -> 0 | AL12: =IF(TODAY()-AL$2>0,SUM(OFFSET(Start,$A12,18):OFFSET(Start,$A12,37)),0) -> 0 | AM12: 0 | AN12: 0 | AO12: 0
A13: 12 | B13: =OFFSET(Start,'Mellomlagring - antall besøk'!A13,0) -> 0 | C13: =IF(TODAY()-C$2>0,SUM(OFFSET(Start,$A13,18):OFFSET(Start,$A13,37)),0) -> 0 | D13: =IF(TODAY()-D$2>0,SUM(OFFSET(Start,$A13,18):OFFSET(Start,$A13,37)),0) -> 0 | E13: =IF(TODAY()-E$2>0,SUM(OFFSET(Start,$A13,18):OFFSET(Start,$A13,37)),0) -> 0 | F13: =IF(TODAY()-F$2>0,SUM(OFFSET(Start,$A13,18):OFFSET(Start,$A13,37)),0) -> 0 | G13: =IF(TODAY()-G$2>0,SUM(OFFSET(Start,$A13,18):OFFSET(Start,$A13,37)),0) -> 0 | H13: =IF(TODAY()-H$2>0,SUM(OFFSET(Start,$A13,18):OFFSET(Start,$A13,37)),0) -> 0 | I13: =IF(TODAY()-I$2>0,SUM(OFFSET(Start,$A13,18):OFFSET(Start,$A13,37)),0) -> 0 | J13: =IF(TODAY()-J$2>0,SUM(OFFSET(Start,$A13,18):OFFSET(Start,$A13,37)),0) -> 0 | K13: =IF(TODAY()-K$2>0,SUM(OFFSET(Start,$A13,18):OFFSET(Start,$A13,37)),0) -> 0 | L13: =IF(TODAY()-L$2>0,SUM(OFFSET(Start,$A13,18):OFFSET(Start,$A13,37)),0) -> 0 | M13: =IF(TODAY()-M$2>0,SUM(OFFSET(Start,$A13,18):OFFSET(Start,$A13,37)),0) -> 0 | N13: =IF(TODAY()-N$2>0,SUM(OFFSET(Start,$A13,18):OFFSET(Start,$A13,37)),0) -> 0 | O13: =IF(TODAY()-O$2>0,SUM(OFFSET(Start,$A13,18):OFFSET(Start,$A13,37)),0) -> 0 | P13: =IF(TODAY()-P$2>0,SUM(OFFSET(Start,$A13,18):OFFSET(Start,$A13,37)),0) -> 0 | Q13: =IF(TODAY()-Q$2>0,SUM(OFFSET(Start,$A13,18):OFFSET(Start,$A13,37)),0) -> 0 | R13: =IF(TODAY()-R$2>0,SUM(OFFSET(Start,$A13,18):OFFSET(Start,$A13,37)),0) -> 0 | S13: =IF(TODAY()-S$2>0,SUM(OFFSET(Start,$A13,18):OFFSET(Start,$A13,37)),0) -> 0 | T13: =IF(TODAY()-T$2>0,SUM(OFFSET(Start,$A13,18):OFFSET(Start,$A13,37)),0) -> 0 | U13: =IF(TODAY()-U$2>0,SUM(OFFSET(Start,$A13,18):OFFSET(Start,$A13,37)),0) -> 0 | V13: =IF(TODAY()-V$2>0,SUM(OFFSET(Start,$A13,18):OFFSET(Start,$A13,37)),0) -> 0 | W13: =IF(TODAY()-W$2>0,SUM(OFFSET(Start,$A13,18):OFFSET(Start,$A13,37)),0) -> 0 | X13: =IF(TODAY()-X$2>0,SUM(OFFSET(Start,$A13,18):OFFSET(Start,$A13,37)),0) -> 0 | Y13: =IF(TODAY()-Y$2>0,SUM(OFFSET(Start,$A13,18):OFFSET(Start,$A13,37)),0) -> 0 | Z13: =IF(TODAY()-Z$2>0,SUM(OFFSET(Start,$A13,18):OFFSET(Start,$A13,37)),0) -> 0 | AA13: =IF(TODAY()-AA$2>0,SUM(OFFSET(Start,$A13,18):OFFSET(Start,$A13,37)),0) -> 0 | AB13: =IF(TODAY()-AB$2>0,SUM(OFFSET(Start,$A13,18):OFFSET(Start,$A13,37)),0) -> 0 | AC13: =IF(TODAY()-AC$2>0,SUM(OFFSET(Start,$A13,18):OFFSET(Start,$A13,37)),0) -> 0 | AD13: =IF(TODAY()-AD$2>0,SUM(OFFSET(Start,$A13,18):OFFSET(Start,$A13,37)),0) -> 0 | AE13: =IF(TODAY()-AE$2>0,SUM(OFFSET(Start,$A13,18):OFFSET(Start,$A13,37)),0) -> 0 | AF13: =IF(TODAY()-AF$2>0,SUM(OFFSET(Start,$A13,18):OFFSET(Start,$A13,37)),0) -> 0 | AG13: =IF(TODAY()-AG$2>0,SUM(OFFSET(Start,$A13,18):OFFSET(Start,$A13,37)),0) -> 0 | AH13: =IF(TODAY()-AH$2>0,SUM(OFFSET(Start,$A13,18):OFFSET(Start,$A13,37)),0) -> 0 | AI13: =IF(TODAY()-AI$2>0,SUM(OFFSET(Start,$A13,18):OFFSET(Start,$A13,37)),0) -> 0 | AJ13: =IF(TODAY()-AJ$2>0,SUM(OFFSET(Start,$A13,18):OFFSET(Start,$A13,37)),0) -> 0 | AK13: =IF(TODAY()-AK$2>0,SUM(OFFSET(Start,$A13,18):OFFSET(Start,$A13,37)),0) -> 0 | AL13: =IF(TODAY()-AL$2>0,SUM(OFFSET(Start,$A13,18):OFFSET(Start,$A13,37)),0) -> 0 | AM13: 0 | AN13: 0 | AO13: 0
A14: 13 | B14: =OFFSET(Start,'Mellomlagring - antall besøk'!A14,0) -> 0 | C14: =IF(TODAY()-C$2>0,SUM(OFFSET(Start,$A14,18):OFFSET(Start,$A14,37)),0) -> 0 | D14: =IF(TODAY()-D$2>0,SUM(OFFSET(Start,$A14,18):OFFSET(Start,$A14,37)),0) -> 0 | E14: =IF(TODAY()-E$2>0,SUM(OFFSET(Start,$A14,18):OFFSET(Start,$A14,37)),0) -> 0 | F14: =IF(TODAY()-F$2>0,SUM(OFFSET(Start,$A14,18):OFFSET(Start,$A14,37)),0) -> 0 | G14: =IF(TODAY()-G$2>0,SUM(OFFSET(Start,$A14,18):OFFSET(Start,$A14,37)),0) -> 0 | H14: =IF(TODAY()-H$2>0,SUM(OFFSET(Start,$A14,18):OFFSET(Start,$A14,37)),0) -> 0 | I14: =IF(TODAY()-I$2>0,SUM(OFFSET(Start,$A14,18):OFFSET(Start,$A14,37)),0) -> 0 | J14: =IF(TODAY()-J$2>0,SUM(OFFSET(Start,$A14,18):OFFSET(Start,$A14,37)),0) -> 0 | K14: =IF(TODAY()-K$2>0,SUM(OFFSET(Start,$A14,18):OFFSET(Start,$A14,37)),0) -> 0 | L14: =IF(TODAY()-L$2>0,SUM(OFFSET(Start,$A14,18):OFFSET(Start,$A14,37)),0) -> 0 | M14: =IF(TODAY()-M$2>0,SUM(OFFSET(Start,$A14,18):OFFSET(Start,$A14,37)),0) -> 0 | N14: =IF(TODAY()-N$2>0,SUM(OFFSET(Start,$A14,18):OFFSET(Start,$A14,37)),0) -> 0 | O14: =IF(TODAY()-O$2>0,SUM(OFFSET(Start,$A14,18):OFFSET(Start,$A14,37)),0) -> 0 | P14: =IF(TODAY()-P$2>0,SUM(OFFSET(Start,$A14,18):OFFSET(Start,$A14,37)),0) -> 0 | Q14: =IF(TODAY()-Q$2>0,SUM(OFFSET(Start,$A14,18):OFFSET(Start,$A14,37)),0) -> 0 | R14: =IF(TODAY()-R$2>0,SUM(OFFSET(Start,$A14,18):OFFSET(Start,$A14,37)),0) -> 0 | S14: =IF(TODAY()-S$2>0,SUM(OFFSET(Start,$A14,18):OFFSET(Start,$A14,37)),0) -> 0 | T14: =IF(TODAY()-T$2>0,SUM(OFFSET(Start,$A14,18):OFFSET(Start,$A14,37)),0) -> 0 | U14: =IF(TODAY()-U$2>0,SUM(OFFSET(Start,$A14,18):OFFSET(Start,$A14,37)),0) -> 0 | V14: =IF(TODAY()-V$2>0,SUM(OFFSET(Start,$A14,18):OFFSET(Start,$A14,37)),0) -> 0 | W14: =IF(TODAY()-W$2>0,SUM(OFFSET(Start,$A14,18):OFFSET(Start,$A14,37)),0) -> 0 | X14: =IF(TODAY()-X$2>0,SUM(OFFSET(Start,$A14,18):OFFSET(Start,$A14,37)),0) -> 0 | Y14: =IF(TODAY()-Y$2>0,SUM(OFFSET(Start,$A14,18):OFFSET(Start,$A14,37)),0) -> 0 | Z14: =IF(TODAY()-Z$2>0,SUM(OFFSET(Start,$A14,18):OFFSET(Start,$A14,37)),0) -> 0 | AA14: =IF(TODAY()-AA$2>0,SUM(OFFSET(Start,$A14,18):OFFSET(Start,$A14,37)),0) -> 0 | AB14: =IF(TODAY()-AB$2>0,SUM(OFFSET(Start,$A14,18):OFFSET(Start,$A14,37)),0) -> 0 | AC14: =IF(TODAY()-AC$2>0,SUM(OFFSET(Start,$A14,18):OFFSET(Start,$A14,37)),0) -> 0 | AD14: =IF(TODAY()-AD$2>0,SUM(OFFSET(Start,$A14,18):OFFSET(Start,$A14,37)),0) -> 0 | AE14: =IF(TODAY()-AE$2>0,SUM(OFFSET(Start,$A14,18):OFFSET(Start,$A14,37)),0) -> 0 | AF14: =IF(TODAY()-AF$2>0,SUM(OFFSET(Start,$A14,18):OFFSET(Start,$A14,37)),0) -> 0 | AG14: =IF(TODAY()-AG$2>0,SUM(OFFSET(Start,$A14,18):OFFSET(Start,$A14,37)),0) -> 0 | AH14: =IF(TODAY()-AH$2>0,SUM(OFFSET(Start,$A14,18):OFFSET(Start,$A14,37)),0) -> 0 | AI14: =IF(TODAY()-AI$2>0,SUM(OFFSET(Start,$A14,18):OFFSET(Start,$A14,37)),0) -> 0 | AJ14: =IF(TODAY()-AJ$2>0,SUM(OFFSET(Start,$A14,18):OFFSET(Start,$A14,37)),0) -> 0 | AK14: =IF(TODAY()-AK$2>0,SUM(OFFSET(Start,$A14,18):OFFSET(Start,$A14,37)),0) -> 0 | AL14: =IF(TODAY()-AL$2>0,SUM(OFFSET(Start,$A14,18):OFFSET(Start,$A14,37)),0) -> 0 | AM14: 0 | AN14: 0 | AO14: 0
A15: 14 | B15: =OFFSET(Start,'Mellomlagring - antall besøk'!A15,0) -> 0 | C15: =IF(TODAY()-C$2>0,SUM(OFFSET(Start,$A15,18):OFFSET(Start,$A15,37)),0) -> 0 | D15: =IF(TODAY()-D$2>0,SUM(OFFSET(Start,$A15,18):OFFSET(Start,$A15,37)),0) -> 0 | E15: =IF(TODAY()-E$2>0,SUM(OFFSET(Start,$A15,18):OFFSET(Start,$A15,37)),0) -> 0 | F15: =IF(TODAY()-F$2>0,SUM(OFFSET(Start,$A15,18):OFFSET(Start,$A15,37)),0) -> 0 | G15: =IF(TODAY()-G$2>0,SUM(OFFSET(Start,$A15,18):OFFSET(Start,$A15,37)),0) -> 0 | H15: =IF(TODAY()-H$2>0,SUM(OFFSET(Start,$A15,18):OFFSET(Start,$A15,37)),0) -> 0 | I15: =IF(TODAY()-I$2>0,SUM(OFFSET(Start,$A15,18):OFFSET(Start,$A15,37)),0) -> 0 | J15: =IF(TODAY()-J$2>0,SUM(OFFSET(Start,$A15,18):OFFSET(Start,$A15,37)),0) -> 0 | K15: =IF(TODAY()-K$2>0,SUM(OFFSET(Start,$A15,18):OFFSET(Start,$A15,37)),0) -> 0 | L15: =IF(TODAY()-L$2>0,SUM(OFFSET(Start,$A15,18):OFFSET(Start,$A15,37)),0) -> 0 | M15: =IF(TODAY()-M$2>0,SUM(OFFSET(Start,$A15,18):OFFSET(Start,$A15,37)),0) -> 0 | N15: =IF(TODAY()-N$2>0,SUM(OFFSET(Start,$A15,18):OFFSET(Start,$A15,37)),0) -> 0 | O15: =IF(TODAY()-O$2>0,SUM(OFFSET(Start,$A15,18):OFFSET(Start,$A15,37)),0) -> 0 | P15: =IF(TODAY()-P$2>0,SUM(OFFSET(Start,$A15,18):OFFSET(Start,$A15,37)),0) -> 0 | Q15: =IF(TODAY()-Q$2>0,SUM(OFFSET(Start,$A15,18):OFFSET(Start,$A15,37)),0) -> 0 | R15: =IF(TODAY()-R$2>0,SUM(OFFSET(Start,$A15,18):OFFSET(Start,$A15,37)),0) -> 0 | S15: =IF(TODAY()-S$2>0,SUM(OFFSET(Start,$A15,18):OFFSET(Start,$A15,37)),0) -> 0 | T15: =IF(TODAY()-T$2>0,SUM(OFFSET(Start,$A15,18):OFFSET(Start,$A15,37)),0) -> 0 | U15: =IF(TODAY()-U$2>0,SUM(OFFSET(Start,$A15,18):OFFSET(Start,$A15,37)),0) -> 0 | V15: =IF(TODAY()-V$2>0,SUM(OFFSET(Start,$A15,18):OFFSET(Start,$A15,37)),0) -> 0 | W15: =IF(TODAY()-W$2>0,SUM(OFFSET(Start,$A15,18):OFFSET(Start,$A15,37)),0) -> 0 | X15: =IF(TODAY()-X$2>0,SUM(OFFSET(Start,$A15,18):OFFSET(Start,$A15,37)),0) -> 0 | Y15: =IF(TODAY()-Y$2>0,SUM(OFFSET(Start,$A15,18):OFFSET(Start,$A15,37)),0) -> 0 | Z15: =IF(TODAY()-Z$2>0,SUM(OFFSET(Start,$A15,18):OFFSET(Start,$A15,37)),0) -> 0 | AA15: =IF(TODAY()-AA$2>0,SUM(OFFSET(Start,$A15,18):OFFSET(Start,$A15,37)),0) -> 0 | AB15: =IF(TODAY()-AB$2>0,SUM(OFFSET(Start,$A15,18):OFFSET(Start,$A15,37)),0) -> 0 | AC15: =IF(TODAY()-AC$2>0,SUM(OFFSET(Start,$A15,18):OFFSET(Start,$A15,37)),0) -> 0 | AD15: =IF(TODAY()-AD$2>0,SUM(OFFSET(Start,$A15,18):OFFSET(Start,$A15,37)),0) -> 0 | AE15: =IF(TODAY()-AE$2>0,SUM(OFFSET(Start,$A15,18):OFFSET(Start,$A15,37)),0) -> 0 | AF15: =IF(TODAY()-AF$2>0,SUM(OFFSET(Start,$A15,18):OFFSET(Start,$A15,37)),0) -> 0 | AG15: =IF(TODAY()-AG$2>0,SUM(OFFSET(Start,$A15,18):OFFSET(Start,$A15,37)),0) -> 0 | AH15: =IF(TODAY()-AH$2>0,SUM(OFFSET(Start,$A15,18):OFFSET(Start,$A15,37)),0) -> 0 | AI15: =IF(TODAY()-AI$2>0,SUM(OFFSET(Start,$A15,18):OFFSET(Start,$A15,37)),0) -> 0 | AJ15: =IF(TODAY()-AJ$2>0,SUM(OFFSET(Start,$A15,18):OFFSET(Start,$A15,37)),0) -> 0 | AK15: =IF(TODAY()-AK$2>0,SUM(OFFSET(Start,$A15,18):OFFSET(Start,$A15,37)),0) -> 0 | AL15: =IF(TODAY()-AL$2>0,SUM(OFFSET(Start,$A15,18):OFFSET(Start,$A15,37)),0) -> 0 | AM15: 0 | AN15: 0 | AO15: 0
A16: 15 | B16: =OFFSET(Start,'Mellomlagring - antall besøk'!A16,0) -> 0 | C16: =IF(TODAY()-C$2>0,SUM(OFFSET(Start,$A16,18):OFFSET(Start,$A16,37)),0) -> 0 | D16: =IF(TODAY()-D$2>0,SUM(OFFSET(Start,$A16,18):OFFSET(Start,$A16,37)),0) -> 0 | E16: =IF(TODAY()-E$2>0,SUM(OFFSET(Start,$A16,18):OFFSET(Start,$A16,37)),0) -> 0 | F16: =IF(TODAY()-F$2>0,SUM(OFFSET(Start,$A16,18):OFFSET(Start,$A16,37)),0) -> 0 | G16: =IF(TODAY()-G$2>0,SUM(OFFSET(Start,$A16,18):OFFSET(Start,$A16,37)),0) -> 0 | H16: =IF(TODAY()-H$2>0,SUM(OFFSET(Start,$A16,18):OFFSET(Start,$A16,37)),0) -> 0 | I16: =IF(TODAY()-I$2>0,SUM(OFFSET(Start,$A16,18):OFFSET(Start,$A16,37)),0) -> 0 | J16: =IF(TODAY()-J$2>0,SUM(OFFSET(Start,$A16,18):OFFSET(Start,$A16,37)),0) -> 0 | K16: =IF(TODAY()-K$2>0,SUM(OFFSET(Start,$A16,18):OFFSET(Start,$A16,37)),0) -> 0 | L16: =IF(TODAY()-L$2>0,SUM(OFFSET(Start,$A16,18):OFFSET(Start,$A16,37)),0) -> 0 | M16: =IF(TODAY()-M$2>0,SUM(OFFSET(Start,$A16,18):OFFSET(Start,$A16,37)),0) -> 0 | N16: =IF(TODAY()-N$2>0,SUM(OFFSET(Start,$A16,18):OFFSET(Start,$A16,37)),0) -> 0 | O16: =IF(TODAY()-O$2>0,SUM(OFFSET(Start,$A16,18):OFFSET(Start,$A16,37)),0) -> 0 | P16: =IF(TODAY()-P$2>0,SUM(OFFSET(Start,$A16,18):OFFSET(Start,$A16,37)),0) -> 0 | Q16: =IF(TODAY()-Q$2>0,SUM(OFFSET(Start,$A16,18):OFFSET(Start,$A16,37)),0) -> 0 | R16: =IF(TODAY()-R$2>0,SUM(OFFSET(Start,$A16,18):OFFSET(Start,$A16,37)),0) -> 0 | S16: =IF(TODAY()-S$2>0,SUM(OFFSET(Start,$A16,18):OFFSET(Start,$A16,37)),0) -> 0 | T16: =IF(TODAY()-T$2>0,SUM(OFFSET(Start,$A16,18):OFFSET(Start,$A16,37)),0) -> 0 | U16: =IF(TODAY()-U$2>0,SUM(OFFSET(Start,$A16,18):OFFSET(Start,$A16,37)),0) -> 0 | V16: =IF(TODAY()-V$2>0,SUM(OFFSET(Start,$A16,18):OFFSET(Start,$A16,37)),0) -> 0 | W16: =IF(TODAY()-W$2>0,SUM(OFFSET(Start,$A16,18):OFFSET(Start,$A16,37)),0) -> 0 | X16: =IF(TODAY()-X$2>0,SUM(OFFSET(Start,$A16,18):OFFSET(Start,$A16,37)),0) -> 0 | Y16: =IF(TODAY()-Y$2>0,SUM(OFFSET(Start,$A16,18):OFFSET(Start,$A16,37)),0) -> 0 | Z16: =IF(TODAY()-Z$2>0,SUM(OFFSET(Start,$A16,18):OFFSET(Start,$A16,37)),0) -> 0 | AA16: =IF(TODAY()-AA$2>0,SUM(OFFSET(Start,$A16,18):OFFSET(Start,$A16,37)),0) -> 0 | AB16: =IF(TODAY()-AB$2>0,SUM(OFFSET(Start,$A16,18):OFFSET(Start,$A16,37)),0) -> 0 | AC16: =IF(TODAY()-AC$2>0,SUM(OFFSET(Start,$A16,18):OFFSET(Start,$A16,37)),0) -> 0 | AD16: =IF(TODAY()-AD$2>0,SUM(OFFSET(Start,$A16,18):OFFSET(Start,$A16,37)),0) -> 0 | AE16: =IF(TODAY()-AE$2>0,SUM(OFFSET(Start,$A16,18):OFFSET(Start,$A16,37)),0) -> 0 | AF16: =IF(TODAY()-AF$2>0,SUM(OFFSET(Start,$A16,18):OFFSET(Start,$A16,37)),0) -> 0 | AG16: =IF(TODAY()-AG$2>0,SUM(OFFSET(Start,$A16,18):OFFSET(Start,$A16,37)),0) -> 0 | AH16: =IF(TODAY()-AH$2>0,SUM(OFFSET(Start,$A16,18):OFFSET(Start,$A16,37)),0) -> 0 | AI16: =IF(TODAY()-AI$2>0,SUM(OFFSET(Start,$A16,18):OFFSET(Start,$A16,37)),0) -> 0 | AJ16: =IF(TODAY()-AJ$2>0,SUM(OFFSET(Start,$A16,18):OFFSET(Start,$A16,37)),0) -> 0 | AK16: =IF(TODAY()-AK$2>0,SUM(OFFSET(Start,$A16,18):OFFSET(Start,$A16,37)),0) -> 0 | AL16: =IF(TODAY()-AL$2>0,SUM(OFFSET(Start,$A16,18):OFFSET(Start,$A16,37)),0) -> 0 | AM16: 0 | AN16: 0 | AO16: 0
A17: 16 | B17: =OFFSET(Start,'Mellomlagring - antall besøk'!A17,0) -> 0 | C17: =IF(TODAY()-C$2>0,SUM(OFFSET(Start,$A17,18):OFFSET(Start,$A17,37)),0) -> 0 | D17: =IF(TODAY()-D$2>0,SUM(OFFSET(Start,$A17,18):OFFSET(Start,$A17,37)),0) -> 0 | E17: =IF(TODAY()-E$2>0,SUM(OFFSET(Start,$A17,18):OFFSET(Start,$A17,37)),0) -> 0 | F17: =IF(TODAY()-F$2>0,SUM(OFFSET(Start,$A17,18):OFFSET(Start,$A17,37)),0) -> 0 | G17: =IF(TODAY()-G$2>0,SUM(OFFSET(Start,$A17,18):OFFSET(Start,$A17,37)),0) -> 0 | H17: =IF(TODAY()-H$2>0,SUM(OFFSET(Start,$A17,18):OFFSET(Start,$A17,37)),0) -> 0 | I17: =IF(TODAY()-I$2>0,SUM(OFFSET(Start,$A17,18):OFFSET(Start,$A17,37)),0) -> 0 | J17: =IF(TODAY()-J$2>0,SUM(OFFSET(Start,$A17,18):OFFSET(Start,$A17,37)),0) -> 0 | K17: =IF(TODAY()-K$2>0,SUM(OFFSET(Start,$A17,18):OFFSET(Start,$A17,37)),0) -> 0 | L17: =IF(TODAY()-L$2>0,SUM(OFFSET(Start,$A17,18):OFFSET(Start,$A17,37)),0) -> 0 | M17: =IF(TODAY()-M$2>0,SUM(OFFSET(Start,$A17,18):OFFSET(Start,$A17,37)),0) -> 0 | N17: =IF(TODAY()-N$2>0,SUM(OFFSET(Start,$A17,18):OFFSET(Start,$A17,37)),0) -> 0 | O17: =IF(TODAY()-O$2>0,SUM(OFFSET(Start,$A17,18):OFFSET(Start,$A17,37)),0) -> 0 | P17: =IF(TODAY()-P$2>0,SUM(OFFSET(Start,$A17,18):OFFSET(Start,$A17,37)),0) -> 0 | Q17: =IF(TODAY()-Q$2>0,SUM(OFFSET(Start,$A17,18):OFFSET(Start,$A17,37)),0) -> 0 | R17: =IF(TODAY()-R$2>0,SUM(OFFSET(Start,$A17,18):OFFSET(Start,$A17,37)),0) -> 0 | S17: =IF(TODAY()-S$2>0,SUM(OFFSET(Start,$A17,18):OFFSET(Start,$A17,37)),0) -> 0 | T17: =IF(TODAY()-T$2>0,SUM(OFFSET(Start,$A17,18):OFFSET(Start,$A17,37)),0) -> 0 | U17: =IF(TODAY()-U$2>0,SUM(OFFSET(Start,$A17,18):OFFSET(Start,$A17,37)),0) -> 0 | V17: =IF(TODAY()-V$2>0,SUM(OFFSET(Start,$A17,18):OFFSET(Start,$A17,37)),0) -> 0 | W17: =IF(TODAY()-W$2>0,SUM(OFFSET(Start,$A17,18):OFFSET(Start,$A17,37)),0) -> 0 | X17: =IF(TODAY()-X$2>0,SUM(OFFSET(Start,$A17,18):OFFSET(Start,$A17,37)),0) -> 0 | Y17: =IF(TODAY()-Y$2>0,SUM(OFFSET(Start,$A17,18):OFFSET(Start,$A17,37)),0) -> 0 | Z17: =IF(TODAY()-Z$2>0,SUM(OFFSET(Start,$A17,18):OFFSET(Start,$A17,37)),0) -> 0 | AA17: =IF(TODAY()-AA$2>0,SUM(OFFSET(Start,$A17,18):OFFSET(Start,$A17,37)),0) -> 0 | AB17: =IF(TODAY()-AB$2>0,SUM(OFFSET(Start,$A17,18):OFFSET(Start,$A17,37)),0) -> 0 | AC17: =IF(TODAY()-AC$2>0,SUM(OFFSET(Start,$A17,18):OFFSET(Start,$A17,37)),0) -> 0 | AD17: =IF(TODAY()-AD$2>0,SUM(OFFSET(Start,$A17,18):OFFSET(Start,$A17,37)),0) -> 0 | AE17: =IF(TODAY()-AE$2>0,SUM(OFFSET(Start,$A17,18):OFFSET(Start,$A17,37)),0) -> 0 | AF17: =IF(TODAY()-AF$2>0,SUM(OFFSET(Start,$A17,18):OFFSET(Start,$A17,37)),0) -> 0 | AG17: =IF(TODAY()-AG$2>0,SUM(OFFSET(Start,$A17,18):OFFSET(Start,$A17,37)),0) -> 0 | AH17: =IF(TODAY()-AH$2>0,SUM(OFFSET(Start,$A17,18):OFFSET(Start,$A17,37)),0) -> 0 | AI17: =IF(TODAY()-AI$2>0,SUM(OFFSET(Start,$A17,18):OFFSET(Start,$A17,37)),0) -> 0 | AJ17: =IF(TODAY()-AJ$2>0,SUM(OFFSET(Start,$A17,18):OFFSET(Start,$A17,37)),0) -> 0 | AK17: =IF(TODAY()-AK$2>0,SUM(OFFSET(Start,$A17,18):OFFSET(Start,$A17,37)),0) -> 0 | AL17: =IF(TODAY()-AL$2>0,SUM(OFFSET(Start,$A17,18):OFFSET(Start,$A17,37)),0) -> 0 | AM17: 0 | AN17: 0 | AO17: 0
A18: 17 | B18: =OFFSET(Start,'Mellomlagring - antall besøk'!A18,0) -> 0 | C18: =IF(TODAY()-C$2>0,SUM(OFFSET(Start,$A18,18):OFFSET(Start,$A18,37)),0) -> 0 | D18: =IF(TODAY()-D$2>0,SUM(OFFSET(Start,$A18,18):OFFSET(Start,$A18,37)),0) -> 0 | E18: =IF(TODAY()-E$2>0,SUM(OFFSET(Start,$A18,18):OFFSET(Start,$A18,37)),0) -> 0 | F18: =IF(TODAY()-F$2>0,SUM(OFFSET(Start,$A18,18):OFFSET(Start,$A18,37)),0) -> 0 | G18: =IF(TODAY()-G$2>0,SUM(OFFSET(Start,$A18,18):OFFSET(Start,$A18,37)),0) -> 0 | H18: =IF(TODAY()-H$2>0,SUM(OFFSET(Start,$A18,18):OFFSET(Start,$A18,37)),0) -> 0 | I18: =IF(TODAY()-I$2>0,SUM(OFFSET(Start,$A18,18):OFFSET(Start,$A18,37)),0) -> 0 | J18: =IF(TODAY()-J$2>0,SUM(OFFSET(Start,$A18,18):OFFSET(Start,$A18,37)),0) -> 0 | K18: =IF(TODAY()-K$2>0,SUM(OFFSET(Start,$A18,18):OFFSET(Start,$A18,37)),0) -> 0 | L18: =IF(TODAY()-L$2>0,SUM(OFFSET(Start,$A18,18):OFFSET(Start,$A18,37)),0) -> 0 | M18: =IF(TODAY()-M$2>0,SUM(OFFSET(Start,$A18,18):OFFSET(Start,$A18,37)),0) -> 0 | N18: =IF(TODAY()-N$2>0,SUM(OFFSET(Start,$A18,18):OFFSET(Start,$A18,37)),0) -> 0 | O18: =IF(TODAY()-O$2>0,SUM(OFFSET(Start,$A18,18):OFFSET(Start,$A18,37)),0) -> 0 | P18: =IF(TODAY()-P$2>0,SUM(OFFSET(Start,$A18,18):OFFSET(Start,$A18,37)),0) -> 0 | Q18: =IF(TODAY()-Q$2>0,SUM(OFFSET(Start,$A18,18):OFFSET(Start,$A18,37)),0) -> 0 | R18: =IF(TODAY()-R$2>0,SUM(OFFSET(Start,$A18,18):OFFSET(Start,$A18,37)),0) -> 0 | S18: =IF(TODAY()-S$2>0,SUM(OFFSET(Start,$A18,18):OFFSET(Start,$A18,37)),0) -> 0 | T18: =IF(TODAY()-T$2>0,SUM(OFFSET(Start,$A18,18):OFFSET(Start,$A18,37)),0) -> 0 | U18: =IF(TODAY()-U$2>0,SUM(OFFSET(Start,$A18,18):OFFSET(Start,$A18,37)),0) -> 0 | V18: =IF(TODAY()-V$2>0,SUM(OFFSET(Start,$A18,18):OFFSET(Start,$A18,37)),0) -> 0 | W18: =IF(TODAY()-W$2>0,SUM(OFFSET(Start,$A18,18):OFFSET(Start,$A18,37)),0) -> 0 | X18: =IF(TODAY()-X$2>0,SUM(OFFSET(Start,$A18,18):OFFSET(Start,$A18,37)),0) -> 0 | Y18: =IF(TODAY()-Y$2>0,SUM(OFFSET(Start,$A18,18):OFFSET(Start,$A18,37)),0) -> 0 | Z18: =IF(TODAY()-Z$2>0,SUM(OFFSET(Start,$A18,18):OFFSET(Start,$A18,37)),0) -> 0 | AA18: =IF(TODAY()-AA$2>0,SUM(OFFSET(Start,$A18,18):OFFSET(Start,$A18,37)),0) -> 0 | AB18: =IF(TODAY()-AB$2>0,SUM(OFFSET(Start,$A18,18):OFFSET(Start,$A18,37)),0) -> 0 | AC18: =IF(TODAY()-AC$2>0,SUM(OFFSET(Start,$A18,18):OFFSET(Start,$A18,37)),0) -> 0 | AD18: =IF(TODAY()-AD$2>0,SUM(OFFSET(Start,$A18,18):OFFSET(Start,$A18,37)),0) -> 0 | AE18: =IF(TODAY()-AE$2>0,SUM(OFFSET(Start,$A18,18):OFFSET(Start,$A18,37)),0) -> 0 | AF18: =IF(TODAY()-AF$2>0,SUM(OFFSET(Start,$A18,18):OFFSET(Start,$A18,37)),0) -> 0 | AG18: =IF(TODAY()-AG$2>0,SUM(OFFSET(Start,$A18,18):OFFSET(Start,$A18,37)),0) -> 0 | AH18: =IF(TODAY()-AH$2>0,SUM(OFFSET(Start,$A18,18):OFFSET(Start,$A18,37)),0) -> 0 | AI18: =IF(TODAY()-AI$2>0,SUM(OFFSET(Start,$A18,18):OFFSET(Start,$A18,37)),0) -> 0 | AJ18: =IF(TODAY()-AJ$2>0,SUM(OFFSET(Start,$A18,18):OFFSET(Start,$A18,37)),0) -> 0 | AK18: =IF(TODAY()-AK$2>0,SUM(OFFSET(Start,$A18,18):OFFSET(Start,$A18,37)),0) -> 0 | AL18: =IF(TODAY()-AL$2>0,SUM(OFFSET(Start,$A18,18):OFFSET(Start,$A18,37)),0) -> 0 | AM18: 0 | AN18: 0 | AO18: 0
A19: 18 | B19: =OFFSET(Start,'Mellomlagring - antall besøk'!A19,0) -> 0 | C19: =IF(TODAY()-C$2>0,SUM(OFFSET(Start,$A19,18):OFFSET(Start,$A19,37)),0) -> 0 | D19: =IF(TODAY()-D$2>0,SUM(OFFSET(Start,$A19,18):OFFSET(Start,$A19,37)),0) -> 0 | E19: =IF(TODAY()-E$2>0,SUM(OFFSET(Start,$A19,18):OFFSET(Start,$A19,37)),0) -> 0 | F19: =IF(TODAY()-F$2>0,SUM(OFFSET(Start,$A19,18):OFFSET(Start,$A19,37)),0) -> 0 | G19: =IF(TODAY()-G$2>0,SUM(OFFSET(Start,$A19,18):OFFSET(Start,$A19,37)),0) -> 0 | H19: =IF(TODAY()-H$2>0,SUM(OFFSET(Start,$A19,18):OFFSET(Start,$A19,37)),0) -> 0 | I19: =IF(TODAY()-I$2>0,SUM(OFFSET(Start,$A19,18):OFFSET(Start,$A19,37)),0) -> 0 | J19: =IF(TODAY()-J$2>0,SUM(OFFSET(Start,$A19,18):OFFSET(Start,$A19,37)),0) -> 0 | K19: =IF(TODAY()-K$2>0,SUM(OFFSET(Start,$A19,18):OFFSET(Start,$A19,37)),0) -> 0 | L19: =IF(TODAY()-L$2>0,SUM(OFFSET(Start,$A19,18):OFFSET(Start,$A19,37)),0) -> 0 | M19: =IF(TODAY()-M$2>0,SUM(OFFSET(Start,$A19,18):OFFSET(Start,$A19,37)),0) -> 0 | N19: =IF(TODAY()-N$2>0,SUM(OFFSET(Start,$A19,18):OFFSET(Start,$A19,37)),0) -> 0 | O19: =IF(TODAY()-O$2>0,SUM(OFFSET(Start,$A19,18):OFFSET(Start,$A19,37)),0) -> 0 | P19: =IF(TODAY()-P$2>0,SUM(OFFSET(Start,$A19,18):OFFSET(Start,$A19,37)),0) -> 0 | Q19: =IF(TODAY()-Q$2>0,SUM(OFFSET(Start,$A19,18):OFFSET(Start,$A19,37)),0) -> 0 | R19: =IF(TODAY()-R$2>0,SUM(OFFSET(Start,$A19,18):OFFSET(Start,$A19,37)),0) -> 0 | S19: =IF(TODAY()-S$2>0,SUM(OFFSET(Start,$A19,18):OFFSET(Start,$A19,37)),0) -> 0 | T19: =IF(TODAY()-T$2>0,SUM(OFFSET(Start,$A19,18):OFFSET(Start,$A19,37)),0) -> 0 | U19: =IF(TODAY()-U$2>0,SUM(OFFSET(Start,$A19,18):OFFSET(Start,$A19,37)),0) -> 0 | V19: =IF(TODAY()-V$2>0,SUM(OFFSET(Start,$A19,18):OFFSET(Start,$A19,37)),0) -> 0 | W19: =IF(TODAY()-W$2>0,SUM(OFFSET(Start,$A19,18):OFFSET(Start,$A19,37)),0) -> 0 | X19: =IF(TODAY()-X$2>0,SUM(OFFSET(Start,$A19,18):OFFSET(Start,$A19,37)),0) -> 0 | Y19: =IF(TODAY()-Y$2>0,SUM(OFFSET(Start,$A19,18):OFFSET(Start,$A19,37)),0) -> 0 | Z19: =IF(TODAY()-Z$2>0,SUM(OFFSET(Start,$A19,18):OFFSET(Start,$A19,37)),0) -> 0 | AA19: =IF(TODAY()-AA$2>0,SUM(OFFSET(Start,$A19,18):OFFSET(Start,$A19,37)),0) -> 0 | AB19: =IF(TODAY()-AB$2>0,SUM(OFFSET(Start,$A19,18):OFFSET(Start,$A19,37)),0) -> 0 | AC19: =IF(TODAY()-AC$2>0,SUM(OFFSET(Start,$A19,18):OFFSET(Start,$A19,37)),0) -> 0 | AD19: =IF(TODAY()-AD$2>0,SUM(OFFSET(Start,$A19,18):OFFSET(Start,$A19,37)),0) -> 0 | AE19: =IF(TODAY()-AE$2>0,SUM(OFFSET(Start,$A19,18):OFFSET(Start,$A19,37)),0) -> 0 | AF19: =IF(TODAY()-AF$2>0,SUM(OFFSET(Start,$A19,18):OFFSET(Start,$A19,37)),0) -> 0 | AG19: =IF(TODAY()-AG$2>0,SUM(OFFSET(Start,$A19,18):OFFSET(Start,$A19,37)),0) -> 0 | AH19: =IF(TODAY()-AH$2>0,SUM(OFFSET(Start,$A19,18):OFFSET(Start,$A19,37)),0) -> 0 | AI19: =IF(TODAY()-AI$2>0,SUM(OFFSET(Start,$A19,18):OFFSET(Start,$A19,37)),0) -> 0 | AJ19: =IF(TODAY()-AJ$2>0,SUM(OFFSET(Start,$A19,18):OFFSET(Start,$A19,37)),0) -> 0 | AK19: =IF(TODAY()-AK$2>0,SUM(OFFSET(Start,$A19,18):OFFSET(Start,$A19,37)),0) -> 0 | AL19: =IF(TODAY()-AL$2>0,SUM(OFFSET(Start,$A19,18):OFFSET(Start,$A19,37)),0) -> 0 | AM19: 0 | AN19: 0 | AO19: 0
A20: 19 | B20: =OFFSET(Start,'Mellomlagring - antall besøk'!A20,0) -> 0 | C20: =IF(TODAY()-C$2>0,SUM(OFFSET(Start,$A20,18):OFFSET(Start,$A20,37)),0) -> 0 | D20: =IF(TODAY()-D$2>0,SUM(OFFSET(Start,$A20,18):OFFSET(Start,$A20,37)),0) -> 0 | E20: =IF(TODAY()-E$2>0,SUM(OFFSET(Start,$A20,18):OFFSET(Start,$A20,37)),0) -> 0 | F20: =IF(TODAY()-F$2>0,SUM(OFFSET(Start,$A20,18):OFFSET(Start,$A20,37)),0) -> 0 | G20: =IF(TODAY()-G$2>0,SUM(OFFSET(Start,$A20,18):OFFSET(Start,$A20,37)),0) -> 0 | H20: =IF(TODAY()-H$2>0,SUM(OFFSET(Start,$A20,18):OFFSET(Start,$A20,37)),0) -> 0 | I20: =IF(TODAY()-I$2>0,SUM(OFFSET(Start,$A20,18):OFFSET(Start,$A20,37)),0) -> 0 | J20: =IF(TODAY()-J$2>0,SUM(OFFSET(Start,$A20,18):OFFSET(Start,$A20,37)),0) -> 0 | K20: =IF(TODAY()-K$2>0,SUM(OFFSET(Start,$A20,18):OFFSET(Start,$A20,37)),0) -> 0 | L20: =IF(TODAY()-L$2>0,SUM(OFFSET(Start,$A20,18):OFFSET(Start,$A20,37)),0) -> 0 | M20: =IF(TODAY()-M$2>0,SUM(OFFSET(Start,$A20,18):OFFSET(Start,$A20,37)),0) -> 0 | N20: =IF(TODAY()-N$2>0,SUM(OFFSET(Start,$A20,18):OFFSET(Start,$A20,37)),0) -> 0 | O20: =IF(TODAY()-O$2>0,SUM(OFFSET(Start,$A20,18):OFFSET(Start,$A20,37)),0) -> 0 | P20: =IF(TODAY()-P$2>0,SUM(OFFSET(Start,$A20,18):OFFSET(Start,$A20,37)),0) -> 0 | Q20: =IF(TODAY()-Q$2>0,SUM(OFFSET(Start,$A20,18):OFFSET(Start,$A20,37)),0) -> 0 | R20: =IF(TODAY()-R$2>0,SUM(OFFSET(Start,$A20,18):OFFSET(Start,$A20,37)),0) -> 0 | S20: =IF(TODAY()-S$2>0,SUM(OFFSET(Start,$A20,18):OFFSET(Start,$A20,37)),0) -> 0 | T20: =IF(TODAY()-T$2>0,SUM(OFFSET(Start,$A20,18):OFFSET(Start,$A20,37)),0) -> 0 | U20: =IF(TODAY()-U$2>0,SUM(OFFSET(Start,$A20,18):OFFSET(Start,$A20,37)),0) -> 0 | V20: =IF(TODAY()-V$2>0,SUM(OFFSET(Start,$A20,18):OFFSET(Start,$A20,37)),0) -> 0 | W20: =IF(TODAY()-W$2>0,SUM(OFFSET(Start,$A20,18):OFFSET(Start,$A20,37)),0) -> 0 | X20: =IF(TODAY()-X$2>0,SUM(OFFSET(Start,$A20,18):OFFSET(Start,$A20,37)),0) -> 0 | Y20: =IF(TODAY()-Y$2>0,SUM(OFFSET(Start,$A20,18):OFFSET(Start,$A20,37)),0) -> 0 | Z20: =IF(TODAY()-Z$2>0,SUM(OFFSET(Start,$A20,18):OFFSET(Start,$A20,37)),0) -> 0 | AA20: =IF(TODAY()-AA$2>0,SUM(OFFSET(Start,$A20,18):OFFSET(Start,$A20,37)),0) -> 0 | AB20: =IF(TODAY()-AB$2>0,SUM(OFFSET(Start,$A20,18):OFFSET(Start,$A20,37)),0) -> 0 | AC20: =IF(TODAY()-AC$2>0,SUM(OFFSET(Start,$A20,18):OFFSET(Start,$A20,37)),0) -> 0 | AD20: =IF(TODAY()-AD$2>0,SUM(OFFSET(Start,$A20,18):OFFSET(Start,$A20,37)),0) -> 0 | AE20: =IF(TODAY()-AE$2>0,SUM(OFFSET(Start,$A20,18):OFFSET(Start,$A20,37)),0) -> 0 | AF20: =IF(TODAY()-AF$2>0,SUM(OFFSET(Start,$A20,18):OFFSET(Start,$A20,37)),0) -> 0 | AG20: =IF(TODAY()-AG$2>0,SUM(OFFSET(Start,$A20,18):OFFSET(Start,$A20,37)),0) -> 0 | AH20: =IF(TODAY()-AH$2>0,SUM(OFFSET(Start,$A20,18):OFFSET(Start,$A20,37)),0) -> 0 | AI20: =IF(TODAY()-AI$2>0,SUM(OFFSET(Start,$A20,18):OFFSET(Start,$A20,37)),0) -> 0 | AJ20: =IF(TODAY()-AJ$2>0,SUM(OFFSET(Start,$A20,18):OFFSET(Start,$A20,37)),0) -> 0 | AK20: =IF(TODAY()-AK$2>0,SUM(OFFSET(Start,$A20,18):OFFSET(Start,$A20,37)),0) -> 0 | AL20: =IF(TODAY()-AL$2>0,SUM(OFFSET(Start,$A20,18):OFFSET(Start,$A20,37)),0) -> 0 | AM20: 0 | AN20: 0 | AO20: 0
A21: 20 | B21: =OFFSET(Start,'Mellomlagring - antall besøk'!A21,0) -> 0 | C21: =IF(TODAY()-C$2>0,SUM(OFFSET(Start,$A21,18):OFFSET(Start,$A21,37)),0) -> 0 | D21: =IF(TODAY()-D$2>0,SUM(OFFSET(Start,$A21,18):OFFSET(Start,$A21,37)),0) -> 0 | E21: =IF(TODAY()-E$2>0,SUM(OFFSET(Start,$A21,18):OFFSET(Start,$A21,37)),0) -> 0 | F21: =IF(TODAY()-F$2>0,SUM(OFFSET(Start,$A21,18):OFFSET(Start,$A21,37)),0) -> 0 | G21: =IF(TODAY()-G$2>0,SUM(OFFSET(Start,$A21,18):OFFSET(Start,$A21,37)),0) -> 0 | H21: =IF(TODAY()-H$2>0,SUM(OFFSET(Start,$A21,18):OFFSET(Start,$A21,37)),0) -> 0 | I21: =IF(TODAY()-I$2>0,SUM(OFFSET(Start,$A21,18):OFFSET(Start,$A21,37)),0) -> 0 | J21: =IF(TODAY()-J$2>0,SUM(OFFSET(Start,$A21,18):OFFSET(Start,$A21,37)),0) -> 0 | K21: =IF(TODAY()-K$2>0,SUM(OFFSET(Start,$A21,18):OFFSET(Start,$A21,37)),0) -> 0 | L21: =IF(TODAY()-L$2>0,SUM(OFFSET(Start,$A21,18):OFFSET(Start,$A21,37)),0) -> 0 | M21: =IF(TODAY()-M$2>0,SUM(OFFSET(Start,$A21,18):OFFSET(Start,$A21,37)),0) -> 0 | N21: =IF(TODAY()-N$2>0,SUM(OFFSET(Start,$A21,18):OFFSET(Start,$A21,37)),0) -> 0 | O21: =IF(TODAY()-O$2>0,SUM(OFFSET(Start,$A21,18):OFFSET(Start,$A21,37)),0) -> 0 | P21: =IF(TODAY()-P$2>0,SUM(OFFSET(Start,$A21,18):OFFSET(Start,$A21,37)),0) -> 0 | Q21: =IF(TODAY()-Q$2>0,SUM(OFFSET(Start,$A21,18):OFFSET(Start,$A21,37)),0) -> 0 | R21: =IF(TODAY()-R$2>0,SUM(OFFSET(Start,$A21,18):OFFSET(Start,$A21,37)),0) -> 0 | S21: =IF(TODAY()-S$2>0,SUM(OFFSET(Start,$A21,18):OFFSET(Start,$A21,37)),0) -> 0 | T21: =IF(TODAY()-T$2>0,SUM(OFFSET(Start,$A21,18):OFFSET(Start,$A21,37)),0) -> 0 | U21: =IF(TODAY()-U$2>0,SUM(OFFSET(Start,$A21,18):OFFSET(Start,$A21,37)),0) -> 0 | V21: =IF(TODAY()-V$2>0,SUM(OFFSET(Start,$A21,18):OFFSET(Start,$A21,37)),0) -> 0 | W21: =IF(TODAY()-W$2>0,SUM(OFFSET(Start,$A21,18):OFFSET(Start,$A21,37)),0) -> 0 | X21: =IF(TODAY()-X$2>0,SUM(OFFSET(Start,$A21,18):OFFSET(Start,$A21,37)),0) -> 0 | Y21: =IF(TODAY()-Y$2>0,SUM(OFFSET(Start,$A21,18):OFFSET(Start,$A21,37)),0) -> 0 | Z21: =IF(TODAY()-Z$2>0,SUM(OFFSET(Start,$A21,18):OFFSET(Start,$A21,37)),0) -> 0 | AA21: =IF(TODAY()-AA$2>0,SUM(OFFSET(Start,$A21,18):OFFSET(Start,$A21,37)),0) -> 0 | AB21: =IF(TODAY()-AB$2>0,SUM(OFFSET(Start,$A21,18):OFFSET(Start,$A21,37)),0) -> 0 | AC21: =IF(TODAY()-AC$2>0,SUM(OFFSET(Start,$A21,18):OFFSET(Start,$A21,37)),0) -> 0 | AD21: =IF(TODAY()-AD$2>0,SUM(OFFSET(Start,$A21,18):OFFSET(Start,$A21,37)),0) -> 0 | AE21: =IF(TODAY()-AE$2>0,SUM(OFFSET(Start,$A21,18):OFFSET(Start,$A21,37)),0) -> 0 | AF21: =IF(TODAY()-AF$2>0,SUM(OFFSET(Start,$A21,18):OFFSET(Start,$A21,37)),0) -> 0 | AG21: =IF(TODAY()-AG$2>0,SUM(OFFSET(Start,$A21,18):OFFSET(Start,$A21,37)),0) -> 0 | AH21: =IF(TODAY()-AH$2>0,SUM(OFFSET(Start,$A21,18):OFFSET(Start,$A21,37)),0) -> 0 | AI21: =IF(TODAY()-AI$2>0,SUM(OFFSET(Start,$A21,18):OFFSET(Start,$A21,37)),0) -> 0 | AJ21: =IF(TODAY()-AJ$2>0,SUM(OFFSET(Start,$A21,18):OFFSET(Start,$A21,37)),0) -> 0 | AK21: =IF(TODAY()-AK$2>0,SUM(OFFSET(Start,$A21,18):OFFSET(Start,$A21,37)),0) -> 0 | AL21: =IF(TODAY()-AL$2>0,SUM(OFFSET(Start,$A21,18):OFFSET(Start,$A21,37)),0) -> 0 | AM21: 0 | AN21: 0 | AO21: 0
A22: 21 | B22: =OFFSET(Start,'Mellomlagring - antall besøk'!A22,0) -> 0 | C22: =IF(TODAY()-C$2>0,SUM(OFFSET(Start,$A22,18):OFFSET(Start,$A22,37)),0) -> 0 | D22: =IF(TODAY()-D$2>0,SUM(OFFSET(Start,$A22,18):OFFSET(Start,$A22,37)),0) -> 0 | E22: =IF(TODAY()-E$2>0,SUM(OFFSET(Start,$A22,18):OFFSET(Start,$A22,37)),0) -> 0 | F22: =IF(TODAY()-F$2>0,SUM(OFFSET(Start,$A22,18):OFFSET(Start,$A22,37)),0) -> 0 | G22: =IF(TODAY()-G$2>0,SUM(OFFSET(Start,$A22,18):OFFSET(Start,$A22,37)),0) -> 0 | H22: =IF(TODAY()-H$2>0,SUM(OFFSET(Start,$A22,18):OFFSET(Start,$A22,37)),0) -> 0 | I22: =IF(TODAY()-I$2>0,SUM(OFFSET(Start,$A22,18):OFFSET(Start,$A22,37)),0) -> 0 | J22: =IF(TODAY()-J$2>0,SUM(OFFSET(Start,$A22,18):OFFSET(Start,$A22,37)),0) -> 0 | K22: =IF(TODAY()-K$2>0,SUM(OFFSET(Start,$A22,18):OFFSET(Start,$A22,37)),0) -> 0 | L22: =IF(TODAY()-L$2>0,SUM(OFFSET(Start,$A22,18):OFFSET(Start,$A22,37)),0) -> 0 | M22: =IF(TODAY()-M$2>0,SUM(OFFSET(Start,$A22,18):OFFSET(Start,$A22,37)),0) -> 0 | N22: =IF(TODAY()-N$2>0,SUM(OFFSET(Start,$A22,18):OFFSET(Start,$A22,37)),0) -> 0 | O22: =IF(TODAY()-O$2>0,SUM(OFFSET(Start,$A22,18):OFFSET(Start,$A22,37)),0) -> 0 | P22: =IF(TODAY()-P$2>0,SUM(OFFSET(Start,$A22,18):OFFSET(Start,$A22,37)),0) -> 0 | Q22: =IF(TODAY()-Q$2>0,SUM(OFFSET(Start,$A22,18):OFFSET(Start,$A22,37)),0) -> 0 | R22: =IF(TODAY()-R$2>0,SUM(OFFSET(Start,$A22,18):OFFSET(Start,$A22,37)),0) -> 0 | S22: =IF(TODAY()-S$2>0,SUM(OFFSET(Start,$A22,18):OFFSET(Start,$A22,37)),0) -> 0 | T22: =IF(TODAY()-T$2>0,SUM(OFFSET(Start,$A22,18):OFFSET(Start,$A22,37)),0) -> 0 | U22: =IF(TODAY()-U$2>0,SUM(OFFSET(Start,$A22,18):OFFSET(Start,$A22,37)),0) -> 0 | V22: =IF(TODAY()-V$2>0,SUM(OFFSET(Start,$A22,18):OFFSET(Start,$A22,37)),0) -> 0 | W22: =IF(TODAY()-W$2>0,SUM(OFFSET(Start,$A22,18):OFFSET(Start,$A22,37)),0) -> 0 | X22: =IF(TODAY()-X$2>0,SUM(OFFSET(Start,$A22,18):OFFSET(Start,$A22,37)),0) -> 0 | Y22: =IF(TODAY()-Y$2>0,SUM(OFFSET(Start,$A22,18):OFFSET(Start,$A22,37)),0) -> 0 | Z22: =IF(TODAY()-Z$2>0,SUM(OFFSET(Start,$A22,18):OFFSET(Start,$A22,37)),0) -> 0 | AA22: =IF(TODAY()-AA$2>0,SUM(OFFSET(Start,$A22,18):OFFSET(Start,$A22,37)),0) -> 0 | AB22: =IF(TODAY()-AB$2>0,SUM(OFFSET(Start,$A22,18):OFFSET(Start,$A22,37)),0) -> 0 | AC22: =IF(TODAY()-AC$2>0,SUM(OFFSET(Start,$A22,18):OFFSET(Start,$A22,37)),0) -> 0 | AD22: =IF(TODAY()-AD$2>0,SUM(OFFSET(Start,$A22,18):OFFSET(Start,$A22,37)),0) -> 0 | AE22: =IF(TODAY()-AE$2>0,SUM(OFFSET(Start,$A22,18):OFFSET(Start,$A22,37)),0) -> 0 | AF22: =IF(TODAY()-AF$2>0,SUM(OFFSET(Start,$A22,18):OFFSET(Start,$A22,37)),0) -> 0 | AG22: =IF(TODAY()-AG$2>0,SUM(OFFSET(Start,$A22,18):OFFSET(Start,$A22,37)),0) -> 0 | AH22: =IF(TODAY()-AH$2>0,SUM(OFFSET(Start,$A22,18):OFFSET(Start,$A22,37)),0) -> 0 | AI22: =IF(TODAY()-AI$2>0,SUM(OFFSET(Start,$A22,18):OFFSET(Start,$A22,37)),0) -> 0 | AJ22: =IF(TODAY()-AJ$2>0,SUM(OFFSET(Start,$A22,18):OFFSET(Start,$A22,37)),0) -> 0 | AK22: =IF(TODAY()-AK$2>0,SUM(OFFSET(Start,$A22,18):OFFSET(Start,$A22,37)),0) -> 0 | AL22: =IF(TODAY()-AL$2>0,SUM(OFFSET(Start,$A22,18):OFFSET(Start,$A22,37)),0) -> 0 | AM22: 0 | AN22: 0 | AO22: 0
A23: 22 | B23: =OFFSET(Start,'Mellomlagring - antall besøk'!A23,0) -> 0 | C23: =IF(TODAY()-C$2>0,SUM(OFFSET(Start,$A23,18):OFFSET(Start,$A23,37)),0) -> 0 | D23: =IF(TODAY()-D$2>0,SUM(OFFSET(Start,$A23,18):OFFSET(Start,$A23,37)),0) -> 0 | E23: =IF(TODAY()-E$2>0,SUM(OFFSET(Start,$A23,18):OFFSET(Start,$A23,37)),0) -> 0 | F23: =IF(TODAY()-F$2>0,SUM(OFFSET(Start,$A23,18):OFFSET(Start,$A23,37)),0) -> 0 | G23: =IF(TODAY()-G$2>0,SUM(OFFSET(Start,$A23,18):OFFSET(Start,$A23,37)),0) -> 0 | H23: =IF(TODAY()-H$2>0,SUM(OFFSET(Start,$A23,18):OFFSET(Start,$A23,37)),0) -> 0 | I23: =IF(TODAY()-I$2>0,SUM(OFFSET(Start,$A23,18):OFFSET(Start,$A23,37)),0) -> 0 | J23: =IF(TODAY()-J$2>0,SUM(OFFSET(Start,$A23,18):OFFSET(Start,$A23,37)),0) -> 0 | K23: =IF(TODAY()-K$2>0,SUM(OFFSET(Start,$A23,18):OFFSET(Start,$A23,37)),0) -> 0 | L23: =IF(TODAY()-L$2>0,SUM(OFFSET(Start,$A23,18):OFFSET(Start,$A23,37)),0) -> 0 | M23: =IF(TODAY()-M$2>0,SUM(OFFSET(Start,$A23,18):OFFSET(Start,$A23,37)),0) -> 0 | N23: =IF(TODAY()-N$2>0,SUM(OFFSET(Start,$A23,18):OFFSET(Start,$A23,37)),0) -> 0 | O23: =IF(TODAY()-O$2>0,SUM(OFFSET(Start,$A23,18):OFFSET(Start,$A23,37)),0) -> 0 | P23: =IF(TODAY()-P$2>0,SUM(OFFSET(Start,$A23,18):OFFSET(Start,$A23,37)),0) -> 0 | Q23: =IF(TODAY()-Q$2>0,SUM(OFFSET(Start,$A23,18):OFFSET(Start,$A23,37)),0) -> 0 | R23: =IF(TODAY()-R$2>0,SUM(OFFSET(Start,$A23,18):OFFSET(Start,$A23,37)),0) -> 0 | S23: =IF(TODAY()-S$2>0,SUM(OFFSET(Start,$A23,18):OFFSET(Start,$A23,37)),0) -> 0 | T23: =IF(TODAY()-T$2>0,SUM(OFFSET(Start,$A23,18):OFFSET(Start,$A23,37)),0) -> 0 | U23: =IF(TODAY()-U$2>0,SUM(OFFSET(Start,$A23,18):OFFSET(Start,$A23,37)),0) -> 0 | V23: =IF(TODAY()-V$2>0,SUM(OFFSET(Start,$A23,18):OFFSET(Start,$A23,37)),0) -> 0 | W23: =IF(TODAY()-W$2>0,SUM(OFFSET(Start,$A23,18):OFFSET(Start,$A23,37)),0) -> 0 | X23: =IF(TODAY()-X$2>0,SUM(OFFSET(Start,$A23,18):OFFSET(Start,$A23,37)),0) -> 0 | Y23: =IF(TODAY()-Y$2>0,SUM(OFFSET(Start,$A23,18):OFFSET(Start,$A23,37)),0) -> 0 | Z23: =IF(TODAY()-Z$2>0,SUM(OFFSET(Start,$A23,18):OFFSET(Start,$A23,37)),0) -> 0 | AA23: =IF(TODAY()-AA$2>0,SUM(OFFSET(Start,$A23,18):OFFSET(Start,$A23,37)),0) -> 0 | AB23: =IF(TODAY()-AB$2>0,SUM(OFFSET(Start,$A23,18):OFFSET(Start,$A23,37)),0) -> 0 | AC23: =IF(TODAY()-AC$2>0,SUM(OFFSET(Start,$A23,18):OFFSET(Start,$A23,37)),0) -> 0 | AD23: =IF(TODAY()-AD$2>0,SUM(OFFSET(Start,$A23,18):OFFSET(Start,$A23,37)),0) -> 0 | AE23: =IF(TODAY()-AE$2>0,SUM(OFFSET(Start,$A23,18):OFFSET(Start,$A23,37)),0) -> 0 | AF23: =IF(TODAY()-AF$2>0,SUM(OFFSET(Start,$A23,18):OFFSET(Start,$A23,37)),0) -> 0 | AG23: =IF(TODAY()-AG$2>0,SUM(OFFSET(Start,$A23,18):OFFSET(Start,$A23,37)),0) -> 0 | AH23: =IF(TODAY()-AH$2>0,SUM(OFFSET(Start,$A23,18):OFFSET(Start,$A23,37)),0) -> 0 | AI23: =IF(TODAY()-AI$2>0,SUM(OFFSET(Start,$A23,18):OFFSET(Start,$A23,37)),0) -> 0 | AJ23: =IF(TODAY()-AJ$2>0,SUM(OFFSET(Start,$A23,18):OFFSET(Start,$A23,37)),0) -> 0 | AK23: =IF(TODAY()-AK$2>0,SUM(OFFSET(Start,$A23,18):OFFSET(Start,$A23,37)),0) -> 0 | AL23: =IF(TODAY()-AL$2>0,SUM(OFFSET(Start,$A23,18):OFFSET(Start,$A23,37)),0) -> 0 | AM23: 0 | AN23: 0 | AO23: 0
A24: 23 | B24: =OFFSET(Start,'Mellomlagring - antall besøk'!A24,0) -> 0 | C24: =IF(TODAY()-C$2>0,SUM(OFFSET(Start,$A24,18):OFFSET(Start,$A24,37)),0) -> 0 | D24: =IF(TODAY()-D$2>0,SUM(OFFSET(Start,$A24,18):OFFSET(Start,$A24,37)),0) -> 0 | E24: =IF(TODAY()-E$2>0,SUM(OFFSET(Start,$A24,18):OFFSET(Start,$A24,37)),0) -> 0 | F24: =IF(TODAY()-F$2>0,SUM(OFFSET(Start,$A24,18):OFFSET(Start,$A24,37)),0) -> 0 | G24: =IF(TODAY()-G$2>0,SUM(OFFSET(Start,$A24,18):OFFSET(Start,$A24,37)),0) -> 0 | H24: =IF(TODAY()-H$2>0,SUM(OFFSET(Start,$A24,18):OFFSET(Start,$A24,37)),0) -> 0 | I24: =IF(TODAY()-I$2>0,SUM(OFFSET(Start,$A24,18):OFFSET(Start,$A24,37)),0) -> 0 | J24: =IF(TODAY()-J$2>0,SUM(OFFSET(Start,$A24,18):OFFSET(Start,$A24,37)),0) -> 0 | K24: =IF(TODAY()-K$2>0,SUM(OFFSET(Start,$A24,18):OFFSET(Start,$A24,37)),0) -> 0 | L24: =IF(TODAY()-L$2>0,SUM(OFFSET(Start,$A24,18):OFFSET(Start,$A24,37)),0) -> 0 | M24: =IF(TODAY()-M$2>0,SUM(OFFSET(Start,$A24,18):OFFSET(Start,$A24,37)),0) -> 0 | N24: =IF(TODAY()-N$2>0,SUM(OFFSET(Start,$A24,18):OFFSET(Start,$A24,37)),0) -> 0 | O24: =IF(TODAY()-O$2>0,SUM(OFFSET(Start,$A24,18):OFFSET(Start,$A24,37)),0) -> 0 | P24: =IF(TODAY()-P$2>0,SUM(OFFSET(Start,$A24,18):OFFSET(Start,$A24,37)),0) -> 0 | Q24: =IF(TODAY()-Q$2>0,SUM(OFFSET(Start,$A24,18):OFFSET(Start,$A24,37)),0) -> 0 | R24: =IF(TODAY()-R$2>0,SUM(OFFSET(Start,$A24,18):OFFSET(Start,$A24,37)),0) -> 0 | S24: =IF(TODAY()-S$2>0,SUM(OFFSET(Start,$A24,18):OFFSET(Start,$A24,37)),0) -> 0 | T24: =IF(TODAY()-T$2>0,SUM(OFFSET(Start,$A24,18):OFFSET(Start,$A24,37)),0) -> 0 | U24: =IF(TODAY()-U$2>0,SUM(OFFSET(Start,$A24,18):OFFSET(Start,$A24,37)),0) -> 0 | V24: =IF(TODAY()-V$2>0,SUM(OFFSET(Start,$A24,18):OFFSET(Start,$A24,37)),0) -> 0 | W24: =IF(TODAY()-W$2>0,SUM(OFFSET(Start,$A24,18):OFFSET(Start,$A24,37)),0) -> 0 | X24: =IF(TODAY()-X$2>0,SUM(OFFSET(Start,$A24,18):OFFSET(Start,$A24,37)),0) -> 0 | Y24: =IF(TODAY()-Y$2>0,SUM(OFFSET(Start,$A24,18):OFFSET(Start,$A24,37)),0) -> 0 | Z24: =IF(TODAY()-Z$2>0,SUM(OFFSET(Start,$A24,18):OFFSET(Start,$A24,37)),0) -> 0 | AA24: =IF(TODAY()-AA$2>0,SUM(OFFSET(Start,$A24,18):OFFSET(Start,$A24,37)),0) -> 0 | AB24: =IF(TODAY()-AB$2>0,SUM(OFFSET(Start,$A24,18):OFFSET(Start,$A24,37)),0) -> 0 | AC24: =IF(TODAY()-AC$2>0,SUM(OFFSET(Start,$A24,18):OFFSET(Start,$A24,37)),0) -> 0 | AD24: =IF(TODAY()-AD$2>0,SUM(OFFSET(Start,$A24,18):OFFSET(Start,$A24,37)),0) -> 0 | AE24: =IF(TODAY()-AE$2>0,SUM(OFFSET(Start,$A24,18):OFFSET(Start,$A24,37)),0) -> 0 | AF24: =IF(TODAY()-AF$2>0,SUM(OFFSET(Start,$A24,18):OFFSET(Start,$A24,37)),0) -> 0 | AG24: =IF(TODAY()-AG$2>0,SUM(OFFSET(Start,$A24,18):OFFSET(Start,$A24,37)),0) -> 0 | AH24: =IF(TODAY()-AH$2>0,SUM(OFFSET(Start,$A24,18):OFFSET(Start,$A24,37)),0) -> 0 | AI24: =IF(TODAY()-AI$2>0,SUM(OFFSET(Start,$A24,18):OFFSET(Start,$A24,37)),0) -> 0 | AJ24: =IF(TODAY()-AJ$2>0,SUM(OFFSET(Start,$A24,18):OFFSET(Start,$A24,37)),0) -> 0 | AK24: =IF(TODAY()-AK$2>0,SUM(OFFSET(Start,$A24,18):OFFSET(Start,$A24,37)),0) -> 0 | AL24: =IF(TODAY()-AL$2>0,SUM(OFFSET(Start,$A24,18):OFFSET(Start,$A24,37)),0) -> 0 | AM24: 0 | AN24: 0 | AO24: 0
A25: 24 | B25: =OFFSET(Start,'Mellomlagring - antall besøk'!A25,0) -> 0 | C25: =IF(TODAY()-C$2>0,SUM(OFFSET(Start,$A25,18):OFFSET(Start,$A25,37)),0) -> 0 | D25: =IF(TODAY()-D$2>0,SUM(OFFSET(Start,$A25,18):OFFSET(Start,$A25,37)),0) -> 0 | E25: =IF(TODAY()-E$2>0,SUM(OFFSET(Start,$A25,18):OFFSET(Start,$A25,37)),0) -> 0 | F25: =IF(TODAY()-F$2>0,SUM(OFFSET(Start,$A25,18):OFFSET(Start,$A25,37)),0) -> 0 | G25: =IF(TODAY()-G$2>0,SUM(OFFSET(Start,$A25,18):OFFSET(Start,$A25,37)),0) -> 0 | H25: =IF(TODAY()-H$2>0,SUM(OFFSET(Start,$A25,18):OFFSET(Start,$A25,37)),0) -> 0 | I25: =IF(TODAY()-I$2>0,SUM(OFFSET(Start,$A25,18):OFFSET(Start,$A25,37)),0) -> 0 | J25: =IF(TODAY()-J$2>0,SUM(OFFSET(Start,$A25,18):OFFSET(Start,$A25,37)),0) -> 0 | K25: =IF(TODAY()-K$2>0,SUM(OFFSET(Start,$A25,18):OFFSET(Start,$A25,37)),0) -> 0 | L25: =IF(TODAY()-L$2>0,SUM(OFFSET(Start,$A25,18):OFFSET(Start,$A25,37)),0) -> 0 | M25: =IF(TODAY()-M$2>0,SUM(OFFSET(Start,$A25,18):OFFSET(Start,$A25,37)),0) -> 0 | N25: =IF(TODAY()-N$2>0,SUM(OFFSET(Start,$A25,18):OFFSET(Start,$A25,37)),0) -> 0 | O25: =IF(TODAY()-O$2>0,SUM(OFFSET(Start,$A25,18):OFFSET(Start,$A25,37)),0) -> 0 | P25: =IF(TODAY()-P$2>0,SUM(OFFSET(Start,$A25,18):OFFSET(Start,$A25,37)),0) -> 0 | Q25: =IF(TODAY()-Q$2>0,SUM(OFFSET(Start,$A25,18):OFFSET(Start,$A25,37)),0) -> 0 | R25: =IF(TODAY()-R$2>0,SUM(OFFSET(Start,$A25,18):OFFSET(Start,$A25,37)),0) -> 0 | S25: =IF(TODAY()-S$2>0,SUM(OFFSET(Start,$A25,18):OFFSET(Start,$A25,37)),0) -> 0 | T25: =IF(TODAY()-T$2>0,SUM(OFFSET(Start,$A25,18):OFFSET(Start,$A25,37)),0) -> 0 | U25: =IF(TODAY()-U$2>0,SUM(OFFSET(Start,$A25,18):OFFSET(Start,$A25,37)),0) -> 0 | V25: =IF(TODAY()-V$2>0,SUM(OFFSET(Start,$A25,18):OFFSET(Start,$A25,37)),0) -> 0 | W25: =IF(TODAY()-W$2>0,SUM(OFFSET(Start,$A25,18):OFFSET(Start,$A25,37)),0) -> 0 | X25: =IF(TODAY()-X$2>0,SUM(OFFSET(Start,$A25,18):OFFSET(Start,$A25,37)),0) -> 0 | Y25: =IF(TODAY()-Y$2>0,SUM(OFFSET(Start,$A25,18):OFFSET(Start,$A25,37)),0) -> 0 | Z25: =IF(TODAY()-Z$2>0,SUM(OFFSET(Start,$A25,18):OFFSET(Start,$A25,37)),0) -> 0 | AA25: =IF(TODAY()-AA$2>0,SUM(OFFSET(Start,$A25,18):OFFSET(Start,$A25,37)),0) -> 0 | AB25: =IF(TODAY()-AB$2>0,SUM(OFFSET(Start,$A25,18):OFFSET(Start,$A25,37)),0) -> 0 | AC25: =IF(TODAY()-AC$2>0,SUM(OFFSET(Start,$A25,18):OFFSET(Start,$A25,37)),0) -> 0 | AD25: =IF(TODAY()-AD$2>0,SUM(OFFSET(Start,$A25,18):OFFSET(Start,$A25,37)),0) -> 0 | AE25: =IF(TODAY()-AE$2>0,SUM(OFFSET(Start,$A25,18):OFFSET(Start,$A25,37)),0) -> 0 | AF25: =IF(TODAY()-AF$2>0,SUM(OFFSET(Start,$A25,18):OFFSET(Start,$A25,37)),0) -> 0 | AG25: =IF(TODAY()-AG$2>0,SUM(OFFSET(Start,$A25,18):OFFSET(Start,$A25,37)),0) -> 0 | AH25: =IF(TODAY()-AH$2>0,SUM(OFFSET(Start,$A25,18):OFFSET(Start,$A25,37)),0) -> 0 | AI25: =IF(TODAY()-AI$2>0,SUM(OFFSET(Start,$A25,18):OFFSET(Start,$A25,37)),0) -> 0 | AJ25: =IF(TODAY()-AJ$2>0,SUM(OFFSET(Start,$A25,18):OFFSET(Start,$A25,37)),0) -> 0 | AK25: =IF(TODAY()-AK$2>0,SUM(OFFSET(Start,$A25,18):OFFSET(Start,$A25,37)),0) -> 0 | AL25: =IF(TODAY()-AL$2>0,SUM(OFFSET(Start,$A25,18):OFFSET(Start,$A25,37)),0) -> 0 | AM25: 0 | AN25: 0 | AO25: 0
A26: 25 | B26: =OFFSET(Start,'Mellomlagring - antall besøk'!A26,0) -> 0 | C26: =IF(TODAY()-C$2>0,SUM(OFFSET(Start,$A26,18):OFFSET(Start,$A26,37)),0) -> 0 | D26: =IF(TODAY()-D$2>0,SUM(OFFSET(Start,$A26,18):OFFSET(Start,$A26,37)),0) -> 0 | E26: =IF(TODAY()-E$2>0,SUM(OFFSET(Start,$A26,18):OFFSET(Start,$A26,37)),0) -> 0 | F26: =IF(TODAY()-F$2>0,SUM(OFFSET(Start,$A26,18):OFFSET(Start,$A26,37)),0) -> 0 | G26: =IF(TODAY()-G$2>0,SUM(OFFSET(Start,$A26,18):OFFSET(Start,$A26,37)),0) -> 0 | H26: =IF(TODAY()-H$2>0,SUM(OFFSET(Start,$A26,18):OFFSET(Start,$A26,37)),0) -> 0 | I26: =IF(TODAY()-I$2>0,SUM(OFFSET(Start,$A26,18):OFFSET(Start,$A26,37)),0) -> 0 | J26: =IF(TODAY()-J$2>0,SUM(OFFSET(Start,$A26,18):OFFSET(Start,$A26,37)),0) -> 0 | K26: =IF(TODAY()-K$2>0,SUM(OFFSET(Start,$A26,18):OFFSET(Start,$A26,37)),0) -> 0 | L26: =IF(TODAY()-L$2>0,SUM(OFFSET(Start,$A26,18):OFFSET(Start,$A26,37)),0) -> 0 | M26: =IF(TODAY()-M$2>0,SUM(OFFSET(Start,$A26,18):OFFSET(Start,$A26,37)),0) -> 0 | N26: =IF(TODAY()-N$2>0,SUM(OFFSET(Start,$A26,18):OFFSET(Start,$A26,37)),0) -> 0 | O26: =IF(TODAY()-O$2>0,SUM(OFFSET(Start,$A26,18):OFFSET(Start,$A26,37)),0) -> 0 | P26: =IF(TODAY()-P$2>0,SUM(OFFSET(Start,$A26,18):OFFSET(Start,$A26,37)),0) -> 0 | Q26: =IF(TODAY()-Q$2>0,SUM(OFFSET(Start,$A26,18):OFFSET(Start,$A26,37)),0) -> 0 | R26: =IF(TODAY()-R$2>0,SUM(OFFSET(Start,$A26,18):OFFSET(Start,$A26,37)),0) -> 0 | S26: =IF(TODAY()-S$2>0,SUM(OFFSET(Start,$A26,18):OFFSET(Start,$A26,37)),0) -> 0 | T26: =IF(TODAY()-T$2>0,SUM(OFFSET(Start,$A26,18):OFFSET(Start,$A26,37)),0) -> 0 | U26: =IF(TODAY()-U$2>0,SUM(OFFSET(Start,$A26,18):OFFSET(Start,$A26,37)),0) -> 0 | V26: =IF(TODAY()-V$2>0,SUM(OFFSET(Start,$A26,18):OFFSET(Start,$A26,37)),0) -> 0 | W26: =IF(TODAY()-W$2>0,SUM(OFFSET(Start,$A26,18):OFFSET(Start,$A26,37)),0) -> 0 | X26: =IF(TODAY()-X$2>0,SUM(OFFSET(Start,$A26,18):OFFSET(Start,$A26,37)),0) -> 0 | Y26: =IF(TODAY()-Y$2>0,SUM(OFFSET(Start,$A26,18):OFFSET(Start,$A26,37)),0) -> 0 | Z26: =IF(TODAY()-Z$2>0,SUM(OFFSET(Start,$A26,18):OFFSET(Start,$A26,37)),0) -> 0 | AA26: =IF(TODAY()-AA$2>0,SUM(OFFSET(Start,$A26,18):OFFSET(Start,$A26,37)),0) -> 0 | AB26: =IF(TODAY()-AB$2>0,SUM(OFFSET(Start,$A26,18):OFFSET(Start,$A26,37)),0) -> 0 | AC26: =IF(TODAY()-AC$2>0,SUM(OFFSET(Start,$A26,18):OFFSET(Start,$A26,37)),0) -> 0 | AD26: =IF(TODAY()-AD$2>0,SUM(OFFSET(Start,$A26,18):OFFSET(Start,$A26,37)),0) -> 0 | AE26: =IF(TODAY()-AE$2>0,SUM(OFFSET(Start,$A26,18):OFFSET(Start,$A26,37)),0) -> 0 | AF26: =IF(TODAY()-AF$2>0,SUM(OFFSET(Start,$A26,18):OFFSET(Start,$A26,37)),0) -> 0 | AG26: =IF(TODAY()-AG$2>0,SUM(OFFSET(Start,$A26,18):OFFSET(Start,$A26,37)),0) -> 0 | AH26: =IF(TODAY()-AH$2>0,SUM(OFFSET(Start,$A26,18):OFFSET(Start,$A26,37)),0) -> 0 | AI26: =IF(TODAY()-AI$2>0,SUM(OFFSET(Start,$A26,18):OFFSET(Start,$A26,37)),0) -> 0 | AJ26: =IF(TODAY()-AJ$2>0,SUM(OFFSET(Start,$A26,18):OFFSET(Start,$A26,37)),0) -> 0 | AK26: =IF(TODAY()-AK$2>0,SUM(OFFSET(Start,$A26,18):OFFSET(Start,$A26,37)),0) -> 0 | AL26: =IF(TODAY()-AL$2>0,SUM(OFFSET(Start,$A26,18):OFFSET(Start,$A26,37)),0) -> 0 | AM26: 0 | AN26: 0 | AO26: 0
A27: 26 | B27: =OFFSET(Start,'Mellomlagring - antall besøk'!A27,0) -> 0 | C27: =IF(TODAY()-C$2>0,SUM(OFFSET(Start,$A27,18):OFFSET(Start,$A27,37)),0) -> 0 | D27: =IF(TODAY()-D$2>0,SUM(OFFSET(Start,$A27,18):OFFSET(Start,$A27,37)),0) -> 0 | E27: =IF(TODAY()-E$2>0,SUM(OFFSET(Start,$A27,18):OFFSET(Start,$A27,37)),0) -> 0 | F27: =IF(TODAY()-F$2>0,SUM(OFFSET(Start,$A27,18):OFFSET(Start,$A27,37)),0) -> 0 | G27: =IF(TODAY()-G$2>0,SUM(OFFSET(Start,$A27,18):OFFSET(Start,$A27,37)),0) -> 0 | H27: =IF(TODAY()-H$2>0,SUM(OFFSET(Start,$A27,18):OFFSET(Start,$A27,37)),0) -> 0 | I27: =IF(TODAY()-I$2>0,SUM(OFFSET(Start,$A27,18):OFFSET(Start,$A27,37)),0) -> 0 | J27: =IF(TODAY()-J$2>0,SUM(OFFSET(Start,$A27,18):OFFSET(Start,$A27,37)),0) -> 0 | K27: =IF(TODAY()-K$2>0,SUM(OFFSET(Start,$A27,18):OFFSET(Start,$A27,37)),0) -> 0 | L27: =IF(TODAY()-L$2>0,SUM(OFFSET(Start,$A27,18):OFFSET(Start,$A27,37)),0) -> 0 | M27: =IF(TODAY()-M$2>0,SUM(OFFSET(Start,$A27,18):OFFSET(Start,$A27,37)),0) -> 0 | N27: =IF(TODAY()-N$2>0,SUM(OFFSET(Start,$A27,18):OFFSET(Start,$A27,37)),0) -> 0 | O27: =IF(TODAY()-O$2>0,SUM(OFFSET(Start,$A27,18):OFFSET(Start,$A27,37)),0) -> 0 | P27: =IF(TODAY()-P$2>0,SUM(OFFSET(Start,$A27,18):OFFSET(Start,$A27,37)),0) -> 0 | Q27: =IF(TODAY()-Q$2>0,SUM(OFFSET(Start,$A27,18):OFFSET(Start,$A27,37)),0) -> 0 | R27: =IF(TODAY()-R$2>0,SUM(OFFSET(Start,$A27,18):OFFSET(Start,$A27,37)),0) -> 0 | S27: =IF(TODAY()-S$2>0,SUM(OFFSET(Start,$A27,18):OFFSET(Start,$A27,37)),0) -> 0 | T27: =IF(TODAY()-T$2>0,SUM(OFFSET(Start,$A27,18):OFFSET(Start,$A27,37)),0) -> 0 | U27: =IF(TODAY()-U$2>0,SUM(OFFSET(Start,$A27,18):OFFSET(Start,$A27,37)),0) -> 0 | V27: =IF(TODAY()-V$2>0,SUM(OFFSET(Start,$A27,18):OFFSET(Start,$A27,37)),0) -> 0 | W27: =IF(TODAY()-W$2>0,SUM(OFFSET(Start,$A27,18):OFFSET(Start,$A27,37)),0) -> 0 | X27: =IF(TODAY()-X$2>0,SUM(OFFSET(Start,$A27,18):OFFSET(Start,$A27,37)),0) -> 0 | Y27: =IF(TODAY()-Y$2>0,SUM(OFFSET(Start,$A27,18):OFFSET(Start,$A27,37)),0) -> 0 | Z27: =IF(TODAY()-Z$2>0,SUM(OFFSET(Start,$A27,18):OFFSET(Start,$A27,37)),0) -> 0 | AA27: =IF(TODAY()-AA$2>0,SUM(OFFSET(Start,$A27,18):OFFSET(Start,$A27,37)),0) -> 0 | AB27: =IF(TODAY()-AB$2>0,SUM(OFFSET(Start,$A27,18):OFFSET(Start,$A27,37)),0) -> 0 | AC27: =IF(TODAY()-AC$2>0,SUM(OFFSET(Start,$A27,18):OFFSET(Start,$A27,37)),0) -> 0 | AD27: =IF(TODAY()-AD$2>0,SUM(OFFSET(Start,$A27,18):OFFSET(Start,$A27,37)),0) -> 0 | AE27: =IF(TODAY()-AE$2>0,SUM(OFFSET(Start,$A27,18):OFFSET(Start,$A27,37)),0) -> 0 | AF27: =IF(TODAY()-AF$2>0,SUM(OFFSET(Start,$A27,18):OFFSET(Start,$A27,37)),0) -> 0 | AG27: =IF(TODAY()-AG$2>0,SUM(OFFSET(Start,$A27,18):OFFSET(Start,$A27,37)),0) -> 0 | AH27: =IF(TODAY()-AH$2>0,SUM(OFFSET(Start,$A27,18):OFFSET(Start,$A27,37)),0) -> 0 | AI27: =IF(TODAY()-AI$2>0,SUM(OFFSET(Start,$A27,18):OFFSET(Start,$A27,37)),0) -> 0 | AJ27: =IF(TODAY()-AJ$2>0,SUM(OFFSET(Start,$A27,18):OFFSET(Start,$A27,37)),0) -> 0 | AK27: =IF(TODAY()-AK$2>0,SUM(OFFSET(Start,$A27,18):OFFSET(Start,$A27,37)),0) -> 0 | AL27: =IF(TODAY()-AL$2>0,SUM(OFFSET(Start,$A27,18):OFFSET(Start,$A27,37)),0) -> 0 | AM27: 0 | AN27: 0 | AO27: 0
A28: 27 | B28: =OFFSET(Start,'Mellomlagring - antall besøk'!A28,0) -> 0 | C28: =IF(TODAY()-C$2>0,SUM(OFFSET(Start,$A28,18):OFFSET(Start,$A28,37)),0) -> 0 | D28: =IF(TODAY()-D$2>0,SUM(OFFSET(Start,$A28,18):OFFSET(Start,$A28,37)),0) -> 0 | E28: =IF(TODAY()-E$2>0,SUM(OFFSET(Start,$A28,18):OFFSET(Start,$A28,37)),0) -> 0 | F28: =IF(TODAY()-F$2>0,SUM(OFFSET(Start,$A28,18):OFFSET(Start,$A28,37)),0) -> 0 | G28: =IF(TODAY()-G$2>0,SUM(OFFSET(Start,$A28,18):OFFSET(Start,$A28,37)),0) -> 0 | H28: =IF(TODAY()-H$2>0,SUM(OFFSET(Start,$A28,18):OFFSET(Start,$A28,37)),0) -> 0 | I28: =IF(TODAY()-I$2>0,SUM(OFFSET(Start,$A28,18):OFFSET(Start,$A28,37)),0) -> 0 | J28: =IF(TODAY()-J$2>0,SUM(OFFSET(Start,$A28,18):OFFSET(Start,$A28,37)),0) -> 0 | K28: =IF(TODAY()-K$2>0,SUM(OFFSET(Start,$A28,18):OFFSET(Start,$A28,37)),0) -> 0 | L28: =IF(TODAY()-L$2>0,SUM(OFFSET(Start,$A28,18):OFFSET(Start,$A28,37)),0) -> 0 | M28: =IF(TODAY()-M$2>0,SUM(OFFSET(Start,$A28,18):OFFSET(Start,$A28,37)),0) -> 0 | N28: =IF(TODAY()-N$2>0,SUM(OFFSET(Start,$A28,18):OFFSET(Start,$A28,37)),0) -> 0 | O28: =IF(TODAY()-O$2>0,SUM(OFFSET(Start,$A28,18):OFFSET(Start,$A28,37)),0) -> 0 | P28: =IF(TODAY()-P$2>0,SUM(OFFSET(Start,$A28,18):OFFSET(Start,$A28,37)),0) -> 0 | Q28: =IF(TODAY()-Q$2>0,SUM(OFFSET(Start,$A28,18):OFFSET(Start,$A28,37)),0) -> 0 | R28: =IF(TODAY()-R$2>0,SUM(OFFSET(Start,$A28,18):OFFSET(Start,$A28,37)),0) -> 0 | S28: =IF(TODAY()-S$2>0,SUM(OFFSET(Start,$A28,18):OFFSET(Start,$A28,37)),0) -> 0 | T28: =IF(TODAY()-T$2>0,SUM(OFFSET(Start,$A28,18):OFFSET(Start,$A28,37)),0) -> 0 | U28: =IF(TODAY()-U$2>0,SUM(OFFSET(Start,$A28,18):OFFSET(Start,$A28,37)),0) -> 0 | V28: =IF(TODAY()-V$2>0,SUM(OFFSET(Start,$A28,18):OFFSET(Start,$A28,37)),0) -> 0 | W28: =IF(TODAY()-W$2>0,SUM(OFFSET(Start,$A28,18):OFFSET(Start,$A28,37)),0) -> 0 | X28: =IF(TODAY()-X$2>0,SUM(OFFSET(Start,$A28,18):OFFSET(Start,$A28,37)),0) -> 0 | Y28: =IF(TODAY()-Y$2>0,SUM(OFFSET(Start,$A28,18):OFFSET(Start,$A28,37)),0) -> 0 | Z28: =IF(TODAY()-Z$2>0,SUM(OFFSET(Start,$A28,18):OFFSET(Start,$A28,37)),0) -> 0 | AA28: =IF(TODAY()-AA$2>0,SUM(OFFSET(Start,$A28,18):OFFSET(Start,$A28,37)),0) -> 0 | AB28: =IF(TODAY()-AB$2>0,SUM(OFFSET(Start,$A28,18):OFFSET(Start,$A28,37)),0) -> 0 | AC28: =IF(TODAY()-AC$2>0,SUM(OFFSET(Start,$A28,18):OFFSET(Start,$A28,37)),0) -> 0 | AD28: =IF(TODAY()-AD$2>0,SUM(OFFSET(Start,$A28,18):OFFSET(Start,$A28,37)),0) -> 0 | AE28: =IF(TODAY()-AE$2>0,SUM(OFFSET(Start,$A28,18):OFFSET(Start,$A28,37)),0) -> 0 | AF28: =IF(TODAY()-AF$2>0,SUM(OFFSET(Start,$A28,18):OFFSET(Start,$A28,37)),0) -> 0 | AG28: =IF(TODAY()-AG$2>0,SUM(OFFSET(Start,$A28,18):OFFSET(Start,$A28,37)),0) -> 0 | AH28: =IF(TODAY()-AH$2>0,SUM(OFFSET(Start,$A28,18):OFFSET(Start,$A28,37)),0) -> 0 | AI28: =IF(TODAY()-AI$2>0,SUM(OFFSET(Start,$A28,18):OFFSET(Start,$A28,37)),0) -> 0 | AJ28: =IF(TODAY()-AJ$2>0,SUM(OFFSET(Start,$A28,18):OFFSET(Start,$A28,37)),0) -> 0 | AK28: =IF(TODAY()-AK$2>0,SUM(OFFSET(Start,$A28,18):OFFSET(Start,$A28,37)),0) -> 0 | AL28: =IF(TODAY()-AL$2>0,SUM(OFFSET(Start,$A28,18):OFFSET(Start,$A28,37)),0) -> 0 | AM28: 0 | AN28: 0 | AO28: 0
A29: 28 | B29: =OFFSET(Start,'Mellomlagring - antall besøk'!A29,0) -> 0 | C29: =IF(TODAY()-C$2>0,SUM(OFFSET(Start,$A29,18):OFFSET(Start,$A29,37)),0) -> 0 | D29: =IF(TODAY()-D$2>0,SUM(OFFSET(Start,$A29,18):OFFSET(Start,$A29,37)),0) -> 0 | E29: =IF(TODAY()-E$2>0,SUM(OFFSET(Start,$A29,18):OFFSET(Start,$A29,37)),0) -> 0 | F29: =IF(TODAY()-F$2>0,SUM(OFFSET(Start,$A29,18):OFFSET(Start,$A29,37)),0) -> 0 | G29: =IF(TODAY()-G$2>0,SUM(OFFSET(Start,$A29,18):OFFSET(Start,$A29,37)),0) -> 0 | H29: =IF(TODAY()-H$2>0,SUM(OFFSET(Start,$A29,18):OFFSET(Start,$A29,37)),0) -> 0 | I29: =IF(TODAY()-I$2>0,SUM(OFFSET(Start,$A29,18):OFFSET(Start,$A29,37)),0) -> 0 | J29: =IF(TODAY()-J$2>0,SUM(OFFSET(Start,$A29,18):OFFSET(Start,$A29,37)),0) -> 0 | K29: =IF(TODAY()-K$2>0,SUM(OFFSET(Start,$A29,18):OFFSET(Start,$A29,37)),0) -> 0 | L29: =IF(TODAY()-L$2>0,SUM(OFFSET(Start,$A29,18):OFFSET(Start,$A29,37)),0) -> 0 | M29: =IF(TODAY()-M$2>0,SUM(OFFSET(Start,$A29,18):OFFSET(Start,$A29,37)),0) -> 0 | N29: =IF(TODAY()-N$2>0,SUM(OFFSET(Start,$A29,18):OFFSET(Start,$A29,37)),0) -> 0 | O29: =IF(TODAY()-O$2>0,SUM(OFFSET(Start,$A29,18):OFFSET(Start,$A29,37)),0) -> 0 | P29: =IF(TODAY()-P$2>0,SUM(OFFSET(Start,$A29,18):OFFSET(Start,$A29,37)),0) -> 0 | Q29: =IF(TODAY()-Q$2>0,SUM(OFFSET(Start,$A29,18):OFFSET(Start,$A29,37)),0) -> 0 | R29: =IF(TODAY()-R$2>0,SUM(OFFSET(Start,$A29,18):OFFSET(Start,$A29,37)),0) -> 0 | S29: =IF(TODAY()-S$2>0,SUM(OFFSET(Start,$A29,18):OFFSET(Start,$A29,37)),0) -> 0 | T29: =IF(TODAY()-T$2>0,SUM(OFFSET(Start,$A29,18):OFFSET(Start,$A29,37)),0) -> 0 | U29: =IF(TODAY()-U$2>0,SUM(OFFSET(Start,$A29,18):OFFSET(Start,$A29,37)),0) -> 0 | V29: =IF(TODAY()-V$2>0,SUM(OFFSET(Start,$A29,18):OFFSET(Start,$A29,37)),0) -> 0 | W29: =IF(TODAY()-W$2>0,SUM(OFFSET(Start,$A29,18):OFFSET(Start,$A29,37)),0) -> 0 | X29: =IF(TODAY()-X$2>0,SUM(OFFSET(Start,$A29,18):OFFSET(Start,$A29,37)),0) -> 0 | Y29: =IF(TODAY()-Y$2>0,SUM(OFFSET(Start,$A29,18):OFFSET(Start,$A29,37)),0) -> 0 | Z29: =IF(TODAY()-Z$2>0,SUM(OFFSET(Start,$A29,18):OFFSET(Start,$A29,37)),0) -> 0 | AA29: =IF(TODAY()-AA$2>0,SUM(OFFSET(Start,$A29,18):OFFSET(Start,$A29,37)),0) -> 0 | AB29: =IF(TODAY()-AB$2>0,SUM(OFFSET(Start,$A29,18):OFFSET(Start,$A29,37)),0) -> 0 | AC29: =IF(TODAY()-AC$2>0,SUM(OFFSET(Start,$A29,18):OFFSET(Start,$A29,37)),0) -> 0 | AD29: =IF(TODAY()-AD$2>0,SUM(OFFSET(Start,$A29,18):OFFSET(Start,$A29,37)),0) -> 0 | AE29: =IF(TODAY()-AE$2>0,SUM(OFFSET(Start,$A29,18):OFFSET(Start,$A29,37)),0) -> 0 | AF29: =IF(TODAY()-AF$2>0,SUM(OFFSET(Start,$A29,18):OFFSET(Start,$A29,37)),0) -> 0 | AG29: =IF(TODAY()-AG$2>0,SUM(OFFSET(Start,$A29,18):OFFSET(Start,$A29,37)),0) -> 0 | AH29: =IF(TODAY()-AH$2>0,SUM(OFFSET(Start,$A29,18):OFFSET(Start,$A29,37)),0) -> 0 | AI29: =IF(TODAY()-AI$2>0,SUM(OFFSET(Start,$A29,18):OFFSET(Start,$A29,37)),0) -> 0 | AJ29: =IF(TODAY()-AJ$2>0,SUM(OFFSET(Start,$A29,18):OFFSET(Start,$A29,37)),0) -> 0 | AK29: =IF(TODAY()-AK$2>0,SUM(OFFSET(Start,$A29,18):OFFSET(Start,$A29,37)),0) -> 0 | AL29: =IF(TODAY()-AL$2>0,SUM(OFFSET(Start,$A29,18):OFFSET(Start,$A29,37)),0) -> 0 | AM29: 0 | AN29: 0 | AO29: 0
A30: 29 | B30: =OFFSET(Start,'Mellomlagring - antall besøk'!A30,0) -> 0 | C30: =IF(TODAY()-C$2>0,SUM(OFFSET(Start,$A30,18):OFFSET(Start,$A30,37)),0) -> 0 | D30: =IF(TODAY()-D$2>0,SUM(OFFSET(Start,$A30,18):OFFSET(Start,$A30,37)),0) -> 0 | E30: =IF(TODAY()-E$2>0,SUM(OFFSET(Start,$A30,18):OFFSET(Start,$A30,37)),0) -> 0 | F30: =IF(TODAY()-F$2>0,SUM(OFFSET(Start,$A30,18):OFFSET(Start,$A30,37)),0) -> 0 | G30: =IF(TODAY()-G$2>0,SUM(OFFSET(Start,$A30,18):OFFSET(Start,$A30,37)),0) -> 0 | H30: =IF(TODAY()-H$2>0,SUM(OFFSET(Start,$A30,18):OFFSET(Start,$A30,37)),0) -> 0 | I30: =IF(TODAY()-I$2>0,SUM(OFFSET(Start,$A30,18):OFFSET(Start,$A30,37)),0) -> 0 | J30: =IF(TODAY()-J$2>0,SUM(OFFSET(Start,$A30,18):OFFSET(Start,$A30,37)),0) -> 0 | K30: =IF(TODAY()-K$2>0,SUM(OFFSET(Start,$A30,18):OFFSET(Start,$A30,37)),0) -> 0 | L30: =IF(TODAY()-L$2>0,SUM(OFFSET(Start,$A30,18):OFFSET(Start,$A30,37)),0) -> 0 | M30: =IF(TODAY()-M$2>0,SUM(OFFSET(Start,$A30,18):OFFSET(Start,$A30,37)),0) -> 0 | N30: =IF(TODAY()-N$2>0,SUM(OFFSET(Start,$A30,18):OFFSET(Start,$A30,37)),0) -> 0 | O30: =IF(TODAY()-O$2>0,SUM(OFFSET(Start,$A30,18):OFFSET(Start,$A30,37)),0) -> 0 | P30: =IF(TODAY()-P$2>0,SUM(OFFSET(Start,$A30,18):OFFSET(Start,$A30,37)),0) -> 0 | Q30: =IF(TODAY()-Q$2>0,SUM(OFFSET(Start,$A30,18):OFFSET(Start,$A30,37)),0) -> 0 | R30: =IF(TODAY()-R$2>0,SUM(OFFSET(Start,$A30,18):OFFSET(Start,$A30,37)),0) -> 0 | S30: =IF(TODAY()-S$2>0,SUM(OFFSET(Start,$A30,18):OFFSET(Start,$A30,37)),0) -> 0 | T30: =IF(TODAY()-T$2>0,SUM(OFFSET(Start,$A30,18):OFFSET(Start,$A30,37)),0) -> 0 | U30: =IF(TODAY()-U$2>0,SUM(OFFSET(Start,$A30,18):OFFSET(Start,$A30,37)),0) -> 0 | V30: =IF(TODAY()-V$2>0,SUM(OFFSET(Start,$A30,18):OFFSET(Start,$A30,37)),0) -> 0 | W30: =IF(TODAY()-W$2>0,SUM(OFFSET(Start,$A30,18):OFFSET(Start,$A30,37)),0) -> 0 | X30: =IF(TODAY()-X$2>0,SUM(OFFSET(Start,$A30,18):OFFSET(Start,$A30,37)),0) -> 0 | Y30: =IF(TODAY()-Y$2>0,SUM(OFFSET(Start,$A30,18):OFFSET(Start,$A30,37)),0) -> 0 | Z30: =IF(TODAY()-Z$2>0,SUM(OFFSET(Start,$A30,18):OFFSET(Start,$A30,37)),0) -> 0 | AA30: =IF(TODAY()-AA$2>0,SUM(OFFSET(Start,$A30,18):OFFSET(Start,$A30,37)),0) -> 0 | AB30: =IF(TODAY()-AB$2>0,SUM(OFFSET(Start,$A30,18):OFFSET(Start,$A30,37)),0) -> 0 | AC30: =IF(TODAY()-AC$2>0,SUM(OFFSET(Start,$A30,18):OFFSET(Start,$A30,37)),0) -> 0 | AD30: =IF(TODAY()-AD$2>0,SUM(OFFSET(Start,$A30,18):OFFSET(Start,$A30,37)),0) -> 0 | AE30: =IF(TODAY()-AE$2>0,SUM(OFFSET(Start,$A30,18):OFFSET(Start,$A30,37)),0) -> 0 | AF30: =IF(TODAY()-AF$2>0,SUM(OFFSET(Start,$A30,18):OFFSET(Start,$A30,37)),0) -> 0 | AG30: =IF(TODAY()-AG$2>0,SUM(OFFSET(Start,$A30,18):OFFSET(Start,$A30,37)),0) -> 0 | AH30: =IF(TODAY()-AH$2>0,SUM(OFFSET(Start,$A30,18):OFFSET(Start,$A30,37)),0) -> 0 | AI30: =IF(TODAY()-AI$2>0,SUM(OFFSET(Start,$A30,18):OFFSET(Start,$A30,37)),0) -> 0 | AJ30: =IF(TODAY()-AJ$2>0,SUM(OFFSET(Start,$A30,18):OFFSET(Start,$A30,37)),0) -> 0 | AK30: =IF(TODAY()-AK$2>0,SUM(OFFSET(Start,$A30,18):OFFSET(Start,$A30,37)),0) -> 0 | AL30: =IF(TODAY()-AL$2>0,SUM(OFFSET(Start,$A30,18):OFFSET(Start,$A30,37)),0) -> 0 | AM30: 0 | AN30: 0 | AO30: 0
A31: 30 | B31: =OFFSET(Start,'Mellomlagring - antall besøk'!A31,0) -> 0 | C31: =IF(TODAY()-C$2>0,SUM(OFFSET(Start,$A31,18):OFFSET(Start,$A31,37)),0) -> 0 | D31: =IF(TODAY()-D$2>0,SUM(OFFSET(Start,$A31,18):OFFSET(Start,$A31,37)),0) -> 0 | E31: =IF(TODAY()-E$2>0,SUM(OFFSET(Start,$A31,18):OFFSET(Start,$A31,37)),0) -> 0 | F31: =IF(TODAY()-F$2>0,SUM(OFFSET(Start,$A31,18):OFFSET(Start,$A31,37)),0) -> 0 | G31: =IF(TODAY()-G$2>0,SUM(OFFSET(Start,$A31,18):OFFSET(Start,$A31,37)),0) -> 0 | H31: =IF(TODAY()-H$2>0,SUM(OFFSET(Start,$A31,18):OFFSET(Start,$A31,37)),0) -> 0 | I31: =IF(TODAY()-I$2>0,SUM(OFFSET(Start,$A31,18):OFFSET(Start,$A31,37)),0) -> 0 | J31: =IF(TODAY()-J$2>0,SUM(OFFSET(Start,$A31,18):OFFSET(Start,$A31,37)),0) -> 0 | K31: =IF(TODAY()-K$2>0,SUM(OFFSET(Start,$A31,18):OFFSET(Start,$A31,37)),0) -> 0 | L31: =IF(TODAY()-L$2>0,SUM(OFFSET(Start,$A31,18):OFFSET(Start,$A31,37)),0) -> 0 | M31: =IF(TODAY()-M$2>0,SUM(OFFSET(Start,$A31,18):OFFSET(Start,$A31,37)),0) -> 0 | N31: =IF(TODAY()-N$2>0,SUM(OFFSET(Start,$A31,18):OFFSET(Start,$A31,37)),0) -> 0 | O31: =IF(TODAY()-O$2>0,SUM(OFFSET(Start,$A31,18):OFFSET(Start,$A31,37)),0) -> 0 | P31: =IF(TODAY()-P$2>0,SUM(OFFSET(Start,$A31,18):OFFSET(Start,$A31,37)),0) -> 0 | Q31: =IF(TODAY()-Q$2>0,SUM(OFFSET(Start,$A31,18):OFFSET(Start,$A31,37)),0) -> 0 | R31: =IF(TODAY()-R$2>0,SUM(OFFSET(Start,$A31,18):OFFSET(Start,$A31,37)),0) -> 0 | S31: =IF(TODAY()-S$2>0,SUM(OFFSET(Start,$A31,18):OFFSET(Start,$A31,37)),0) -> 0 | T31: =IF(TODAY()-T$2>0,SUM(OFFSET(Start,$A31,18):OFFSET(Start,$A31,37)),0) -> 0 | U31: =IF(TODAY()-U$2>0,SUM(OFFSET(Start,$A31,18):OFFSET(Start,$A31,37)),0) -> 0 | V31: =IF(TODAY()-V$2>0,SUM(OFFSET(Start,$A31,18):OFFSET(Start,$A31,37)),0) -> 0 | W31: =IF(TODAY()-W$2>0,SUM(OFFSET(Start,$A31,18):OFFSET(Start,$A31,37)),0) -> 0 | X31: =IF(TODAY()-X$2>0,SUM(OFFSET(Start,$A31,18):OFFSET(Start,$A31,37)),0) -> 0 | Y31: =IF(TODAY()-Y$2>0,SUM(OFFSET(Start,$A31,18):OFFSET(Start,$A31,37)),0) -> 0 | Z31: =IF(TODAY()-Z$2>0,SUM(OFFSET(Start,$A31,18):OFFSET(Start,$A31,37)),0) -> 0 | AA31: =IF(TODAY()-AA$2>0,SUM(OFFSET(Start,$A31,18):OFFSET(Start,$A31,37)),0) -> 0 | AB31: =IF(TODAY()-AB$2>0,SUM(OFFSET(Start,$A31,18):OFFSET(Start,$A31,37)),0) -> 0 | AC31: =IF(TODAY()-AC$2>0,SUM(OFFSET(Start,$A31,18):OFFSET(Start,$A31,37)),0) -> 0 | AD31: =IF(TODAY()-AD$2>0,SUM(OFFSET(Start,$A31,18):OFFSET(Start,$A31,37)),0) -> 0 | AE31: =IF(TODAY()-AE$2>0,SUM(OFFSET(Start,$A31,18):OFFSET(Start,$A31,37)),0) -> 0 | AF31: =IF(TODAY()-AF$2>0,SUM(OFFSET(Start,$A31,18):OFFSET(Start,$A31,37)),0) -> 0 | AG31: =IF(TODAY()-AG$2>0,SUM(OFFSET(Start,$A31,18):OFFSET(Start,$A31,37)),0) -> 0 | AH31: =IF(TODAY()-AH$2>0,SUM(OFFSET(Start,$A31,18):OFFSET(Start,$A31,37)),0) -> 0 | AI31: =IF(TODAY()-AI$2>0,SUM(OFFSET(Start,$A31,18):OFFSET(Start,$A31,37)),0) -> 0 | AJ31: =IF(TODAY()-AJ$2>0,SUM(OFFSET(Start,$A31,18):OFFSET(Start,$A31,37)),0) -> 0 | AK31: =IF(TODAY()-AK$2>0,SUM(OFFSET(Start,$A31,18):OFFSET(Start,$A31,37)),0) -> 0 | AL31: =IF(TODAY()-AL$2>0,SUM(OFFSET(Start,$A31,18):OFFSET(Start,$A31,37)),0) -> 0 | AM31: 0 | AN31: 0 | AO31: 0
A32: 31 | B32: =OFFSET(Start,'Mellomlagring - antall besøk'!A32,0) -> 0 | C32: =IF(TODAY()-C$2>0,SUM(OFFSET(Start,$A32,18):OFFSET(Start,$A32,37)),0) -> 0 | D32: =IF(TODAY()-D$2>0,SUM(OFFSET(Start,$A32,18):OFFSET(Start,$A32,37)),0) -> 0 | E32: =IF(TODAY()-E$2>0,SUM(OFFSET(Start,$A32,18):OFFSET(Start,$A32,37)),0) -> 0 | F32: =IF(TODAY()-F$2>0,SUM(OFFSET(Start,$A32,18):OFFSET(Start,$A32,37)),0) -> 0 | G32: =IF(TODAY()-G$2>0,SUM(OFFSET(Start,$A32,18):OFFSET(Start,$A32,37)),0) -> 0 | H32: =IF(TODAY()-H$2>0,SUM(OFFSET(Start,$A32,18):OFFSET(Start,$A32,37)),0) -> 0 | I32: =IF(TODAY()-I$2>0,SUM(OFFSET(Start,$A32,18):OFFSET(Start,$A32,37)),0) -> 0 | J32: =IF(TODAY()-J$2>0,SUM(OFFSET(Start,$A32,18):OFFSET(Start,$A32,37)),0) -> 0 | K32: =IF(TODAY()-K$2>0,SUM(OFFSET(Start,$A32,18):OFFSET(Start,$A32,37)),0) -> 0 | L32: =IF(TODAY()-L$2>0,SUM(OFFSET(Start,$A32,18):OFFSET(Start,$A32,37)),0) -> 0 | M32: =IF(TODAY()-M$2>0,SUM(OFFSET(Start,$A32,18):OFFSET(Start,$A32,37)),0) -> 0 | N32: =IF(TODAY()-N$2>0,SUM(OFFSET(Start,$A32,18):OFFSET(Start,$A32,37)),0) -> 0 | O32: =IF(TODAY()-O$2>0,SUM(OFFSET(Start,$A32,18):OFFSET(Start,$A32,37)),0) -> 0 | P32: =IF(TODAY()-P$2>0,SUM(OFFSET(Start,$A32,18):OFFSET(Start,$A32,37)),0) -> 0 | Q32: =IF(TODAY()-Q$2>0,SUM(OFFSET(Start,$A32,18):OFFSET(Start,$A32,37)),0) -> 0 | R32: =IF(TODAY()-R$2>0,SUM(OFFSET(Start,$A32,18):OFFSET(Start,$A32,37)),0) -> 0 | S32: =IF(TODAY()-S$2>0,SUM(OFFSET(Start,$A32,18):OFFSET(Start,$A32,37)),0) -> 0 | T32: =IF(TODAY()-T$2>0,SUM(OFFSET(Start,$A32,18):OFFSET(Start,$A32,37)),0) -> 0 | U32: =IF(TODAY()-U$2>0,SUM(OFFSET(Start,$A32,18):OFFSET(Start,$A32,37)),0) -> 0 | V32: =IF(TODAY()-V$2>0,SUM(OFFSET(Start,$A32,18):OFFSET(Start,$A32,37)),0) -> 0 | W32: =IF(TODAY()-W$2>0,SUM(OFFSET(Start,$A32,18):OFFSET(Start,$A32,37)),0) -> 0 | X32: =IF(TODAY()-X$2>0,SUM(OFFSET(Start,$A32,18):OFFSET(Start,$A32,37)),0) -> 0 | Y32: =IF(TODAY()-Y$2>0,SUM(OFFSET(Start,$A32,18):OFFSET(Start,$A32,37)),0) -> 0 | Z32: =IF(TODAY()-Z$2>0,SUM(OFFSET(Start,$A32,18):OFFSET(Start,$A32,37)),0) -> 0 | AA32: =IF(TODAY()-AA$2>0,SUM(OFFSET(Start,$A32,18):OFFSET(Start,$A32,37)),0) -> 0 | AB32: =IF(TODAY()-AB$2>0,SUM(OFFSET(Start,$A32,18):OFFSET(Start,$A32,37)),0) -> 0 | AC32: =IF(TODAY()-AC$2>0,SUM(OFFSET(Start,$A32,18):OFFSET(Start,$A32,37)),0) -> 0 | AD32: =IF(TODAY()-AD$2>0,SUM(OFFSET(Start,$A32,18):OFFSET(Start,$A32,37)),0) -> 0 | AE32: =IF(TODAY()-AE$2>0,SUM(OFFSET(Start,$A32,18):OFFSET(Start,$A32,37)),0) -> 0 | AF32: =IF(TODAY()-AF$2>0,SUM(OFFSET(Start,$A32,18):OFFSET(Start,$A32,37)),0) -> 0 | AG32: =IF(TODAY()-AG$2>0,SUM(OFFSET(Start,$A32,18):OFFSET(Start,$A32,37)),0) -> 0 | AH32: =IF(TODAY()-AH$2>0,SUM(OFFSET(Start,$A32,18):OFFSET(Start,$A32,37)),0) -> 0 | AI32: =IF(TODAY()-AI$2>0,SUM(OFFSET(Start,$A32,18):OFFSET(Start,$A32,37)),0) -> 0 | AJ32: =IF(TODAY()-AJ$2>0,SUM(OFFSET(Start,$A32,18):OFFSET(Start,$A32,37)),0) -> 0 | AK32: =IF(TODAY()-AK$2>0,SUM(OFFSET(Start,$A32,18):OFFSET(Start,$A32,37)),0) -> 0 | AL32: =IF(TODAY()-AL$2>0,SUM(OFFSET(Start,$A32,18):OFFSET(Start,$A32,37)),0) -> 0 | AM32: 0 | AN32: 0 | AO32: 0
A33: 32 | B33: =OFFSET(Start,'Mellomlagring - antall besøk'!A33,0) -> 0 | C33: =IF(TODAY()-C$2>0,SUM(OFFSET(Start,$A33,18):OFFSET(Start,$A33,37)),0) -> 0 | D33: =IF(TODAY()-D$2>0,SUM(OFFSET(Start,$A33,18):OFFSET(Start,$A33,37)),0) -> 0 | E33: =IF(TODAY()-E$2>0,SUM(OFFSET(Start,$A33,18):OFFSET(Start,$A33,37)),0) -> 0 | F33: =IF(TODAY()-F$2>0,SUM(OFFSET(Start,$A33,18):OFFSET(Start,$A33,37)),0) -> 0 | G33: =IF(TODAY()-G$2>0,SUM(OFFSET(Start,$A33,18):OFFSET(Start,$A33,37)),0) -> 0 | H33: =IF(TODAY()-H$2>0,SUM(OFFSET(Start,$A33,18):OFFSET(Start,$A33,37)),0) -> 0 | I33: =IF(TODAY()-I$2>0,SUM(OFFSET(Start,$A33,18):OFFSET(Start,$A33,37)),0) -> 0 | J33: =IF(TODAY()-J$2>0,SUM(OFFSET(Start,$A33,18):OFFSET(Start,$A33,37)),0) -> 0 | K33: =IF(TODAY()-K$2>0,SUM(OFFSET(Start,$A33,18):OFFSET(Start,$A33,37)),0) -> 0 | L33: =IF(TODAY()-L$2>0,SUM(OFFSET(Start,$A33,18):OFFSET(Start,$A33,37)),0) -> 0 | M33: =IF(TODAY()-M$2>0,SUM(OFFSET(Start,$A33,18):OFFSET(Start,$A33,37)),0) -> 0 | N33: =IF(TODAY()-N$2>0,SUM(OFFSET(Start,$A33,18):OFFSET(Start,$A33,37)),0) -> 0 | O33: =IF(TODAY()-O$2>0,SUM(OFFSET(Start,$A33,18):OFFSET(Start,$A33,37)),0) -> 0 | P33: =IF(TODAY()-P$2>0,SUM(OFFSET(Start,$A33,18):OFFSET(Start,$A33,37)),0) -> 0 | Q33: =IF(TODAY()-Q$2>0,SUM(OFFSET(Start,$A33,18):OFFSET(Start,$A33,37)),0) -> 0 | R33: =IF(TODAY()-R$2>0,SUM(OFFSET(Start,$A33,18):OFFSET(Start,$A33,37)),0) -> 0 | S33: =IF(TODAY()-S$2>0,SUM(OFFSET(Start,$A33,18):OFFSET(Start,$A33,37)),0) -> 0 | T33: =IF(TODAY()-T$2>0,SUM(OFFSET(Start,$A33,18):OFFSET(Start,$A33,37)),0) -> 0 | U33: =IF(TODAY()-U$2>0,SUM(OFFSET(Start,$A33,18):OFFSET(Start,$A33,37)),0) -> 0 | V33: =IF(TODAY()-V$2>0,SUM(OFFSET(Start,$A33,18):OFFSET(Start,$A33,37)),0) -> 0 | W33: =IF(TODAY()-W$2>0,SUM(OFFSET(Start,$A33,18):OFFSET(Start,$A33,37)),0) -> 0 | X33: =IF(TODAY()-X$2>0,SUM(OFFSET(Start,$A33,18):OFFSET(Start,$A33,37)),0) -> 0 | Y33: =IF(TODAY()-Y$2>0,SUM(OFFSET(Start,$A33,18):OFFSET(Start,$A33,37)),0) -> 0 | Z33: =IF(TODAY()-Z$2>0,SUM(OFFSET(Start,$A33,18):OFFSET(Start,$A33,37)),0) -> 0 | AA33: =IF(TODAY()-AA$2>0,SUM(OFFSET(Start,$A33,18):OFFSET(Start,$A33,37)),0) -> 0 | AB33: =IF(TODAY()-AB$2>0,SUM(OFFSET(Start,$A33,18):OFFSET(Start,$A33,37)),0) -> 0 | AC33: =IF(TODAY()-AC$2>0,SUM(OFFSET(Start,$A33,18):OFFSET(Start,$A33,37)),0) -> 0 | AD33: =IF(TODAY()-AD$2>0,SUM(OFFSET(Start,$A33,18):OFFSET(Start,$A33,37)),0) -> 0 | AE33: =IF(TODAY()-AE$2>0,SUM(OFFSET(Start,$A33,18):OFFSET(Start,$A33,37)),0) -> 0 | AF33: =IF(TODAY()-AF$2>0,SUM(OFFSET(Start,$A33,18):OFFSET(Start,$A33,37)),0) -> 0 | AG33: =IF(TODAY()-AG$2>0,SUM(OFFSET(Start,$A33,18):OFFSET(Start,$A33,37)),0) -> 0 | AH33: =IF(TODAY()-AH$2>0,SUM(OFFSET(Start,$A33,18):OFFSET(Start,$A33,37)),0) -> 0 | AI33: =IF(TODAY()-AI$2>0,SUM(OFFSET(Start,$A33,18):OFFSET(Start,$A33,37)),0) -> 0 | AJ33: =IF(TODAY()-AJ$2>0,SUM(OFFSET(Start,$A33,18):OFFSET(Start,$A33,37)),0) -> 0 | AK33: =IF(TODAY()-AK$2>0,SUM(OFFSET(Start,$A33,18):OFFSET(Start,$A33,37)),0) -> 0 | AL33: =IF(TODAY()-AL$2>0,SUM(OFFSET(Start,$A33,18):OFFSET(Start,$A33,37)),0) -> 0 | AM33: 0 | AN33: 0 | AO33: 0
A34: 33 | B34: =OFFSET(Start,'Mellomlagring - antall besøk'!A34,0) -> 0 | C34: =IF(TODAY()-C$2>0,SUM(OFFSET(Start,$A34,18):OFFSET(Start,$A34,37)),0) -> 0 | D34: =IF(TODAY()-D$2>0,SUM(OFFSET(Start,$A34,18):OFFSET(Start,$A34,37)),0) -> 0 | E34: =IF(TODAY()-E$2>0,SUM(OFFSET(Start,$A34,18):OFFSET(Start,$A34,37)),0) -> 0 | F34: =IF(TODAY()-F$2>0,SUM(OFFSET(Start,$A34,18):OFFSET(Start,$A34,37)),0) -> 0 | G34: =IF(TODAY()-G$2>0,SUM(OFFSET(Start,$A34,18):OFFSET(Start,$A34,37)),0) -> 0 | H34: =IF(TODAY()-H$2>0,SUM(OFFSET(Start,$A34,18):OFFSET(Start,$A34,37)),0) -> 0 | I34: =IF(TODAY()-I$2>0,SUM(OFFSET(Start,$A34,18):OFFSET(Start,$A34,37)),0) -> 0 | J34: =IF(TODAY()-J$2>0,SUM(OFFSET(Start,$A34,18):OFFSET(Start,$A34,37)),0) -> 0 | K34: =IF(TODAY()-K$2>0,SUM(OFFSET(Start,$A34,18):OFFSET(Start,$A34,37)),0) -> 0 | L34: =IF(TODAY()-L$2>0,SUM(OFFSET(Start,$A34,18):OFFSET(Start,$A34,37)),0) -> 0 | M34: =IF(TODAY()-M$2>0,SUM(OFFSET(Start,$A34,18):OFFSET(Start,$A34,37)),0) -> 0 | N34: =IF(TODAY()-N$2>0,SUM(OFFSET(Start,$A34,18):OFFSET(Start,$A34,37)),0) -> 0 | O34: =IF(TODAY()-O$2>0,SUM(OFFSET(Start,$A34,18):OFFSET(Start,$A34,37)),0) -> 0 | P34: =IF(TODAY()-P$2>0,SUM(OFFSET(Start,$A34,18):OFFSET(Start,$A34,37)),0) -> 0 | Q34: =IF(TODAY()-Q$2>0,SUM(OFFSET(Start,$A34,18):OFFSET(Start,$A34,37)),0) -> 0 | R34: =IF(TODAY()-R$2>0,SUM(OFFSET(Start,$A34,18):OFFSET(Start,$A34,37)),0) -> 0 | S34: =IF(TODAY()-S$2>0,SUM(OFFSET(Start,$A34,18):OFFSET(Start,$A34,37)),0) -> 0 | T34: =IF(TODAY()-T$2>0,SUM(OFFSET(Start,$A34,18):OFFSET(Start,$A34,37)),0) -> 0 | U34: =IF(TODAY()-U$2>0,SUM(OFFSET(Start,$A34,18):OFFSET(Start,$A34,37)),0) -> 0 | V34: =IF(TODAY()-V$2>0,SUM(OFFSET(Start,$A34,18):OFFSET(Start,$A34,37)),0) -> 0 | W34: =IF(TODAY()-W$2>0,SUM(OFFSET(Start,$A34,18):OFFSET(Start,$A34,37)),0) -> 0 | X34: =IF(TODAY()-X$2>0,SUM(OFFSET(Start,$A34,18):OFFSET(Start,$A34,37)),0) -> 0 | Y34: =IF(TODAY()-Y$2>0,SUM(OFFSET(Start,$A34,18):OFFSET(Start,$A34,37)),0) -> 0 | Z34: =IF(TODAY()-Z$2>0,SUM(OFFSET(Start,$A34,18):OFFSET(Start,$A34,37)),0) -> 0 | AA34: =IF(TODAY()-AA$2>0,SUM(OFFSET(Start,$A34,18):OFFSET(Start,$A34,37)),0) -> 0 | AB34: =IF(TODAY()-AB$2>0,SUM(OFFSET(Start,$A34,18):OFFSET(Start,$A34,37)),0) -> 0 | AC34: =IF(TODAY()-AC$2>0,SUM(OFFSET(Start,$A34,18):OFFSET(Start,$A34,37)),0) -> 0 | AD34: =IF(TODAY()-AD$2>0,SUM(OFFSET(Start,$A34,18):OFFSET(Start,$A34,37)),0) -> 0 | AE34: =IF(TODAY()-AE$2>0,SUM(OFFSET(Start,$A34,18):OFFSET(Start,$A34,37)),0) -> 0 | AF34: =IF(TODAY()-AF$2>0,SUM(OFFSET(Start,$A34,18):OFFSET(Start,$A34,37)),0) -> 0 | AG34: =IF(TODAY()-AG$2>0,SUM(OFFSET(Start,$A34,18):OFFSET(Start,$A34,37)),0) -> 0 | AH34: =IF(TODAY()-AH$2>0,SUM(OFFSET(Start,$A34,18):OFFSET(Start,$A34,37)),0) -> 0 | AI34: =IF(TODAY()-AI$2>0,SUM(OFFSET(Start,$A34,18):OFFSET(Start,$A34,37)),0) -> 0 | AJ34: =IF(TODAY()-AJ$2>0,SUM(OFFSET(Start,$A34,18):OFFSET(Start,$A34,37)),0) -> 0 | AK34: =IF(TODAY()-AK$2>0,SUM(OFFSET(Start,$A34,18):OFFSET(Start,$A34,37)),0) -> 0 | AL34: =IF(TODAY()-AL$2>0,SUM(OFFSET(Start,$A34,18):OFFSET(Start,$A34,37)),0) -> 0 | AM34: 0 | AN34: 0 | AO34: 0
A35: 34 | B35: =OFFSET(Start,'Mellomlagring - antall besøk'!A35,0) -> 0 | C35: =IF(TODAY()-C$2>0,SUM(OFFSET(Start,$A35,18):OFFSET(Start,$A35,37)),0) -> 0 | D35: =IF(TODAY()-D$2>0,SUM(OFFSET(Start,$A35,18):OFFSET(Start,$A35,37)),0) -> 0 | E35: =IF(TODAY()-E$2>0,SUM(OFFSET(Start,$A35,18):OFFSET(Start,$A35,37)),0) -> 0 | F35: =IF(TODAY()-F$2>0,SUM(OFFSET(Start,$A35,18):OFFSET(Start,$A35,37)),0) -> 0 | G35: =IF(TODAY()-G$2>0,SUM(OFFSET(Start,$A35,18):OFFSET(Start,$A35,37)),0) -> 0 | H35: =IF(TODAY()-H$2>0,SUM(OFFSET(Start,$A35,18):OFFSET(Start,$A35,37)),0) -> 0 | I35: =IF(TODAY()-I$2>0,SUM(OFFSET(Start,$A35,18):OFFSET(Start,$A35,37)),0) -> 0 | J35: =IF(TODAY()-J$2>0,SUM(OFFSET(Start,$A35,18):OFFSET(Start,$A35,37)),0) -> 0 | K35: =IF(TODAY()-K$2>0,SUM(OFFSET(Start,$A35,18):OFFSET(Start,$A35,37)),0) -> 0 | L35: =IF(TODAY()-L$2>0,SUM(OFFSET(Start,$A35,18):OFFSET(Start,$A35,37)),0) -> 0 | M35: =IF(TODAY()-M$2>0,SUM(OFFSET(Start,$A35,18):OFFSET(Start,$A35,37)),0) -> 0 | N35: =IF(TODAY()-N$2>0,SUM(OFFSET(Start,$A35,18):OFFSET(Start,$A35,37)),0) -> 0 | O35: =IF(TODAY()-O$2>0,SUM(OFFSET(Start,$A35,18):OFFSET(Start,$A35,37)),0) -> 0 | P35: =IF(TODAY()-P$2>0,SUM(OFFSET(Start,$A35,18):OFFSET(Start,$A35,37)),0) -> 0 | Q35: =IF(TODAY()-Q$2>0,SUM(OFFSET(Start,$A35,18):OFFSET(Start,$A35,37)),0) -> 0 | R35: =IF(TODAY()-R$2>0,SUM(OFFSET(Start,$A35,18):OFFSET(Start,$A35,37)),0) -> 0 | S35: =IF(TODAY()-S$2>0,SUM(OFFSET(Start,$A35,18):OFFSET(Start,$A35,37)),0) -> 0 | T35: =IF(TODAY()-T$2>0,SUM(OFFSET(Start,$A35,18):OFFSET(Start,$A35,37)),0) -> 0 | U35: =IF(TODAY()-U$2>0,SUM(OFFSET(Start,$A35,18):OFFSET(Start,$A35,37)),0) -> 0 | V35: =IF(TODAY()-V$2>0,SUM(OFFSET(Start,$A35,18):OFFSET(Start,$A35,37)),0) -> 0 | W35: =IF(TODAY()-W$2>0,SUM(OFFSET(Start,$A35,18):OFFSET(Start,$A35,37)),0) -> 0 | X35: =IF(TODAY()-X$2>0,SUM(OFFSET(Start,$A35,18):OFFSET(Start,$A35,37)),0) -> 0 | Y35: =IF(TODAY()-Y$2>0,SUM(OFFSET(Start,$A35,18):OFFSET(Start,$A35,37)),0) -> 0 | Z35: =IF(TODAY()-Z$2>0,SUM(OFFSET(Start,$A35,18):OFFSET(Start,$A35,37)),0) -> 0 | AA35: =IF(TODAY()-AA$2>0,SUM(OFFSET(Start,$A35,18):OFFSET(Start,$A35,37)),0) -> 0 | AB35: =IF(TODAY()-AB$2>0,SUM(OFFSET(Start,$A35,18):OFFSET(Start,$A35,37)),0) -> 0 | AC35: =IF(TODAY()-AC$2>0,SUM(OFFSET(Start,$A35,18):OFFSET(Start,$A35,37)),0) -> 0 | AD35: =IF(TODAY()-AD$2>0,SUM(OFFSET(Start,$A35,18):OFFSET(Start,$A35,37)),0) -> 0 | AE35: =IF(TODAY()-AE$2>0,SUM(OFFSET(Start,$A35,18):OFFSET(Start,$A35,37)),0) -> 0 | AF35: =IF(TODAY()-AF$2>0,SUM(OFFSET(Start,$A35,18):OFFSET(Start,$A35,37)),0) -> 0 | AG35: =IF(TODAY()-AG$2>0,SUM(OFFSET(Start,$A35,18):OFFSET(Start,$A35,37)),0) -> 0 | AH35: =IF(TODAY()-AH$2>0,SUM(OFFSET(Start,$A35,18):OFFSET(Start,$A35,37)),0) -> 0 | AI35: =IF(TODAY()-AI$2>0,SUM(OFFSET(Start,$A35,18):OFFSET(Start,$A35,37)),0) -> 0 | AJ35: =IF(TODAY()-AJ$2>0,SUM(OFFSET(Start,$A35,18):OFFSET(Start,$A35,37)),0) -> 0 | AK35: =IF(TODAY()-AK$2>0,SUM(OFFSET(Start,$A35,18):OFFSET(Start,$A35,37)),0) -> 0 | AL35: =IF(TODAY()-AL$2>0,SUM(OFFSET(Start,$A35,18):OFFSET(Start,$A35,37)),0) -> 0 | AM35: 0 | AN35: =OFFSET(Start,$A35,3)+OFFSET(Start,$A35,4)+OFFSET(Start,$A35,17) -> 0 | AO35: 0
A36: 35 | B36: =OFFSET(Start,'Mellomlagring - antall besøk'!A36,0) -> 0 | C36: =IF(TODAY()-C$2>0,SUM(OFFSET(Start,$A36,18):OFFSET(Start,$A36,37)),0) -> 0 | D36: =IF(TODAY()-D$2>0,SUM(OFFSET(Start,$A36,18):OFFSET(Start,$A36,37)),0) -> 0 | E36: =IF(TODAY()-E$2>0,SUM(OFFSET(Start,$A36,18):OFFSET(Start,$A36,37)),0) -> 0 | F36: =IF(TODAY()-F$2>0,SUM(OFFSET(Start,$A36,18):OFFSET(Start,$A36,37)),0) -> 0 | G36: =IF(TODAY()-G$2>0,SUM(OFFSET(Start,$A36,18):OFFSET(Start,$A36,37)),0) -> 0 | H36: =IF(TODAY()-H$2>0,SUM(OFFSET(Start,$A36,18):OFFSET(Start,$A36,37)),0) -> 0 | I36: =IF(TODAY()-I$2>0,SUM(OFFSET(Start,$A36,18):OFFSET(Start,$A36,37)),0) -> 0 | J36: =IF(TODAY()-J$2>0,SUM(OFFSET(Start,$A36,18):OFFSET(Start,$A36,37)),0) -> 0 | K36: =IF(TODAY()-K$2>0,SUM(OFFSET(Start,$A36,18):OFFSET(Start,$A36,37)),0) -> 0 | L36: =IF(TODAY()-L$2>0,SUM(OFFSET(Start,$A36,18):OFFSET(Start,$A36,37)),0) -> 0 | M36: =IF(TODAY()-M$2>0,SUM(OFFSET(Start,$A36,18):OFFSET(Start,$A36,37)),0) -> 0 | N36: =IF(TODAY()-N$2>0,SUM(OFFSET(Start,$A36,18):OFFSET(Start,$A36,37)),0) -> 0 | O36: =IF(TODAY()-O$2>0,SUM(OFFSET(Start,$A36,18):OFFSET(Start,$A36,37)),0) -> 0 | P36: =IF(TODAY()-P$2>0,SUM(OFFSET(Start,$A36,18):OFFSET(Start,$A36,37)),0) -> 0 | Q36: =IF(TODAY()-Q$2>0,SUM(OFFSET(Start,$A36,18):OFFSET(Start,$A36,37)),0) -> 0 | R36: =IF(TODAY()-R$2>0,SUM(OFFSET(Start,$A36,18):OFFSET(Start,$A36,37)),0) -> 0 | S36: =IF(TODAY()-S$2>0,SUM(OFFSET(Start,$A36,18):OFFSET(Start,$A36,37)),0) -> 0 | T36: =IF(TODAY()-T$2>0,SUM(OFFSET(Start,$A36,18):OFFSET(Start,$A36,37)),0) -> 0 | U36: =IF(TODAY()-U$2>0,SUM(OFFSET(Start,$A36,18):OFFSET(Start,$A36,37)),0) -> 0 | V36: =IF(TODAY()-V$2>0,SUM(OFFSET(Start,$A36,18):OFFSET(Start,$A36,37)),0) -> 0 | W36: =IF(TODAY()-W$2>0,SUM(OFFSET(Start,$A36,18):OFFSET(Start,$A36,37)),0) -> 0 | X36: =IF(TODAY()-X$2>0,SUM(OFFSET(Start,$A36,18):OFFSET(Start,$A36,37)),0) -> 0 | Y36: =IF(TODAY()-Y$2>0,SUM(OFFSET(Start,$A36,18):OFFSET(Start,$A36,37)),0) -> 0 | Z36: =IF(TODAY()-Z$2>0,SUM(OFFSET(Start,$A36,18):OFFSET(Start,$A36,37)),0) -> 0 | AA36: =IF(TODAY()-AA$2>0,SUM(OFFSET(Start,$A36,18):OFFSET(Start,$A36,37)),0) -> 0 | AB36: =IF(TODAY()-AB$2>0,SUM(OFFSET(Start,$A36,18):OFFSET(Start,$A36,37)),0) -> 0 | AC36: =IF(TODAY()-AC$2>0,SUM(OFFSET(Start,$A36,18):OFFSET(Start,$A36,37)),0) -> 0 | AD36: =IF(TODAY()-AD$2>0,SUM(OFFSET(Start,$A36,18):OFFSET(Start,$A36,37)),0) -> 0 | AE36: =IF(TODAY()-AE$2>0,SUM(OFFSET(Start,$A36,18):OFFSET(Start,$A36,37)),0) -> 0 | AF36: =IF(TODAY()-AF$2>0,SUM(OFFSET(Start,$A36,18):OFFSET(Start,$A36,37)),0) -> 0 | AG36: =IF(TODAY()-AG$2>0,SUM(OFFSET(Start,$A36,18):OFFSET(Start,$A36,37)),0) -> 0 | AH36: =IF(TODAY()-AH$2>0,SUM(OFFSET(Start,$A36,18):OFFSET(Start,$A36,37)),0) -> 0 | AI36: =IF(TODAY()-AI$2>0,SUM(OFFSET(Start,$A36,18):OFFSET(Start,$A36,37)),0) -> 0 | AJ36: =IF(TODAY()-AJ$2>0,SUM(OFFSET(Start,$A36,18):OFFSET(Start,$A36,37)),0) -> 0 | AK36: =IF(TODAY()-AK$2>0,SUM(OFFSET(Start,$A36,18):OFFSET(Start,$A36,37)),0) -> 0 | AL36: =IF(TODAY()-AL$2>0,SUM(OFFSET(Start,$A36,18):OFFSET(Start,$A36,37)),0) -> 0 | AM36: 0 | AN36: 0 | AO36: 0
A37: 36 | B37: =OFFSET(Start,'Mellomlagring - antall besøk'!A37,0) -> 0 | C37: =IF(TODAY()-C$2>0,SUM(OFFSET(Start,$A37,18):OFFSET(Start,$A37,37)),0) -> 0 | D37: =IF(TODAY()-D$2>0,SUM(OFFSET(Start,$A37,18):OFFSET(Start,$A37,37)),0) -> 0 | E37: =IF(TODAY()-E$2>0,SUM(OFFSET(Start,$A37,18):OFFSET(Start,$A37,37)),0) -> 0 | F37: =IF(TODAY()-F$2>0,SUM(OFFSET(Start,$A37,18):OFFSET(Start,$A37,37)),0) -> 0 | G37: =IF(TODAY()-G$2>0,SUM(OFFSET(Start,$A37,18):OFFSET(Start,$A37,37)),0) -> 0 | H37: =IF(TODAY()-H$2>0,SUM(OFFSET(Start,$A37,18):OFFSET(Start,$A37,37)),0) -> 0 | I37: =IF(TODAY()-I$2>0,SUM(OFFSET(Start,$A37,18):OFFSET(Start,$A37,37)),0) -> 0 | J37: =IF(TODAY()-J$2>0,SUM(OFFSET(Start,$A37,18):OFFSET(Start,$A37,37)),0) -> 0 | K37: =IF(TODAY()-K$2>0,SUM(OFFSET(Start,$A37,18):OFFSET(Start,$A37,37)),0) -> 0 | L37: =IF(TODAY()-L$2>0,SUM(OFFSET(Start,$A37,18):OFFSET(Start,$A37,37)),0) -> 0 | M37: =IF(TODAY()-M$2>0,SUM(OFFSET(Start,$A37,18):OFFSET(Start,$A37,37)),0) -> 0 | N37: =IF(TODAY()-N$2>0,SUM(OFFSET(Start,$A37,18):OFFSET(Start,$A37,37)),0) -> 0 | O37: =IF(TODAY()-O$2>0,SUM(OFFSET(Start,$A37,18):OFFSET(Start,$A37,37)),0) -> 0 | P37: =IF(TODAY()-P$2>0,SUM(OFFSET(Start,$A37,18):OFFSET(Start,$A37,37)),0) -> 0 | Q37: =IF(TODAY()-Q$2>0,SUM(OFFSET(Start,$A37,18):OFFSET(Start,$A37,37)),0) -> 0 | R37: =IF(TODAY()-R$2>0,SUM(OFFSET(Start,$A37,18):OFFSET(Start,$A37,37)),0) -> 0 | S37: =IF(TODAY()-S$2>0,SUM(OFFSET(Start,$A37,18):OFFSET(Start,$A37,37)),0) -> 0 | T37: =IF(TODAY()-T$2>0,SUM(OFFSET(Start,$A37,18):OFFSET(Start,$A37,37)),0) -> 0 | U37: =IF(TODAY()-U$2>0,SUM(OFFSET(Start,$A37,18):OFFSET(Start,$A37,37)),0) -> 0 | V37: =IF(TODAY()-V$2>0,SUM(OFFSET(Start,$A37,18):OFFSET(Start,$A37,37)),0) -> 0 | W37: =IF(TODAY()-W$2>0,SUM(OFFSET(Start,$A37,18):OFFSET(Start,$A37,37)),0) -> 0 | X37: =IF(TODAY()-X$2>0,SUM(OFFSET(Start,$A37,18):OFFSET(Start,$A37,37)),0) -> 0 | Y37: =IF(TODAY()-Y$2>0,SUM(OFFSET(Start,$A37,18):OFFSET(Start,$A37,37)),0) -> 0 | Z37: =IF(TODAY()-Z$2>0,SUM(OFFSET(Start,$A37,18):OFFSET(Start,$A37,37)),0) -> 0 | AA37: =IF(TODAY()-AA$2>0,SUM(OFFSET(Start,$A37,18):OFFSET(Start,$A37,37)),0) -> 0 | AB37: =IF(TODAY()-AB$2>0,SUM(OFFSET(Start,$A37,18):OFFSET(Start,$A37,37)),0) -> 0 | AC37: =IF(TODAY()-AC$2>0,SUM(OFFSET(Start,$A37,18):OFFSET(Start,$A37,37)),0) -> 0 | AD37: =IF(TODAY()-AD$2>0,SUM(OFFSET(Start,$A37,18):OFFSET(Start,$A37,37)),0) -> 0 | AE37: =IF(TODAY()-AE$2>0,SUM(OFFSET(Start,$A37,18):OFFSET(Start,$A37,37)),0) -> 0 | AF37: =IF(TODAY()-AF$2>0,SUM(OFFSET(Start,$A37,18):OFFSET(Start,$A37,37)),0) -> 0 | AG37: =IF(TODAY()-AG$2>0,SUM(OFFSET(Start,$A37,18):OFFSET(Start,$A37,37)),0) -> 0 | AH37: =IF(TODAY()-AH$2>0,SUM(OFFSET(Start,$A37,18):OFFSET(Start,$A37,37)),0) -> 0 | AI37: =IF(TODAY()-AI$2>0,SUM(OFFSET(Start,$A37,18):OFFSET(Start,$A37,37)),0) -> 0 | AJ37: =IF(TODAY()-AJ$2>0,SUM(OFFSET(Start,$A37,18):OFFSET(Start,$A37,37)),0) -> 0 | AK37: =IF(TODAY()-AK$2>0,SUM(OFFSET(Start,$A37,18):OFFSET(Start,$A37,37)),0) -> 0 | AL37: =IF(TODAY()-AL$2>0,SUM(OFFSET(Start,$A37,18):OFFSET(Start,$A37,37)),0) -> 0 | AM37: 0 | AN37: 0 | AO37: 0
A38: 37 | B38: =OFFSET(Start,'Mellomlagring - antall besøk'!A38,0) -> 0 | C38: =IF(TODAY()-C$2>0,SUM(OFFSET(Start,$A38,18):OFFSET(Start,$A38,37)),0) -> 0 | D38: =IF(TODAY()-D$2>0,SUM(OFFSET(Start,$A38,18):OFFSET(Start,$A38,37)),0) -> 0 | E38: =IF(TODAY()-E$2>0,SUM(OFFSET(Start,$A38,18):OFFSET(Start,$A38,37)),0) -> 0 | F38: =IF(TODAY()-F$2>0,SUM(OFFSET(Start,$A38,18):OFFSET(Start,$A38,37)),0) -> 0 | G38: =IF(TODAY()-G$2>0,SUM(OFFSET(Start,$A38,18):OFFSET(Start,$A38,37)),0) -> 0 | H38: =IF(TODAY()-H$2>0,SUM(OFFSET(Start,$A38,18):OFFSET(Start,$A38,37)),0) -> 0 | I38: =IF(TODAY()-I$2>0,SUM(OFFSET(Start,$A38,18):OFFSET(Start,$A38,37)),0) -> 0 | J38: =IF(TODAY()-J$2>0,SUM(OFFSET(Start,$A38,18):OFFSET(Start,$A38,37)),0) -> 0 | K38: =IF(TODAY()-K$2>0,SUM(OFFSET(Start,$A38,18):OFFSET(Start,$A38,37)),0) -> 0 | L38: =IF(TODAY()-L$2>0,SUM(OFFSET(Start,$A38,18):OFFSET(Start,$A38,37)),0) -> 0 | M38: =IF(TODAY()-M$2>0,SUM(OFFSET(Start,$A38,18):OFFSET(Start,$A38,37)),0) -> 0 | N38: =IF(TODAY()-N$2>0,SUM(OFFSET(Start,$A38,18):OFFSET(Start,$A38,37)),0) -> 0 | O38: =IF(TODAY()-O$2>0,SUM(OFFSET(Start,$A38,18):OFFSET(Start,$A38,37)),0) -> 0 | P38: =IF(TODAY()-P$2>0,SUM(OFFSET(Start,$A38,18):OFFSET(Start,$A38,37)),0) -> 0 | Q38: =IF(TODAY()-Q$2>0,SUM(OFFSET(Start,$A38,18):OFFSET(Start,$A38,37)),0) -> 0 | R38: =IF(TODAY()-R$2>0,SUM(OFFSET(Start,$A38,18):OFFSET(Start,$A38,37)),0) -> 0 | S38: =IF(TODAY()-S$2>0,SUM(OFFSET(Start,$A38,18):OFFSET(Start,$A38,37)),0) -> 0 | T38: =IF(TODAY()-T$2>0,SUM(OFFSET(Start,$A38,18):OFFSET(Start,$A38,37)),0) -> 0 | U38: =IF(TODAY()-U$2>0,SUM(OFFSET(Start,$A38,18):OFFSET(Start,$A38,37)),0) -> 0 | V38: =IF(TODAY()-V$2>0,SUM(OFFSET(Start,$A38,18):OFFSET(Start,$A38,37)),0) -> 0 | W38: =IF(TODAY()-W$2>0,SUM(OFFSET(Start,$A38,18):OFFSET(Start,$A38,37)),0) -> 0 | X38: =IF(TODAY()-X$2>0,SUM(OFFSET(Start,$A38,18):OFFSET(Start,$A38,37)),0) -> 0 | Y38: =IF(TODAY()-Y$2>0,SUM(OFFSET(Start,$A38,18):OFFSET(Start,$A38,37)),0) -> 0 | Z38: =IF(TODAY()-Z$2>0,SUM(OFFSET(Start,$A38,18):OFFSET(Start,$A38,37)),0) -> 0 | AA38: =IF(TODAY()-AA$2>0,SUM(OFFSET(Start,$A38,18):OFFSET(Start,$A38,37)),0) -> 0 | AB38: =IF(TODAY()-AB$2>0,SUM(OFFSET(Start,$A38,18):OFFSET(Start,$A38,37)),0) -> 0 | AC38: =IF(TODAY()-AC$2>0,SUM(OFFSET(Start,$A38,18):OFFSET(Start,$A38,37)),0) -> 0 | AD38: =IF(TODAY()-AD$2>0,SUM(OFFSET(Start,$A38,18):OFFSET(Start,$A38,37)),0) -> 0 | AE38: =IF(TODAY()-AE$2>0,SUM(OFFSET(Start,$A38,18):OFFSET(Start,$A38,37)),0) -> 0 | AF38: =IF(TODAY()-AF$2>0,SUM(OFFSET(Start,$A38,18):OFFSET(Start,$A38,37)),0) -> 0 | AG38: =IF(TODAY()-AG$2>0,SUM(OFFSET(Start,$A38,18):OFFSET(Start,$A38,37)),0) -> 0 | AH38: =IF(TODAY()-AH$2>0,SUM(OFFSET(Start,$A38,18):OFFSET(Start,$A38,37)),0) -> 0 | AI38: =IF(TODAY()-AI$2>0,SUM(OFFSET(Start,$A38,18):OFFSET(Start,$A38,37)),0) -> 0 | AJ38: =IF(TODAY()-AJ$2>0,SUM(OFFSET(Start,$A38,18):OFFSET(Start,$A38,37)),0) -> 0 | AK38: =IF(TODAY()-AK$2>0,SUM(OFFSET(Start,$A38,18):OFFSET(Start,$A38,37)),0) -> 0 | AL38: =IF(TODAY()-AL$2>0,SUM(OFFSET(Start,$A38,18):OFFSET(Start,$A38,37)),0) -> 0 | AM38: 0 | AN38: 0 | AO38: 0
A39: 38 | B39: =OFFSET(Start,'Mellomlagring - antall besøk'!A39,0) -> 0 | C39: =IF(TODAY()-C$2>0,SUM(OFFSET(Start,$A39,18):OFFSET(Start,$A39,37)),0) -> 0 | D39: =IF(TODAY()-D$2>0,SUM(OFFSET(Start,$A39,18):OFFSET(Start,$A39,37)),0) -> 0 | E39: =IF(TODAY()-E$2>0,SUM(OFFSET(Start,$A39,18):OFFSET(Start,$A39,37)),0) -> 0 | F39: =IF(TODAY()-F$2>0,SUM(OFFSET(Start,$A39,18):OFFSET(Start,$A39,37)),0) -> 0 | G39: =IF(TODAY()-G$2>0,SUM(OFFSET(Start,$A39,18):OFFSET(Start,$A39,37)),0) -> 0 | H39: =IF(TODAY()-H$2>0,SUM(OFFSET(Start,$A39,18):OFFSET(Start,$A39,37)),0) -> 0 | I39: =IF(TODAY()-I$2>0,SUM(OFFSET(Start,$A39,18):OFFSET(Start,$A39,37)),0) -> 0 | J39: =IF(TODAY()-J$2>0,SUM(OFFSET(Start,$A39,18):OFFSET(Start,$A39,37)),0) -> 0 | K39: =IF(TODAY()-K$2>0,SUM(OFFSET(Start,$A39,18):OFFSET(Start,$A39,37)),0) -> 0 | L39: =IF(TODAY()-L$2>0,SUM(OFFSET(Start,$A39,18):OFFSET(Start,$A39,37)),0) -> 0 | M39: =IF(TODAY()-M$2>0,SUM(OFFSET(Start,$A39,18):OFFSET(Start,$A39,37)),0) -> 0 | N39: =IF(TODAY()-N$2>0,SUM(OFFSET(Start,$A39,18):OFFSET(Start,$A39,37)),0) -> 0 | O39: =IF(TODAY()-O$2>0,SUM(OFFSET(Start,$A39,18):OFFSET(Start,$A39,37)),0) -> 0 | P39: =IF(TODAY()-P$2>0,SUM(OFFSET(Start,$A39,18):OFFSET(Start,$A39,37)),0) -> 0 | Q39: =IF(TODAY()-Q$2>0,SUM(OFFSET(Start,$A39,18):OFFSET(Start,$A39,37)),0) -> 0 | R39: =IF(TODAY()-R$2>0,SUM(OFFSET(Start,$A39,18):OFFSET(Start,$A39,37)),0) -> 0 | S39: =IF(TODAY()-S$2>0,SUM(OFFSET(Start,$A39,18):OFFSET(Start,$A39,37)),0) -> 0 | T39: =IF(TODAY()-T$2>0,SUM(OFFSET(Start,$A39,18):OFFSET(Start,$A39,37)),0) -> 0 | U39: =IF(TODAY()-U$2>0,SUM(OFFSET(Start,$A39,18):OFFSET(Start,$A39,37)),0) -> 0 | V39: =IF(TODAY()-V$2>0,SUM(OFFSET(Start,$A39,18):OFFSET(Start,$A39,37)),0) -> 0 | W39: =IF(TODAY()-W$2>0,SUM(OFFSET(Start,$A39,18):OFFSET(Start,$A39,37)),0) -> 0 | X39: =IF(TODAY()-X$2>0,SUM(OFFSET(Start,$A39,18):OFFSET(Start,$A39,37)),0) -> 0 | Y39: =IF(TODAY()-Y$2>0,SUM(OFFSET(Start,$A39,18):OFFSET(Start,$A39,37)),0) -> 0 | Z39: =IF(TODAY()-Z$2>0,SUM(OFFSET(Start,$A39,18):OFFSET(Start,$A39,37)),0) -> 0 | AA39: =IF(TODAY()-AA$2>0,SUM(OFFSET(Start,$A39,18):OFFSET(Start,$A39,37)),0) -> 0 | AB39: =IF(TODAY()-AB$2>0,SUM(OFFSET(Start,$A39,18):OFFSET(Start,$A39,37)),0) -> 0 | AC39: =IF(TODAY()-AC$2>0,SUM(OFFSET(Start,$A39,18):OFFSET(Start,$A39,37)),0) -> 0 | AD39: =IF(TODAY()-AD$2>0,SUM(OFFSET(Start,$A39,18):OFFSET(Start,$A39,37)),0) -> 0 | AE39: =IF(TODAY()-AE$2>0,SUM(OFFSET(Start,$A39,18):OFFSET(Start,$A39,37)),0) -> 0 | AF39: =IF(TODAY()-AF$2>0,SUM(OFFSET(Start,$A39,18):OFFSET(Start,$A39,37)),0) -> 0 | AG39: =IF(TODAY()-AG$2>0,SUM(OFFSET(Start,$A39,18):OFFSET(Start,$A39,37)),0) -> 0 | AH39: =IF(TODAY()-AH$2>0,SUM(OFFSET(Start,$A39,18):OFFSET(Start,$A39,37)),0) -> 0 | AI39: =IF(TODAY()-AI$2>0,SUM(OFFSET(Start,$A39,18):OFFSET(Start,$A39,37)),0) -> 0 | AJ39: =IF(TODAY()-AJ$2>0,SUM(OFFSET(Start,$A39,18):OFFSET(Start,$A39,37)),0) -> 0 | AK39: =IF(TODAY()-AK$2>0,SUM(OFFSET(Start,$A39,18):OFFSET(Start,$A39,37)),0) -> 0 | AL39: =IF(TODAY()-AL$2>0,SUM(OFFSET(Start,$A39,18):OFFSET(Start,$A39,37)),0) -> 0 | AM39: 0 | AN39: 0 | AO39: 0
A40: 39 | B40: =OFFSET(Start,'Mellomlagring - antall besøk'!A40,0) -> 0 | C40: =IF(TODAY()-C$2>0,SUM(OFFSET(Start,$A40,18):OFFSET(Start,$A40,37)),0) -> 0 | D40: =IF(TODAY()-D$2>0,SUM(OFFSET(Start,$A40,18):OFFSET(Start,$A40,37)),0) -> 0 | E40: =IF(TODAY()-E$2>0,SUM(OFFSET(Start,$A40,18):OFFSET(Start,$A40,37)),0) -> 0 | F40: =IF(TODAY()-F$2>0,SUM(OFFSET(Start,$A40,18):OFFSET(Start,$A40,37)),0) -> 0 | G40: =IF(TODAY()-G$2>0,SUM(OFFSET(Start,$A40,18):OFFSET(Start,$A40,37)),0) -> 0 | H40: =IF(TODAY()-H$2>0,SUM(OFFSET(Start,$A40,18):OFFSET(Start,$A40,37)),0) -> 0 | I40: =IF(TODAY()-I$2>0,SUM(OFFSET(Start,$A40,18):OFFSET(Start,$A40,37)),0) -> 0 | J40: =IF(TODAY()-J$2>0,SUM(OFFSET(Start,$A40,18):OFFSET(Start,$A40,37)),0) -> 0 | K40: =IF(TODAY()-K$2>0,SUM(OFFSET(Start,$A40,18):OFFSET(Start,$A40,37)),0) -> 0 | L40: =IF(TODAY()-L$2>0,SUM(OFFSET(Start,$A40,18):OFFSET(Start,$A40,37)),0) -> 0 | M40: =IF(TODAY()-M$2>0,SUM(OFFSET(Start,$A40,18):OFFSET(Start,$A40,37)),0) -> 0 | N40: =IF(TODAY()-N$2>0,SUM(OFFSET(Start,$A40,18):OFFSET(Start,$A40,37)),0) -> 0 | O40: =IF(TODAY()-O$2>0,SUM(OFFSET(Start,$A40,18):OFFSET(Start,$A40,37)),0) -> 0 | P40: =IF(TODAY()-P$2>0,SUM(OFFSET(Start,$A40,18):OFFSET(Start,$A40,37)),0) -> 0 | Q40: =IF(TODAY()-Q$2>0,SUM(OFFSET(Start,$A40,18):OFFSET(Start,$A40,37)),0) -> 0 | R40: =IF(TODAY()-R$2>0,SUM(OFFSET(Start,$A40,18):OFFSET(Start,$A40,37)),0) -> 0 | S40: =IF(TODAY()-S$2>0,SUM(OFFSET(Start,$A40,18):OFFSET(Start,$A40,37)),0) -> 0 | T40: =IF(TODAY()-T$2>0,SUM(OFFSET(Start,$A40,18):OFFSET(Start,$A40,37)),0) -> 0 | U40: =IF(TODAY()-U$2>0,SUM(OFFSET(Start,$A40,18):OFFSET(Start,$A40,37)),0) -> 0 | V40: =IF(TODAY()-V$2>0,SUM(OFFSET(Start,$A40,18):OFFSET(Start,$A40,37)),0) -> 0 | W40: =IF(TODAY()-W$2>0,SUM(OFFSET(Start,$A40,18):OFFSET(Start,$A40,37)),0) -> 0 | X40: =IF(TODAY()-X$2>0,SUM(OFFSET(Start,$A40,18):OFFSET(Start,$A40,37)),0) -> 0 | Y40: =IF(TODAY()-Y$2>0,SUM(OFFSET(Start,$A40,18):OFFSET(Start,$A40,37)),0) -> 0 | Z40: =IF(TODAY()-Z$2>0,SUM(OFFSET(Start,$A40,18):OFFSET(Start,$A40,37)),0) -> 0 | AA40: =IF(TODAY()-AA$2>0,SUM(OFFSET(Start,$A40,18):OFFSET(Start,$A40,37)),0) -> 0 | AB40: =IF(TODAY()-AB$2>0,SUM(OFFSET(Start,$A40,18):OFFSET(Start,$A40,37)),0) -> 0 | AC40: =IF(TODAY()-AC$2>0,SUM(OFFSET(Start,$A40,18):OFFSET(Start,$A40,37)),0) -> 0 | AD40: =IF(TODAY()-AD$2>0,SUM(OFFSET(Start,$A40,18):OFFSET(Start,$A40,37)),0) -> 0 | AE40: =IF(TODAY()-AE$2>0,SUM(OFFSET(Start,$A40,18):OFFSET(Start,$A40,37)),0) -> 0 | AF40: =IF(TODAY()-AF$2>0,SUM(OFFSET(Start,$A40,18):OFFSET(Start,$A40,37)),0) -> 0 | AG40: =IF(TODAY()-AG$2>0,SUM(OFFSET(Start,$A40,18):OFFSET(Start,$A40,37)),0) -> 0 | AH40: =IF(TODAY()-AH$2>0,SUM(OFFSET(Start,$A40,18):OFFSET(Start,$A40,37)),0) -> 0 | AI40: =IF(TODAY()-AI$2>0,SUM(OFFSET(Start,$A40,18):OFFSET(Start,$A40,37)),0) -> 0 | AJ40: =IF(TODAY()-AJ$2>0,SUM(OFFSET(Start,$A40,18):OFFSET(Start,$A40,37)),0) -> 0 | AK40: =IF(TODAY()-AK$2>0,SUM(OFFSET(Start,$A40,18):OFFSET(Start,$A40,37)),0) -> 0 | AL40: =IF(TODAY()-AL$2>0,SUM(OFFSET(Start,$A40,18):OFFSET(Start,$A40,37)),0) -> 0 | AM40: 0 | AN40: 0 | AO40: 0
A41: 40 | B41: =OFFSET(Start,'Mellomlagring - antall besøk'!A41,0) -> 0 | C41: =IF(TODAY()-C$2>0,SUM(OFFSET(Start,$A41,18):OFFSET(Start,$A41,37)),0) -> 0 | D41: =IF(TODAY()-D$2>0,SUM(OFFSET(Start,$A41,18):OFFSET(Start,$A41,37)),0) -> 0 | E41: =IF(TODAY()-E$2>0,SUM(OFFSET(Start,$A41,18):OFFSET(Start,$A41,37)),0) -> 0 | F41: =IF(TODAY()-F$2>0,SUM(OFFSET(Start,$A41,18):OFFSET(Start,$A41,37)),0) -> 0 | G41: =IF(TODAY()-G$2>0,SUM(OFFSET(Start,$A41,18):OFFSET(Start,$A41,37)),0) -> 0 | H41: =IF(TODAY()-H$2>0,SUM(OFFSET(Start,$A41,18):OFFSET(Start,$A41,37)),0) -> 0 | I41: =IF(TODAY()-I$2>0,SUM(OFFSET(Start,$A41,18):OFFSET(Start,$A41,37)),0) -> 0 | J41: =IF(TODAY()-J$2>0,SUM(OFFSET(Start,$A41,18):OFFSET(Start,$A41,37)),0) -> 0 | K41: =IF(TODAY()-K$2>0,SUM(OFFSET(Start,$A41,18):OFFSET(Start,$A41,37)),0) -> 0 | L41: =IF(TODAY()-L$2>0,SUM(OFFSET(Start,$A41,18):OFFSET(Start,$A41,37)),0) -> 0 | M41: =IF(TODAY()-M$2>0,SUM(OFFSET(Start,$A41,18):OFFSET(Start,$A41,37)),0) -> 0 | N41: =IF(TODAY()-N$2>0,SUM(OFFSET(Start,$A41,18):OFFSET(Start,$A41,37)),0) -> 0 | O41: =IF(TODAY()-O$2>0,SUM(OFFSET(Start,$A41,18):OFFSET(Start,$A41,37)),0) -> 0 | P41: =IF(TODAY()-P$2>0,SUM(OFFSET(Start,$A41,18):OFFSET(Start,$A41,37)),0) -> 0 | Q41: =IF(TODAY()-Q$2>0,SUM(OFFSET(Start,$A41,18):OFFSET(Start,$A41,37)),0) -> 0 | R41: =IF(TODAY()-R$2>0,SUM(OFFSET(Start,$A41,18):OFFSET(Start,$A41,37)),0) -> 0 | S41: =IF(TODAY()-S$2>0,SUM(OFFSET(Start,$A41,18):OFFSET(Start,$A41,37)),0) -> 0 | T41: =IF(TODAY()-T$2>0,SUM(OFFSET(Start,$A41,18):OFFSET(Start,$A41,37)),0) -> 0 | U41: =IF(TODAY()-U$2>0,SUM(OFFSET(Start,$A41,18):OFFSET(Start,$A41,37)),0) -> 0 | V41: =IF(TODAY()-V$2>0,SUM(OFFSET(Start,$A41,18):OFFSET(Start,$A41,37)),0) -> 0 | W41: =IF(TODAY()-W$2>0,SUM(OFFSET(Start,$A41,18):OFFSET(Start,$A41,37)),0) -> 0 | X41: =IF(TODAY()-X$2>0,SUM(OFFSET(Start,$A41,18):OFFSET(Start,$A41,37)),0) -> 0 | Y41: =IF(TODAY()-Y$2>0,SUM(OFFSET(Start,$A41,18):OFFSET(Start,$A41,37)),0) -> 0 | Z41: =IF(TODAY()-Z$2>0,SUM(OFFSET(Start,$A41,18):OFFSET(Start,$A41,37)),0) -> 0 | AA41: =IF(TODAY()-AA$2>0,SUM(OFFSET(Start,$A41,18):OFFSET(Start,$A41,37)),0) -> 0 | AB41: =IF(TODAY()-AB$2>0,SUM(OFFSET(Start,$A41,18):OFFSET(Start,$A41,37)),0) -> 0 | AC41: =IF(TODAY()-AC$2>0,SUM(OFFSET(Start,$A41,18):OFFSET(Start,$A41,37)),0) -> 0 | AD41: =IF(TODAY()-AD$2>0,SUM(OFFSET(Start,$A41,18):OFFSET(Start,$A41,37)),0) -> 0 | AE41: =IF(TODAY()-AE$2>0,SUM(OFFSET(Start,$A41,18):OFFSET(Start,$A41,37)),0) -> 0 | AF41: =IF(TODAY()-AF$2>0,SUM(OFFSET(Start,$A41,18):OFFSET(Start,$A41,37)),0) -> 0 | AG41: =IF(TODAY()-AG$2>0,SUM(OFFSET(Start,$A41,18):OFFSET(Start,$A41,37)),0) -> 0 | AH41: =IF(TODAY()-AH$2>0,SUM(OFFSET(Start,$A41,18):OFFSET(Start,$A41,37)),0) -> 0 | AI41: =IF(TODAY()-AI$2>0,SUM(OFFSET(Start,$A41,18):OFFSET(Start,$A41,37)),0) -> 0 | AJ41: =IF(TODAY()-AJ$2>0,SUM(OFFSET(Start,$A41,18):OFFSET(Start,$A41,37)),0) -> 0 | AK41: =IF(TODAY()-AK$2>0,SUM(OFFSET(Start,$A41,18):OFFSET(Start,$A41,37)),0) -> 0 | AL41: =IF(TODAY()-AL$2>0,SUM(OFFSET(Start,$A41,18):OFFSET(Start,$A41,37)),0) -> 0 | AM41: 0 | AN41: 0 | AO41: 0
A42: 41 | B42: =OFFSET(Start,'Mellomlagring - antall besøk'!A42,0) -> 0 | C42: =IF(TODAY()-C$2>0,SUM(OFFSET(Start,$A42,18):OFFSET(Start,$A42,37)),0) -> 0 | D42: =IF(TODAY()-D$2>0,SUM(OFFSET(Start,$A42,18):OFFSET(Start,$A42,37)),0) -> 0 | E42: =IF(TODAY()-E$2>0,SUM(OFFSET(Start,$A42,18):OFFSET(Start,$A42,37)),0) -> 0 | F42: =IF(TODAY()-F$2>0,SUM(OFFSET(Start,$A42,18):OFFSET(Start,$A42,37)),0) -> 0 | G42: =IF(TODAY()-G$2>0,SUM(OFFSET(Start,$A42,18):OFFSET(Start,$A42,37)),0) -> 0 | H42: =IF(TODAY()-H$2>0,SUM(OFFSET(Start,$A42,18):OFFSET(Start,$A42,37)),0) -> 0 | I42: =IF(TODAY()-I$2>0,SUM(OFFSET(Start,$A42,18):OFFSET(Start,$A42,37)),0) -> 0 | J42: =IF(TODAY()-J$2>0,SUM(OFFSET(Start,$A42,18):OFFSET(Start,$A42,37)),0) -> 0 | K42: =IF(TODAY()-K$2>0,SUM(OFFSET(Start,$A42,18):OFFSET(Start,$A42,37)),0) -> 0 | L42: =IF(TODAY()-L$2>0,SUM(OFFSET(Start,$A42,18):OFFSET(Start,$A42,37)),0) -> 0 | M42: =IF(TODAY()-M$2>0,SUM(OFFSET(Start,$A42,18):OFFSET(Start,$A42,37)),0) -> 0 | N42: =IF(TODAY()-N$2>0,SUM(OFFSET(Start,$A42,18):OFFSET(Start,$A42,37)),0) -> 0 | O42: =IF(TODAY()-O$2>0,SUM(OFFSET(Start,$A42,18):OFFSET(Start,$A42,37)),0) -> 0 | P42: =IF(TODAY()-P$2>0,SUM(OFFSET(Start,$A42,18):OFFSET(Start,$A42,37)),0) -> 0 | Q42: =IF(TODAY()-Q$2>0,SUM(OFFSET(Start,$A42,18):OFFSET(Start,$A42,37)),0) -> 0 | R42: =IF(TODAY()-R$2>0,SUM(OFFSET(Start,$A42,18):OFFSET(Start,$A42,37)),0) -> 0 | S42: =IF(TODAY()-S$2>0,SUM(OFFSET(Start,$A42,18):OFFSET(Start,$A42,37)),0) -> 0 | T42: =IF(TODAY()-T$2>0,SUM(OFFSET(Start,$A42,18):OFFSET(Start,$A42,37)),0) -> 0 | U42: =IF(TODAY()-U$2>0,SUM(OFFSET(Start,$A42,18):OFFSET(Start,$A42,37)),0) -> 0 | V42: =IF(TODAY()-V$2>0,SUM(OFFSET(Start,$A42,18):OFFSET(Start,$A42,37)),0) -> 0 | W42: =IF(TODAY()-W$2>0,SUM(OFFSET(Start,$A42,18):OFFSET(Start,$A42,37)),0) -> 0 | X42: =IF(TODAY()-X$2>0,SUM(OFFSET(Start,$A42,18):OFFSET(Start,$A42,37)),0) -> 0 | Y42: =IF(TODAY()-Y$2>0,SUM(OFFSET(Start,$A42,18):OFFSET(Start,$A42,37)),0) -> 0 | Z42: =IF(TODAY()-Z$2>0,SUM(OFFSET(Start,$A42,18):OFFSET(Start,$A42,37)),0) -> 0 | AA42: =IF(TODAY()-AA$2>0,SUM(OFFSET(Start,$A42,18):OFFSET(Start,$A42,37)),0) -> 0 | AB42: =IF(TODAY()-AB$2>0,SUM(OFFSET(Start,$A42,18):OFFSET(Start,$A42,37)),0) -> 0 | AC42: =IF(TODAY()-AC$2>0,SUM(OFFSET(Start,$A42,18):OFFSET(Start,$A42,37)),0) -> 0 | AD42: =IF(TODAY()-AD$2>0,SUM(OFFSET(Start,$A42,18):OFFSET(Start,$A42,37)),0) -> 0 | AE42: =IF(TODAY()-AE$2>0,SUM(OFFSET(Start,$A42,18):OFFSET(Start,$A42,37)),0) -> 0 | AF42: =IF(TODAY()-AF$2>0,SUM(OFFSET(Start,$A42,18):OFFSET(Start,$A42,37)),0) -> 0 | AG42: =IF(TODAY()-AG$2>0,SUM(OFFSET(Start,$A42,18):OFFSET(Start,$A42,37)),0) -> 0 | AH42: =IF(TODAY()-AH$2>0,SUM(OFFSET(Start,$A42,18):OFFSET(Start,$A42,37)),0) -> 0 | AI42: =IF(TODAY()-AI$2>0,SUM(OFFSET(Start,$A42,18):OFFSET(Start,$A42,37)),0) -> 0 | AJ42: =IF(TODAY()-AJ$2>0,SUM(OFFSET(Start,$A42,18):OFFSET(Start,$A42,37)),0) -> 0 | AK42: =IF(TODAY()-AK$2>0,SUM(OFFSET(Start,$A42,18):OFFSET(Start,$A42,37)),0) -> 0 | AL42: =IF(TODAY()-AL$2>0,SUM(OFFSET(Start,$A42,18):OFFSET(Start,$A42,37)),0) -> 0 | AM42: 0 | AN42: 0 | AO42: 0
A43: 42 | B43: =OFFSET(Start,'Mellomlagring - antall besøk'!A43,0) -> 0 | C43: =IF(TODAY()-C$2>0,SUM(OFFSET(Start,$A43,18):OFFSET(Start,$A43,37)),0) -> 0 | D43: =IF(TODAY()-D$2>0,SUM(OFFSET(Start,$A43,18):OFFSET(Start,$A43,37)),0) -> 0 | E43: =IF(TODAY()-E$2>0,SUM(OFFSET(Start,$A43,18):OFFSET(Start,$A43,37)),0) -> 0 | F43: =IF(TODAY()-F$2>0,SUM(OFFSET(Start,$A43,18):OFFSET(Start,$A43,37)),0) -> 0 | G43: =IF(TODAY()-G$2>0,SUM(OFFSET(Start,$A43,18):OFFSET(Start,$A43,37)),0) -> 0 | H43: =IF(TODAY()-H$2>0,SUM(OFFSET(Start,$A43,18):OFFSET(Start,$A43,37)),0) -> 0 | I43: =IF(TODAY()-I$2>0,SUM(OFFSET(Start,$A43,18):OFFSET(Start,$A43,37)),0) -> 0 | J43: =IF(TODAY()-J$2>0,SUM(OFFSET(Start,$A43,18):OFFSET(Start,$A43,37)),0) -> 0 | K43: =IF(TODAY()-K$2>0,SUM(OFFSET(Start,$A43,18):OFFSET(Start,$A43,37)),0) -> 0 | L43: =IF(TODAY()-L$2>0,SUM(OFFSET(Start,$A43,18):OFFSET(Start,$A43,37)),0) -> 0 | M43: =IF(TODAY()-M$2>0,SUM(OFFSET(Start,$A43,18):OFFSET(Start,$A43,37)),0) -> 0 | N43: =IF(TODAY()-N$2>0,SUM(OFFSET(Start,$A43,18):OFFSET(Start,$A43,37)),0) -> 0 | O43: =IF(TODAY()-O$2>0,SUM(OFFSET(Start,$A43,18):OFFSET(Start,$A43,37)),0) -> 0 | P43: =IF(TODAY()-P$2>0,SUM(OFFSET(Start,$A43,18):OFFSET(Start,$A43,37)),0) -> 0 | Q43: =IF(TODAY()-Q$2>0,SUM(OFFSET(Start,$A43,18):OFFSET(Start,$A43,37)),0) -> 0 | R43: =IF(TODAY()-R$2>0,SUM(OFFSET(Start,$A43,18):OFFSET(Start,$A43,37)),0) -> 0 | S43: =IF(TODAY()-S$2>0,SUM(OFFSET(Start,$A43,18):OFFSET(Start,$A43,37)),0) -> 0 | T43: =IF(TODAY()-T$2>0,SUM(OFFSET(Start,$A43,18):OFFSET(Start,$A43,37)),0) -> 0 | U43: =IF(TODAY()-U$2>0,SUM(OFFSET(Start,$A43,18):OFFSET(Start,$A43,37)),0) -> 0 | V43: =IF(TODAY()-V$2>0,SUM(OFFSET(Start,$A43,18):OFFSET(Start,$A43,37)),0) -> 0 | W43: =IF(TODAY()-W$2>0,SUM(OFFSET(Start,$A43,18):OFFSET(Start,$A43,37)),0) -> 0 | X43: =IF(TODAY()-X$2>0,SUM(OFFSET(Start,$A43,18):OFFSET(Start,$A43,37)),0) -> 0 | Y43: =IF(TODAY()-Y$2>0,SUM(OFFSET(Start,$A43,18):OFFSET(Start,$A43,37)),0) -> 0 | Z43: =IF(TODAY()-Z$2>0,SUM(OFFSET(Start,$A43,18):OFFSET(Start,$A43,37)),0) -> 0 | AA43: =IF(TODAY()-AA$2>0,SUM(OFFSET(Start,$A43,18):OFFSET(Start,$A43,37)),0) -> 0 | AB43: =IF(TODAY()-AB$2>0,SUM(OFFSET(Start,$A43,18):OFFSET(Start,$A43,37)),0) -> 0 | AC43: =IF(TODAY()-AC$2>0,SUM(OFFSET(Start,$A43,18):OFFSET(Start,$A43,37)),0) -> 0 | AD43: =IF(TODAY()-AD$2>0,SUM(OFFSET(Start,$A43,18):OFFSET(Start,$A43,37)),0) -> 0 | AE43: =IF(TODAY()-AE$2>0,SUM(OFFSET(Start,$A43,18):OFFSET(Start,$A43,37)),0) -> 0 | AF43: =IF(TODAY()-AF$2>0,SUM(OFFSET(Start,$A43,18):OFFSET(Start,$A43,37)),0) -> 0 | AG43: =IF(TODAY()-AG$2>0,SUM(OFFSET(Start,$A43,18):OFFSET(Start,$A43,37)),0) -> 0 | AH43: =IF(TODAY()-AH$2>0,SUM(OFFSET(Start,$A43,18):OFFSET(Start,$A43,37)),0) -> 0 | AI43: =IF(TODAY()-AI$2>0,SUM(OFFSET(Start,$A43,18):OFFSET(Start,$A43,37)),0) -> 0 | AJ43: =IF(TODAY()-AJ$2>0,SUM(OFFSET(Start,$A43,18):OFFSET(Start,$A43,37)),0) -> 0 | AK43: =IF(TODAY()-AK$2>0,SUM(OFFSET(Start,$A43,18):OFFSET(Start,$A43,37)),0) -> 0 | AL43: =IF(TODAY()-AL$2>0,SUM(OFFSET(Start,$A43,18):OFFSET(Start,$A43,37)),0) -> 0 | AM43: 0 | AN43: 0 | AO43: 0
A44: 43 | B44: =OFFSET(Start,'Mellomlagring - antall besøk'!A44,0) -> 0 | C44: =IF(TODAY()-C$2>0,SUM(OFFSET(Start,$A44,18):OFFSET(Start,$A44,37)),0) -> 0 | D44: =IF(TODAY()-D$2>0,SUM(OFFSET(Start,$A44,18):OFFSET(Start,$A44,37)),0) -> 0 | E44: =IF(TODAY()-E$2>0,SUM(OFFSET(Start,$A44,18):OFFSET(Start,$A44,37)),0) -> 0 | F44: =IF(TODAY()-F$2>0,SUM(OFFSET(Start,$A44,18):OFFSET(Start,$A44,37)),0) -> 0 | G44: =IF(TODAY()-G$2>0,SUM(OFFSET(Start,$A44,18):OFFSET(Start,$A44,37)),0) -> 0 | H44: =IF(TODAY()-H$2>0,SUM(OFFSET(Start,$A44,18):OFFSET(Start,$A44,37)),0) -> 0 | I44: =IF(TODAY()-I$2>0,SUM(OFFSET(Start,$A44,18):OFFSET(Start,$A44,37)),0) -> 0 | J44: =IF(TODAY()-J$2>0,SUM(OFFSET(Start,$A44,18):OFFSET(Start,$A44,37)),0) -> 0 | K44: =IF(TODAY()-K$2>0,SUM(OFFSET(Start,$A44,18):OFFSET(Start,$A44,37)),0) -> 0 | L44: =IF(TODAY()-L$2>0,SUM(OFFSET(Start,$A44,18):OFFSET(Start,$A44,37)),0) -> 0 | M44: =IF(TODAY()-M$2>0,SUM(OFFSET(Start,$A44,18):OFFSET(Start,$A44,37)),0) -> 0 | N44: =IF(TODAY()-N$2>0,SUM(OFFSET(Start,$A44,18):OFFSET(Start,$A44,37)),0) -> 0 | O44: =IF(TODAY()-O$2>0,SUM(OFFSET(Start,$A44,18):OFFSET(Start,$A44,37)),0) -> 0 | P44: =IF(TODAY()-P$2>0,SUM(OFFSET(Start,$A44,18):OFFSET(Start,$A44,37)),0) -> 0 | Q44: =IF(TODAY()-Q$2>0,SUM(OFFSET(Start,$A44,18):OFFSET(Start,$A44,37)),0) -> 0 | R44: =IF(TODAY()-R$2>0,SUM(OFFSET(Start,$A44,18):OFFSET(Start,$A44,37)),0) -> 0 | S44: =IF(TODAY()-S$2>0,SUM(OFFSET(Start,$A44,18):OFFSET(Start,$A44,37)),0) -> 0 | T44: =IF(TODAY()-T$2>0,SUM(OFFSET(Start,$A44,18):OFFSET(Start,$A44,37)),0) -> 0 | U44: =IF(TODAY()-U$2>0,SUM(OFFSET(Start,$A44,18):OFFSET(Start,$A44,37)),0) -> 0 | V44: =IF(TODAY()-V$2>0,SUM(OFFSET(Start,$A44,18):OFFSET(Start,$A44,37)),0) -> 0 | W44: =IF(TODAY()-W$2>0,SUM(OFFSET(Start,$A44,18):OFFSET(Start,$A44,37)),0) -> 0 | X44: =IF(TODAY()-X$2>0,SUM(OFFSET(Start,$A44,18):OFFSET(Start,$A44,37)),0) -> 0 | Y44: =IF(TODAY()-Y$2>0,SUM(OFFSET(Start,$A44,18):OFFSET(Start,$A44,37)),0) -> 0 | Z44: =IF(TODAY()-Z$2>0,SUM(OFFSET(Start,$A44,18):OFFSET(Start,$A44,37)),0) -> 0 | AA44: =IF(TODAY()-AA$2>0,SUM(OFFSET(Start,$A44,18):OFFSET(Start,$A44,37)),0) -> 0 | AB44: =IF(TODAY()-AB$2>0,SUM(OFFSET(Start,$A44,18):OFFSET(Start,$A44,37)),0) -> 0 | AC44: =IF(TODAY()-AC$2>0,SUM(OFFSET(Start,$A44,18):OFFSET(Start,$A44,37)),0) -> 0 | AD44: =IF(TODAY()-AD$2>0,SUM(OFFSET(Start,$A44,18):OFFSET(Start,$A44,37)),0) -> 0 | AE44: =IF(TODAY()-AE$2>0,SUM(OFFSET(Start,$A44,18):OFFSET(Start,$A44,37)),0) -> 0 | AF44: =IF(TODAY()-AF$2>0,SUM(OFFSET(Start,$A44,18):OFFSET(Start,$A44,37)),0) -> 0 | AG44: =IF(TODAY()-AG$2>0,SUM(OFFSET(Start,$A44,18):OFFSET(Start,$A44,37)),0) -> 0 | AH44: =IF(TODAY()-AH$2>0,SUM(OFFSET(Start,$A44,18):OFFSET(Start,$A44,37)),0) -> 0 | AI44: =IF(TODAY()-AI$2>0,SUM(OFFSET(Start,$A44,18):OFFSET(Start,$A44,37)),0) -> 0 | AJ44: =IF(TODAY()-AJ$2>0,SUM(OFFSET(Start,$A44,18):OFFSET(Start,$A44,37)),0) -> 0 | AK44: =IF(TODAY()-AK$2>0,SUM(OFFSET(Start,$A44,18):OFFSET(Start,$A44,37)),0) -> 0 | AL44: =IF(TODAY()-AL$2>0,SUM(OFFSET(Start,$A44,18):OFFSET(Start,$A44,37)),0) -> 0 | AM44: 0 | AN44: 0 | AO44: 0
A45: 44 | B45: =OFFSET(Start,'Mellomlagring - antall besøk'!A45,0) -> 0 | C45: =IF(TODAY()-C$2>0,SUM(OFFSET(Start,$A45,18):OFFSET(Start,$A45,37)),0) -> 0 | D45: =IF(TODAY()-D$2>0,SUM(OFFSET(Start,$A45,18):OFFSET(Start,$A45,37)),0) -> 0 | E45: =IF(TODAY()-E$2>0,SUM(OFFSET(Start,$A45,18):OFFSET(Start,$A45,37)),0) -> 0 | F45: =IF(TODAY()-F$2>0,SUM(OFFSET(Start,$A45,18):OFFSET(Start,$A45,37)),0) -> 0 | G45: =IF(TODAY()-G$2>0,SUM(OFFSET(Start,$A45,18):OFFSET(Start,$A45,37)),0) -> 0 | H45: =IF(TODAY()-H$2>0,SUM(OFFSET(Start,$A45,18):OFFSET(Start,$A45,37)),0) -> 0 | I45: =IF(TODAY()-I$2>0,SUM(OFFSET(Start,$A45,18):OFFSET(Start,$A45,37)),0) -> 0 | J45: =IF(TODAY()-J$2>0,SUM(OFFSET(Start,$A45,18):OFFSET(Start,$A45,37)),0) -> 0 | K45: =IF(TODAY()-K$2>0,SUM(OFFSET(Start,$A45,18):OFFSET(Start,$A45,37)),0) -> 0 | L45: =IF(TODAY()-L$2>0,SUM(OFFSET(Start,$A45,18):OFFSET(Start,$A45,37)),0) -> 0 | M45: =IF(TODAY()-M$2>0,SUM(OFFSET(Start,$A45,18):OFFSET(Start,$A45,37)),0) -> 0 | N45: =IF(TODAY()-N$2>0,SUM(OFFSET(Start,$A45,18):OFFSET(Start,$A45,37)),0) -> 0 | O45: =IF(TODAY()-O$2>0,SUM(OFFSET(Start,$A45,18):OFFSET(Start,$A45,37)),0) -> 0 | P45: =IF(TODAY()-P$2>0,SUM(OFFSET(Start,$A45,18):OFFSET(Start,$A45,37)),0) -> 0 | Q45: =IF(TODAY()-Q$2>0,SUM(OFFSET(Start,$A45,18):OFFSET(Start,$A45,37)),0) -> 0 | R45: =IF(TODAY()-R$2>0,SUM(OFFSET(Start,$A45,18):OFFSET(Start,$A45,37)),0) -> 0 | S45: =IF(TODAY()-S$2>0,SUM(OFFSET(Start,$A45,18):OFFSET(Start,$A45,37)),0) -> 0 | T45: =IF(TODAY()-T$2>0,SUM(OFFSET(Start,$A45,18):OFFSET(Start,$A45,37)),0) -> 0 | U45: =IF(TODAY()-U$2>0,SUM(OFFSET(Start,$A45,18):OFFSET(Start,$A45,37)),0) -> 0 | V45: =IF(TODAY()-V$2>0,SUM(OFFSET(Start,$A45,18):OFFSET(Start,$A45,37)),0) -> 0 | W45: =IF(TODAY()-W$2>0,SUM(OFFSET(Start,$A45,18):OFFSET(Start,$A45,37)),0) -> 0 | X45: =IF(TODAY()-X$2>0,SUM(OFFSET(Start,$A45,18):OFFSET(Start,$A45,37)),0) -> 0 | Y45: =IF(TODAY()-Y$2>0,SUM(OFFSET(Start,$A45,18):OFFSET(Start,$A45,37)),0) -> 0 | Z45: =IF(TODAY()-Z$2>0,SUM(OFFSET(Start,$A45,18):OFFSET(Start,$A45,37)),0) -> 0 | AA45: =IF(TODAY()-AA$2>0,SUM(OFFSET(Start,$A45,18):OFFSET(Start,$A45,37)),0) -> 0 | AB45: =IF(TODAY()-AB$2>0,SUM(OFFSET(Start,$A45,18):OFFSET(Start,$A45,37)),0) -> 0 | AC45: =IF(TODAY()-AC$2>0,SUM(OFFSET(Start,$A45,18):OFFSET(Start,$A45,37)),0) -> 0 | AD45: =IF(TODAY()-AD$2>0,SUM(OFFSET(Start,$A45,18):OFFSET(Start,$A45,37)),0) -> 0 | AE45: =IF(TODAY()-AE$2>0,SUM(OFFSET(Start,$A45,18):OFFSET(Start,$A45,37)),0) -> 0 | AF45: =IF(TODAY()-AF$2>0,SUM(OFFSET(Start,$A45,18):OFFSET(Start,$A45,37)),0) -> 0 | AG45: =IF(TODAY()-AG$2>0,SUM(OFFSET(Start,$A45,18):OFFSET(Start,$A45,37)),0) -> 0 | AH45: =IF(TODAY()-AH$2>0,SUM(OFFSET(Start,$A45,18):OFFSET(Start,$A45,37)),0) -> 0 | AI45: =IF(TODAY()-AI$2>0,SUM(OFFSET(Start,$A45,18):OFFSET(Start,$A45,37)),0) -> 0 | AJ45: =IF(TODAY()-AJ$2>0,SUM(OFFSET(Start,$A45,18):OFFSET(Start,$A45,37)),0) -> 0 | AK45: =IF(TODAY()-AK$2>0,SUM(OFFSET(Start,$A45,18):OFFSET(Start,$A45,37)),0) -> 0 | AL45: =IF(TODAY()-AL$2>0,SUM(OFFSET(Start,$A45,18):OFFSET(Start,$A45,37)),0) -> 0 | AM45: 0 | AN45: 0 | AO45: 0
A46: 45 | B46: =OFFSET(Start,'Mellomlagring - antall besøk'!A46,0) -> 0 | C46: =IF(TODAY()-C$2>0,SUM(OFFSET(Start,$A46,18):OFFSET(Start,$A46,37)),0) -> 0 | D46: =IF(TODAY()-D$2>0,SUM(OFFSET(Start,$A46,18):OFFSET(Start,$A46,37)),0) -> 0 | E46: =IF(TODAY()-E$2>0,SUM(OFFSET(Start,$A46,18):OFFSET(Start,$A46,37)),0) -> 0 | F46: =IF(TODAY()-F$2>0,SUM(OFFSET(Start,$A46,18):OFFSET(Start,$A46,37)),0) -> 0 | G46: =IF(TODAY()-G$2>0,SUM(OFFSET(Start,$A46,18):OFFSET(Start,$A46,37)),0) -> 0 | H46: =IF(TODAY()-H$2>0,SUM(OFFSET(Start,$A46,18):OFFSET(Start,$A46,37)),0) -> 0 | I46: =IF(TODAY()-I$2>0,SUM(OFFSET(Start,$A46,18):OFFSET(Start,$A46,37)),0) -> 0 | J46: =IF(TODAY()-J$2>0,SUM(OFFSET(Start,$A46,18):OFFSET(Start,$A46,37)),0) -> 0 | K46: =IF(TODAY()-K$2>0,SUM(OFFSET(Start,$A46,18):OFFSET(Start,$A46,37)),0) -> 0 | L46: =IF(TODAY()-L$2>0,SUM(OFFSET(Start,$A46,18):OFFSET(Start,$A46,37)),0) -> 0 | M46: =IF(TODAY()-M$2>0,SUM(OFFSET(Start,$A46,18):OFFSET(Start,$A46,37)),0) -> 0 | N46: =IF(TODAY()-N$2>0,SUM(OFFSET(Start,$A46,18):OFFSET(Start,$A46,37)),0) -> 0 | O46: =IF(TODAY()-O$2>0,SUM(OFFSET(Start,$A46,18):OFFSET(Start,$A46,37)),0) -> 0 | P46: =IF(TODAY()-P$2>0,SUM(OFFSET(Start,$A46,18):OFFSET(Start,$A46,37)),0) -> 0 | Q46: =IF(TODAY()-Q$2>0,SUM(OFFSET(Start,$A46,18):OFFSET(Start,$A46,37)),0) -> 0 | R46: =IF(TODAY()-R$2>0,SUM(OFFSET(Start,$A46,18):OFFSET(Start,$A46,37)),0) -> 0 | S46: =IF(TODAY()-S$2>0,SUM(OFFSET(Start,$A46,18):OFFSET(Start,$A46,37)),0) -> 0 | T46: =IF(TODAY()-T$2>0,SUM(OFFSET(Start,$A46,18):OFFSET(Start,$A46,37)),0) -> 0 | U46: =IF(TODAY()-U$2>0,SUM(OFFSET(Start,$A46,18):OFFSET(Start,$A46,37)),0) -> 0 | V46: =IF(TODAY()-V$2>0,SUM(OFFSET(Start,$A46,18):OFFSET(Start,$A46,37)),0) -> 0 | W46: =IF(TODAY()-W$2>0,SUM(OFFSET(Start,$A46,18):OFFSET(Start,$A46,37)),0) -> 0 | X46: =IF(TODAY()-X$2>0,SUM(OFFSET(Start,$A46,18):OFFSET(Start,$A46,37)),0) -> 0 | Y46: =IF(TODAY()-Y$2>0,SUM(OFFSET(Start,$A46,18):OFFSET(Start,$A46,37)),0) -> 0 | Z46: =IF(TODAY()-Z$2>0,SUM(OFFSET(Start,$A46,18):OFFSET(Start,$A46,37)),0) -> 0 | AA46: =IF(TODAY()-AA$2>0,SUM(OFFSET(Start,$A46,18):OFFSET(Start,$A46,37)),0) -> 0 | AB46: =IF(TODAY()-AB$2>0,SUM(OFFSET(Start,$A46,18):OFFSET(Start,$A46,37)),0) -> 0 | AC46: =IF(TODAY()-AC$2>0,SUM(OFFSET(Start,$A46,18):OFFSET(Start,$A46,37)),0) -> 0 | AD46: =IF(TODAY()-AD$2>0,SUM(OFFSET(Start,$A46,18):OFFSET(Start,$A46,37)),0) -> 0 | AE46: =IF(TODAY()-AE$2>0,SUM(OFFSET(Start,$A46,18):OFFSET(Start,$A46,37)),0) -> 0 | AF46: =IF(TODAY()-AF$2>0,SUM(OFFSET(Start,$A46,18):OFFSET(Start,$A46,37)),0) -> 0 | AG46: =IF(TODAY()-AG$2>0,SUM(OFFSET(Start,$A46,18):OFFSET(Start,$A46,37)),0) -> 0 | AH46: =IF(TODAY()-AH$2>0,SUM(OFFSET(Start,$A46,18):OFFSET(Start,$A46,37)),0) -> 0 | AI46: =IF(TODAY()-AI$2>0,SUM(OFFSET(Start,$A46,18):OFFSET(Start,$A46,37)),0) -> 0 | AJ46: =IF(TODAY()-AJ$2>0,SUM(OFFSET(Start,$A46,18):OFFSET(Start,$A46,37)),0) -> 0 | AK46: =IF(TODAY()-AK$2>0,SUM(OFFSET(Start,$A46,18):OFFSET(Start,$A46,37)),0) -> 0 | AL46: =IF(TODAY()-AL$2>0,SUM(OFFSET(Start,$A46,18):OFFSET(Start,$A46,37)),0) -> 0 | AM46: 0 | AN46: 0 | AO46: 0
A47: 46 | B47: =OFFSET(Start,'Mellomlagring - antall besøk'!A47,0) -> 0 | C47: =IF(TODAY()-C$2>0,SUM(OFFSET(Start,$A47,18):OFFSET(Start,$A47,37)),0) -> 0 | D47: =IF(TODAY()-D$2>0,SUM(OFFSET(Start,$A47,18):OFFSET(Start,$A47,37)),0) -> 0 | E47: =IF(TODAY()-E$2>0,SUM(OFFSET(Start,$A47,18):OFFSET(Start,$A47,37)),0) -> 0 | F47: =IF(TODAY()-F$2>0,SUM(OFFSET(Start,$A47,18):OFFSET(Start,$A47,37)),0) -> 0 | G47: =IF(TODAY()-G$2>0,SUM(OFFSET(Start,$A47,18):OFFSET(Start,$A47,37)),0) -> 0 | H47: =IF(TODAY()-H$2>0,SUM(OFFSET(Start,$A47,18):OFFSET(Start,$A47,37)),0) -> 0 | I47: =IF(TODAY()-I$2>0,SUM(OFFSET(Start,$A47,18):OFFSET(Start,$A47,37)),0) -> 0 | J47: =IF(TODAY()-J$2>0,SUM(OFFSET(Start,$A47,18):OFFSET(Start,$A47,37)),0) -> 0 | K47: =IF(TODAY()-K$2>0,SUM(OFFSET(Start,$A47,18):OFFSET(Start,$A47,37)),0) -> 0 | L47: =IF(TODAY()-L$2>0,SUM(OFFSET(Start,$A47,18):OFFSET(Start,$A47,37)),0) -> 0 | M47: =IF(TODAY()-M$2>0,SUM(OFFSET(Start,$A47,18):OFFSET(Start,$A47,37)),0) -> 0 | N47: =IF(TODAY()-N$2>0,SUM(OFFSET(Start,$A47,18):OFFSET(Start,$A47,37)),0) -> 0 | O47: =IF(TODAY()-O$2>0,SUM(OFFSET(Start,$A47,18):OFFSET(Start,$A47,37)),0) -> 0 | P47: =IF(TODAY()-P$2>0,SUM(OFFSET(Start,$A47,18):OFFSET(Start,$A47,37)),0) -> 0 | Q47: =IF(TODAY()-Q$2>0,SUM(OFFSET(Start,$A47,18):OFFSET(Start,$A47,37)),0) -> 0 | R47: =IF(TODAY()-R$2>0,SUM(OFFSET(Start,$A47,18):OFFSET(Start,$A47,37)),0) -> 0 | S47: =IF(TODAY()-S$2>0,SUM(OFFSET(Start,$A47,18):OFFSET(Start,$A47,37)),0) -> 0 | T47: =IF(TODAY()-T$2>0,SUM(OFFSET(Start,$A47,18):OFFSET(Start,$A47,37)),0) -> 0 | U47: =IF(TODAY()-U$2>0,SUM(OFFSET(Start,$A47,18):OFFSET(Start,$A47,37)),0) -> 0 | V47: =IF(TODAY()-V$2>0,SUM(OFFSET(Start,$A47,18):OFFSET(Start,$A47,37)),0) -> 0 | W47: =IF(TODAY()-W$2>0,SUM(OFFSET(Start,$A47,18):OFFSET(Start,$A47,37)),0) -> 0 | X47: =IF(TODAY()-X$2>0,SUM(OFFSET(Start,$A47,18):OFFSET(Start,$A47,37)),0) -> 0 | Y47: =IF(TODAY()-Y$2>0,SUM(OFFSET(Start,$A47,18):OFFSET(Start,$A47,37)),0) -> 0 | Z47: =IF(TODAY()-Z$2>0,SUM(OFFSET(Start,$A47,18):OFFSET(Start,$A47,37)),0) -> 0 | AA47: =IF(TODAY()-AA$2>0,SUM(OFFSET(Start,$A47,18):OFFSET(Start,$A47,37)),0) -> 0 | AB47: =IF(TODAY()-AB$2>0,SUM(OFFSET(Start,$A47,18):OFFSET(Start,$A47,37)),0) -> 0 | AC47: =IF(TODAY()-AC$2>0,SUM(OFFSET(Start,$A47,18):OFFSET(Start,$A47,37)),0) -> 0 | AD47: =IF(TODAY()-AD$2>0,SUM(OFFSET(Start,$A47,18):OFFSET(Start,$A47,37)),0) -> 0 | AE47: =IF(TODAY()-AE$2>0,SUM(OFFSET(Start,$A47,18):OFFSET(Start,$A47,37)),0) -> 0 | AF47: =IF(TODAY()-AF$2>0,SUM(OFFSET(Start,$A47,18):OFFSET(Start,$A47,37)),0) -> 0 | AG47: =IF(TODAY()-AG$2>0,SUM(OFFSET(Start,$A47,18):OFFSET(Start,$A47,37)),0) -> 0 | AH47: =IF(TODAY()-AH$2>0,SUM(OFFSET(Start,$A47,18):OFFSET(Start,$A47,37)),0) -> 0 | AI47: =IF(TODAY()-AI$2>0,SUM(OFFSET(Start,$A47,18):OFFSET(Start,$A47,37)),0) -> 0 | AJ47: =IF(TODAY()-AJ$2>0,SUM(OFFSET(Start,$A47,18):OFFSET(Start,$A47,37)),0) -> 0 | AK47: =IF(TODAY()-AK$2>0,SUM(OFFSET(Start,$A47,18):OFFSET(Start,$A47,37)),0) -> 0 | AL47: =IF(TODAY()-AL$2>0,SUM(OFFSET(Start,$A47,18):OFFSET(Start,$A47,37)),0) -> 0 | AM47: 0 | AN47: 0 | AO47: 0
A48: 47 | B48: =OFFSET(Start,'Mellomlagring - antall besøk'!A48,0) -> 0 | C48: =IF(TODAY()-C$2>0,SUM(OFFSET(Start,$A48,18):OFFSET(Start,$A48,37)),0) -> 0 | D48: =IF(TODAY()-D$2>0,SUM(OFFSET(Start,$A48,18):OFFSET(Start,$A48,37)),0) -> 0 | E48: =IF(TODAY()-E$2>0,SUM(OFFSET(Start,$A48,18):OFFSET(Start,$A48,37)),0) -> 0 | F48: =IF(TODAY()-F$2>0,SUM(OFFSET(Start,$A48,18):OFFSET(Start,$A48,37)),0) -> 0 | G48: =IF(TODAY()-G$2>0,SUM(OFFSET(Start,$A48,18):OFFSET(Start,$A48,37)),0) -> 0 | H48: =IF(TODAY()-H$2>0,SUM(OFFSET(Start,$A48,18):OFFSET(Start,$A48,37)),0) -> 0 | I48: =IF(TODAY()-I$2>0,SUM(OFFSET(Start,$A48,18):OFFSET(Start,$A48,37)),0) -> 0 | J48: =IF(TODAY()-J$2>0,SUM(OFFSET(Start,$A48,18):OFFSET(Start,$A48,37)),0) -> 0 | K48: =IF(TODAY()-K$2>0,SUM(OFFSET(Start,$A48,18):OFFSET(Start,$A48,37)),0) -> 0 | L48: =IF(TODAY()-L$2>0,SUM(OFFSET(Start,$A48,18):OFFSET(Start,$A48,37)),0) -> 0 | M48: =IF(TODAY()-M$2>0,SUM(OFFSET(Start,$A48,18):OFFSET(Start,$A48,37)),0) -> 0 | N48: =IF(TODAY()-N$2>0,SUM(OFFSET(Start,$A48,18):OFFSET(Start,$A48,37)),0) -> 0 | O48: =IF(TODAY()-O$2>0,SUM(OFFSET(Start,$A48,18):OFFSET(Start,$A48,37)),0) -> 0 | P48: =IF(TODAY()-P$2>0,SUM(OFFSET(Start,$A48,18):OFFSET(Start,$A48,37)),0) -> 0 | Q48: =IF(TODAY()-Q$2>0,SUM(OFFSET(Start,$A48,18):OFFSET(Start,$A48,37)),0) -> 0 | R48: =IF(TODAY()-R$2>0,SUM(OFFSET(Start,$A48,18):OFFSET(Start,$A48,37)),0) -> 0 | S48: =IF(TODAY()-S$2>0,SUM(OFFSET(Start,$A48,18):OFFSET(Start,$A48,37)),0) -> 0 | T48: =IF(TODAY()-T$2>0,SUM(OFFSET(Start,$A48,18):OFFSET(Start,$A48,37)),0) -> 0 | U48: =IF(TODAY()-U$2>0,SUM(OFFSET(Start,$A48,18):OFFSET(Start,$A48,37)),0) -> 0 | V48: =IF(TODAY()-V$2>0,SUM(OFFSET(Start,$A48,18):OFFSET(Start,$A48,37)),0) -> 0 | W48: =IF(TODAY()-W$2>0,SUM(OFFSET(Start,$A48,18):OFFSET(Start,$A48,37)),0) -> 0 | X48: =IF(TODAY()-X$2>0,SUM(OFFSET(Start,$A48,18):OFFSET(Start,$A48,37)),0) -> 0 | Y48: =IF(TODAY()-Y$2>0,SUM(OFFSET(Start,$A48,18):OFFSET(Start,$A48,37)),0) -> 0 | Z48: =IF(TODAY()-Z$2>0,SUM(OFFSET(Start,$A48,18):OFFSET(Start,$A48,37)),0) -> 0 | AA48: =IF(TODAY()-AA$2>0,SUM(OFFSET(Start,$A48,18):OFFSET(Start,$A48,37)),0) -> 0 | AB48: =IF(TODAY()-AB$2>0,SUM(OFFSET(Start,$A48,18):OFFSET(Start,$A48,37)),0) -> 0 | AC48: =IF(TODAY()-AC$2>0,SUM(OFFSET(Start,$A48,18):OFFSET(Start,$A48,37)),0) -> 0 | AD48: =IF(TODAY()-AD$2>0,SUM(OFFSET(Start,$A48,18):OFFSET(Start,$A48,37)),0) -> 0 | AE48: =IF(TODAY()-AE$2>0,SUM(OFFSET(Start,$A48,18):OFFSET(Start,$A48,37)),0) -> 0 | AF48: =IF(TODAY()-AF$2>0,SUM(OFFSET(Start,$A48,18):OFFSET(Start,$A48,37)),0) -> 0 | AG48: =IF(TODAY()-AG$2>0,SUM(OFFSET(Start,$A48,18):OFFSET(Start,$A48,37)),0) -> 0 | AH48: =IF(TODAY()-AH$2>0,SUM(OFFSET(Start,$A48,18):OFFSET(Start,$A48,37)),0) -> 0 | AI48: =IF(TODAY()-AI$2>0,SUM(OFFSET(Start,$A48,18):OFFSET(Start,$A48,37)),0) -> 0 | AJ48: =IF(TODAY()-AJ$2>0,SUM(OFFSET(Start,$A48,18):OFFSET(Start,$A48,37)),0) -> 0 | AK48: =IF(TODAY()-AK$2>0,SUM(OFFSET(Start,$A48,18):OFFSET(Start,$A48,37)),0) -> 0 | AL48: =IF(TODAY()-AL$2>0,SUM(OFFSET(Start,$A48,18):OFFSET(Start,$A48,37)),0) -> 0 | AM48: 0 | AN48: 0 | AO48: 0
A49: 48 | B49: =OFFSET(Start,'Mellomlagring - antall besøk'!A49,0) -> 0 | C49: =IF(TODAY()-C$2>0,SUM(OFFSET(Start,$A49,18):OFFSET(Start,$A49,37)),0) -> 0 | D49: =IF(TODAY()-D$2>0,SUM(OFFSET(Start,$A49,18):OFFSET(Start,$A49,37)),0) -> 0 | E49: =IF(TODAY()-E$2>0,SUM(OFFSET(Start,$A49,18):OFFSET(Start,$A49,37)),0) -> 0 | F49: =IF(TODAY()-F$2>0,SUM(OFFSET(Start,$A49,18):OFFSET(Start,$A49,37)),0) -> 0 | G49: =IF(TODAY()-G$2>0,SUM(OFFSET(Start,$A49,18):OFFSET(Start,$A49,37)),0) -> 0 | H49: =IF(TODAY()-H$2>0,SUM(OFFSET(Start,$A49,18):OFFSET(Start,$A49,37)),0) -> 0 | I49: =IF(TODAY()-I$2>0,SUM(OFFSET(Start,$A49,18):OFFSET(Start,$A49,37)),0) -> 0 | J49: =IF(TODAY()-J$2>0,SUM(OFFSET(Start,$A49,18):OFFSET(Start,$A49,37)),0) -> 0 | K49: =IF(TODAY()-K$2>0,SUM(OFFSET(Start,$A49,18):OFFSET(Start,$A49,37)),0) -> 0 | L49: =IF(TODAY()-L$2>0,SUM(OFFSET(Start,$A49,18):OFFSET(Start,$A49,37)),0) -> 0 | M49: =IF(TODAY()-M$2>0,SUM(OFFSET(Start,$A49,18):OFFSET(Start,$A49,37)),0) -> 0 | N49: =IF(TODAY()-N$2>0,SUM(OFFSET(Start,$A49,18):OFFSET(Start,$A49,37)),0) -> 0 | O49: =IF(TODAY()-O$2>0,SUM(OFFSET(Start,$A49,18):OFFSET(Start,$A49,37)),0) -> 0 | P49: =IF(TODAY()-P$2>0,SUM(OFFSET(Start,$A49,18):OFFSET(Start,$A49,37)),0) -> 0 | Q49: =IF(TODAY()-Q$2>0,SUM(OFFSET(Start,$A49,18):OFFSET(Start,$A49,37)),0) -> 0 | R49: =IF(TODAY()-R$2>0,SUM(OFFSET(Start,$A49,18):OFFSET(Start,$A49,37)),0) -> 0 | S49: =IF(TODAY()-S$2>0,SUM(OFFSET(Start,$A49,18):OFFSET(Start,$A49,37)),0) -> 0 | T49: =IF(TODAY()-T$2>0,SUM(OFFSET(Start,$A49,18):OFFSET(Start,$A49,37)),0) -> 0 | U49: =IF(TODAY()-U$2>0,SUM(OFFSET(Start,$A49,18):OFFSET(Start,$A49,37)),0) -> 0 | V49: =IF(TODAY()-V$2>0,SUM(OFFSET(Start,$A49,18):OFFSET(Start,$A49,37)),0) -> 0 | W49: =IF(TODAY()-W$2>0,SUM(OFFSET(Start,$A49,18):OFFSET(Start,$A49,37)),0) -> 0 | X49: =IF(TODAY()-X$2>0,SUM(OFFSET(Start,$A49,18):OFFSET(Start,$A49,37)),0) -> 0 | Y49: =IF(TODAY()-Y$2>0,SUM(OFFSET(Start,$A49,18):OFFSET(Start,$A49,37)),0) -> 0 | Z49: =IF(TODAY()-Z$2>0,SUM(OFFSET(Start,$A49,18):OFFSET(Start,$A49,37)),0) -> 0 | AA49: =IF(TODAY()-AA$2>0,SUM(OFFSET(Start,$A49,18):OFFSET(Start,$A49,37)),0) -> 0 | AB49: =IF(TODAY()-AB$2>0,SUM(OFFSET(Start,$A49,18):OFFSET(Start,$A49,37)),0) -> 0 | AC49: =IF(TODAY()-AC$2>0,SUM(OFFSET(Start,$A49,18):OFFSET(Start,$A49,37)),0) -> 0 | AD49: =IF(TODAY()-AD$2>0,SUM(OFFSET(Start,$A49,18):OFFSET(Start,$A49,37)),0) -> 0 | AE49: =IF(TODAY()-AE$2>0,SUM(OFFSET(Start,$A49,18):OFFSET(Start,$A49,37)),0) -> 0 | AF49: =IF(TODAY()-AF$2>0,SUM(OFFSET(Start,$A49,18):OFFSET(Start,$A49,37)),0) -> 0 | AG49: =IF(TODAY()-AG$2>0,SUM(OFFSET(Start,$A49,18):OFFSET(Start,$A49,37)),0) -> 0 | AH49: =IF(TODAY()-AH$2>0,SUM(OFFSET(Start,$A49,18):OFFSET(Start,$A49,37)),0) -> 0 | AI49: =IF(TODAY()-AI$2>0,SUM(OFFSET(Start,$A49,18):OFFSET(Start,$A49,37)),0) -> 0 | AJ49: =IF(TODAY()-AJ$2>0,SUM(OFFSET(Start,$A49,18):OFFSET(Start,$A49,37)),0) -> 0 | AK49: =IF(TODAY()-AK$2>0,SUM(OFFSET(Start,$A49,18):OFFSET(Start,$A49,37)),0) -> 0 | AL49: =IF(TODAY()-AL$2>0,SUM(OFFSET(Start,$A49,18):OFFSET(Start,$A49,37)),0) -> 0 | AM49: 0 | AN49: 0 | AO49: 0
A50: 49 | B50: =OFFSET(Start,'Mellomlagring - antall besøk'!A50,0) -> 0 | C50: =IF(TODAY()-C$2>0,SUM(OFFSET(Start,$A50,18):OFFSET(Start,$A50,37)),0) -> 0 | D50: =IF(TODAY()-D$2>0,SUM(OFFSET(Start,$A50,18):OFFSET(Start,$A50,37)),0) -> 0 | E50: =IF(TODAY()-E$2>0,SUM(OFFSET(Start,$A50,18):OFFSET(Start,$A50,37)),0) -> 0 | F50: =IF(TODAY()-F$2>0,SUM(OFFSET(Start,$A50,18):OFFSET(Start,$A50,37)),0) -> 0 | G50: =IF(TODAY()-G$2>0,SUM(OFFSET(Start,$A50,18):OFFSET(Start,$A50,37)),0) -> 0 | H50: =IF(TODAY()-H$2>0,SUM(OFFSET(Start,$A50,18):OFFSET(Start,$A50,37)),0) -> 0 | I50: =IF(TODAY()-I$2>0,SUM(OFFSET(Start,$A50,18):OFFSET(Start,$A50,37)),0) -> 0 | J50: =IF(TODAY()-J$2>0,SUM(OFFSET(Start,$A50,18):OFFSET(Start,$A50,37)),0) -> 0 | K50: =IF(TODAY()-K$2>0,SUM(OFFSET(Start,$A50,18):OFFSET(Start,$A50,37)),0) -> 0 | L50: =IF(TODAY()-L$2>0,SUM(OFFSET(Start,$A50,18):OFFSET(Start,$A50,37)),0) -> 0 | M50: =IF(TODAY()-M$2>0,SUM(OFFSET(Start,$A50,18):OFFSET(Start,$A50,37)),0) -> 0 | N50: =IF(TODAY()-N$2>0,SUM(OFFSET(Start,$A50,18):OFFSET(Start,$A50,37)),0) -> 0 | O50: =IF(TODAY()-O$2>0,SUM(OFFSET(Start,$A50,18):OFFSET(Start,$A50,37)),0) -> 0 | P50: =IF(TODAY()-P$2>0,SUM(OFFSET(Start,$A50,18):OFFSET(Start,$A50,37)),0) -> 0 | Q50: =IF(TODAY()-Q$2>0,SUM(OFFSET(Start,$A50,18):OFFSET(Start,$A50,37)),0) -> 0 | R50: =IF(TODAY()-R$2>0,SUM(OFFSET(Start,$A50,18):OFFSET(Start,$A50,37)),0) -> 0 | S50: =IF(TODAY()-S$2>0,SUM(OFFSET(Start,$A50,18):OFFSET(Start,$A50,37)),0) -> 0 | T50: =IF(TODAY()-T$2>0,SUM(OFFSET(Start,$A50,18):OFFSET(Start,$A50,37)),0) -> 0 | U50: =IF(TODAY()-U$2>0,SUM(OFFSET(Start,$A50,18):OFFSET(Start,$A50,37)),0) -> 0 | V50: =IF(TODAY()-V$2>0,SUM(OFFSET(Start,$A50,18):OFFSET(Start,$A50,37)),0) -> 0 | W50: =IF(TODAY()-W$2>0,SUM(OFFSET(Start,$A50,18):OFFSET(Start,$A50,37)),0) -> 0 | X50: =IF(TODAY()-X$2>0,SUM(OFFSET(Start,$A50,18):OFFSET(Start,$A50,37)),0) -> 0 | Y50: =IF(TODAY()-Y$2>0,SUM(OFFSET(Start,$A50,18):OFFSET(Start,$A50,37)),0) -> 0 | Z50: =IF(TODAY()-Z$2>0,SUM(OFFSET(Start,$A50,18):OFFSET(Start,$A50,37)),0) -> 0 | AA50: =IF(TODAY()-AA$2>0,SUM(OFFSET(Start,$A50,18):OFFSET(Start,$A50,37)),0) -> 0 | AB50: =IF(TODAY()-AB$2>0,SUM(OFFSET(Start,$A50,18):OFFSET(Start,$A50,37)),0) -> 0 | AC50: =IF(TODAY()-AC$2>0,SUM(OFFSET(Start,$A50,18):OFFSET(Start,$A50,37)),0) -> 0 | AD50: =IF(TODAY()-AD$2>0,SUM(OFFSET(Start,$A50,18):OFFSET(Start,$A50,37)),0) -> 0 | AE50: =IF(TODAY()-AE$2>0,SUM(OFFSET(Start,$A50,18):OFFSET(Start,$A50,37)),0) -> 0 | AF50: =IF(TODAY()-AF$2>0,SUM(OFFSET(Start,$A50,18):OFFSET(Start,$A50,37)),0) -> 0 | AG50: =IF(TODAY()-AG$2>0,SUM(OFFSET(Start,$A50,18):OFFSET(Start,$A50,37)),0) -> 0 | AH50: =IF(TODAY()-AH$2>0,SUM(OFFSET(Start,$A50,18):OFFSET(Start,$A50,37)),0) -> 0 | AI50: =IF(TODAY()-AI$2>0,SUM(OFFSET(Start,$A50,18):OFFSET(Start,$A50,37)),0) -> 0 | AJ50: =IF(TODAY()-AJ$2>0,SUM(OFFSET(Start,$A50,18):OFFSET(Start,$A50,37)),0) -> 0 | AK50: =IF(TODAY()-AK$2>0,SUM(OFFSET(Start,$A50,18):OFFSET(Start,$A50,37)),0) -> 0 | AL50: =IF(TODAY()-AL$2>0,SUM(OFFSET(Start,$A50,18):OFFSET(Start,$A50,37)),0) -> 0 | AM50: 0 | AN50: 0 | AO50: 0
A51: 50 | B51: =OFFSET(Start,'Mellomlagring - antall besøk'!A51,0) -> 0 | C51: =IF(TODAY()-C$2>0,SUM(OFFSET(Start,$A51,18):OFFSET(Start,$A51,37)),0) -> 0 | D51: =IF(TODAY()-D$2>0,SUM(OFFSET(Start,$A51,18):OFFSET(Start,$A51,37)),0) -> 0 | E51: =IF(TODAY()-E$2>0,SUM(OFFSET(Start,$A51,18):OFFSET(Start,$A51,37)),0) -> 0 | F51: =IF(TODAY()-F$2>0,SUM(OFFSET(Start,$A51,18):OFFSET(Start,$A51,37)),0) -> 0 | G51: =IF(TODAY()-G$2>0,SUM(OFFSET(Start,$A51,18):OFFSET(Start,$A51,37)),0) -> 0 | H51: =IF(TODAY()-H$2>0,SUM(OFFSET(Start,$A51,18):OFFSET(Start,$A51,37)),0) -> 0 | I51: =IF(TODAY()-I$2>0,SUM(OFFSET(Start,$A51,18):OFFSET(Start,$A51,37)),0) -> 0 | J51: =IF(TODAY()-J$2>0,SUM(OFFSET(Start,$A51,18):OFFSET(Start,$A51,37)),0) -> 0 | K51: =IF(TODAY()-K$2>0,SUM(OFFSET(Start,$A51,18):OFFSET(Start,$A51,37)),0) -> 0 | L51: =IF(TODAY()-L$2>0,SUM(OFFSET(Start,$A51,18):OFFSET(Start,$A51,37)),0) -> 0 | M51: =IF(TODAY()-M$2>0,SUM(OFFSET(Start,$A51,18):OFFSET(Start,$A51,37)),0) -> 0 | N51: =IF(TODAY()-N$2>0,SUM(OFFSET(Start,$A51,18):OFFSET(Start,$A51,37)),0) -> 0 | O51: =IF(TODAY()-O$2>0,SUM(OFFSET(Start,$A51,18):OFFSET(Start,$A51,37)),0) -> 0 | P51: =IF(TODAY()-P$2>0,SUM(OFFSET(Start,$A51,18):OFFSET(Start,$A51,37)),0) -> 0 | Q51: =IF(TODAY()-Q$2>0,SUM(OFFSET(Start,$A51,18):OFFSET(Start,$A51,37)),0) -> 0 | R51: =IF(TODAY()-R$2>0,SUM(OFFSET(Start,$A51,18):OFFSET(Start,$A51,37)),0) -> 0 | S51: =IF(TODAY()-S$2>0,SUM(OFFSET(Start,$A51,18):OFFSET(Start,$A51,37)),0) -> 0 | T51: =IF(TODAY()-T$2>0,SUM(OFFSET(Start,$A51,18):OFFSET(Start,$A51,37)),0) -> 0 | U51: =IF(TODAY()-U$2>0,SUM(OFFSET(Start,$A51,18):OFFSET(Start,$A51,37)),0) -> 0 | V51: =IF(TODAY()-V$2>0,SUM(OFFSET(Start,$A51,18):OFFSET(Start,$A51,37)),0) -> 0 | W51: =IF(TODAY()-W$2>0,SUM(OFFSET(Start,$A51,18):OFFSET(Start,$A51,37)),0) -> 0 | X51: =IF(TODAY()-X$2>0,SUM(OFFSET(Start,$A51,18):OFFSET(Start,$A51,37)),0) -> 0 | Y51: =IF(TODAY()-Y$2>0,SUM(OFFSET(Start,$A51,18):OFFSET(Start,$A51,37)),0) -> 0 | Z51: =IF(TODAY()-Z$2>0,SUM(OFFSET(Start,$A51,18):OFFSET(Start,$A51,37)),0) -> 0 | AA51: =IF(TODAY()-AA$2>0,SUM(OFFSET(Start,$A51,18):OFFSET(Start,$A51,37)),0) -> 0 | AB51: =IF(TODAY()-AB$2>0,SUM(OFFSET(Start,$A51,18):OFFSET(Start,$A51,37)),0) -> 0 | AC51: =IF(TODAY()-AC$2>0,SUM(OFFSET(Start,$A51,18):OFFSET(Start,$A51,37)),0) -> 0 | AD51: =IF(TODAY()-AD$2>0,SUM(OFFSET(Start,$A51,18):OFFSET(Start,$A51,37)),0) -> 0 | AE51: =IF(TODAY()-AE$2>0,SUM(OFFSET(Start,$A51,18):OFFSET(Start,$A51,37)),0) -> 0 | AF51: =IF(TODAY()-AF$2>0,SUM(OFFSET(Start,$A51,18):OFFSET(Start,$A51,37)),0) -> 0 | AG51: =IF(TODAY()-AG$2>0,SUM(OFFSET(Start,$A51,18):OFFSET(Start,$A51,37)),0) -> 0 | AH51: =IF(TODAY()-AH$2>0,SUM(OFFSET(Start,$A51,18):OFFSET(Start,$A51,37)),0) -> 0 | AI51: =IF(TODAY()-AI$2>0,SUM(OFFSET(Start,$A51,18):OFFSET(Start,$A51,37)),0) -> 0 | AJ51: =IF(TODAY()-AJ$2>0,SUM(OFFSET(Start,$A51,18):OFFSET(Start,$A51,37)),0) -> 0 | AK51: =IF(TODAY()-AK$2>0,SUM(OFFSET(Start,$A51,18):OFFSET(Start,$A51,37)),0) -> 0 | AL51: =IF(TODAY()-AL$2>0,SUM(OFFSET(Start,$A51,18):OFFSET(Start,$A51,37)),0) -> 0 | AM51: 0 | AN51: 0 | AO51: 0
A52: 51 | B52: =OFFSET(Start,'Mellomlagring - antall besøk'!A52,0) -> 0 | C52: =IF(TODAY()-C$2>0,SUM(OFFSET(Start,$A52,18):OFFSET(Start,$A52,37)),0) -> 0 | D52: =IF(TODAY()-D$2>0,SUM(OFFSET(Start,$A52,18):OFFSET(Start,$A52,37)),0) -> 0 | E52: =IF(TODAY()-E$2>0,SUM(OFFSET(Start,$A52,18):OFFSET(Start,$A52,37)),0) -> 0 | F52: =IF(TODAY()-F$2>0,SUM(OFFSET(Start,$A52,18):OFFSET(Start,$A52,37)),0) -> 0 | G52: =IF(TODAY()-G$2>0,SUM(OFFSET(Start,$A52,18):OFFSET(Start,$A52,37)),0) -> 0 | H52: =IF(TODAY()-H$2>0,SUM(OFFSET(Start,$A52,18):OFFSET(Start,$A52,37)),0) -> 0 | I52: =IF(TODAY()-I$2>0,SUM(OFFSET(Start,$A52,18):OFFSET(Start,$A52,37)),0) -> 0 | J52: =IF(TODAY()-J$2>0,SUM(OFFSET(Start,$A52,18):OFFSET(Start,$A52,37)),0) -> 0 | K52: =IF(TODAY()-K$2>0,SUM(OFFSET(Start,$A52,18):OFFSET(Start,$A52,37)),0) -> 0 | L52: =IF(TODAY()-L$2>0,SUM(OFFSET(Start,$A52,18):OFFSET(Start,$A52,37)),0) -> 0 | M52: =IF(TODAY()-M$2>0,SUM(OFFSET(Start,$A52,18):OFFSET(Start,$A52,37)),0) -> 0 | N52: =IF(TODAY()-N$2>0,SUM(OFFSET(Start,$A52,18):OFFSET(Start,$A52,37)),0) -> 0 | O52: =IF(TODAY()-O$2>0,SUM(OFFSET(Start,$A52,18):OFFSET(Start,$A52,37)),0) -> 0 | P52: =IF(TODAY()-P$2>0,SUM(OFFSET(Start,$A52,18):OFFSET(Start,$A52,37)),0) -> 0 | Q52: =IF(TODAY()-Q$2>0,SUM(OFFSET(Start,$A52,18):OFFSET(Start,$A52,37)),0) -> 0 | R52: =IF(TODAY()-R$2>0,SUM(OFFSET(Start,$A52,18):OFFSET(Start,$A52,37)),0) -> 0 | S52: =IF(TODAY()-S$2>0,SUM(OFFSET(Start,$A52,18):OFFSET(Start,$A52,37)),0) -> 0 | T52: =IF(TODAY()-T$2>0,SUM(OFFSET(Start,$A52,18):OFFSET(Start,$A52,37)),0) -> 0 | U52: =IF(TODAY()-U$2>0,SUM(OFFSET(Start,$A52,18):OFFSET(Start,$A52,37)),0) -> 0 | V52: =IF(TODAY()-V$2>0,SUM(OFFSET(Start,$A52,18):OFFSET(Start,$A52,37)),0) -> 0 | W52: =IF(TODAY()-W$2>0,SUM(OFFSET(Start,$A52,18):OFFSET(Start,$A52,37)),0) -> 0 | X52: =IF(TODAY()-X$2>0,SUM(OFFSET(Start,$A52,18):OFFSET(Start,$A52,37)),0) -> 0 | Y52: =IF(TODAY()-Y$2>0,SUM(OFFSET(Start,$A52,18):OFFSET(Start,$A52,37)),0) -> 0 | Z52: =IF(TODAY()-Z$2>0,SUM(OFFSET(Start,$A52,18):OFFSET(Start,$A52,37)),0) -> 0 | AA52: =IF(TODAY()-AA$2>0,SUM(OFFSET(Start,$A52,18):OFFSET(Start,$A52,37)),0) -> 0 | AB52: =IF(TODAY()-AB$2>0,SUM(OFFSET(Start,$A52,18):OFFSET(Start,$A52,37)),0) -> 0 | AC52: =IF(TODAY()-AC$2>0,SUM(OFFSET(Start,$A52,18):OFFSET(Start,$A52,37)),0) -> 0 | AD52: =IF(TODAY()-AD$2>0,SUM(OFFSET(Start,$A52,18):OFFSET(Start,$A52,37)),0) -> 0 | AE52: =IF(TODAY()-AE$2>0,SUM(OFFSET(Start,$A52,18):OFFSET(Start,$A52,37)),0) -> 0 | AF52: =IF(TODAY()-AF$2>0,SUM(OFFSET(Start,$A52,18):OFFSET(Start,$A52,37)),0) -> 0 | AG52: =IF(TODAY()-AG$2>0,SUM(OFFSET(Start,$A52,18):OFFSET(Start,$A52,37)),0) -> 0 | AH52: =IF(TODAY()-AH$2>0,SUM(OFFSET(Start,$A52,18):OFFSET(Start,$A52,37)),0) -> 0 | AI52: =IF(TODAY()-AI$2>0,SUM(OFFSET(Start,$A52,18):OFFSET(Start,$A52,37)),0) -> 0 | AJ52: =IF(TODAY()-AJ$2>0,SUM(OFFSET(Start,$A52,18):OFFSET(Start,$A52,37)),0) -> 0 | AK52: =IF(TODAY()-AK$2>0,SUM(OFFSET(Start,$A52,18):OFFSET(Start,$A52,37)),0) -> 0 | AL52: =IF(TODAY()-AL$2>0,SUM(OFFSET(Start,$A52,18):OFFSET(Start,$A52,37)),0) -> 0 | AM52: 0 | AN52: 0 | AO52: 0
A53: 52 | B53: =OFFSET(Start,'Mellomlagring - antall besøk'!A53,0) -> 0 | C53: =IF(TODAY()-C$2>0,SUM(OFFSET(Start,$A53,18):OFFSET(Start,$A53,37)),0) -> 0 | D53: =IF(TODAY()-D$2>0,SUM(OFFSET(Start,$A53,18):OFFSET(Start,$A53,37)),0) -> 0 | E53: =IF(TODAY()-E$2>0,SUM(OFFSET(Start,$A53,18):OFFSET(Start,$A53,37)),0) -> 0 | F53: =IF(TODAY()-F$2>0,SUM(OFFSET(Start,$A53,18):OFFSET(Start,$A53,37)),0) -> 0 | G53: =IF(TODAY()-G$2>0,SUM(OFFSET(Start,$A53,18):OFFSET(Start,$A53,37)),0) -> 0 | H53: =IF(TODAY()-H$2>0,SUM(OFFSET(Start,$A53,18):OFFSET(Start,$A53,37)),0) -> 0 | I53: =IF(TODAY()-I$2>0,SUM(OFFSET(Start,$A53,18):OFFSET(Start,$A53,37)),0) -> 0 | J53: =IF(TODAY()-J$2>0,SUM(OFFSET(Start,$A53,18):OFFSET(Start,$A53,37)),0) -> 0 | K53: =IF(TODAY()-K$2>0,SUM(OFFSET(Start,$A53,18):OFFSET(Start,$A53,37)),0) -> 0 | L53: =IF(TODAY()-L$2>0,SUM(OFFSET(Start,$A53,18):OFFSET(Start,$A53,37)),0) -> 0 | M53: =IF(TODAY()-M$2>0,SUM(OFFSET(Start,$A53,18):OFFSET(Start,$A53,37)),0) -> 0 | N53: =IF(TODAY()-N$2>0,SUM(OFFSET(Start,$A53,18):OFFSET(Start,$A53,37)),0) -> 0 | O53: =IF(TODAY()-O$2>0,SUM(OFFSET(Start,$A53,18):OFFSET(Start,$A53,37)),0) -> 0 | P53: =IF(TODAY()-P$2>0,SUM(OFFSET(Start,$A53,18):OFFSET(Start,$A53,37)),0) -> 0 | Q53: =IF(TODAY()-Q$2>0,SUM(OFFSET(Start,$A53,18):OFFSET(Start,$A53,37)),0) -> 0 | R53: =IF(TODAY()-R$2>0,SUM(OFFSET(Start,$A53,18):OFFSET(Start,$A53,37)),0) -> 0 | S53: =IF(TODAY()-S$2>0,SUM(OFFSET(Start,$A53,18):OFFSET(Start,$A53,37)),0) -> 0 | T53: =IF(TODAY()-T$2>0,SUM(OFFSET(Start,$A53,18):OFFSET(Start,$A53,37)),0) -> 0 | U53: =IF(TODAY()-U$2>0,SUM(OFFSET(Start,$A53,18):OFFSET(Start,$A53,37)),0) -> 0 | V53: =IF(TODAY()-V$2>0,SUM(OFFSET(Start,$A53,18):OFFSET(Start,$A53,37)),0) -> 0 | W53: =IF(TODAY()-W$2>0,SUM(OFFSET(Start,$A53,18):OFFSET(Start,$A53,37)),0) -> 0 | X53: =IF(TODAY()-X$2>0,SUM(OFFSET(Start,$A53,18):OFFSET(Start,$A53,37)),0) -> 0 | Y53: =IF(TODAY()-Y$2>0,SUM(OFFSET(Start,$A53,18):OFFSET(Start,$A53,37)),0) -> 0 | Z53: =IF(TODAY()-Z$2>0,SUM(OFFSET(Start,$A53,18):OFFSET(Start,$A53,37)),0) -> 0 | AA53: =IF(TODAY()-AA$2>0,SUM(OFFSET(Start,$A53,18):OFFSET(Start,$A53,37)),0) -> 0 | AB53: =IF(TODAY()-AB$2>0,SUM(OFFSET(Start,$A53,18):OFFSET(Start,$A53,37)),0) -> 0 | AC53: =IF(TODAY()-AC$2>0,SUM(OFFSET(Start,$A53,18):OFFSET(Start,$A53,37)),0) -> 0 | AD53: =IF(TODAY()-AD$2>0,SUM(OFFSET(Start,$A53,18):OFFSET(Start,$A53,37)),0) -> 0 | AE53: =IF(TODAY()-AE$2>0,SUM(OFFSET(Start,$A53,18):OFFSET(Start,$A53,37)),0) -> 0 | AF53: =IF(TODAY()-AF$2>0,SUM(OFFSET(Start,$A53,18):OFFSET(Start,$A53,37)),0) -> 0 | AG53: =IF(TODAY()-AG$2>0,SUM(OFFSET(Start,$A53,18):OFFSET(Start,$A53,37)),0) -> 0 | AH53: =IF(TODAY()-AH$2>0,SUM(OFFSET(Start,$A53,18):OFFSET(Start,$A53,37)),0) -> 0 | AI53: =IF(TODAY()-AI$2>0,SUM(OFFSET(Start,$A53,18):OFFSET(Start,$A53,37)),0) -> 0 | AJ53: =IF(TODAY()-AJ$2>0,SUM(OFFSET(Start,$A53,18):OFFSET(Start,$A53,37)),0) -> 0 | AK53: =IF(TODAY()-AK$2>0,SUM(OFFSET(Start,$A53,18):OFFSET(Start,$A53,37)),0) -> 0 | AL53: =IF(TODAY()-AL$2>0,SUM(OFFSET(Start,$A53,18):OFFSET(Start,$A53,37)),0) -> 0 | AM53: 0 | AN53: 0 | AO53: 0
A54: 53 | B54: =OFFSET(Start,'Mellomlagring - antall besøk'!A54,0) -> 0 | C54: =IF(TODAY()-C$2>0,SUM(OFFSET(Start,$A54,18):OFFSET(Start,$A54,37)),0) -> 0 | D54: =IF(TODAY()-D$2>0,SUM(OFFSET(Start,$A54,18):OFFSET(Start,$A54,37)),0) -> 0 | E54: =IF(TODAY()-E$2>0,SUM(OFFSET(Start,$A54,18):OFFSET(Start,$A54,37)),0) -> 0 | F54: =IF(TODAY()-F$2>0,SUM(OFFSET(Start,$A54,18):OFFSET(Start,$A54,37)),0) -> 0 | G54: =IF(TODAY()-G$2>0,SUM(OFFSET(Start,$A54,18):OFFSET(Start,$A54,37)),0) -> 0 | H54: =IF(TODAY()-H$2>0,SUM(OFFSET(Start,$A54,18):OFFSET(Start,$A54,37)),0) -> 0 | I54: =IF(TODAY()-I$2>0,SUM(OFFSET(Start,$A54,18):OFFSET(Start,$A54,37)),0) -> 0 | J54: =IF(TODAY()-J$2>0,SUM(OFFSET(Start,$A54,18):OFFSET(Start,$A54,37)),0) -> 0 | K54: =IF(TODAY()-K$2>0,SUM(OFFSET(Start,$A54,18):OFFSET(Start,$A54,37)),0) -> 0 | L54: =IF(TODAY()-L$2>0,SUM(OFFSET(Start,$A54,18):OFFSET(Start,$A54,37)),0) -> 0 | M54: =IF(TODAY()-M$2>0,SUM(OFFSET(Start,$A54,18):OFFSET(Start,$A54,37)),0) -> 0 | N54: =IF(TODAY()-N$2>0,SUM(OFFSET(Start,$A54,18):OFFSET(Start,$A54,37)),0) -> 0 | O54: =IF(TODAY()-O$2>0,SUM(OFFSET(Start,$A54,18):OFFSET(Start,$A54,37)),0) -> 0 | P54: =IF(TODAY()-P$2>0,SUM(OFFSET(Start,$A54,18):OFFSET(Start,$A54,37)),0) -> 0 | Q54: =IF(TODAY()-Q$2>0,SUM(OFFSET(Start,$A54,18):OFFSET(Start,$A54,37)),0) -> 0 | R54: =IF(TODAY()-R$2>0,SUM(OFFSET(Start,$A54,18):OFFSET(Start,$A54,37)),0) -> 0 | S54: =IF(TODAY()-S$2>0,SUM(OFFSET(Start,$A54,18):OFFSET(Start,$A54,37)),0) -> 0 | T54: =IF(TODAY()-T$2>0,SUM(OFFSET(Start,$A54,18):OFFSET(Start,$A54,37)),0) -> 0 | U54: =IF(TODAY()-U$2>0,SUM(OFFSET(Start,$A54,18):OFFSET(Start,$A54,37)),0) -> 0 | V54: =IF(TODAY()-V$2>0,SUM(OFFSET(Start,$A54,18):OFFSET(Start,$A54,37)),0) -> 0 | W54: =IF(TODAY()-W$2>0,SUM(OFFSET(Start,$A54,18):OFFSET(Start,$A54,37)),0) -> 0 | X54: =IF(TODAY()-X$2>0,SUM(OFFSET(Start,$A54,18):OFFSET(Start,$A54,37)),0) -> 0 | Y54: =IF(TODAY()-Y$2>0,SUM(OFFSET(Start,$A54,18):OFFSET(Start,$A54,37)),0) -> 0 | Z54: =IF(TODAY()-Z$2>0,SUM(OFFSET(Start,$A54,18):OFFSET(Start,$A54,37)),0) -> 0 | AA54: =IF(TODAY()-AA$2>0,SUM(OFFSET(Start,$A54,18):OFFSET(Start,$A54,37)),0) -> 0 | AB54: =IF(TODAY()-AB$2>0,SUM(OFFSET(Start,$A54,18):OFFSET(Start,$A54,37)),0) -> 0 | AC54: =IF(TODAY()-AC$2>0,SUM(OFFSET(Start,$A54,18):OFFSET(Start,$A54,37)),0) -> 0 | AD54: =IF(TODAY()-AD$2>0,SUM(OFFSET(Start,$A54,18):OFFSET(Start,$A54,37)),0) -> 0 | AE54: =IF(TODAY()-AE$2>0,SUM(OFFSET(Start,$A54,18):OFFSET(Start,$A54,37)),0) -> 0 | AF54: =IF(TODAY()-AF$2>0,SUM(OFFSET(Start,$A54,18):OFFSET(Start,$A54,37)),0) -> 0 | AG54: =IF(TODAY()-AG$2>0,SUM(OFFSET(Start,$A54,18):OFFSET(Start,$A54,37)),0) -> 0 | AH54: =IF(TODAY()-AH$2>0,SUM(OFFSET(Start,$A54,18):OFFSET(Start,$A54,37)),0) -> 0 | AI54: =IF(TODAY()-AI$2>0,SUM(OFFSET(Start,$A54,18):OFFSET(Start,$A54,37)),0) -> 0 | AJ54: =IF(TODAY()-AJ$2>0,SUM(OFFSET(Start,$A54,18):OFFSET(Start,$A54,37)),0) -> 0 | AK54: =IF(TODAY()-AK$2>0,SUM(OFFSET(Start,$A54,18):OFFSET(Start,$A54,37)),0) -> 0 | AL54: =IF(TODAY()-AL$2>0,SUM(OFFSET(Start,$A54,18):OFFSET(Start,$A54,37)),0) -> 0 | AM54: 0 | AN54: 0 | AO54: 0
A55: 54 | B55: =OFFSET(Start,'Mellomlagring - antall besøk'!A55,0) -> 0 | C55: =IF(TODAY()-C$2>0,SUM(OFFSET(Start,$A55,18):OFFSET(Start,$A55,37)),0) -> 0 | D55: =IF(TODAY()-D$2>0,SUM(OFFSET(Start,$A55,18):OFFSET(Start,$A55,37)),0) -> 0 | E55: =IF(TODAY()-E$2>0,SUM(OFFSET(Start,$A55,18):OFFSET(Start,$A55,37)),0) -> 0 | F55: =IF(TODAY()-F$2>0,SUM(OFFSET(Start,$A55,18):OFFSET(Start,$A55,37)),0) -> 0 | G55: =IF(TODAY()-G$2>0,SUM(OFFSET(Start,$A55,18):OFFSET(Start,$A55,37)),0) -> 0 | H55: =IF(TODAY()-H$2>0,SUM(OFFSET(Start,$A55,18):OFFSET(Start,$A55,37)),0) -> 0 | I55: =IF(TODAY()-I$2>0,SUM(OFFSET(Start,$A55,18):OFFSET(Start,$A55,37)),0) -> 0 | J55: =IF(TODAY()-J$2>0,SUM(OFFSET(Start,$A55,18):OFFSET(Start,$A55,37)),0) -> 0 | K55: =IF(TODAY()-K$2>0,SUM(OFFSET(Start,$A55,18):OFFSET(Start,$A55,37)),0) -> 0 | L55: =IF(TODAY()-L$2>0,SUM(OFFSET(Start,$A55,18):OFFSET(Start,$A55,37)),0) -> 0 | M55: =IF(TODAY()-M$2>0,SUM(OFFSET(Start,$A55,18):OFFSET(Start,$A55,37)),0) -> 0 | N55: =IF(TODAY()-N$2>0,SUM(OFFSET(Start,$A55,18):OFFSET(Start,$A55,37)),0) -> 0 | O55: =IF(TODAY()-O$2>0,SUM(OFFSET(Start,$A55,18):OFFSET(Start,$A55,37)),0) -> 0 | P55: =IF(TODAY()-P$2>0,SUM(OFFSET(Start,$A55,18):OFFSET(Start,$A55,37)),0) -> 0 | Q55: =IF(TODAY()-Q$2>0,SUM(OFFSET(Start,$A55,18):OFFSET(Start,$A55,37)),0) -> 0 | R55: =IF(TODAY()-R$2>0,SUM(OFFSET(Start,$A55,18):OFFSET(Start,$A55,37)),0) -> 0 | S55: =IF(TODAY()-S$2>0,SUM(OFFSET(Start,$A55,18):OFFSET(Start,$A55,37)),0) -> 0 | T55: =IF(TODAY()-T$2>0,SUM(OFFSET(Start,$A55,18):OFFSET(Start,$A55,37)),0) -> 0 | U55: =IF(TODAY()-U$2>0,SUM(OFFSET(Start,$A55,18):OFFSET(Start,$A55,37)),0) -> 0 | V55: =IF(TODAY()-V$2>0,SUM(OFFSET(Start,$A55,18):OFFSET(Start,$A55,37)),0) -> 0 | W55: =IF(TODAY()-W$2>0,SUM(OFFSET(Start,$A55,18):OFFSET(Start,$A55,37)),0) -> 0 | X55: =IF(TODAY()-X$2>0,SUM(OFFSET(Start,$A55,18):OFFSET(Start,$A55,37)),0) -> 0 | Y55: =IF(TODAY()-Y$2>0,SUM(OFFSET(Start,$A55,18):OFFSET(Start,$A55,37)),0) -> 0 | Z55: =IF(TODAY()-Z$2>0,SUM(OFFSET(Start,$A55,18):OFFSET(Start,$A55,37)),0) -> 0 | AA55: =IF(TODAY()-AA$2>0,SUM(OFFSET(Start,$A55,18):OFFSET(Start,$A55,37)),0) -> 0 | AB55: =IF(TODAY()-AB$2>0,SUM(OFFSET(Start,$A55,18):OFFSET(Start,$A55,37)),0) -> 0 | AC55: =IF(TODAY()-AC$2>0,SUM(OFFSET(Start,$A55,18):OFFSET(Start,$A55,37)),0) -> 0 | AD55: =IF(TODAY()-AD$2>0,SUM(OFFSET(Start,$A55,18):OFFSET(Start,$A55,37)),0) -> 0 | AE55: =IF(TODAY()-AE$2>0,SUM(OFFSET(Start,$A55,18):OFFSET(Start,$A55,37)),0) -> 0 | AF55: =IF(TODAY()-AF$2>0,SUM(OFFSET(Start,$A55,18):OFFSET(Start,$A55,37)),0) -> 0 | AG55: =IF(TODAY()-AG$2>0,SUM(OFFSET(Start,$A55,18):OFFSET(Start,$A55,37)),0) -> 0 | AH55: =IF(TODAY()-AH$2>0,SUM(OFFSET(Start,$A55,18):OFFSET(Start,$A55,37)),0) -> 0 | AI55: =IF(TODAY()-AI$2>0,SUM(OFFSET(Start,$A55,18):OFFSET(Start,$A55,37)),0) -> 0 | AJ55: =IF(TODAY()-AJ$2>0,SUM(OFFSET(Start,$A55,18):OFFSET(Start,$A55,37)),0) -> 0 | AK55: =IF(TODAY()-AK$2>0,SUM(OFFSET(Start,$A55,18):OFFSET(Start,$A55,37)),0) -> 0 | AL55: =IF(TODAY()-AL$2>0,SUM(OFFSET(Start,$A55,18):OFFSET(Start,$A55,37)),0) -> 0 | AM55: 0 | AN55: 0 | AO55: 0
A56: 55 | B56: =OFFSET(Start,'Mellomlagring - antall besøk'!A56,0) -> 0 | C56: =IF(TODAY()-C$2>0,SUM(OFFSET(Start,$A56,18):OFFSET(Start,$A56,37)),0) -> 0 | D56: =IF(TODAY()-D$2>0,SUM(OFFSET(Start,$A56,18):OFFSET(Start,$A56,37)),0) -> 0 | E56: =IF(TODAY()-E$2>0,SUM(OFFSET(Start,$A56,18):OFFSET(Start,$A56,37)),0) -> 0 | F56: =IF(TODAY()-F$2>0,SUM(OFFSET(Start,$A56,18):OFFSET(Start,$A56,37)),0) -> 0 | G56: =IF(TODAY()-G$2>0,SUM(OFFSET(Start,$A56,18):OFFSET(Start,$A56,37)),0) -> 0 | H56: =IF(TODAY()-H$2>0,SUM(OFFSET(Start,$A56,18):OFFSET(Start,$A56,37)),0) -> 0 | I56: =IF(TODAY()-I$2>0,SUM(OFFSET(Start,$A56,18):OFFSET(Start,$A56,37)),0) -> 0 | J56: =IF(TODAY()-J$2>0,SUM(OFFSET(Start,$A56,18):OFFSET(Start,$A56,37)),0) -> 0 | K56: =IF(TODAY()-K$2>0,SUM(OFFSET(Start,$A56,18):OFFSET(Start,$A56,37)),0) -> 0 | L56: =IF(TODAY()-L$2>0,SUM(OFFSET(Start,$A56,18):OFFSET(Start,$A56,37)),0) -> 0 | M56: =IF(TODAY()-M$2>0,SUM(OFFSET(Start,$A56,18):OFFSET(Start,$A56,37)),0) -> 0 | N56: =IF(TODAY()-N$2>0,SUM(OFFSET(Start,$A56,18):OFFSET(Start,$A56,37)),0) -> 0 | O56: =IF(TODAY()-O$2>0,SUM(OFFSET(Start,$A56,18):OFFSET(Start,$A56,37)),0) -> 0 | P56: =IF(TODAY()-P$2>0,SUM(OFFSET(Start,$A56,18):OFFSET(Start,$A56,37)),0) -> 0 | Q56: =IF(TODAY()-Q$2>0,SUM(OFFSET(Start,$A56,18):OFFSET(Start,$A56,37)),0) -> 0 | R56: =IF(TODAY()-R$2>0,SUM(OFFSET(Start,$A56,18):OFFSET(Start,$A56,37)),0) -> 0 | S56: =IF(TODAY()-S$2>0,SUM(OFFSET(Start,$A56,18):OFFSET(Start,$A56,37)),0) -> 0 | T56: =IF(TODAY()-T$2>0,SUM(OFFSET(Start,$A56,18):OFFSET(Start,$A56,37)),0) -> 0 | U56: =IF(TODAY()-U$2>0,SUM(OFFSET(Start,$A56,18):OFFSET(Start,$A56,37)),0) -> 0 | V56: =IF(TODAY()-V$2>0,SUM(OFFSET(Start,$A56,18):OFFSET(Start,$A56,37)),0) -> 0 | W56: =IF(TODAY()-W$2>0,SUM(OFFSET(Start,$A56,18):OFFSET(Start,$A56,37)),0) -> 0 | X56: =IF(TODAY()-X$2>0,SUM(OFFSET(Start,$A56,18):OFFSET(Start,$A56,37)),0) -> 0 | Y56: =IF(TODAY()-Y$2>0,SUM(OFFSET(Start,$A56,18):OFFSET(Start,$A56,37)),0) -> 0 | Z56: =IF(TODAY()-Z$2>0,SUM(OFFSET(Start,$A56,18):OFFSET(Start,$A56,37)),0) -> 0 | AA56: =IF(TODAY()-AA$2>0,SUM(OFFSET(Start,$A56,18):OFFSET(Start,$A56,37)),0) -> 0 | AB56: =IF(TODAY()-AB$2>0,SUM(OFFSET(Start,$A56,18):OFFSET(Start,$A56,37)),0) -> 0 | AC56: =IF(TODAY()-AC$2>0,SUM(OFFSET(Start,$A56,18):OFFSET(Start,$A56,37)),0) -> 0 | AD56: =IF(TODAY()-AD$2>0,SUM(OFFSET(Start,$A56,18):OFFSET(Start,$A56,37)),0) -> 0 | AE56: =IF(TODAY()-AE$2>0,SUM(OFFSET(Start,$A56,18):OFFSET(Start,$A56,37)),0) -> 0 | AF56: =IF(TODAY()-AF$2>0,SUM(OFFSET(Start,$A56,18):OFFSET(Start,$A56,37)),0) -> 0 | AG56: =IF(TODAY()-AG$2>0,SUM(OFFSET(Start,$A56,18):OFFSET(Start,$A56,37)),0) -> 0 | AH56: =IF(TODAY()-AH$2>0,SUM(OFFSET(Start,$A56,18):OFFSET(Start,$A56,37)),0) -> 0 | AI56: =IF(TODAY()-AI$2>0,SUM(OFFSET(Start,$A56,18):OFFSET(Start,$A56,37)),0) -> 0 | AJ56: =IF(TODAY()-AJ$2>0,SUM(OFFSET(Start,$A56,18):OFFSET(Start,$A56,37)),0) -> 0 | AK56: =IF(TODAY()-AK$2>0,SUM(OFFSET(Start,$A56,18):OFFSET(Start,$A56,37)),0) -> 0 | AL56: =IF(TODAY()-AL$2>0,SUM(OFFSET(Start,$A56,18):OFFSET(Start,$A56,37)),0) -> 0 | AM56: 0 | AN56: 0 | AO56: 0
A57: 56 | B57: =OFFSET(Start,'Mellomlagring - antall besøk'!A57,0) -> 0 | C57: =IF(TODAY()-C$2>0,SUM(OFFSET(Start,$A57,18):OFFSET(Start,$A57,37)),0) -> 0 | D57: =IF(TODAY()-D$2>0,SUM(OFFSET(Start,$A57,18):OFFSET(Start,$A57,37)),0) -> 0 | E57: =IF(TODAY()-E$2>0,SUM(OFFSET(Start,$A57,18):OFFSET(Start,$A57,37)),0) -> 0 | F57: =IF(TODAY()-F$2>0,SUM(OFFSET(Start,$A57,18):OFFSET(Start,$A57,37)),0) -> 0 | G57: =IF(TODAY()-G$2>0,SUM(OFFSET(Start,$A57,18):OFFSET(Start,$A57,37)),0) -> 0 | H57: =IF(TODAY()-H$2>0,SUM(OFFSET(Start,$A57,18):OFFSET(Start,$A57,37)),0) -> 0 | I57: =IF(TODAY()-I$2>0,SUM(OFFSET(Start,$A57,18):OFFSET(Start,$A57,37)),0) -> 0 | J57: =IF(TODAY()-J$2>0,SUM(OFFSET(Start,$A57,18):OFFSET(Start,$A57,37)),0) -> 0 | K57: =IF(TODAY()-K$2>0,SUM(OFFSET(Start,$A57,18):OFFSET(Start,$A57,37)),0) -> 0 | L57: =IF(TODAY()-L$2>0,SUM(OFFSET(Start,$A57,18):OFFSET(Start,$A57,37)),0) -> 0 | M57: =IF(TODAY()-M$2>0,SUM(OFFSET(Start,$A57,18):OFFSET(Start,$A57,37)),0) -> 0 | N57: =IF(TODAY()-N$2>0,SUM(OFFSET(Start,$A57,18):OFFSET(Start,$A57,37)),0) -> 0 | O57: =IF(TODAY()-O$2>0,SUM(OFFSET(Start,$A57,18):OFFSET(Start,$A57,37)),0) -> 0 | P57: =IF(TODAY()-P$2>0,SUM(OFFSET(Start,$A57,18):OFFSET(Start,$A57,37)),0) -> 0 | Q57: =IF(TODAY()-Q$2>0,SUM(OFFSET(Start,$A57,18):OFFSET(Start,$A57,37)),0) -> 0 | R57: =IF(TODAY()-R$2>0,SUM(OFFSET(Start,$A57,18):OFFSET(Start,$A57,37)),0) -> 0 | S57: =IF(TODAY()-S$2>0,SUM(OFFSET(Start,$A57,18):OFFSET(Start,$A57,37)),0) -> 0 | T57: =IF(TODAY()-T$2>0,SUM(OFFSET(Start,$A57,18):OFFSET(Start,$A57,37)),0) -> 0 | U57: =IF(TODAY()-U$2>0,SUM(OFFSET(Start,$A57,18):OFFSET(Start,$A57,37)),0) -> 0 | V57: =IF(TODAY()-V$2>0,SUM(OFFSET(Start,$A57,18):OFFSET(Start,$A57,37)),0) -> 0 | W57: =IF(TODAY()-W$2>0,SUM(OFFSET(Start,$A57,18):OFFSET(Start,$A57,37)),0) -> 0 | X57: =IF(TODAY()-X$2>0,SUM(OFFSET(Start,$A57,18):OFFSET(Start,$A57,37)),0) -> 0 | Y57: =IF(TODAY()-Y$2>0,SUM(OFFSET(Start,$A57,18):OFFSET(Start,$A57,37)),0) -> 0 | Z57: =IF(TODAY()-Z$2>0,SUM(OFFSET(Start,$A57,18):OFFSET(Start,$A57,37)),0) -> 0 | AA57: =IF(TODAY()-AA$2>0,SUM(OFFSET(Start,$A57,18):OFFSET(Start,$A57,37)),0) -> 0 | AB57: =IF(TODAY()-AB$2>0,SUM(OFFSET(Start,$A57,18):OFFSET(Start,$A57,37)),0) -> 0 | AC57: =IF(TODAY()-AC$2>0,SUM(OFFSET(Start,$A57,18):OFFSET(Start,$A57,37)),0) -> 0 | AD57: =IF(TODAY()-AD$2>0,SUM(OFFSET(Start,$A57,18):OFFSET(Start,$A57,37)),0) -> 0 | AE57: =IF(TODAY()-AE$2>0,SUM(OFFSET(Start,$A57,18):OFFSET(Start,$A57,37)),0) -> 0 | AF57: =IF(TODAY()-AF$2>0,SUM(OFFSET(Start,$A57,18):OFFSET(Start,$A57,37)),0) -> 0 | AG57: =IF(TODAY()-AG$2>0,SUM(OFFSET(Start,$A57,18):OFFSET(Start,$A57,37)),0) -> 0 | AH57: =IF(TODAY()-AH$2>0,SUM(OFFSET(Start,$A57,18):OFFSET(Start,$A57,37)),0) -> 0 | AI57: =IF(TODAY()-AI$2>0,SUM(OFFSET(Start,$A57,18):OFFSET(Start,$A57,37)),0) -> 0 | AJ57: =IF(TODAY()-AJ$2>0,SUM(OFFSET(Start,$A57,18):OFFSET(Start,$A57,37)),0) -> 0 | AK57: =IF(TODAY()-AK$2>0,SUM(OFFSET(Start,$A57,18):OFFSET(Start,$A57,37)),0) -> 0 | AL57: =IF(TODAY()-AL$2>0,SUM(OFFSET(Start,$A57,18):OFFSET(Start,$A57,37)),0) -> 0 | AM57: 0 | AN57: 0 | AO57: 0
A58: 57 | B58: =OFFSET(Start,'Mellomlagring - antall besøk'!A58,0) -> 0 | C58: =IF(TODAY()-C$2>0,SUM(OFFSET(Start,$A58,18):OFFSET(Start,$A58,37)),0) -> 0 | D58: =IF(TODAY()-D$2>0,SUM(OFFSET(Start,$A58,18):OFFSET(Start,$A58,37)),0) -> 0 | E58: =IF(TODAY()-E$2>0,SUM(OFFSET(Start,$A58,18):OFFSET(Start,$A58,37)),0) -> 0 | F58: =IF(TODAY()-F$2>0,SUM(OFFSET(Start,$A58,18):OFFSET(Start,$A58,37)),0) -> 0 | G58: =IF(TODAY()-G$2>0,SUM(OFFSET(Start,$A58,18):OFFSET(Start,$A58,37)),0) -> 0 | H58: =IF(TODAY()-H$2>0,SUM(OFFSET(Start,$A58,18):OFFSET(Start,$A58,37)),0) -> 0 | I58: =IF(TODAY()-I$2>0,SUM(OFFSET(Start,$A58,18):OFFSET(Start,$A58,37)),0) -> 0 | J58: =IF(TODAY()-J$2>0,SUM(OFFSET(Start,$A58,18):OFFSET(Start,$A58,37)),0) -> 0 | K58: =IF(TODAY()-K$2>0,SUM(OFFSET(Start,$A58,18):OFFSET(Start,$A58,37)),0) -> 0 | L58: =IF(TODAY()-L$2>0,SUM(OFFSET(Start,$A58,18):OFFSET(Start,$A58,37)),0) -> 0 | M58: =IF(TODAY()-M$2>0,SUM(OFFSET(Start,$A58,18):OFFSET(Start,$A58,37)),0) -> 0 | N58: =IF(TODAY()-N$2>0,SUM(OFFSET(Start,$A58,18):OFFSET(Start,$A58,37)),0) -> 0 | O58: =IF(TODAY()-O$2>0,SUM(OFFSET(Start,$A58,18):OFFSET(Start,$A58,37)),0) -> 0 | P58: =IF(TODAY()-P$2>0,SUM(OFFSET(Start,$A58,18):OFFSET(Start,$A58,37)),0) -> 0 | Q58: =IF(TODAY()-Q$2>0,SUM(OFFSET(Start,$A58,18):OFFSET(Start,$A58,37)),0) -> 0 | R58: =IF(TODAY()-R$2>0,SUM(OFFSET(Start,$A58,18):OFFSET(Start,$A58,37)),0) -> 0 | S58: =IF(TODAY()-S$2>0,SUM(OFFSET(Start,$A58,18):OFFSET(Start,$A58,37)),0) -> 0 | T58: =IF(TODAY()-T$2>0,SUM(OFFSET(Start,$A58,18):OFFSET(Start,$A58,37)),0) -> 0 | U58: =IF(TODAY()-U$2>0,SUM(OFFSET(Start,$A58,18):OFFSET(Start,$A58,37)),0) -> 0 | V58: =IF(TODAY()-V$2>0,SUM(OFFSET(Start,$A58,18):OFFSET(Start,$A58,37)),0) -> 0 | W58: =IF(TODAY()-W$2>0,SUM(OFFSET(Start,$A58,18):OFFSET(Start,$A58,37)),0) -> 0 | X58: =IF(TODAY()-X$2>0,SUM(OFFSET(Start,$A58,18):OFFSET(Start,$A58,37)),0) -> 0 | Y58: =IF(TODAY()-Y$2>0,SUM(OFFSET(Start,$A58,18):OFFSET(Start,$A58,37)),0) -> 0 | Z58: =IF(TODAY()-Z$2>0,SUM(OFFSET(Start,$A58,18):OFFSET(Start,$A58,37)),0) -> 0 | AA58: =IF(TODAY()-AA$2>0,SUM(OFFSET(Start,$A58,18):OFFSET(Start,$A58,37)),0) -> 0 | AB58: =IF(TODAY()-AB$2>0,SUM(OFFSET(Start,$A58,18):OFFSET(Start,$A58,37)),0) -> 0 | AC58: =IF(TODAY()-AC$2>0,SUM(OFFSET(Start,$A58,18):OFFSET(Start,$A58,37)),0) -> 0 | AD58: =IF(TODAY()-AD$2>0,SUM(OFFSET(Start,$A58,18):OFFSET(Start,$A58,37)),0) -> 0 | AE58: =IF(TODAY()-AE$2>0,SUM(OFFSET(Start,$A58,18):OFFSET(Start,$A58,37)),0) -> 0 | AF58: =IF(TODAY()-AF$2>0,SUM(OFFSET(Start,$A58,18):OFFSET(Start,$A58,37)),0) -> 0 | AG58: =IF(TODAY()-AG$2>0,SUM(OFFSET(Start,$A58,18):OFFSET(Start,$A58,37)),0) -> 0 | AH58: =IF(TODAY()-AH$2>0,SUM(OFFSET(Start,$A58,18):OFFSET(Start,$A58,37)),0) -> 0 | AI58: =IF(TODAY()-AI$2>0,SUM(OFFSET(Start,$A58,18):OFFSET(Start,$A58,37)),0) -> 0 | AJ58: =IF(TODAY()-AJ$2>0,SUM(OFFSET(Start,$A58,18):OFFSET(Start,$A58,37)),0) -> 0 | AK58: =IF(TODAY()-AK$2>0,SUM(OFFSET(Start,$A58,18):OFFSET(Start,$A58,37)),0) -> 0 | AL58: =IF(TODAY()-AL$2>0,SUM(OFFSET(Start,$A58,18):OFFSET(Start,$A58,37)),0) -> 0 | AM58: 0 | AN58: 0 | AO58: 0
A59: 58 | B59: =OFFSET(Start,'Mellomlagring - antall besøk'!A59,0) -> 0 | C59: =IF(TODAY()-C$2>0,SUM(OFFSET(Start,$A59,18):OFFSET(Start,$A59,37)),0) -> 0 | D59: =IF(TODAY()-D$2>0,SUM(OFFSET(Start,$A59,18):OFFSET(Start,$A59,37)),0) -> 0 | E59: =IF(TODAY()-E$2>0,SUM(OFFSET(Start,$A59,18):OFFSET(Start,$A59,37)),0) -> 0 | F59: =IF(TODAY()-F$2>0,SUM(OFFSET(Start,$A59,18):OFFSET(Start,$A59,37)),0) -> 0 | G59: =IF(TODAY()-G$2>0,SUM(OFFSET(Start,$A59,18):OFFSET(Start,$A59,37)),0) -> 0 | H59: =IF(TODAY()-H$2>0,SUM(OFFSET(Start,$A59,18):OFFSET(Start,$A59,37)),0) -> 0 | I59: =IF(TODAY()-I$2>0,SUM(OFFSET(Start,$A59,18):OFFSET(Start,$A59,37)),0) -> 0 | J59: =IF(TODAY()-J$2>0,SUM(OFFSET(Start,$A59,18):OFFSET(Start,$A59,37)),0) -> 0 | K59: =IF(TODAY()-K$2>0,SUM(OFFSET(Start,$A59,18):OFFSET(Start,$A59,37)),0) -> 0 | L59: =IF(TODAY()-L$2>0,SUM(OFFSET(Start,$A59,18):OFFSET(Start,$A59,37)),0) -> 0 | M59: =IF(TODAY()-M$2>0,SUM(OFFSET(Start,$A59,18):OFFSET(Start,$A59,37)),0) -> 0 | N59: =IF(TODAY()-N$2>0,SUM(OFFSET(Start,$A59,18):OFFSET(Start,$A59,37)),0) -> 0 | O59: =IF(TODAY()-O$2>0,SUM(OFFSET(Start,$A59,18):OFFSET(Start,$A59,37)),0) -> 0 | P59: =IF(TODAY()-P$2>0,SUM(OFFSET(Start,$A59,18):OFFSET(Start,$A59,37)),0) -> 0 | Q59: =IF(TODAY()-Q$2>0,SUM(OFFSET(Start,$A59,18):OFFSET(Start,$A59,37)),0) -> 0 | R59: =IF(TODAY()-R$2>0,SUM(OFFSET(Start,$A59,18):OFFSET(Start,$A59,37)),0) -> 0 | S59: =IF(TODAY()-S$2>0,SUM(OFFSET(Start,$A59,18):OFFSET(Start,$A59,37)),0) -> 0 | T59: =IF(TODAY()-T$2>0,SUM(OFFSET(Start,$A59,18):OFFSET(Start,$A59,37)),0) -> 0 | U59: =IF(TODAY()-U$2>0,SUM(OFFSET(Start,$A59,18):OFFSET(Start,$A59,37)),0) -> 0 | V59: =IF(TODAY()-V$2>0,SUM(OFFSET(Start,$A59,18):OFFSET(Start,$A59,37)),0) -> 0 | W59: =IF(TODAY()-W$2>0,SUM(OFFSET(Start,$A59,18):OFFSET(Start,$A59,37)),0) -> 0 | X59: =IF(TODAY()-X$2>0,SUM(OFFSET(Start,$A59,18):OFFSET(Start,$A59,37)),0) -> 0 | Y59: =IF(TODAY()-Y$2>0,SUM(OFFSET(Start,$A59,18):OFFSET(Start,$A59,37)),0) -> 0 | Z59: =IF(TODAY()-Z$2>0,SUM(OFFSET(Start,$A59,18):OFFSET(Start,$A59,37)),0) -> 0 | AA59: =IF(TODAY()-AA$2>0,SUM(OFFSET(Start,$A59,18):OFFSET(Start,$A59,37)),0) -> 0 | AB59: =IF(TODAY()-AB$2>0,SUM(OFFSET(Start,$A59,18):OFFSET(Start,$A59,37)),0) -> 0 | AC59: =IF(TODAY()-AC$2>0,SUM(OFFSET(Start,$A59,18):OFFSET(Start,$A59,37)),0) -> 0 | AD59: =IF(TODAY()-AD$2>0,SUM(OFFSET(Start,$A59,18):OFFSET(Start,$A59,37)),0) -> 0 | AE59: =IF(TODAY()-AE$2>0,SUM(OFFSET(Start,$A59,18):OFFSET(Start,$A59,37)),0) -> 0 | AF59: =IF(TODAY()-AF$2>0,SUM(OFFSET(Start,$A59,18):OFFSET(Start,$A59,37)),0) -> 0 | AG59: =IF(TODAY()-AG$2>0,SUM(OFFSET(Start,$A59,18):OFFSET(Start,$A59,37)),0) -> 0 | AH59: =IF(TODAY()-AH$2>0,SUM(OFFSET(Start,$A59,18):OFFSET(Start,$A59,37)),0) -> 0 | AI59: =IF(TODAY()-AI$2>0,SUM(OFFSET(Start,$A59,18):OFFSET(Start,$A59,37)),0) -> 0 | AJ59: =IF(TODAY()-AJ$2>0,SUM(OFFSET(Start,$A59,18):OFFSET(Start,$A59,37)),0) -> 0 | AK59: =IF(TODAY()-AK$2>0,SUM(OFFSET(Start,$A59,18):OFFSET(Start,$A59,37)),0) -> 0 | AL59: =IF(TODAY()-AL$2>0,SUM(OFFSET(Start,$A59,18):OFFSET(Start,$A59,37)),0) -> 0 | AM59: 0 | AN59: 0 | AO59: 0
A60: 59 | B60: =OFFSET(Start,'Mellomlagring - antall besøk'!A60,0) -> 0 | C60: =IF(TODAY()-C$2>0,SUM(OFFSET(Start,$A60,18):OFFSET(Start,$A60,37)),0) -> 0 | D60: =IF(TODAY()-D$2>0,SUM(OFFSET(Start,$A60,18):OFFSET(Start,$A60,37)),0) -> 0 | E60: =IF(TODAY()-E$2>0,SUM(OFFSET(Start,$A60,18):OFFSET(Start,$A60,37)),0) -> 0 | F60: =IF(TODAY()-F$2>0,SUM(OFFSET(Start,$A60,18):OFFSET(Start,$A60,37)),0) -> 0 | G60: =IF(TODAY()-G$2>0,SUM(OFFSET(Start,$A60,18):OFFSET(Start,$A60,37)),0) -> 0 | H60: =IF(TODAY()-H$2>0,SUM(OFFSET(Start,$A60,18):OFFSET(Start,$A60,37)),0) -> 0 | I60: =IF(TODAY()-I$2>0,SUM(OFFSET(Start,$A60,18):OFFSET(Start,$A60,37)),0) -> 0 | J60: =IF(TODAY()-J$2>0,SUM(OFFSET(Start,$A60,18):OFFSET(Start,$A60,37)),0) -> 0 | K60: =IF(TODAY()-K$2>0,SUM(OFFSET(Start,$A60,18):OFFSET(Start,$A60,37)),0) -> 0 | L60: =IF(TODAY()-L$2>0,SUM(OFFSET(Start,$A60,18):OFFSET(Start,$A60,37)),0) -> 0 | M60: =IF(TODAY()-M$2>0,SUM(OFFSET(Start,$A60,18):OFFSET(Start,$A60,37)),0) -> 0 | N60: =IF(TODAY()-N$2>0,SUM(OFFSET(Start,$A60,18):OFFSET(Start,$A60,37)),0) -> 0 | O60: =IF(TODAY()-O$2>0,SUM(OFFSET(Start,$A60,18):OFFSET(Start,$A60,37)),0) -> 0 | P60: =IF(TODAY()-P$2>0,SUM(OFFSET(Start,$A60,18):OFFSET(Start,$A60,37)),0) -> 0 | Q60: =IF(TODAY()-Q$2>0,SUM(OFFSET(Start,$A60,18):OFFSET(Start,$A60,37)),0) -> 0 | R60: =IF(TODAY()-R$2>0,SUM(OFFSET(Start,$A60,18):OFFSET(Start,$A60,37)),0) -> 0 | S60: =IF(TODAY()-S$2>0,SUM(OFFSET(Start,$A60,18):OFFSET(Start,$A60,37)),0) -> 0 | T60: =IF(TODAY()-T$2>0,SUM(OFFSET(Start,$A60,18):OFFSET(Start,$A60,37)),0) -> 0 | U60: =IF(TODAY()-U$2>0,SUM(OFFSET(Start,$A60,18):OFFSET(Start,$A60,37)),0) -> 0 | V60: =IF(TODAY()-V$2>0,SUM(OFFSET(Start,$A60,18):OFFSET(Start,$A60,37)),0) -> 0 | W60: =IF(TODAY()-W$2>0,SUM(OFFSET(Start,$A60,18):OFFSET(Start,$A60,37)),0) -> 0 | X60: =IF(TODAY()-X$2>0,SUM(OFFSET(Start,$A60,18):OFFSET(Start,$A60,37)),0) -> 0 | Y60: =IF(TODAY()-Y$2>0,SUM(OFFSET(Start,$A60,18):OFFSET(Start,$A60,37)),0) -> 0 | Z60: =IF(TODAY()-Z$2>0,SUM(OFFSET(Start,$A60,18):OFFSET(Start,$A60,37)),0) -> 0 | AA60: =IF(TODAY()-AA$2>0,SUM(OFFSET(Start,$A60,18):OFFSET(Start,$A60,37)),0) -> 0 | AB60: =IF(TODAY()-AB$2>0,SUM(OFFSET(Start,$A60,18):OFFSET(Start,$A60,37)),0) -> 0 | AC60: =IF(TODAY()-AC$2>0,SUM(OFFSET(Start,$A60,18):OFFSET(Start,$A60,37)),0) -> 0 | AD60: =IF(TODAY()-AD$2>0,SUM(OFFSET(Start,$A60,18):OFFSET(Start,$A60,37)),0) -> 0 | AE60: =IF(TODAY()-AE$2>0,SUM(OFFSET(Start,$A60,18):OFFSET(Start,$A60,37)),0) -> 0 | AF60: =IF(TODAY()-AF$2>0,SUM(OFFSET(Start,$A60,18):OFFSET(Start,$A60,37)),0) -> 0 | AG60: =IF(TODAY()-AG$2>0,SUM(OFFSET(Start,$A60,18):OFFSET(Start,$A60,37)),0) -> 0 | AH60: =IF(TODAY()-AH$2>0,SUM(OFFSET(Start,$A60,18):OFFSET(Start,$A60,37)),0) -> 0 | AI60: =IF(TODAY()-AI$2>0,SUM(OFFSET(Start,$A60,18):OFFSET(Start,$A60,37)),0) -> 0 | AJ60: =IF(TODAY()-AJ$2>0,SUM(OFFSET(Start,$A60,18):OFFSET(Start,$A60,37)),0) -> 0 | AK60: =IF(TODAY()-AK$2>0,SUM(OFFSET(Start,$A60,18):OFFSET(Start,$A60,37)),0) -> 0 | AL60: =IF(TODAY()-AL$2>0,SUM(OFFSET(Start,$A60,18):OFFSET(Start,$A60,37)),0) -> 0 | AM60: 0 | AN60: 0 | AO60: 0
A61: 60 | B61: =OFFSET(Start,'Mellomlagring - antall besøk'!A61,0) -> 0 | C61: =IF(TODAY()-C$2>0,SUM(OFFSET(Start,$A61,18):OFFSET(Start,$A61,37)),0) -> 0 | D61: =IF(TODAY()-D$2>0,SUM(OFFSET(Start,$A61,18):OFFSET(Start,$A61,37)),0) -> 0 | E61: =IF(TODAY()-E$2>0,SUM(OFFSET(Start,$A61,18):OFFSET(Start,$A61,37)),0) -> 0 | F61: =IF(TODAY()-F$2>0,SUM(OFFSET(Start,$A61,18):OFFSET(Start,$A61,37)),0) -> 0 | G61: =IF(TODAY()-G$2>0,SUM(OFFSET(Start,$A61,18):OFFSET(Start,$A61,37)),0) -> 0 | H61: =IF(TODAY()-H$2>0,SUM(OFFSET(Start,$A61,18):OFFSET(Start,$A61,37)),0) -> 0 | I61: =IF(TODAY()-I$2>0,SUM(OFFSET(Start,$A61,18):OFFSET(Start,$A61,37)),0) -> 0 | J61: =IF(TODAY()-J$2>0,SUM(OFFSET(Start,$A61,18):OFFSET(Start,$A61,37)),0) -> 0 | K61: =IF(TODAY()-K$2>0,SUM(OFFSET(Start,$A61,18):OFFSET(Start,$A61,37)),0) -> 0 | L61: =IF(TODAY()-L$2>0,SUM(OFFSET(Start,$A61,18):OFFSET(Start,$A61,37)),0) -> 0 | M61: =IF(TODAY()-M$2>0,SUM(OFFSET(Start,$A61,18):OFFSET(Start,$A61,37)),0) -> 0 | N61: =IF(TODAY()-N$2>0,SUM(OFFSET(Start,$A61,18):OFFSET(Start,$A61,37)),0) -> 0 | O61: =IF(TODAY()-O$2>0,SUM(OFFSET(Start,$A61,18):OFFSET(Start,$A61,37)),0) -> 0 | P61: =IF(TODAY()-P$2>0,SUM(OFFSET(Start,$A61,18):OFFSET(Start,$A61,37)),0) -> 0 | Q61: =IF(TODAY()-Q$2>0,SUM(OFFSET(Start,$A61,18):OFFSET(Start,$A61,37)),0) -> 0 | R61: =IF(TODAY()-R$2>0,SUM(OFFSET(Start,$A61,18):OFFSET(Start,$A61,37)),0) -> 0 | S61: =IF(TODAY()-S$2>0,SUM(OFFSET(Start,$A61,18):OFFSET(Start,$A61,37)),0) -> 0 | T61: =IF(TODAY()-T$2>0,SUM(OFFSET(Start,$A61,18):OFFSET(Start,$A61,37)),0) -> 0 | U61: =IF(TODAY()-U$2>0,SUM(OFFSET(Start,$A61,18):OFFSET(Start,$A61,37)),0) -> 0 | V61: =IF(TODAY()-V$2>0,SUM(OFFSET(Start,$A61,18):OFFSET(Start,$A61,37)),0) -> 0 | W61: =IF(TODAY()-W$2>0,SUM(OFFSET(Start,$A61,18):OFFSET(Start,$A61,37)),0) -> 0 | X61: =IF(TODAY()-X$2>0,SUM(OFFSET(Start,$A61,18):OFFSET(Start,$A61,37)),0) -> 0 | Y61: =IF(TODAY()-Y$2>0,SUM(OFFSET(Start,$A61,18):OFFSET(Start,$A61,37)),0) -> 0 | Z61: =IF(TODAY()-Z$2>0,SUM(OFFSET(Start,$A61,18):OFFSET(Start,$A61,37)),0) -> 0 | AA61: =IF(TODAY()-AA$2>0,SUM(OFFSET(Start,$A61,18):OFFSET(Start,$A61,37)),0) -> 0 | AB61: =IF(TODAY()-AB$2>0,SUM(OFFSET(Start,$A61,18):OFFSET(Start,$A61,37)),0) -> 0 | AC61: =IF(TODAY()-AC$2>0,SUM(OFFSET(Start,$A61,18):OFFSET(Start,$A61,37)),0) -> 0 | AD61: =IF(TODAY()-AD$2>0,SUM(OFFSET(Start,$A61,18):OFFSET(Start,$A61,37)),0) -> 0 | AE61: =IF(TODAY()-AE$2>0,SUM(OFFSET(Start,$A61,18):OFFSET(Start,$A61,37)),0) -> 0 | AF61: =IF(TODAY()-AF$2>0,SUM(OFFSET(Start,$A61,18):OFFSET(Start,$A61,37)),0) -> 0 | AG61: =IF(TODAY()-AG$2>0,SUM(OFFSET(Start,$A61,18):OFFSET(Start,$A61,37)),0) -> 0 | AH61: =IF(TODAY()-AH$2>0,SUM(OFFSET(Start,$A61,18):OFFSET(Start,$A61,37)),0) -> 0 | AI61: =IF(TODAY()-AI$2>0,SUM(OFFSET(Start,$A61,18):OFFSET(Start,$A61,37)),0) -> 0 | AJ61: =IF(TODAY()-AJ$2>0,SUM(OFFSET(Start,$A61,18):OFFSET(Start,$A61,37)),0) -> 0 | AK61: =IF(TODAY()-AK$2>0,SUM(OFFSET(Start,$A61,18):OFFSET(Start,$A61,37)),0) -> 0 | AL61: =IF(TODAY()-AL$2>0,SUM(OFFSET(Start,$A61,18):OFFSET(Start,$A61,37)),0) -> 0 | AM61: 0 | AN61: 0 | AO61: 0
A62: 61 | B62: =OFFSET(Start,'Mellomlagring - antall besøk'!A62,0) -> 0 | C62: =IF(TODAY()-C$2>0,SUM(OFFSET(Start,$A62,18):OFFSET(Start,$A62,37)),0) -> 0 | D62: =IF(TODAY()-D$2>0,SUM(OFFSET(Start,$A62,18):OFFSET(Start,$A62,37)),0) -> 0 | E62: =IF(TODAY()-E$2>0,SUM(OFFSET(Start,$A62,18):OFFSET(Start,$A62,37)),0) -> 0 | F62: =IF(TODAY()-F$2>0,SUM(OFFSET(Start,$A62,18):OFFSET(Start,$A62,37)),0) -> 0 | G62: =IF(TODAY()-G$2>0,SUM(OFFSET(Start,$A62,18):OFFSET(Start,$A62,37)),0) -> 0 | H62: =IF(TODAY()-H$2>0,SUM(OFFSET(Start,$A62,18):OFFSET(Start,$A62,37)),0) -> 0 | I62: =IF(TODAY()-I$2>0,SUM(OFFSET(Start,$A62,18):OFFSET(Start,$A62,37)),0) -> 0 | J62: =IF(TODAY()-J$2>0,SUM(OFFSET(Start,$A62,18):OFFSET(Start,$A62,37)),0) -> 0 | K62: =IF(TODAY()-K$2>0,SUM(OFFSET(Start,$A62,18):OFFSET(Start,$A62,37)),0) -> 0 | L62: =IF(TODAY()-L$2>0,SUM(OFFSET(Start,$A62,18):OFFSET(Start,$A62,37)),0) -> 0 | M62: =IF(TODAY()-M$2>0,SUM(OFFSET(Start,$A62,18):OFFSET(Start,$A62,37)),0) -> 0 | N62: =IF(TODAY()-N$2>0,SUM(OFFSET(Start,$A62,18):OFFSET(Start,$A62,37)),0) -> 0 | O62: =IF(TODAY()-O$2>0,SUM(OFFSET(Start,$A62,18):OFFSET(Start,$A62,37)),0) -> 0 | P62: =IF(TODAY()-P$2>0,SUM(OFFSET(Start,$A62,18):OFFSET(Start,$A62,37)),0) -> 0 | Q62: =IF(TODAY()-Q$2>0,SUM(OFFSET(Start,$A62,18):OFFSET(Start,$A62,37)),0) -> 0 | R62: =IF(TODAY()-R$2>0,SUM(OFFSET(Start,$A62,18):OFFSET(Start,$A62,37)),0) -> 0 | S62: =IF(TODAY()-S$2>0,SUM(OFFSET(Start,$A62,18):OFFSET(Start,$A62,37)),0) -> 0 | T62: =IF(TODAY()-T$2>0,SUM(OFFSET(Start,$A62,18):OFFSET(Start,$A62,37)),0) -> 0 | U62: =IF(TODAY()-U$2>0,SUM(OFFSET(Start,$A62,18):OFFSET(Start,$A62,37)),0) -> 0 | V62: =IF(TODAY()-V$2>0,SUM(OFFSET(Start,$A62,18):OFFSET(Start,$A62,37)),0) -> 0 | W62: =IF(TODAY()-W$2>0,SUM(OFFSET(Start,$A62,18):OFFSET(Start,$A62,37)),0) -> 0 | X62: =IF(TODAY()-X$2>0,SUM(OFFSET(Start,$A62,18):OFFSET(Start,$A62,37)),0) -> 0 | Y62: =IF(TODAY()-Y$2>0,SUM(OFFSET(Start,$A62,18):OFFSET(Start,$A62,37)),0) -> 0 | Z62: =IF(TODAY()-Z$2>0,SUM(OFFSET(Start,$A62,18):OFFSET(Start,$A62,37)),0) -> 0 | AA62: =IF(TODAY()-AA$2>0,SUM(OFFSET(Start,$A62,18):OFFSET(Start,$A62,37)),0) -> 0 | AB62: =IF(TODAY()-AB$2>0,SUM(OFFSET(Start,$A62,18):OFFSET(Start,$A62,37)),0) -> 0 | AC62: =IF(TODAY()-AC$2>0,SUM(OFFSET(Start,$A62,18):OFFSET(Start,$A62,37)),0) -> 0 | AD62: =IF(TODAY()-AD$2>0,SUM(OFFSET(Start,$A62,18):OFFSET(Start,$A62,37)),0) -> 0 | AE62: =IF(TODAY()-AE$2>0,SUM(OFFSET(Start,$A62,18):OFFSET(Start,$A62,37)),0) -> 0 | AF62: =IF(TODAY()-AF$2>0,SUM(OFFSET(Start,$A62,18):OFFSET(Start,$A62,37)),0) -> 0 | AG62: =IF(TODAY()-AG$2>0,SUM(OFFSET(Start,$A62,18):OFFSET(Start,$A62,37)),0) -> 0 | AH62: =IF(TODAY()-AH$2>0,SUM(OFFSET(Start,$A62,18):OFFSET(Start,$A62,37)),0) -> 0 | AI62: =IF(TODAY()-AI$2>0,SUM(OFFSET(Start,$A62,18):OFFSET(Start,$A62,37)),0) -> 0 | AJ62: =IF(TODAY()-AJ$2>0,SUM(OFFSET(Start,$A62,18):OFFSET(Start,$A62,37)),0) -> 0 | AK62: =IF(TODAY()-AK$2>0,SUM(OFFSET(Start,$A62,18):OFFSET(Start,$A62,37)),0) -> 0 | AL62: =IF(TODAY()-AL$2>0,SUM(OFFSET(Start,$A62,18):OFFSET(Start,$A62,37)),0) -> 0 | AM62: 0 | AN62: 0 | AO62: 0
A63: 62 | B63: =OFFSET(Start,'Mellomlagring - antall besøk'!A63,0) -> 0 | C63: =IF(TODAY()-C$2>0,SUM(OFFSET(Start,$A63,18):OFFSET(Start,$A63,37)),0) -> 0 | D63: =IF(TODAY()-D$2>0,SUM(OFFSET(Start,$A63,18):OFFSET(Start,$A63,37)),0) -> 0 | E63: =IF(TODAY()-E$2>0,SUM(OFFSET(Start,$A63,18):OFFSET(Start,$A63,37)),0) -> 0 | F63: =IF(TODAY()-F$2>0,SUM(OFFSET(Start,$A63,18):OFFSET(Start,$A63,37)),0) -> 0 | G63: =IF(TODAY()-G$2>0,SUM(OFFSET(Start,$A63,18):OFFSET(Start,$A63,37)),0) -> 0 | H63: =IF(TODAY()-H$2>0,SUM(OFFSET(Start,$A63,18):OFFSET(Start,$A63,37)),0) -> 0 | I63: =IF(TODAY()-I$2>0,SUM(OFFSET(Start,$A63,18):OFFSET(Start,$A63,37)),0) -> 0 | J63: =IF(TODAY()-J$2>0,SUM(OFFSET(Start,$A63,18):OFFSET(Start,$A63,37)),0) -> 0 | K63: =IF(TODAY()-K$2>0,SUM(OFFSET(Start,$A63,18):OFFSET(Start,$A63,37)),0) -> 0 | L63: =IF(TODAY()-L$2>0,SUM(OFFSET(Start,$A63,18):OFFSET(Start,$A63,37)),0) -> 0 | M63: =IF(TODAY()-M$2>0,SUM(OFFSET(Start,$A63,18):OFFSET(Start,$A63,37)),0) -> 0 | N63: =IF(TODAY()-N$2>0,SUM(OFFSET(Start,$A63,18):OFFSET(Start,$A63,37)),0) -> 0 | O63: =IF(TODAY()-O$2>0,SUM(OFFSET(Start,$A63,18):OFFSET(Start,$A63,37)),0) -> 0 | P63: =IF(TODAY()-P$2>0,SUM(OFFSET(Start,$A63,18):OFFSET(Start,$A63,37)),0) -> 0 | Q63: =IF(TODAY()-Q$2>0,SUM(OFFSET(Start,$A63,18):OFFSET(Start,$A63,37)),0) -> 0 | R63: =IF(TODAY()-R$2>0,SUM(OFFSET(Start,$A63,18):OFFSET(Start,$A63,37)),0) -> 0 | S63: =IF(TODAY()-S$2>0,SUM(OFFSET(Start,$A63,18):OFFSET(Start,$A63,37)),0) -> 0 | T63: =IF(TODAY()-T$2>0,SUM(OFFSET(Start,$A63,18):OFFSET(Start,$A63,37)),0) -> 0 | U63: =IF(TODAY()-U$2>0,SUM(OFFSET(Start,$A63,18):OFFSET(Start,$A63,37)),0) -> 0 | V63: =IF(TODAY()-V$2>0,SUM(OFFSET(Start,$A63,18):OFFSET(Start,$A63,37)),0) -> 0 | W63: =IF(TODAY()-W$2>0,SUM(OFFSET(Start,$A63,18):OFFSET(Start,$A63,37)),0) -> 0 | X63: =IF(TODAY()-X$2>0,SUM(OFFSET(Start,$A63,18):OFFSET(Start,$A63,37)),0) -> 0 | Y63: =IF(TODAY()-Y$2>0,SUM(OFFSET(Start,$A63,18):OFFSET(Start,$A63,37)),0) -> 0 | Z63: =IF(TODAY()-Z$2>0,SUM(OFFSET(Start,$A63,18):OFFSET(Start,$A63,37)),0) -> 0 | AA63: =IF(TODAY()-AA$2>0,SUM(OFFSET(Start,$A63,18):OFFSET(Start,$A63,37)),0) -> 0 | AB63: =IF(TODAY()-AB$2>0,SUM(OFFSET(Start,$A63,18):OFFSET(Start,$A63,37)),0) -> 0 | AC63: =IF(TODAY()-AC$2>0,SUM(OFFSET(Start,$A63,18):OFFSET(Start,$A63,37)),0) -> 0 | AD63: =IF(TODAY()-AD$2>0,SUM(OFFSET(Start,$A63,18):OFFSET(Start,$A63,37)),0) -> 0 | AE63: =IF(TODAY()-AE$2>0,SUM(OFFSET(Start,$A63,18):OFFSET(Start,$A63,37)),0) -> 0 | AF63: =IF(TODAY()-AF$2>0,SUM(OFFSET(Start,$A63,18):OFFSET(Start,$A63,37)),0) -> 0 | AG63: =IF(TODAY()-AG$2>0,SUM(OFFSET(Start,$A63,18):OFFSET(Start,$A63,37)),0) -> 0 | AH63: =IF(TODAY()-AH$2>0,SUM(OFFSET(Start,$A63,18):OFFSET(Start,$A63,37)),0) -> 0 | AI63: =IF(TODAY()-AI$2>0,SUM(OFFSET(Start,$A63,18):OFFSET(Start,$A63,37)),0) -> 0 | AJ63: =IF(TODAY()-AJ$2>0,SUM(OFFSET(Start,$A63,18):OFFSET(Start,$A63,37)),0) -> 0 | AK63: =IF(TODAY()-AK$2>0,SUM(OFFSET(Start,$A63,18):OFFSET(Start,$A63,37)),0) -> 0 | AL63: =IF(TODAY()-AL$2>0,SUM(OFFSET(Start,$A63,18):OFFSET(Start,$A63,37)),0) -> 0 | AM63: 0 | AN63: 0 | AO63: 0
A64: 63 | B64: =OFFSET(Start,'Mellomlagring - antall besøk'!A64,0) -> 0 | C64: =IF(TODAY()-C$2>0,SUM(OFFSET(Start,$A64,18):OFFSET(Start,$A64,37)),0) -> 0 | D64: =IF(TODAY()-D$2>0,SUM(OFFSET(Start,$A64,18):OFFSET(Start,$A64,37)),0) -> 0 | E64: =IF(TODAY()-E$2>0,SUM(OFFSET(Start,$A64,18):OFFSET(Start,$A64,37)),0) -> 0 | F64: =IF(TODAY()-F$2>0,SUM(OFFSET(Start,$A64,18):OFFSET(Start,$A64,37)),0) -> 0 | G64: =IF(TODAY()-G$2>0,SUM(OFFSET(Start,$A64,18):OFFSET(Start,$A64,37)),0) -> 0 | H64: =IF(TODAY()-H$2>0,SUM(OFFSET(Start,$A64,18):OFFSET(Start,$A64,37)),0) -> 0 | I64: =IF(TODAY()-I$2>0,SUM(OFFSET(Start,$A64,18):OFFSET(Start,$A64,37)),0) -> 0 | J64: =IF(TODAY()-J$2>0,SUM(OFFSET(Start,$A64,18):OFFSET(Start,$A64,37)),0) -> 0 | K64: =IF(TODAY()-K$2>0,SUM(OFFSET(Start,$A64,18):OFFSET(Start,$A64,37)),0) -> 0 | L64: =IF(TODAY()-L$2>0,SUM(OFFSET(Start,$A64,18):OFFSET(Start,$A64,37)),0) -> 0 | M64: =IF(TODAY()-M$2>0,SUM(OFFSET(Start,$A64,18):OFFSET(Start,$A64,37)),0) -> 0 | N64: =IF(TODAY()-N$2>0,SUM(OFFSET(Start,$A64,18):OFFSET(Start,$A64,37)),0) -> 0 | O64: =IF(TODAY()-O$2>0,SUM(OFFSET(Start,$A64,18):OFFSET(Start,$A64,37)),0) -> 0 | P64: =IF(TODAY()-P$2>0,SUM(OFFSET(Start,$A64,18):OFFSET(Start,$A64,37)),0) -> 0 | Q64: =IF(TODAY()-Q$2>0,SUM(OFFSET(Start,$A64,18):OFFSET(Start,$A64,37)),0) -> 0 | R64: =IF(TODAY()-R$2>0,SUM(OFFSET(Start,$A64,18):OFFSET(Start,$A64,37)),0) -> 0 | S64: =IF(TODAY()-S$2>0,SUM(OFFSET(Start,$A64,18):OFFSET(Start,$A64,37)),0) -> 0 | T64: =IF(TODAY()-T$2>0,SUM(OFFSET(Start,$A64,18):OFFSET(Start,$A64,37)),0) -> 0 | U64: =IF(TODAY()-U$2>0,SUM(OFFSET(Start,$A64,18):OFFSET(Start,$A64,37)),0) -> 0 | V64: =IF(TODAY()-V$2>0,SUM(OFFSET(Start,$A64,18):OFFSET(Start,$A64,37)),0) -> 0 | W64: =IF(TODAY()-W$2>0,SUM(OFFSET(Start,$A64,18):OFFSET(Start,$A64,37)),0) -> 0 | X64: =IF(TODAY()-X$2>0,SUM(OFFSET(Start,$A64,18):OFFSET(Start,$A64,37)),0) -> 0 | Y64: =IF(TODAY()-Y$2>0,SUM(OFFSET(Start,$A64,18):OFFSET(Start,$A64,37)),0) -> 0 | Z64: =IF(TODAY()-Z$2>0,SUM(OFFSET(Start,$A64,18):OFFSET(Start,$A64,37)),0) -> 0 | AA64: =IF(TODAY()-AA$2>0,SUM(OFFSET(Start,$A64,18):OFFSET(Start,$A64,37)),0) -> 0 | AB64: =IF(TODAY()-AB$2>0,SUM(OFFSET(Start,$A64,18):OFFSET(Start,$A64,37)),0) -> 0 | AC64: =IF(TODAY()-AC$2>0,SUM(OFFSET(Start,$A64,18):OFFSET(Start,$A64,37)),0) -> 0 | AD64: =IF(TODAY()-AD$2>0,SUM(OFFSET(Start,$A64,18):OFFSET(Start,$A64,37)),0) -> 0 | AE64: =IF(TODAY()-AE$2>0,SUM(OFFSET(Start,$A64,18):OFFSET(Start,$A64,37)),0) -> 0 | AF64: =IF(TODAY()-AF$2>0,SUM(OFFSET(Start,$A64,18):OFFSET(Start,$A64,37)),0) -> 0 | AG64: =IF(TODAY()-AG$2>0,SUM(OFFSET(Start,$A64,18):OFFSET(Start,$A64,37)),0) -> 0 | AH64: =IF(TODAY()-AH$2>0,SUM(OFFSET(Start,$A64,18):OFFSET(Start,$A64,37)),0) -> 0 | AI64: =IF(TODAY()-AI$2>0,SUM(OFFSET(Start,$A64,18):OFFSET(Start,$A64,37)),0) -> 0 | AJ64: =IF(TODAY()-AJ$2>0,SUM(OFFSET(Start,$A64,18):OFFSET(Start,$A64,37)),0) -> 0 | AK64: =IF(TODAY()-AK$2>0,SUM(OFFSET(Start,$A64,18):OFFSET(Start,$A64,37)),0) -> 0 | AL64: =IF(TODAY()-AL$2>0,SUM(OFFSET(Start,$A64,18):OFFSET(Start,$A64,37)),0) -> 0 | AM64: 0 | AN64: 0 | AO64: 0
A65: 64 | B65: =OFFSET(Start,'Mellomlagring - antall besøk'!A65,0) -> 0 | C65: =IF(TODAY()-C$2>0,SUM(OFFSET(Start,$A65,18):OFFSET(Start,$A65,37)),0) -> 0 | D65: =IF(TODAY()-D$2>0,SUM(OFFSET(Start,$A65,18):OFFSET(Start,$A65,37)),0) -> 0 | E65: =IF(TODAY()-E$2>0,SUM(OFFSET(Start,$A65,18):OFFSET(Start,$A65,37)),0) -> 0 | F65: =IF(TODAY()-F$2>0,SUM(OFFSET(Start,$A65,18):OFFSET(Start,$A65,37)),0) -> 0 | G65: =IF(TODAY()-G$2>0,SUM(OFFSET(Start,$A65,18):OFFSET(Start,$A65,37)),0) -> 0 | H65: =IF(TODAY()-H$2>0,SUM(OFFSET(Start,$A65,18):OFFSET(Start,$A65,37)),0) -> 0 | I65: =IF(TODAY()-I$2>0,SUM(OFFSET(Start,$A65,18):OFFSET(Start,$A65,37)),0) -> 0 | J65: =IF(TODAY()-J$2>0,SUM(OFFSET(Start,$A65,18):OFFSET(Start,$A65,37)),0) -> 0 | K65: =IF(TODAY()-K$2>0,SUM(OFFSET(Start,$A65,18):OFFSET(Start,$A65,37)),0) -> 0 | L65: =IF(TODAY()-L$2>0,SUM(OFFSET(Start,$A65,18):OFFSET(Start,$A65,37)),0) -> 0 | M65: =IF(TODAY()-M$2>0,SUM(OFFSET(Start,$A65,18):OFFSET(Start,$A65,37)),0) -> 0 | N65: =IF(TODAY()-N$2>0,SUM(OFFSET(Start,$A65,18):OFFSET(Start,$A65,37)),0) -> 0 | O65: =IF(TODAY()-O$2>0,SUM(OFFSET(Start,$A65,18):OFFSET(Start,$A65,37)),0) -> 0 | P65: =IF(TODAY()-P$2>0,SUM(OFFSET(Start,$A65,18):OFFSET(Start,$A65,37)),0) -> 0 | Q65: =IF(TODAY()-Q$2>0,SUM(OFFSET(Start,$A65,18):OFFSET(Start,$A65,37)),0) -> 0 | R65: =IF(TODAY()-R$2>0,SUM(OFFSET(Start,$A65,18):OFFSET(Start,$A65,37)),0) -> 0 | S65: =IF(TODAY()-S$2>0,SUM(OFFSET(Start,$A65,18):OFFSET(Start,$A65,37)),0) -> 0 | T65: =IF(TODAY()-T$2>0,SUM(OFFSET(Start,$A65,18):OFFSET(Start,$A65,37)),0) -> 0 | U65: =IF(TODAY()-U$2>0,SUM(OFFSET(Start,$A65,18):OFFSET(Start,$A65,37)),0) -> 0 | V65: =IF(TODAY()-V$2>0,SUM(OFFSET(Start,$A65,18):OFFSET(Start,$A65,37)),0) -> 0 | W65: =IF(TODAY()-W$2>0,SUM(OFFSET(Start,$A65,18):OFFSET(Start,$A65,37)),0) -> 0 | X65: =IF(TODAY()-X$2>0,SUM(OFFSET(Start,$A65,18):OFFSET(Start,$A65,37)),0) -> 0 | Y65: =IF(TODAY()-Y$2>0,SUM(OFFSET(Start,$A65,18):OFFSET(Start,$A65,37)),0) -> 0 | Z65: =IF(TODAY()-Z$2>0,SUM(OFFSET(Start,$A65,18):OFFSET(Start,$A65,37)),0) -> 0 | AA65: =IF(TODAY()-AA$2>0,SUM(OFFSET(Start,$A65,18):OFFSET(Start,$A65,37)),0) -> 0 | AB65: =IF(TODAY()-AB$2>0,SUM(OFFSET(Start,$A65,18):OFFSET(Start,$A65,37)),0) -> 0 | AC65: =IF(TODAY()-AC$2>0,SUM(OFFSET(Start,$A65,18):OFFSET(Start,$A65,37)),0) -> 0 | AD65: =IF(TODAY()-AD$2>0,SUM(OFFSET(Start,$A65,18):OFFSET(Start,$A65,37)),0) -> 0 | AE65: =IF(TODAY()-AE$2>0,SUM(OFFSET(Start,$A65,18):OFFSET(Start,$A65,37)),0) -> 0 | AF65: =IF(TODAY()-AF$2>0,SUM(OFFSET(Start,$A65,18):OFFSET(Start,$A65,37)),0) -> 0 | AG65: =IF(TODAY()-AG$2>0,SUM(OFFSET(Start,$A65,18):OFFSET(Start,$A65,37)),0) -> 0 | AH65: =IF(TODAY()-AH$2>0,SUM(OFFSET(Start,$A65,18):OFFSET(Start,$A65,37)),0) -> 0 | AI65: =IF(TODAY()-AI$2>0,SUM(OFFSET(Start,$A65,18):OFFSET(Start,$A65,37)),0) -> 0 | AJ65: =IF(TODAY()-AJ$2>0,SUM(OFFSET(Start,$A65,18):OFFSET(Start,$A65,37)),0) -> 0 | AK65: =IF(TODAY()-AK$2>0,SUM(OFFSET(Start,$A65,18):OFFSET(Start,$A65,37)),0) -> 0 | AL65: =IF(TODAY()-AL$2>0,SUM(OFFSET(Start,$A65,18):OFFSET(Start,$A65,37)),0) -> 0 | AM65: 0 | AN65: 0 | AO65: 0
A66: 65 | B66: =OFFSET(Start,'Mellomlagring - antall besøk'!A66,0) -> 0 | C66: =IF(TODAY()-C$2>0,SUM(OFFSET(Start,$A66,18):OFFSET(Start,$A66,37)),0) -> 0 | D66: =IF(TODAY()-D$2>0,SUM(OFFSET(Start,$A66,18):OFFSET(Start,$A66,37)),0) -> 0 | E66: =IF(TODAY()-E$2>0,SUM(OFFSET(Start,$A66,18):OFFSET(Start,$A66,37)),0) -> 0 | F66: =IF(TODAY()-F$2>0,SUM(OFFSET(Start,$A66,18):OFFSET(Start,$A66,37)),0) -> 0 | G66: =IF(TODAY()-G$2>0,SUM(OFFSET(Start,$A66,18):OFFSET(Start,$A66,37)),0) -> 0 | H66: =IF(TODAY()-H$2>0,SUM(OFFSET(Start,$A66,18):OFFSET(Start,$A66,37)),0) -> 0 | I66: =IF(TODAY()-I$2>0,SUM(OFFSET(Start,$A66,18):OFFSET(Start,$A66,37)),0) -> 0 | J66: =IF(TODAY()-J$2>0,SUM(OFFSET(Start,$A66,18):OFFSET(Start,$A66,37)),0) -> 0 | K66: =IF(TODAY()-K$2>0,SUM(OFFSET(Start,$A66,18):OFFSET(Start,$A66,37)),0) -> 0 | L66: =IF(TODAY()-L$2>0,SUM(OFFSET(Start,$A66,18):OFFSET(Start,$A66,37)),0) -> 0 | M66: =IF(TODAY()-M$2>0,SUM(OFFSET(Start,$A66,18):OFFSET(Start,$A66,37)),0) -> 0 | N66: =IF(TODAY()-N$2>0,SUM(OFFSET(Start,$A66,18):OFFSET(Start,$A66,37)),0) -> 0 | O66: =IF(TODAY()-O$2>0,SUM(OFFSET(Start,$A66,18):OFFSET(Start,$A66,37)),0) -> 0 | P66: =IF(TODAY()-P$2>0,SUM(OFFSET(Start,$A66,18):OFFSET(Start,$A66,37)),0) -> 0 | Q66: =IF(TODAY()-Q$2>0,SUM(OFFSET(Start,$A66,18):OFFSET(Start,$A66,37)),0) -> 0 | R66: =IF(TODAY()-R$2>0,SUM(OFFSET(Start,$A66,18):OFFSET(Start,$A66,37)),0) -> 0 | S66: =IF(TODAY()-S$2>0,SUM(OFFSET(Start,$A66,18):OFFSET(Start,$A66,37)),0) -> 0 | T66: =IF(TODAY()-T$2>0,SUM(OFFSET(Start,$A66,18):OFFSET(Start,$A66,37)),0) -> 0 | U66: =IF(TODAY()-U$2>0,SUM(OFFSET(Start,$A66,18):OFFSET(Start,$A66,37)),0) -> 0 | V66: =IF(TODAY()-V$2>0,SUM(OFFSET(Start,$A66,18):OFFSET(Start,$A66,37)),0) -> 0 | W66: =IF(TODAY()-W$2>0,SUM(OFFSET(Start,$A66,18):OFFSET(Start,$A66,37)),0) -> 0 | X66: =IF(TODAY()-X$2>0,SUM(OFFSET(Start,$A66,18):OFFSET(Start,$A66,37)),0) -> 0 | Y66: =IF(TODAY()-Y$2>0,SUM(OFFSET(Start,$A66,18):OFFSET(Start,$A66,37)),0) -> 0 | Z66: =IF(TODAY()-Z$2>0,SUM(OFFSET(Start,$A66,18):OFFSET(Start,$A66,37)),0) -> 0 | AA66: =IF(TODAY()-AA$2>0,SUM(OFFSET(Start,$A66,18):OFFSET(Start,$A66,37)),0) -> 0 | AB66: =IF(TODAY()-AB$2>0,SUM(OFFSET(Start,$A66,18):OFFSET(Start,$A66,37)),0) -> 0 | AC66: =IF(TODAY()-AC$2>0,SUM(OFFSET(Start,$A66,18):OFFSET(Start,$A66,37)),0) -> 0 | AD66: =IF(TODAY()-AD$2>0,SUM(OFFSET(Start,$A66,18):OFFSET(Start,$A66,37)),0) -> 0 | AE66: =IF(TODAY()-AE$2>0,SUM(OFFSET(Start,$A66,18):OFFSET(Start,$A66,37)),0) -> 0 | AF66: =IF(TODAY()-AF$2>0,SUM(OFFSET(Start,$A66,18):OFFSET(Start,$A66,37)),0) -> 0 | AG66: =IF(TODAY()-AG$2>0,SUM(OFFSET(Start,$A66,18):OFFSET(Start,$A66,37)),0) -> 0 | AH66: =IF(TODAY()-AH$2>0,SUM(OFFSET(Start,$A66,18):OFFSET(Start,$A66,37)),0) -> 0 | AI66: =IF(TODAY()-AI$2>0,SUM(OFFSET(Start,$A66,18):OFFSET(Start,$A66,37)),0) -> 0 | AJ66: =IF(TODAY()-AJ$2>0,SUM(OFFSET(Start,$A66,18):OFFSET(Start,$A66,37)),0) -> 0 | AK66: =IF(TODAY()-AK$2>0,SUM(OFFSET(Start,$A66,18):OFFSET(Start,$A66,37)),0) -> 0 | AL66: =IF(TODAY()-AL$2>0,SUM(OFFSET(Start,$A66,18):OFFSET(Start,$A66,37)),0) -> 0 | AM66: 0 | AN66: 0 | AO66: 0
A67: 66 | B67: =OFFSET(Start,'Mellomlagring - antall besøk'!A67,0) -> 0 | C67: =IF(TODAY()-C$2>0,SUM(OFFSET(Start,$A67,18):OFFSET(Start,$A67,37)),0) -> 0 | D67: =IF(TODAY()-D$2>0,SUM(OFFSET(Start,$A67,18):OFFSET(Start,$A67,37)),0) -> 0 | E67: =IF(TODAY()-E$2>0,SUM(OFFSET(Start,$A67,18):OFFSET(Start,$A67,37)),0) -> 0 | F67: =IF(TODAY()-F$2>0,SUM(OFFSET(Start,$A67,18):OFFSET(Start,$A67,37)),0) -> 0 | G67: =IF(TODAY()-G$2>0,SUM(OFFSET(Start,$A67,18):OFFSET(Start,$A67,37)),0) -> 0 | H67: =IF(TODAY()-H$2>0,SUM(OFFSET(Start,$A67,18):OFFSET(Start,$A67,37)),0) -> 0 | I67: =IF(TODAY()-I$2>0,SUM(OFFSET(Start,$A67,18):OFFSET(Start,$A67,37)),0) -> 0 | J67: =IF(TODAY()-J$2>0,SUM(OFFSET(Start,$A67,18):OFFSET(Start,$A67,37)),0) -> 0 | K67: =IF(TODAY()-K$2>0,SUM(OFFSET(Start,$A67,18):OFFSET(Start,$A67,37)),0) -> 0 | L67: =IF(TODAY()-L$2>0,SUM(OFFSET(Start,$A67,18):OFFSET(Start,$A67,37)),0) -> 0 | M67: =IF(TODAY()-M$2>0,SUM(OFFSET(Start,$A67,18):OFFSET(Start,$A67,37)),0) -> 0 | N67: =IF(TODAY()-N$2>0,SUM(OFFSET(Start,$A67,18):OFFSET(Start,$A67,37)),0) -> 0 | O67: =IF(TODAY()-O$2>0,SUM(OFFSET(Start,$A67,18):OFFSET(Start,$A67,37)),0) -> 0 | P67: =IF(TODAY()-P$2>0,SUM(OFFSET(Start,$A67,18):OFFSET(Start,$A67,37)),0) -> 0 | Q67: =IF(TODAY()-Q$2>0,SUM(OFFSET(Start,$A67,18):OFFSET(Start,$A67,37)),0) -> 0 | R67: =IF(TODAY()-R$2>0,SUM(OFFSET(Start,$A67,18):OFFSET(Start,$A67,37)),0) -> 0 | S67: =IF(TODAY()-S$2>0,SUM(OFFSET(Start,$A67,18):OFFSET(Start,$A67,37)),0) -> 0 | T67: =IF(TODAY()-T$2>0,SUM(OFFSET(Start,$A67,18):OFFSET(Start,$A67,37)),0) -> 0 | U67: =IF(TODAY()-U$2>0,SUM(OFFSET(Start,$A67,18):OFFSET(Start,$A67,37)),0) -> 0 | V67: =IF(TODAY()-V$2>0,SUM(OFFSET(Start,$A67,18):OFFSET(Start,$A67,37)),0) -> 0 | W67: =IF(TODAY()-W$2>0,SUM(OFFSET(Start,$A67,18):OFFSET(Start,$A67,37)),0) -> 0 | X67: =IF(TODAY()-X$2>0,SUM(OFFSET(Start,$A67,18):OFFSET(Start,$A67,37)),0) -> 0 | Y67: =IF(TODAY()-Y$2>0,SUM(OFFSET(Start,$A67,18):OFFSET(Start,$A67,37)),0) -> 0 | Z67: =IF(TODAY()-Z$2>0,SUM(OFFSET(Start,$A67,18):OFFSET(Start,$A67,37)),0) -> 0 | AA67: =IF(TODAY()-AA$2>0,SUM(OFFSET(Start,$A67,18):OFFSET(Start,$A67,37)),0) -> 0 | AB67: =IF(TODAY()-AB$2>0,SUM(OFFSET(Start,$A67,18):OFFSET(Start,$A67,37)),0) -> 0 | AC67: =IF(TODAY()-AC$2>0,SUM(OFFSET(Start,$A67,18):OFFSET(Start,$A67,37)),0) -> 0 | AD67: =IF(TODAY()-AD$2>0,SUM(OFFSET(Start,$A67,18):OFFSET(Start,$A67,37)),0) -> 0 | AE67: =IF(TODAY()-AE$2>0,SUM(OFFSET(Start,$A67,18):OFFSET(Start,$A67,37)),0) -> 0 | AF67: =IF(TODAY()-AF$2>0,SUM(OFFSET(Start,$A67,18):OFFSET(Start,$A67,37)),0) -> 0 | AG67: =IF(TODAY()-AG$2>0,SUM(OFFSET(Start,$A67,18):OFFSET(Start,$A67,37)),0) -> 0 | AH67: =IF(TODAY()-AH$2>0,SUM(OFFSET(Start,$A67,18):OFFSET(Start,$A67,37)),0) -> 0 | AI67: =IF(TODAY()-AI$2>0,SUM(OFFSET(Start,$A67,18):OFFSET(Start,$A67,37)),0) -> 0 | AJ67: =IF(TODAY()-AJ$2>0,SUM(OFFSET(Start,$A67,18):OFFSET(Start,$A67,37)),0) -> 0 | AK67: =IF(TODAY()-AK$2>0,SUM(OFFSET(Start,$A67,18):OFFSET(Start,$A67,37)),0) -> 0 | AL67: =IF(TODAY()-AL$2>0,SUM(OFFSET(Start,$A67,18):OFFSET(Start,$A67,37)),0) -> 0 | AM67: 0 | AN67: =OFFSET(Start,$A67,3)+OFFSET(Start,$A67,4)+OFFSET(Start,$A67,17) -> 0 | AO67: 0
